Workbook

Sheet Velkomst

Sheet Tabel 1 Sydj
A1: Tabel 1. Forsikrede medlemmer
A3: Sydjylland
C5: Mænd | E5: Kvinder | G5: I alt
A7: Civ. ing. | C7: 1461 | E7: 447 | G7: 1908
A8: Diplom ing. | C8: 3375 | E8: 828 | G8: 4203
A9: Cand. Scient. Tek. | C9: 457 | E9: 315 | G9: 772
A10: MA. Hum. | C10: 740 | E10: 1507 | G10: 2247
A11: MA. Nat. | C11: 398 | E11: 345 | G11: 743
A12: MA. Ph.d. | C12: 36 | E12: 33 | G12: 69
A13: MA. Samf. | C13: 32 | E13: 93 | G13: 125
A14: Øvrige Mag. | C14: 80 | E14: 149 | G14: 229
A15: Agronom | C15: 117 | E15: 115 | G15: 232
A16: Landsk. Arkt. | C16: 9 | E16: 21 | G16: 30
A17: Hortonom | C17: 3 | E17: 14 | G17: 17
A18: Forstkand. | C18: 34 | E18: 12 | G18: 46
A19: Jordbrugsakad. | C19: 163 | E19: 222 | G19: 385
A20: Mejeriing. | C20: 22 | E20: 15 | G20: 37
A21: Levn.m.kand. | C21: 1 | E21: 9 | G21: 10
A22: Dyrlæge | C22: 63 | E22: 222 | G22: 285
A23: Farmaceut | C23: 34 | E23: 150 | G23: 184
A24: Læge | C24: 248 | E24: 510 | G24: 758
A25: Tandlæge | C25: 19 | E25: 163 | G25: 182
A26: Arkitekt | C26: 109 | E26: 142 | G26: 251
A27: Landinspek. | C27: 65 | E27: 30 | G27: 95
A28: Bibliotekar | C28: 61 | E28: 206 | G28: 267
A29: Musikudd. | C29: 45 | E29: 57 | G29: 102
A30: Teolog | C30: 80 | E30: 123 | G30: 203
A31: Psykolog | C31: 73 | E31: 392 | G31: 465
A32: Jurist | C32: 226 | E32: 504 | G32: 730
A33: Økonom | C33: 245 | E33: 152 | G33: 397
A34: Samf. Adm. | C34: 414 | E34: 629 | G34: 1043
A35: Cand. Merc. | C35: 1068 | E35: 971 | G35: 2039
A36: HA | C36: 321 | E36: 308 | G36: 629
A37: HD | C37: 286 | E37: 194 | G37: 480
A38: Komm. og Sprog | C38: 47 | E38: 427 | G38: 474
A39: Cand. IT. | C39: 97 | E39: 89 | G39: 186
A40: Bac. Samf. | C40: 24 | E40: 56 | G40: 80
A41: Bac. Hum. | C41: 59 | E41: 104 | G41: 163
A42: Bac. Nat. | C42: 104 | E42: 58 | G42: 162
A43: Andre | C43: 714 | E43: 550 | G43: 1264
A45: Total | C45: 11167 | E45: 9940 | G45: 21107
A47: Ingeniører i alt | C47: 4836 | E47: 1275 | G47: 6111
A48: Magistre i alt | C48: 1286 | E48: 2127 | G48: 3413
A49: DJØF'ere i alt | C49: 2274 | E49: 2564 | G49: 4838
A56: Haderslev
C58: Mænd | E58: Kvinder | G58: I alt
A60: Civ. ing. | C60: 40 | E60: 10 | G60: 50
A61: Diplom ing. | C61: 132 | E61: 34 | G61: 166
A62: Cand. Scient. Tek. | C62: 8 | E62: 14 | G62: 22
A63: MA. Hum. | C63: 67 | E63: 113 | G63: 180
A64: MA. Nat. | C64: 23 | E64: 18 | G64: 41
A65: MA. Ph.d. | C65: 2 | E65: 0 | G65: 2
A66: MA. Samf. | C66: 2 | E66: 5 | G66: 7
A67: Øvrige Mag. | C67: 6 | E67: 12 | G67: 18
A68: Agronom | C68: 9 | E68: 14 | G68: 23
A69: Landsk. Arkt. | C69: 2 | E69: 1 | G69: 3
A70: Hortonom | C70: 1 | E70: 1 | G70: 2
A71: Forstkand. | C71: 1 | E71: 0 | G71: 1
A72: Jordbrugsakad. | C72: 13 | E72: 20 | G72: 33
A73: Mejeriing. | C73: 0 | E73: 4 | G73: 4
A74: Levn.m.kand. | C74: 0 | E74: 1 | G74: 1
A75: Dyrlæge | C75: 1 | E75: 20 | G75: 21
A76: Farmaceut | C76: 3 | E76: 7 | G76: 10
A77: Læge | C77: 9 | E77: 15 | G77: 24
A78: Tandlæge | C78: 1 | E78: 18 | G78: 19
A79: Arkitekt | C79: 10 | E79: 9 | G79: 19
A80: Landinspek. | C80: 2 | E80: 1 | G80: 3
A81: Bibliotekar | C81: 0 | E81: 11 | G81: 11
A82: Musikudd. | C82: 5 | E82: 8 | G82: 13
A83: Teolog | C83: 8 | E83: 12 | G83: 20
A84: Psykolog | C84: 3 | E84: 18 | G84: 21
A85: Jurist | C85: 10 | E85: 33 | G85: 43
A86: Økonom | C86: 14 | E86: 8 | G86: 22
A87: Samf. Adm. | C87: 21 | E87: 21 | G87: 42
A88: Cand. Merc. | C88: 45 | E88: 55 | G88: 100
A89: HA | C89: 18 | E89: 15 | G89: 33
A90: HD | C90: 19 | E90: 8 | G90: 27
A91: Komm. og Sprog | C91: 2 | E91: 23 | G91: 25
A92: Cand. IT. | C92: 5 | E92: 6 | G92: 11
A93: Bac. Samf. | C93: 1 | E93: 4 | G93: 5
A94: Bac. Hum. | C94: 3 | E94: 7 | G94: 10
A95: Bac. Nat. | C95: 5 | E95: 6 | G95: 11
A96: Andre | C96: 37 | E96: 18 | G96: 55
A98: Total | C98: 515 | E98: 550 | G98: 1065
A100: Ingeniører i alt | C100: 172 | E100: 44 | G100: 216
A101: Magistre i alt | C101: 100 | E101: 148 | G101: 248
A102: DJØF'ere i alt | C102: 108 | E102: 132 | G102: 240
A109: Billund
C111: Mænd | E111: Kvinder | G111: I alt
A113: Civ. ing. | C113: 33 | E113: 10 | G113: 43
A114: Diplom ing. | C114: 61 | E114: 21 | G114: 82
A115: Cand. Scient. Tek. | C115: 16 | E115: 6 | G115: 22
A116: MA. Hum. | C116: 17 | E116: 26 | G116: 43
A117: MA. Nat. | C117: 7 | E117: 11 | G117: 18
A118: MA. Ph.d. | C118: 0 | E118: 0 | G118: 0
A119: MA. Samf. | C119: 1 | E119: 1 | G119: 2
A120: Øvrige Mag. | C120: 1 | E120: 3 | G120: 4
A121: Agronom | C121: 2 | E121: 5 | G121: 7
A122: Landsk. Arkt. | C122: 0 | E122: 0 | G122: 0
A123: Hortonom | C123: 0 | E123: 0 | G123: 0
A124: Forstkand. | C124: 1 | E124: 0 | G124: 1
A125: Jordbrugsakad. | C125: 3 | E125: 4 | G125: 7
A126: Mejeriing. | C126: 0 | E126: 0 | G126: 0
A127: Levn.m.kand. | C127: 0 | E127: 0 | G127: 0
A128: Dyrlæge | C128: 3 | E128: 4 | G128: 7
A129: Farmaceut | C129: 0 | E129: 4 | G129: 4
A130: Læge | C130: 0 | E130: 2 | G130: 2
A131: Tandlæge | C131: 1 | E131: 7 | G131: 8
A132: Arkitekt | C132: 3 | E132: 6 | G132: 9
A133: Landinspek. | C133: 0 | E133: 0 | G133: 0
A134: Bibliotekar | C134: 0 | E134: 5 | G134: 5
A135: Musikudd. | C135: 1 | E135: 2 | G135: 3
A136: Teolog | C136: 2 | E136: 2 | G136: 4
A137: Psykolog | C137: 1 | E137: 5 | G137: 6
A138: Jurist | C138: 4 | E138: 9 | G138: 13
A139: Økonom | C139: 6 | E139: 3 | G139: 9
A140: Samf. Adm. | C140: 8 | E140: 14 | G140: 22
A141: Cand. Merc. | C141: 29 | E141: 30 | G141: 59
A142: HA | C142: 7 | E142: 8 | G142: 15
A143: HD | C143: 3 | E143: 7 | G143: 10
A144: Komm. og Sprog | C144: 2 | E144: 21 | G144: 23
A145: Cand. IT. | C145: 3 | E145: 2 | G145: 5
A146: Bac. Samf. | C146: 2 | E146: 3 | G146: 5
A147: Bac. Hum. | C147: 1 | E147: 1 | G147: 2
A148: Bac. Nat. | C148: 6 | E148: 2 | G148: 8
A149: Andre | C149: 21 | E149: 22 | G149: 43
A151: Total | C151: 242 | E151: 242 | G151: 484
A153: Ingeniører i alt | C153: 94 | E153: 31 | G153: 125
A154: Magistre i alt | C154: 26 | E154: 41 | G154: 67
A155: DJØF'ere i alt | C155: 54 | E155: 64 | G155: 118
A162: Sønderborg
C164: Mænd | E164: Kvinder | G164: I alt
A166: Civ. ing. | C166: 229 | E166: 42 | G166: 271
A167: Diplom ing. | C167: 681 | E167: 95 | G167: 776
A168: Cand. Scient. Tek. | C168: 77 | E168: 38 | G168: 115
A169: MA. Hum. | C169: 68 | E169: 142 | G169: 210
A170: MA. Nat. | C170: 43 | E170: 35 | G170: 78
A171: MA. Ph.d. | C171: 8 | E171: 5 | G171: 13
A172: MA. Samf. | C172: 3 | E172: 9 | G172: 12
A173: Øvrige Mag. | C173: 7 | E173: 13 | G173: 20
A174: Agronom | C174: 14 | E174: 14 | G174: 28
A175: Landsk. Arkt. | C175: 0 | E175: 3 | G175: 3
A176: Hortonom | C176: 0 | E176: 0 | G176: 0
A177: Forstkand. | C177: 3 | E177: 4 | G177: 7
A178: Jordbrugsakad. | C178: 17 | E178: 14 | G178: 31
A179: Mejeriing. | C179: 1 | E179: 0 | G179: 1
A180: Levn.m.kand. | C180: 0 | E180: 0 | G180: 0
A181: Dyrlæge | C181: 3 | E181: 14 | G181: 17
A182: Farmaceut | C182: 5 | E182: 16 | G182: 21
A183: Læge | C183: 21 | E183: 41 | G183: 62
A184: Tandlæge | C184: 1 | E184: 13 | G184: 14
A185: Arkitekt | C185: 5 | E185: 7 | G185: 12
A186: Landinspek. | C186: 5 | E186: 1 | G186: 6
A187: Bibliotekar | C187: 10 | E187: 27 | G187: 37
A188: Musikudd. | C188: 1 | E188: 3 | G188: 4
A189: Teolog | C189: 6 | E189: 16 | G189: 22
A190: Psykolog | C190: 9 | E190: 38 | G190: 47
A191: Jurist | C191: 23 | E191: 33 | G191: 56
A192: Økonom | C192: 27 | E192: 15 | G192: 42
A193: Samf. Adm. | C193: 40 | E193: 55 | G193: 95
A194: Cand. Merc. | C194: 113 | E194: 106 | G194: 219
A195: HA | C195: 48 | E195: 41 | G195: 89
A196: HD | C196: 26 | E196: 22 | G196: 48
A197: Komm. og Sprog | C197: 5 | E197: 58 | G197: 63
A198: Cand. IT. | C198: 14 | E198: 8 | G198: 22
A199: Bac. Samf. | C199: 2 | E199: 9 | G199: 11
A200: Bac. Hum. | C200: 8 | E200: 13 | G200: 21
A201: Bac. Nat. | C201: 21 | E201: 6 | G201: 27
A202: Andre | C202: 79 | E202: 58 | G202: 137
A204: Total | C204: 1606 | E204: 1000 | G204: 2606
A206: Ingeniører i alt | C206: 910 | E206: 137 | G206: 1047
A207: Magistre i alt | C207: 129 | E207: 204 | G207: 333
A208: DJØF'ere i alt | C208: 251 | E208: 250 | G208: 501
A215: Tønder
C217: Mænd | E217: Kvinder | G217: I alt
A219: Civ. ing. | C219: 22 | E219: 10 | G219: 32
A220: Diplom ing. | C220: 43 | E220: 15 | G220: 58
A221: Cand. Scient. Tek. | C221: 8 | E221: 5 | G221: 13
A222: MA. Hum. | C222: 31 | E222: 40 | G222: 71
A223: MA. Nat. | C223: 13 | E223: 14 | G223: 27
A224: MA. Ph.d. | C224: 0 | E224: 1 | G224: 1
A225: MA. Samf. | C225: 1 | E225: 2 | G225: 3
A226: Øvrige Mag. | C226: 4 | E226: 5 | G226: 9
A227: Agronom | C227: 5 | E227: 10 | G227: 15
A228: Landsk. Arkt. | C228: 0 | E228: 1 | G228: 1
A229: Hortonom | C229: 0 | E229: 0 | G229: 0
A230: Forstkand. | C230: 2 | E230: 1 | G230: 3
A231: Jordbrugsakad. | C231: 7 | E231: 16 | G231: 23
A232: Mejeriing. | C232: 0 | E232: 0 | G232: 0
A233: Levn.m.kand. | C233: 0 | E233: 0 | G233: 0
A234: Dyrlæge | C234: 5 | E234: 16 | G234: 21
A235: Farmaceut | C235: 1 | E235: 3 | G235: 4
A236: Læge | C236: 2 | E236: 7 | G236: 9
A237: Tandlæge | C237: 1 | E237: 3 | G237: 4
A238: Arkitekt | C238: 2 | E238: 3 | G238: 5
A239: Landinspek. | C239: 4 | E239: 0 | G239: 4
A240: Bibliotekar | C240: 1 | E240: 10 | G240: 11
A241: Musikudd. | C241: 3 | E241: 3 | G241: 6
A242: Teolog | C242: 7 | E242: 9 | G242: 16
A243: Psykolog | C243: 2 | E243: 7 | G243: 9
... 361 more rows

Sheet Tabel 2 Sydj
A1: Tabel 2. Antal bruttoledighedsberørte og gennemsnitlig antal ledige brutto
A3: Sydjylland
C5: Mænd | F5: Kvinder | I5: I alt
C6: Ledigheds- berørte | D6: Gns. brutto- ledighed | F6: Ledigheds- berørte | G6: Gns. brutto- ledighed | I6: Ledigheds- berørte | J6: Gns. brutto- ledighed
A9: Civ. ing. | C9: 59 | D9: 53.82960145 | F9: 18 | G9: 15.32277178 | I9: 77 | J9: 69.15237323
A10: Diplom ing. | C10: 65 | D10: 55.15125055 | F10: 14 | G10: 12.39630762 | I10: 79 | J10: 67.54755816
A11: Cand. Scient. Tek. | C11: 32 | D11: 30.49647602 | F11: 32 | G11: 26.29139899 | I11: 64 | J11: 56.78787501
A12: MA. Hum. | C12: 58 | D12: 51.6247739 | F12: 124 | G12: 106.1703986 | I12: 182 | J12: 157.7951725
A13: MA. Nat. | C13: 10 | D13: 9.179192915 | F13: 11 | G13: 9.746148569 | I13: 21 | J13: 18.92534148
A14: MA. Ph.d. | C14: 0 | D14: 0 | F14: 2 | G14: 1.765733175 | I14: 2 | J14: 1.765733175
A15: MA. Samf. | C15: 5 | D15: 4.50757812 | F15: 20 | G15: 16.09492921 | I15: 25 | J15: 20.60250733
A16: Øvrige Mag. | C16: 5 | D16: 3.872637685 | F16: 6 | G16: 3.649971933 | I16: 11 | J16: 7.522609618
A17: Agronom | C17: 2 | D17: 1.999625772 | F17: 2 | G17: 1.999625772 | I17: 4 | J17: 3.999251544
A18: Landsk. Arkt. | C18: 0 | D18: 0 | F18: 0 | G18: 0 | I18: 0 | J18: 0
A19: Hortonom | C19: 0 | D19: 0 | F19: 0 | G19: 0 | I19: 0 | J19: 0
A20: Forstkand. | C20: 0 | D20: 0 | F20: 1 | G20: 0.9998128859 | I20: 1 | J20: 0.9998128859
A21: Jordbrugsakad. | C21: 2 | D21: 1.999625772 | F21: 3 | G21: 2.999438658 | I21: 5 | J21: 4.99906443
A22: Mejeriing. | C22: 0 | D22: 0 | F22: 1 | G22: 0.9998128859 | I22: 1 | J22: 0.9998128859
A23: Levn.m.kand. | C23: 0 | D23: 0 | F23: 1 | G23: 0.9998128859 | I23: 1 | J23: 0.9998128859
A24: Dyrlæge | C24: 0 | D24: 0 | F24: 6 | G24: 4.578057756 | I24: 6 | J24: 4.578057756
A25: Farmaceut | C25: 6 | D25: 4.883053702 | F25: 3 | G25: 1.910434728 | I25: 9 | J25: 6.79348843
A26: Læge | C26: 3 | D26: 1.365932764 | F26: 5 | G26: 3.122310235 | I26: 8 | J26: 4.488242999
A27: Tandlæge | C27: 0 | D27: 0 | F27: 0 | G27: 0 | I27: 0 | J27: 0
A28: Arkitekt | C28: 7 | D28: 6.998690201 | F28: 6 | G28: 4.909873386 | I28: 13 | J28: 11.90856359
A29: Landinspek. | C29: 2 | D29: 1.722696938 | F29: 1 | G29: 0.4459552174 | I29: 3 | J29: 2.168652155
A30: Bibliotekar | C30: 0 | D30: 0 | F30: 7 | G30: 5.490550739 | I30: 7 | J30: 5.490550739
A31: Musikudd. | C31: 0 | D31: 0 | F31: 0 | G31: 0 | I31: 0 | J31: 0
A32: Teolog | C32: 2 | D32: 1.60668621 | F32: 2 | G32: 1.246179754 | I32: 4 | J32: 2.852865964
A33: Psykolog | C33: 3 | D33: 2.475519242 | F33: 17 | G33: 13.94810703 | I33: 20 | J33: 16.42362627
A34: Jurist | C34: 9 | D34: 8.394561217 | F34: 7 | G34: 6.765421319 | I34: 16 | J34: 15.15998254
A35: Økonom | C35: 4 | D35: 3.799663195 | F35: 3 | G35: 2.623963076 | I35: 7 | J35: 6.423626271
A36: Samf. Adm. | C36: 23 | D36: 20.47776461 | F36: 41 | G36: 34.40466538 | I36: 64 | J36: 54.88242999
A37: Cand. Merc. | C37: 58 | D37: 51.45761866 | F37: 46 | G37: 39.93201522 | I37: 104 | J37: 91.38963388
A38: HA | C38: 22 | D38: 18.42699432 | F38: 15 | G38: 10.9960706 | I38: 37 | J38: 29.42306493
A39: HD | C39: 9 | D39: 7.551924156 | F39: 10 | G39: 8.936568328 | I39: 19 | J39: 16.48849248
A40: Komm. og Sprog | C40: 5 | D40: 3.944364748 | F40: 20 | G40: 16.91698372 | I40: 25 | J40: 20.86134847
A41: Cand. IT. | C41: 6 | D41: 5.924031685 | F41: 10 | G41: 8.867959833 | I41: 16 | J41: 14.79199152
A42: Bac. Samf. | C42: 2 | D42: 1.831223102 | F42: 6 | G42: 5.203642487 | I42: 8 | J42: 7.03486559
A43: Bac. Hum. | C43: 13 | D43: 11.39711844 | F43: 11 | G43: 8.204328572 | I43: 24 | J43: 19.60144702
A44: Bac. Nat. | C44: 5 | D44: 4.491361567 | F44: 5 | G44: 3.570136593 | I44: 10 | J44: 8.06149816
A45: Andre | C45: 35 | D45: 30.72226034 | F45: 28 | G45: 22.19983783 | I45: 63 | J45: 52.92209817
A47: Total | C47: 450 | D47: 398.1326015 | F47: 481 | G47: 400.7097861 | I47: 931 | J47: 798.8423876
A49: Ingeniører i alt | C49: 124 | D49: 108.980852 | F49: 32 | G49: 27.7190794 | I49: 156 | J49: 136.6999314
A50: Magistre i alt | C50: 78 | D50: 69.18418262 | F50: 163 | G50: 137.4271814 | I50: 241 | J50: 206.6113641
A51: DJØF'ere i alt | C51: 116 | D51: 102.556602 | F51: 112 | G51: 94.7221356 | I51: 228 | J51: 197.2787376
A56: Haderslev
C58: Mænd | F58: Kvinder | I58: I alt
C59: Ledigheds- berørte | D59: Gns. brutto- ledighed | F59: Ledigheds- berørte | G59: Gns. brutto- ledighed | I59: Ledigheds- berørte | J59: Gns. brutto- ledighed
A62: Civ. ing. | C62: 1 | D62: 0.9998128859 | F62: 0 | G62: 0 | I62: 1 | J62: 0.9998128859
A63: Diplom ing. | C63: 4 | D63: 3.386141084 | F63: 1 | G63: 0.9998128859 | I63: 5 | J63: 4.38595397
A64: Cand. Scient. Tek. | C64: 1 | D64: 0.9998128859 | F64: 2 | G64: 1.861161355 | I64: 3 | J64: 2.860974241
A65: MA. Hum. | C65: 5 | D65: 4.99906443 | F65: 11 | G65: 9.41121437 | I65: 16 | J65: 14.4102788
A66: MA. Nat. | C66: 0 | D66: 0 | F66: 0 | G66: 0 | I66: 0 | J66: 0
A67: MA. Ph.d. | C67: 0 | D67: 0 | F67: 0 | G67: 0 | I67: 0 | J67: 0
A68: MA. Samf. | C68: 1 | D68: 0.9998128859 | F68: 2 | G68: 1.573005676 | I68: 3 | J68: 2.572818562
A69: Øvrige Mag. | C69: 1 | D69: 0.9998128859 | F69: 1 | G69: 0.4977234454 | I69: 2 | J69: 1.497536331
A70: Agronom | C70: 0 | D70: 0 | F70: 0 | G70: 0 | I70: 0 | J70: 0
A71: Landsk. Arkt. | C71: 0 | D71: 0 | F71: 0 | G71: 0 | I71: 0 | J71: 0
A72: Hortonom | C72: 0 | D72: 0 | F72: 0 | G72: 0 | I72: 0 | J72: 0
A73: Forstkand. | C73: 0 | D73: 0 | F73: 0 | G73: 0 | I73: 0 | J73: 0
A74: Jordbrugsakad. | C74: 0 | D74: 0 | F74: 0 | G74: 0 | I74: 0 | J74: 0
A75: Mejeriing. | C75: 0 | D75: 0 | F75: 0 | G75: 0 | I75: 0 | J75: 0
A76: Levn.m.kand. | C76: 0 | D76: 0 | F76: 0 | G76: 0 | I76: 0 | J76: 0
A77: Dyrlæge | C77: 0 | D77: 0 | F77: 0 | G77: 0 | I77: 0 | J77: 0
A78: Farmaceut | C78: 0 | D78: 0 | F78: 0 | G78: 0 | I78: 0 | J78: 0
A79: Læge | C79: 0 | D79: 0 | F79: 0 | G79: 0 | I79: 0 | J79: 0
A80: Tandlæge | C80: 0 | D80: 0 | F80: 0 | G80: 0 | I80: 0 | J80: 0
A81: Arkitekt | C81: 0 | D81: 0 | F81: 0 | G81: 0 | I81: 0 | J81: 0
A82: Landinspek. | C82: 0 | D82: 0 | F82: 0 | G82: 0 | I82: 0 | J82: 0
A83: Bibliotekar | C83: 0 | D83: 0 | F83: 1 | G83: 0.9998128859 | I83: 1 | J83: 0.9998128859
A84: Musikudd. | C84: 0 | D84: 0 | F84: 0 | G84: 0 | I84: 0 | J84: 0
A85: Teolog | C85: 0 | D85: 0 | F85: 0 | G85: 0 | I85: 0 | J85: 0
A86: Psykolog | C86: 0 | D86: 0 | F86: 0 | G86: 0 | I86: 0 | J86: 0
A87: Jurist | C87: 0 | D87: 0 | F87: 1 | G87: 0.9998128859 | I87: 1 | J87: 0.9998128859
A88: Økonom | C88: 0 | D88: 0 | F88: 0 | G88: 0 | I88: 0 | J88: 0
A89: Samf. Adm. | C89: 1 | D89: 0.8582299008 | F89: 1 | G89: 0.9998128859 | I89: 2 | J89: 1.858042787
A90: Cand. Merc. | C90: 2 | D90: 1.999625772 | F90: 2 | G90: 1.953470966 | I90: 4 | J90: 3.953096738
A91: HA | C91: 2 | D91: 1.999625772 | F91: 1 | G91: 0.9998128859 | I91: 3 | J91: 2.999438658
A92: HD | C92: 0 | D92: 0 | F92: 0 | G92: 0 | I92: 0 | J92: 0
A93: Komm. og Sprog | C93: 1 | D93: 0.9998128859 | F93: 2 | G93: 1.360943055 | I93: 3 | J93: 2.360755941
A94: Cand. IT. | C94: 0 | D94: 0 | F94: 2 | G94: 1.700866962 | I94: 2 | J94: 1.700866962
A95: Bac. Samf. | C95: 0 | D95: 0 | F95: 0 | G95: 0 | I95: 0 | J95: 0
A96: Bac. Hum. | C96: 1 | D96: 0.230150315 | F96: 1 | G96: 0.9998128859 | I96: 2 | J96: 1.229963201
A97: Bac. Nat. | C97: 0 | D97: 0 | F97: 1 | G97: 0.4921100231 | I97: 1 | J97: 0.4921100231
A98: Andre | C98: 1 | D98: 0.9536580802 | F98: 0 | G98: 0 | I98: 1 | J98: 0.9536580802
A100: Total | C100: 21 | D100: 19.42555978 | F100: 29 | G100: 24.84937317 | I100: 50 | J100: 44.27493295
A102: Ingeniører i alt | C102: 5 | D102: 4.38595397 | F102: 1 | G102: 0.9998128859 | I102: 6 | J102: 5.385766856
A103: Magistre i alt | C103: 7 | D103: 6.998690201 | F103: 14 | G103: 11.48194349 | I103: 21 | J103: 18.48063369
A104: DJØF'ere i alt | C104: 5 | D104: 4.857481445 | F104: 5 | G104: 4.952909624 | I104: 10 | J104: 9.810391068
A109: Billund
C111: Mænd | F111: Kvinder | I111: I alt
C112: Ledigheds- berørte | D112: Gns. brutto- ledighed | F112: Ledigheds- berørte | G112: Gns. brutto- ledighed | I112: Ledigheds- berørte | J112: Gns. brutto- ledighed
A115: Civ. ing. | C115: 2 | D115: 1.90731616 | F115: 0 | G115: 0 | I115: 2 | J115: 1.90731616
A116: Diplom ing. | C116: 0 | D116: 0 | F116: 0 | G116: 0 | I116: 0 | J116: 0
A117: Cand. Scient. Tek. | C117: 1 | D117: 0.9998128859 | F117: 0 | G117: 0 | I117: 1 | J117: 0.9998128859
A118: MA. Hum. | C118: 3 | D118: 2.977608682 | F118: 4 | G118: 3.940622466 | I118: 7 | J118: 6.918231148
A119: MA. Nat. | C119: 0 | D119: 0 | F119: 1 | G119: 0.9998128859 | I119: 1 | J119: 0.9998128859
A120: MA. Ph.d. | C120: 0 | D120: 0 | F120: 0 | G120: 0 | I120: 0 | J120: 0
A121: MA. Samf. | C121: 0 | D121: 0 | F121: 0 | G121: 0 | I121: 0 | J121: 0
A122: Øvrige Mag. | C122: 0 | D122: 0 | F122: 0 | G122: 0 | I122: 0 | J122: 0
A123: Agronom | C123: 0 | D123: 0 | F123: 0 | G123: 0 | I123: 0 | J123: 0
A124: Landsk. Arkt. | C124: 0 | D124: 0 | F124: 0 | G124: 0 | I124: 0 | J124: 0
A125: Hortonom | C125: 0 | D125: 0 | F125: 0 | G125: 0 | I125: 0 | J125: 0
A126: Forstkand. | C126: 0 | D126: 0 | F126: 0 | G126: 0 | I126: 0 | J126: 0
A127: Jordbrugsakad. | C127: 0 | D127: 0 | F127: 0 | G127: 0 | I127: 0 | J127: 0
A128: Mejeriing. | C128: 0 | D128: 0 | F128: 0 | G128: 0 | I128: 0 | J128: 0
A129: Levn.m.kand. | C129: 0 | D129: 0 | F129: 0 | G129: 0 | I129: 0 | J129: 0
A130: Dyrlæge | C130: 0 | D130: 0 | F130: 0 | G130: 0 | I130: 0 | J130: 0
A131: Farmaceut | C131: 0 | D131: 0 | F131: 0 | G131: 0 | I131: 0 | J131: 0
A132: Læge | C132: 0 | D132: 0 | F132: 0 | G132: 0 | I132: 0 | J132: 0
A133: Tandlæge | C133: 0 | D133: 0 | F133: 0 | G133: 0 | I133: 0 | J133: 0
A134: Arkitekt | C134: 0 | D134: 0 | F134: 0 | G134: 0 | I134: 0 | J134: 0
A135: Landinspek. | C135: 0 | D135: 0 | F135: 0 | G135: 0 | I135: 0 | J135: 0
A136: Bibliotekar | C136: 0 | D136: 0 | F136: 0 | G136: 0 | I136: 0 | J136: 0
A137: Musikudd. | C137: 0 | D137: 0 | F137: 0 | G137: 0 | I137: 0 | J137: 0
A138: Teolog | C138: 0 | D138: 0 | F138: 0 | G138: 0 | I138: 0 | J138: 0
A139: Psykolog | C139: 0 | D139: 0 | F139: 1 | G139: 0.9998128859 | I139: 1 | J139: 0.9998128859
A140: Jurist | C140: 0 | D140: 0 | F140: 0 | G140: 0 | I140: 0 | J140: 0
A141: Økonom | C141: 0 | D141: 0 | F141: 0 | G141: 0 | I141: 0 | J141: 0
A142: Samf. Adm. | C142: 0 | D142: 0 | F142: 0 | G142: 0 | I142: 0 | J142: 0
A143: Cand. Merc. | C143: 1 | D143: 0.9998128859 | F143: 2 | G143: 1.458242375 | I143: 3 | J143: 2.458055261
A144: HA | C144: 0 | D144: 0 | F144: 0 | G144: 0 | I144: 0 | J144: 0
A145: HD | C145: 0 | D145: 0 | F145: 0 | G145: 0 | I145: 0 | J145: 0
A146: Komm. og Sprog | C146: 1 | D146: 0.9998128859 | F146: 2 | G146: 1.242437473 | I146: 3 | J146: 2.242250359
A147: Cand. IT. | C147: 0 | D147: 0 | F147: 0 | G147: 0 | I147: 0 | J147: 0
A148: Bac. Samf. | C148: 0 | D148: 0 | F148: 0 | G148: 0 | I148: 0 | J148: 0
A149: Bac. Hum. | C149: 0 | D149: 0 | F149: 0 | G149: 0 | I149: 0 | J149: 0
A150: Bac. Nat. | C150: 0 | D150: 0 | F150: 0 | G150: 0 | I150: 0 | J150: 0
A151: Andre | C151: 2 | D151: 1.122684463 | F151: 2 | G151: 1.491922909 | I151: 4 | J151: 2.614607372
A153: Total | C153: 10 | D153: 9.007047964 | F153: 12 | G153: 10.13285099 | I153: 22 | J153: 19.13989896
A155: Ingeniører i alt | C155: 2 | D155: 1.90731616 | F155: 0 | G155: 0 | I155: 2 | J155: 1.90731616
A156: Magistre i alt | C156: 3 | D156: 2.977608682 | F156: 5 | G156: 4.940435352 | I156: 8 | J156: 7.918044034
A157: DJØF'ere i alt | C157: 1 | D157: 0.9998128859 | F157: 2 | G157: 1.458242375 | I157: 3 | J157: 2.458055261
A162: Sønderborg
C164: Mænd | F164: Kvinder | I164: I alt
C165: Ledigheds- berørte | D165: Gns. brutto- ledighed | F165: Ledigheds- berørte | G165: Gns. brutto- ledighed | I165: Ledigheds- berørte | J165: Gns. brutto- ledighed
A168: Civ. ing. | C168: 8 | D168: 7.599326389 | F168: 3 | G168: 2.361379654 | I168: 11 | J168: 9.960706044
A169: Diplom ing. | C169: 16 | D169: 14.16453565 | F169: 2 | G169: 1.889228466 | I169: 18 | J169: 16.05376411
A170: Cand. Scient. Tek. | C170: 5 | D170: 4.99906443 | F170: 3 | G170: 2.999438658 | I170: 8 | J170: 7.998503087
A171: MA. Hum. | C171: 6 | D171: 5.998877316 | F171: 10 | G171: 7.715960831 | I171: 16 | J171: 13.71483815
A172: MA. Nat. | C172: 2 | D172: 1.899831597 | F172: 1 | G172: 0.9998128859 | I172: 3 | J172: 2.899644483
A173: MA. Ph.d. | C173: 0 | D173: 0 | F173: 1 | G173: 0.8688330319 | I173: 1 | J173: 0.8688330319
A174: MA. Samf. | C174: 0 | D174: 0 | F174: 0 | G174: 0 | I174: 0 | J174: 0
A175: Øvrige Mag. | C175: 0 | D175: 0 | F175: 0 | G175: 0 | I175: 0 | J175: 0
A176: Agronom | C176: 0 | D176: 0 | F176: 0 | G176: 0 | I176: 0 | J176: 0
A177: Landsk. Arkt. | C177: 0 | D177: 0 | F177: 0 | G177: 0 | I177: 0 | J177: 0
A178: Hortonom | C178: 0 | D178: 0 | F178: 0 | G178: 0 | I178: 0 | J178: 0
A179: Forstkand. | C179: 0 | D179: 0 | F179: 0 | G179: 0 | I179: 0 | J179: 0
A180: Jordbrugsakad. | C180: 0 | D180: 0 | F180: 0 | G180: 0 | I180: 0 | J180: 0
A181: Mejeriing. | C181: 0 | D181: 0 | F181: 0 | G181: 0 | I181: 0 | J181: 0
A182: Levn.m.kand. | C182: 0 | D182: 0 | F182: 0 | G182: 0 | I182: 0 | J182: 0
A183: Dyrlæge | C183: 0 | D183: 0 | F183: 1 | G183: 0.6617601198 | I183: 1 | J183: 0.6617601198
A184: Farmaceut | C184: 0 | D184: 0 | F184: 0 | G184: 0 | I184: 0 | J184: 0
A185: Læge | C185: 1 | D185: 0.4546872076 | F185: 0 | G185: 0 | I185: 1 | J185: 0.4546872076
A186: Tandlæge | C186: 0 | D186: 0 | F186: 0 | G186: 0 | I186: 0 | J186: 0
A187: Arkitekt | C187: 0 | D187: 0 | F187: 0 | G187: 0 | I187: 0 | J187: 0
A188: Landinspek. | C188: 0 | D188: 0 | F188: 0 | G188: 0 | I188: 0 | J188: 0
A189: Bibliotekar | C189: 0 | D189: 0 | F189: 0 | G189: 0 | I189: 0 | J189: 0
A190: Musikudd. | C190: 0 | D190: 0 | F190: 0 | G190: 0 | I190: 0 | J190: 0
A191: Teolog | C191: 0 | D191: 0 | F191: 0 | G191: 0 | I191: 0 | J191: 0
A192: Psykolog | C192: 0 | D192: 0 | F192: 1 | G192: 0.9998128859 | I192: 1 | J192: 0.9998128859
A193: Jurist | C193: 1 | D193: 0.9998128859 | F193: 2 | G193: 1.766356889 | I193: 3 | J193: 2.766169775
A194: Økonom | C194: 0 | D194: 0 | F194: 0 | G194: 0 | I194: 0 | J194: 0
A195: Samf. Adm. | C195: 1 | D195: 0.3998004117 | F195: 2 | G195: 1.853053078 | I195: 3 | J195: 2.25285349
A196: Cand. Merc. | C196: 7 | D196: 5.423189671 | F196: 4 | G196: 3.999251544 | I196: 11 | J196: 9.422441215
A197: HA | C197: 2 | D197: 1.999625772 | F197: 1 | G197: 0.9998128859 | I197: 3 | J197: 2.999438658
A198: HD | C198: 0 | D198: 0 | F198: 1 | G198: 0.9998128859 | I198: 1 | J198: 0.9998128859
A199: Komm. og Sprog | C199: 0 | D199: 0 | F199: 3 | G199: 2.491735795 | I199: 3 | J199: 2.491735795
A200: Cand. IT. | C200: 2 | D200: 1.999625772 | F200: 1 | G200: 0.7228840516 | I200: 3 | J200: 2.722509823
A201: Bac. Samf. | C201: 1 | D201: 0.9237198279 | F201: 1 | G201: 0.9998128859 | I201: 2 | J201: 1.923532714
A202: Bac. Hum. | C202: 1 | D202: 0.9998128859 | F202: 1 | G202: 0.9998128859 | I202: 2 | J202: 1.999625772
A203: Bac. Nat. | C203: 3 | D203: 2.999438658 | F203: 0 | G203: 0 | I203: 3 | J203: 2.999438658
A204: Andre | C204: 2 | D204: 1.999625772 | F204: 2 | G204: 1.750140336 | I204: 4 | J204: 3.749766107
A206: Total | C206: 58 | D206: 52.86097424 | F206: 40 | G206: 35.07889977 | I206: 98 | J206: 87.93987401
A208: Ingeniører i alt | C208: 24 | D208: 21.76386203 | F208: 5 | G208: 4.250608121 | I208: 29 | J208: 26.01447016
A209: Magistre i alt | C209: 8 | D209: 7.898708913 | F209: 12 | G209: 9.584606749 | I209: 20 | J209: 17.48331566
A210: DJØF'ere i alt | C210: 11 | D210: 8.822428741 | F210: 9 | G210: 8.618474397 | I210: 20 | J210: 17.44090314
A215: Tønder
C217: Mænd | F217: Kvinder | I217: I alt
C218: Ledigheds- berørte | D218: Gns. brutto- ledighed | F218: Ledigheds- berørte | G218: Gns. brutto- ledighed | I218: Ledigheds- berørte | J218: Gns. brutto- ledighed
A221: Civ. ing. | C221: 3 | D221: 2.907129046 | F221: 0 | G221: 0 | I221: 3 | J221: 2.907129046
A222: Diplom ing. | C222: 1 | D222: 0.9998128859 | F222: 1 | G222: 0.9124929832 | I222: 2 | J222: 1.912305869
A223: Cand. Scient. Tek. | C223: 0 | D223: 0 | F223: 0 | G223: 0 | I223: 0 | J223: 0
A224: MA. Hum. | C224: 5 | D224: 4.275556664 | F224: 2 | G224: 1.962202956 | I224: 7 | J224: 6.237759621
A225: MA. Nat. | C225: 0 | D225: 0 | F225: 0 | G225: 0 | I225: 0 | J225: 0
A226: MA. Ph.d. | C226: 0 | D226: 0 | F226: 0 | G226: 0 | I226: 0 | J226: 0
A227: MA. Samf. | C227: 0 | D227: 0 | F227: 0 | G227: 0 | I227: 0 | J227: 0
A228: Øvrige Mag. | C228: 0 | D228: 0 | F228: 0 | G228: 0 | I228: 0 | J228: 0
A229: Agronom | C229: 0 | D229: 0 | F229: 0 | G229: 0 | I229: 0 | J229: 0
A230: Landsk. Arkt. | C230: 0 | D230: 0 | F230: 0 | G230: 0 | I230: 0 | J230: 0
A231: Hortonom | C231: 0 | D231: 0 | F231: 0 | G231: 0 | I231: 0 | J231: 0
A232: Forstkand. | C232: 0 | D232: 0 | F232: 0 | G232: 0 | I232: 0 | J232: 0
A233: Jordbrugsakad. | C233: 0 | D233: 0 | F233: 0 | G233: 0 | I233: 0 | J233: 0
A234: Mejeriing. | C234: 0 | D234: 0 | F234: 0 | G234: 0 | I234: 0 | J234: 0
A235: Levn.m.kand. | C235: 0 | D235: 0 | F235: 0 | G235: 0 | I235: 0 | J235: 0
A236: Dyrlæge | C236: 0 | D236: 0 | F236: 1 | G236: 0.9998128859 | I236: 1 | J236: 0.9998128859
A237: Farmaceut | C237: 0 | D237: 0 | F237: 0 | G237: 0 | I237: 0 | J237: 0
A238: Læge | C238: 0 | D238: 0 | F238: 0 | G238: 0 | I238: 0 | J238: 0
A239: Tandlæge | C239: 0 | D239: 0 | F239: 0 | G239: 0 | I239: 0 | J239: 0
A240: Arkitekt | C240: 0 | D240: 0 | F240: 0 | G240: 0 | I240: 0 | J240: 0
... 373 more rows

Sheet Tabel 3 Sydj
A1: Tabel 3. Ledige i procent af forsikrede
A3: Sydjylland
C5: Mænd | F5: Kvinder | I5: I alt
C6: Ledigheds- berørte | D6: Gns. brutto- ledighed | F6: Ledigheds- berørte | G6: Gns. brutto- ledighed | I6: Ledigheds- berørte | J6: Gns. brutto- ledighed
A9: Civ. ing. | C9: =IF(OR('Tabel 1 Sydj'!C7<5,'Tabel 2 Sydj'!C9<0.5),"-",IFERROR('Tabel 2 Sydj'!C9/'Tabel 1 Sydj'!C7*100,"-")) -> 4.038329911 | D9: =IF(OR('Tabel 1 Sydj'!C7<5,'Tabel 2 Sydj'!D9<0.5),"-",IFERROR('Tabel 2 Sydj'!D9/'Tabel 1 Sydj'!C7*100,"-")) -> 3.684435417 | F9: =IF(OR('Tabel 1 Sydj'!E7<5,'Tabel 2 Sydj'!F9<0.5),"-",IFERROR('Tabel 2 Sydj'!F9/'Tabel 1 Sydj'!E7*100,"-")) -> 4.026845638 | G9: =IF(OR('Tabel 1 Sydj'!E7<5,'Tabel 2 Sydj'!G9<0.5),"-",IFERROR('Tabel 2 Sydj'!G9/'Tabel 1 Sydj'!E7*100,"-")) -> 3.427913151 | I9: =IF(OR('Tabel 1 Sydj'!G7<5,'Tabel 2 Sydj'!I9<0.5),"-",IFERROR('Tabel 2 Sydj'!I9/'Tabel 1 Sydj'!G7*100,"-")) -> 4.035639413 | J9: =IF(OR('Tabel 1 Sydj'!G7<5,'Tabel 2 Sydj'!J9<0.5),"-",IFERROR('Tabel 2 Sydj'!J9/'Tabel 1 Sydj'!G7*100,"-")) -> 3.62433822
A10: Diplom ing. | C10: =IF(OR('Tabel 1 Sydj'!C8<5,'Tabel 2 Sydj'!C10<0.5),"-",IFERROR('Tabel 2 Sydj'!C10/'Tabel 1 Sydj'!C8*100,"-")) -> 1.925925926 | D10: =IF(OR('Tabel 1 Sydj'!C8<5,'Tabel 2 Sydj'!D10<0.5),"-",IFERROR('Tabel 2 Sydj'!D10/'Tabel 1 Sydj'!C8*100,"-")) -> 1.634111127 | F10: =IF(OR('Tabel 1 Sydj'!E8<5,'Tabel 2 Sydj'!F10<0.5),"-",IFERROR('Tabel 2 Sydj'!F10/'Tabel 1 Sydj'!E8*100,"-")) -> 1.690821256 | G10: =IF(OR('Tabel 1 Sydj'!E8<5,'Tabel 2 Sydj'!G10<0.5),"-",IFERROR('Tabel 2 Sydj'!G10/'Tabel 1 Sydj'!E8*100,"-")) -> 1.497138601 | I10: =IF(OR('Tabel 1 Sydj'!G8<5,'Tabel 2 Sydj'!I10<0.5),"-",IFERROR('Tabel 2 Sydj'!I10/'Tabel 1 Sydj'!G8*100,"-")) -> 1.879609803 | J10: =IF(OR('Tabel 1 Sydj'!G8<5,'Tabel 2 Sydj'!J10<0.5),"-",IFERROR('Tabel 2 Sydj'!J10/'Tabel 1 Sydj'!G8*100,"-")) -> 1.607127246
A11: Cand. Scient. Tek. | C11: =IF(OR('Tabel 1 Sydj'!C9<5,'Tabel 2 Sydj'!C11<0.5),"-",IFERROR('Tabel 2 Sydj'!C11/'Tabel 1 Sydj'!C9*100,"-")) -> 7.002188184 | D11: =IF(OR('Tabel 1 Sydj'!C9<5,'Tabel 2 Sydj'!D11<0.5),"-",IFERROR('Tabel 2 Sydj'!D11/'Tabel 1 Sydj'!C9*100,"-")) -> 6.673189501 | F11: =IF(OR('Tabel 1 Sydj'!E9<5,'Tabel 2 Sydj'!F11<0.5),"-",IFERROR('Tabel 2 Sydj'!F11/'Tabel 1 Sydj'!E9*100,"-")) -> 10.15873016 | G11: =IF(OR('Tabel 1 Sydj'!E9<5,'Tabel 2 Sydj'!G11<0.5),"-",IFERROR('Tabel 2 Sydj'!G11/'Tabel 1 Sydj'!E9*100,"-")) -> 8.34647587 | I11: =IF(OR('Tabel 1 Sydj'!G9<5,'Tabel 2 Sydj'!I11<0.5),"-",IFERROR('Tabel 2 Sydj'!I11/'Tabel 1 Sydj'!G9*100,"-")) -> 8.29015544 | J11: =IF(OR('Tabel 1 Sydj'!G9<5,'Tabel 2 Sydj'!J11<0.5),"-",IFERROR('Tabel 2 Sydj'!J11/'Tabel 1 Sydj'!G9*100,"-")) -> 7.355942359
A12: MA. Hum. | C12: =IF(OR('Tabel 1 Sydj'!C10<5,'Tabel 2 Sydj'!C12<0.5),"-",IFERROR('Tabel 2 Sydj'!C12/'Tabel 1 Sydj'!C10*100,"-")) -> 7.837837838 | D12: =IF(OR('Tabel 1 Sydj'!C10<5,'Tabel 2 Sydj'!D12<0.5),"-",IFERROR('Tabel 2 Sydj'!D12/'Tabel 1 Sydj'!C10*100,"-")) -> 6.976320798 | F12: =IF(OR('Tabel 1 Sydj'!E10<5,'Tabel 2 Sydj'!F12<0.5),"-",IFERROR('Tabel 2 Sydj'!F12/'Tabel 1 Sydj'!E10*100,"-")) -> 8.228268082 | G12: =IF(OR('Tabel 1 Sydj'!E10<5,'Tabel 2 Sydj'!G12<0.5),"-",IFERROR('Tabel 2 Sydj'!G12/'Tabel 1 Sydj'!E10*100,"-")) -> 7.045149207 | I12: =IF(OR('Tabel 1 Sydj'!G10<5,'Tabel 2 Sydj'!I12<0.5),"-",IFERROR('Tabel 2 Sydj'!I12/'Tabel 1 Sydj'!G10*100,"-")) -> 8.099688474 | J12: =IF(OR('Tabel 1 Sydj'!G10<5,'Tabel 2 Sydj'!J12<0.5),"-",IFERROR('Tabel 2 Sydj'!J12/'Tabel 1 Sydj'!G10*100,"-")) -> 7.022482085
A13: MA. Nat. | C13: =IF(OR('Tabel 1 Sydj'!C11<5,'Tabel 2 Sydj'!C13<0.5),"-",IFERROR('Tabel 2 Sydj'!C13/'Tabel 1 Sydj'!C11*100,"-")) -> 2.512562814 | D13: =IF(OR('Tabel 1 Sydj'!C11<5,'Tabel 2 Sydj'!D13<0.5),"-",IFERROR('Tabel 2 Sydj'!D13/'Tabel 1 Sydj'!C11*100,"-")) -> 2.306329878 | F13: =IF(OR('Tabel 1 Sydj'!E11<5,'Tabel 2 Sydj'!F13<0.5),"-",IFERROR('Tabel 2 Sydj'!F13/'Tabel 1 Sydj'!E11*100,"-")) -> 3.188405797 | G13: =IF(OR('Tabel 1 Sydj'!E11<5,'Tabel 2 Sydj'!G13<0.5),"-",IFERROR('Tabel 2 Sydj'!G13/'Tabel 1 Sydj'!E11*100,"-")) -> 2.8249706 | I13: =IF(OR('Tabel 1 Sydj'!G11<5,'Tabel 2 Sydj'!I13<0.5),"-",IFERROR('Tabel 2 Sydj'!I13/'Tabel 1 Sydj'!G11*100,"-")) -> 2.826379542 | J13: =IF(OR('Tabel 1 Sydj'!G11<5,'Tabel 2 Sydj'!J13<0.5),"-",IFERROR('Tabel 2 Sydj'!J13/'Tabel 1 Sydj'!G11*100,"-")) -> 2.547152286
A14: MA. Ph.d. | C14: =IF(OR('Tabel 1 Sydj'!C12<5,'Tabel 2 Sydj'!C14<0.5),"-",IFERROR('Tabel 2 Sydj'!C14/'Tabel 1 Sydj'!C12*100,"-")) -> - | D14: =IF(OR('Tabel 1 Sydj'!C12<5,'Tabel 2 Sydj'!D14<0.5),"-",IFERROR('Tabel 2 Sydj'!D14/'Tabel 1 Sydj'!C12*100,"-")) -> - | F14: =IF(OR('Tabel 1 Sydj'!E12<5,'Tabel 2 Sydj'!F14<0.5),"-",IFERROR('Tabel 2 Sydj'!F14/'Tabel 1 Sydj'!E12*100,"-")) -> 6.060606061 | G14: =IF(OR('Tabel 1 Sydj'!E12<5,'Tabel 2 Sydj'!G14<0.5),"-",IFERROR('Tabel 2 Sydj'!G14/'Tabel 1 Sydj'!E12*100,"-")) -> 5.350706592 | I14: =IF(OR('Tabel 1 Sydj'!G12<5,'Tabel 2 Sydj'!I14<0.5),"-",IFERROR('Tabel 2 Sydj'!I14/'Tabel 1 Sydj'!G12*100,"-")) -> 2.898550725 | J14: =IF(OR('Tabel 1 Sydj'!G12<5,'Tabel 2 Sydj'!J14<0.5),"-",IFERROR('Tabel 2 Sydj'!J14/'Tabel 1 Sydj'!G12*100,"-")) -> 2.559033587
A15: MA. Samf. | C15: =IF(OR('Tabel 1 Sydj'!C13<5,'Tabel 2 Sydj'!C15<0.5),"-",IFERROR('Tabel 2 Sydj'!C15/'Tabel 1 Sydj'!C13*100,"-")) -> 15.625 | D15: =IF(OR('Tabel 1 Sydj'!C13<5,'Tabel 2 Sydj'!D15<0.5),"-",IFERROR('Tabel 2 Sydj'!D15/'Tabel 1 Sydj'!C13*100,"-")) -> 14.08618163 | F15: =IF(OR('Tabel 1 Sydj'!E13<5,'Tabel 2 Sydj'!F15<0.5),"-",IFERROR('Tabel 2 Sydj'!F15/'Tabel 1 Sydj'!E13*100,"-")) -> 21.50537634 | G15: =IF(OR('Tabel 1 Sydj'!E13<5,'Tabel 2 Sydj'!G15<0.5),"-",IFERROR('Tabel 2 Sydj'!G15/'Tabel 1 Sydj'!E13*100,"-")) -> 17.30637549 | I15: =IF(OR('Tabel 1 Sydj'!G13<5,'Tabel 2 Sydj'!I15<0.5),"-",IFERROR('Tabel 2 Sydj'!I15/'Tabel 1 Sydj'!G13*100,"-")) -> 20 | J15: =IF(OR('Tabel 1 Sydj'!G13<5,'Tabel 2 Sydj'!J15<0.5),"-",IFERROR('Tabel 2 Sydj'!J15/'Tabel 1 Sydj'!G13*100,"-")) -> 16.48200586
A16: Øvrige Mag. | C16: =IF(OR('Tabel 1 Sydj'!C14<5,'Tabel 2 Sydj'!C16<0.5),"-",IFERROR('Tabel 2 Sydj'!C16/'Tabel 1 Sydj'!C14*100,"-")) -> 6.25 | D16: =IF(OR('Tabel 1 Sydj'!C14<5,'Tabel 2 Sydj'!D16<0.5),"-",IFERROR('Tabel 2 Sydj'!D16/'Tabel 1 Sydj'!C14*100,"-")) -> 4.840797106 | F16: =IF(OR('Tabel 1 Sydj'!E14<5,'Tabel 2 Sydj'!F16<0.5),"-",IFERROR('Tabel 2 Sydj'!F16/'Tabel 1 Sydj'!E14*100,"-")) -> 4.026845638 | G16: =IF(OR('Tabel 1 Sydj'!E14<5,'Tabel 2 Sydj'!G16<0.5),"-",IFERROR('Tabel 2 Sydj'!G16/'Tabel 1 Sydj'!E14*100,"-")) -> 2.449645593 | I16: =IF(OR('Tabel 1 Sydj'!G14<5,'Tabel 2 Sydj'!I16<0.5),"-",IFERROR('Tabel 2 Sydj'!I16/'Tabel 1 Sydj'!G14*100,"-")) -> 4.80349345 | J16: =IF(OR('Tabel 1 Sydj'!G14<5,'Tabel 2 Sydj'!J16<0.5),"-",IFERROR('Tabel 2 Sydj'!J16/'Tabel 1 Sydj'!G14*100,"-")) -> 3.284982366
A17: Agronom | C17: =IF(OR('Tabel 1 Sydj'!C15<5,'Tabel 2 Sydj'!C17<0.5),"-",IFERROR('Tabel 2 Sydj'!C17/'Tabel 1 Sydj'!C15*100,"-")) -> 1.709401709 | D17: =IF(OR('Tabel 1 Sydj'!C15<5,'Tabel 2 Sydj'!D17<0.5),"-",IFERROR('Tabel 2 Sydj'!D17/'Tabel 1 Sydj'!C15*100,"-")) -> 1.709081856 | F17: =IF(OR('Tabel 1 Sydj'!E15<5,'Tabel 2 Sydj'!F17<0.5),"-",IFERROR('Tabel 2 Sydj'!F17/'Tabel 1 Sydj'!E15*100,"-")) -> 1.739130435 | G17: =IF(OR('Tabel 1 Sydj'!E15<5,'Tabel 2 Sydj'!G17<0.5),"-",IFERROR('Tabel 2 Sydj'!G17/'Tabel 1 Sydj'!E15*100,"-")) -> 1.738805019 | I17: =IF(OR('Tabel 1 Sydj'!G15<5,'Tabel 2 Sydj'!I17<0.5),"-",IFERROR('Tabel 2 Sydj'!I17/'Tabel 1 Sydj'!G15*100,"-")) -> 1.724137931 | J17: =IF(OR('Tabel 1 Sydj'!G15<5,'Tabel 2 Sydj'!J17<0.5),"-",IFERROR('Tabel 2 Sydj'!J17/'Tabel 1 Sydj'!G15*100,"-")) -> 1.723815321
A18: Landsk. Arkt. | C18: =IF(OR('Tabel 1 Sydj'!C16<5,'Tabel 2 Sydj'!C18<0.5),"-",IFERROR('Tabel 2 Sydj'!C18/'Tabel 1 Sydj'!C16*100,"-")) -> - | D18: =IF(OR('Tabel 1 Sydj'!C16<5,'Tabel 2 Sydj'!D18<0.5),"-",IFERROR('Tabel 2 Sydj'!D18/'Tabel 1 Sydj'!C16*100,"-")) -> - | F18: =IF(OR('Tabel 1 Sydj'!E16<5,'Tabel 2 Sydj'!F18<0.5),"-",IFERROR('Tabel 2 Sydj'!F18/'Tabel 1 Sydj'!E16*100,"-")) -> - | G18: =IF(OR('Tabel 1 Sydj'!E16<5,'Tabel 2 Sydj'!G18<0.5),"-",IFERROR('Tabel 2 Sydj'!G18/'Tabel 1 Sydj'!E16*100,"-")) -> - | I18: =IF(OR('Tabel 1 Sydj'!G16<5,'Tabel 2 Sydj'!I18<0.5),"-",IFERROR('Tabel 2 Sydj'!I18/'Tabel 1 Sydj'!G16*100,"-")) -> - | J18: =IF(OR('Tabel 1 Sydj'!G16<5,'Tabel 2 Sydj'!J18<0.5),"-",IFERROR('Tabel 2 Sydj'!J18/'Tabel 1 Sydj'!G16*100,"-")) -> -
A19: Hortonom | C19: =IF(OR('Tabel 1 Sydj'!C17<5,'Tabel 2 Sydj'!C19<0.5),"-",IFERROR('Tabel 2 Sydj'!C19/'Tabel 1 Sydj'!C17*100,"-")) -> - | D19: =IF(OR('Tabel 1 Sydj'!C17<5,'Tabel 2 Sydj'!D19<0.5),"-",IFERROR('Tabel 2 Sydj'!D19/'Tabel 1 Sydj'!C17*100,"-")) -> - | F19: =IF(OR('Tabel 1 Sydj'!E17<5,'Tabel 2 Sydj'!F19<0.5),"-",IFERROR('Tabel 2 Sydj'!F19/'Tabel 1 Sydj'!E17*100,"-")) -> - | G19: =IF(OR('Tabel 1 Sydj'!E17<5,'Tabel 2 Sydj'!G19<0.5),"-",IFERROR('Tabel 2 Sydj'!G19/'Tabel 1 Sydj'!E17*100,"-")) -> - | I19: =IF(OR('Tabel 1 Sydj'!G17<5,'Tabel 2 Sydj'!I19<0.5),"-",IFERROR('Tabel 2 Sydj'!I19/'Tabel 1 Sydj'!G17*100,"-")) -> - | J19: =IF(OR('Tabel 1 Sydj'!G17<5,'Tabel 2 Sydj'!J19<0.5),"-",IFERROR('Tabel 2 Sydj'!J19/'Tabel 1 Sydj'!G17*100,"-")) -> -
A20: Forstkand. | C20: =IF(OR('Tabel 1 Sydj'!C18<5,'Tabel 2 Sydj'!C20<0.5),"-",IFERROR('Tabel 2 Sydj'!C20/'Tabel 1 Sydj'!C18*100,"-")) -> - | D20: =IF(OR('Tabel 1 Sydj'!C18<5,'Tabel 2 Sydj'!D20<0.5),"-",IFERROR('Tabel 2 Sydj'!D20/'Tabel 1 Sydj'!C18*100,"-")) -> - | F20: =IF(OR('Tabel 1 Sydj'!E18<5,'Tabel 2 Sydj'!F20<0.5),"-",IFERROR('Tabel 2 Sydj'!F20/'Tabel 1 Sydj'!E18*100,"-")) -> 8.333333333 | G20: =IF(OR('Tabel 1 Sydj'!E18<5,'Tabel 2 Sydj'!G20<0.5),"-",IFERROR('Tabel 2 Sydj'!G20/'Tabel 1 Sydj'!E18*100,"-")) -> 8.331774049 | I20: =IF(OR('Tabel 1 Sydj'!G18<5,'Tabel 2 Sydj'!I20<0.5),"-",IFERROR('Tabel 2 Sydj'!I20/'Tabel 1 Sydj'!G18*100,"-")) -> 2.173913043 | J20: =IF(OR('Tabel 1 Sydj'!G18<5,'Tabel 2 Sydj'!J20<0.5),"-",IFERROR('Tabel 2 Sydj'!J20/'Tabel 1 Sydj'!G18*100,"-")) -> 2.173506274
A21: Jordbrugsakad. | C21: =IF(OR('Tabel 1 Sydj'!C19<5,'Tabel 2 Sydj'!C21<0.5),"-",IFERROR('Tabel 2 Sydj'!C21/'Tabel 1 Sydj'!C19*100,"-")) -> 1.226993865 | D21: =IF(OR('Tabel 1 Sydj'!C19<5,'Tabel 2 Sydj'!D21<0.5),"-",IFERROR('Tabel 2 Sydj'!D21/'Tabel 1 Sydj'!C19*100,"-")) -> 1.226764277 | F21: =IF(OR('Tabel 1 Sydj'!E19<5,'Tabel 2 Sydj'!F21<0.5),"-",IFERROR('Tabel 2 Sydj'!F21/'Tabel 1 Sydj'!E19*100,"-")) -> 1.351351351 | G21: =IF(OR('Tabel 1 Sydj'!E19<5,'Tabel 2 Sydj'!G21<0.5),"-",IFERROR('Tabel 2 Sydj'!G21/'Tabel 1 Sydj'!E19*100,"-")) -> 1.351098494 | I21: =IF(OR('Tabel 1 Sydj'!G19<5,'Tabel 2 Sydj'!I21<0.5),"-",IFERROR('Tabel 2 Sydj'!I21/'Tabel 1 Sydj'!G19*100,"-")) -> 1.298701299 | J21: =IF(OR('Tabel 1 Sydj'!G19<5,'Tabel 2 Sydj'!J21<0.5),"-",IFERROR('Tabel 2 Sydj'!J21/'Tabel 1 Sydj'!G19*100,"-")) -> 1.298458293
A22: Mejeriing. | C22: =IF(OR('Tabel 1 Sydj'!C20<5,'Tabel 2 Sydj'!C22<0.5),"-",IFERROR('Tabel 2 Sydj'!C22/'Tabel 1 Sydj'!C20*100,"-")) -> - | D22: =IF(OR('Tabel 1 Sydj'!C20<5,'Tabel 2 Sydj'!D22<0.5),"-",IFERROR('Tabel 2 Sydj'!D22/'Tabel 1 Sydj'!C20*100,"-")) -> - | F22: =IF(OR('Tabel 1 Sydj'!E20<5,'Tabel 2 Sydj'!F22<0.5),"-",IFERROR('Tabel 2 Sydj'!F22/'Tabel 1 Sydj'!E20*100,"-")) -> 6.666666667 | G22: =IF(OR('Tabel 1 Sydj'!E20<5,'Tabel 2 Sydj'!G22<0.5),"-",IFERROR('Tabel 2 Sydj'!G22/'Tabel 1 Sydj'!E20*100,"-")) -> 6.665419239 | I22: =IF(OR('Tabel 1 Sydj'!G20<5,'Tabel 2 Sydj'!I22<0.5),"-",IFERROR('Tabel 2 Sydj'!I22/'Tabel 1 Sydj'!G20*100,"-")) -> 2.702702703 | J22: =IF(OR('Tabel 1 Sydj'!G20<5,'Tabel 2 Sydj'!J22<0.5),"-",IFERROR('Tabel 2 Sydj'!J22/'Tabel 1 Sydj'!G20*100,"-")) -> 2.702196989
A23: Levn.m.kand. | C23: =IF(OR('Tabel 1 Sydj'!C21<5,'Tabel 2 Sydj'!C23<0.5),"-",IFERROR('Tabel 2 Sydj'!C23/'Tabel 1 Sydj'!C21*100,"-")) -> - | D23: =IF(OR('Tabel 1 Sydj'!C21<5,'Tabel 2 Sydj'!D23<0.5),"-",IFERROR('Tabel 2 Sydj'!D23/'Tabel 1 Sydj'!C21*100,"-")) -> - | F23: =IF(OR('Tabel 1 Sydj'!E21<5,'Tabel 2 Sydj'!F23<0.5),"-",IFERROR('Tabel 2 Sydj'!F23/'Tabel 1 Sydj'!E21*100,"-")) -> 11.11111111 | G23: =IF(OR('Tabel 1 Sydj'!E21<5,'Tabel 2 Sydj'!G23<0.5),"-",IFERROR('Tabel 2 Sydj'!G23/'Tabel 1 Sydj'!E21*100,"-")) -> 11.10903207 | I23: =IF(OR('Tabel 1 Sydj'!G21<5,'Tabel 2 Sydj'!I23<0.5),"-",IFERROR('Tabel 2 Sydj'!I23/'Tabel 1 Sydj'!G21*100,"-")) -> 10 | J23: =IF(OR('Tabel 1 Sydj'!G21<5,'Tabel 2 Sydj'!J23<0.5),"-",IFERROR('Tabel 2 Sydj'!J23/'Tabel 1 Sydj'!G21*100,"-")) -> 9.998128859
A24: Dyrlæge | C24: =IF(OR('Tabel 1 Sydj'!C22<5,'Tabel 2 Sydj'!C24<0.5),"-",IFERROR('Tabel 2 Sydj'!C24/'Tabel 1 Sydj'!C22*100,"-")) -> - | D24: =IF(OR('Tabel 1 Sydj'!C22<5,'Tabel 2 Sydj'!D24<0.5),"-",IFERROR('Tabel 2 Sydj'!D24/'Tabel 1 Sydj'!C22*100,"-")) -> - | F24: =IF(OR('Tabel 1 Sydj'!E22<5,'Tabel 2 Sydj'!F24<0.5),"-",IFERROR('Tabel 2 Sydj'!F24/'Tabel 1 Sydj'!E22*100,"-")) -> 2.702702703 | G24: =IF(OR('Tabel 1 Sydj'!E22<5,'Tabel 2 Sydj'!G24<0.5),"-",IFERROR('Tabel 2 Sydj'!G24/'Tabel 1 Sydj'!E22*100,"-")) -> 2.062188178 | I24: =IF(OR('Tabel 1 Sydj'!G22<5,'Tabel 2 Sydj'!I24<0.5),"-",IFERROR('Tabel 2 Sydj'!I24/'Tabel 1 Sydj'!G22*100,"-")) -> 2.105263158 | J24: =IF(OR('Tabel 1 Sydj'!G22<5,'Tabel 2 Sydj'!J24<0.5),"-",IFERROR('Tabel 2 Sydj'!J24/'Tabel 1 Sydj'!G22*100,"-")) -> 1.606336055
A25: Farmaceut | C25: =IF(OR('Tabel 1 Sydj'!C23<5,'Tabel 2 Sydj'!C25<0.5),"-",IFERROR('Tabel 2 Sydj'!C25/'Tabel 1 Sydj'!C23*100,"-")) -> 17.64705882 | D25: =IF(OR('Tabel 1 Sydj'!C23<5,'Tabel 2 Sydj'!D25<0.5),"-",IFERROR('Tabel 2 Sydj'!D25/'Tabel 1 Sydj'!C23*100,"-")) -> 14.36192265 | F25: =IF(OR('Tabel 1 Sydj'!E23<5,'Tabel 2 Sydj'!F25<0.5),"-",IFERROR('Tabel 2 Sydj'!F25/'Tabel 1 Sydj'!E23*100,"-")) -> 2 | G25: =IF(OR('Tabel 1 Sydj'!E23<5,'Tabel 2 Sydj'!G25<0.5),"-",IFERROR('Tabel 2 Sydj'!G25/'Tabel 1 Sydj'!E23*100,"-")) -> 1.273623152 | I25: =IF(OR('Tabel 1 Sydj'!G23<5,'Tabel 2 Sydj'!I25<0.5),"-",IFERROR('Tabel 2 Sydj'!I25/'Tabel 1 Sydj'!G23*100,"-")) -> 4.891304348 | J25: =IF(OR('Tabel 1 Sydj'!G23<5,'Tabel 2 Sydj'!J25<0.5),"-",IFERROR('Tabel 2 Sydj'!J25/'Tabel 1 Sydj'!G23*100,"-")) -> 3.692113277
A26: Læge | C26: =IF(OR('Tabel 1 Sydj'!C24<5,'Tabel 2 Sydj'!C26<0.5),"-",IFERROR('Tabel 2 Sydj'!C26/'Tabel 1 Sydj'!C24*100,"-")) -> 1.209677419 | D26: =IF(OR('Tabel 1 Sydj'!C24<5,'Tabel 2 Sydj'!D26<0.5),"-",IFERROR('Tabel 2 Sydj'!D26/'Tabel 1 Sydj'!C24*100,"-")) -> 0.5507793402 | F26: =IF(OR('Tabel 1 Sydj'!E24<5,'Tabel 2 Sydj'!F26<0.5),"-",IFERROR('Tabel 2 Sydj'!F26/'Tabel 1 Sydj'!E24*100,"-")) -> 0.9803921569 | G26: =IF(OR('Tabel 1 Sydj'!E24<5,'Tabel 2 Sydj'!G26<0.5),"-",IFERROR('Tabel 2 Sydj'!G26/'Tabel 1 Sydj'!E24*100,"-")) -> 0.6122176932 | I26: =IF(OR('Tabel 1 Sydj'!G24<5,'Tabel 2 Sydj'!I26<0.5),"-",IFERROR('Tabel 2 Sydj'!I26/'Tabel 1 Sydj'!G24*100,"-")) -> 1.055408971 | J26: =IF(OR('Tabel 1 Sydj'!G24<5,'Tabel 2 Sydj'!J26<0.5),"-",IFERROR('Tabel 2 Sydj'!J26/'Tabel 1 Sydj'!G24*100,"-")) -> 0.5921164906
A27: Tandlæge | C27: =IF(OR('Tabel 1 Sydj'!C25<5,'Tabel 2 Sydj'!C27<0.5),"-",IFERROR('Tabel 2 Sydj'!C27/'Tabel 1 Sydj'!C25*100,"-")) -> - | D27: =IF(OR('Tabel 1 Sydj'!C25<5,'Tabel 2 Sydj'!D27<0.5),"-",IFERROR('Tabel 2 Sydj'!D27/'Tabel 1 Sydj'!C25*100,"-")) -> - | F27: =IF(OR('Tabel 1 Sydj'!E25<5,'Tabel 2 Sydj'!F27<0.5),"-",IFERROR('Tabel 2 Sydj'!F27/'Tabel 1 Sydj'!E25*100,"-")) -> - | G27: =IF(OR('Tabel 1 Sydj'!E25<5,'Tabel 2 Sydj'!G27<0.5),"-",IFERROR('Tabel 2 Sydj'!G27/'Tabel 1 Sydj'!E25*100,"-")) -> - | I27: =IF(OR('Tabel 1 Sydj'!G25<5,'Tabel 2 Sydj'!I27<0.5),"-",IFERROR('Tabel 2 Sydj'!I27/'Tabel 1 Sydj'!G25*100,"-")) -> - | J27: =IF(OR('Tabel 1 Sydj'!G25<5,'Tabel 2 Sydj'!J27<0.5),"-",IFERROR('Tabel 2 Sydj'!J27/'Tabel 1 Sydj'!G25*100,"-")) -> -
A28: Arkitekt | C28: =IF(OR('Tabel 1 Sydj'!C26<5,'Tabel 2 Sydj'!C28<0.5),"-",IFERROR('Tabel 2 Sydj'!C28/'Tabel 1 Sydj'!C26*100,"-")) -> 6.422018349 | D28: =IF(OR('Tabel 1 Sydj'!C26<5,'Tabel 2 Sydj'!D28<0.5),"-",IFERROR('Tabel 2 Sydj'!D28/'Tabel 1 Sydj'!C26*100,"-")) -> 6.420816699 | F28: =IF(OR('Tabel 1 Sydj'!E26<5,'Tabel 2 Sydj'!F28<0.5),"-",IFERROR('Tabel 2 Sydj'!F28/'Tabel 1 Sydj'!E26*100,"-")) -> 4.225352113 | G28: =IF(OR('Tabel 1 Sydj'!E26<5,'Tabel 2 Sydj'!G28<0.5),"-",IFERROR('Tabel 2 Sydj'!G28/'Tabel 1 Sydj'!E26*100,"-")) -> 3.457657314 | I28: =IF(OR('Tabel 1 Sydj'!G26<5,'Tabel 2 Sydj'!I28<0.5),"-",IFERROR('Tabel 2 Sydj'!I28/'Tabel 1 Sydj'!G26*100,"-")) -> 5.179282869 | J28: =IF(OR('Tabel 1 Sydj'!G26<5,'Tabel 2 Sydj'!J28<0.5),"-",IFERROR('Tabel 2 Sydj'!J28/'Tabel 1 Sydj'!G26*100,"-")) -> 4.744447644
A29: Landinspek. | C29: =IF(OR('Tabel 1 Sydj'!C27<5,'Tabel 2 Sydj'!C29<0.5),"-",IFERROR('Tabel 2 Sydj'!C29/'Tabel 1 Sydj'!C27*100,"-")) -> 3.076923077 | D29: =IF(OR('Tabel 1 Sydj'!C27<5,'Tabel 2 Sydj'!D29<0.5),"-",IFERROR('Tabel 2 Sydj'!D29/'Tabel 1 Sydj'!C27*100,"-")) -> 2.650302981 | F29: =IF(OR('Tabel 1 Sydj'!E27<5,'Tabel 2 Sydj'!F29<0.5),"-",IFERROR('Tabel 2 Sydj'!F29/'Tabel 1 Sydj'!E27*100,"-")) -> 3.333333333 | G29: =IF(OR('Tabel 1 Sydj'!E27<5,'Tabel 2 Sydj'!G29<0.5),"-",IFERROR('Tabel 2 Sydj'!G29/'Tabel 1 Sydj'!E27*100,"-")) -> - | I29: =IF(OR('Tabel 1 Sydj'!G27<5,'Tabel 2 Sydj'!I29<0.5),"-",IFERROR('Tabel 2 Sydj'!I29/'Tabel 1 Sydj'!G27*100,"-")) -> 3.157894737 | J29: =IF(OR('Tabel 1 Sydj'!G27<5,'Tabel 2 Sydj'!J29<0.5),"-",IFERROR('Tabel 2 Sydj'!J29/'Tabel 1 Sydj'!G27*100,"-")) -> 2.282791742
A30: Bibliotekar | C30: =IF(OR('Tabel 1 Sydj'!C28<5,'Tabel 2 Sydj'!C30<0.5),"-",IFERROR('Tabel 2 Sydj'!C30/'Tabel 1 Sydj'!C28*100,"-")) -> - | D30: =IF(OR('Tabel 1 Sydj'!C28<5,'Tabel 2 Sydj'!D30<0.5),"-",IFERROR('Tabel 2 Sydj'!D30/'Tabel 1 Sydj'!C28*100,"-")) -> - | F30: =IF(OR('Tabel 1 Sydj'!E28<5,'Tabel 2 Sydj'!F30<0.5),"-",IFERROR('Tabel 2 Sydj'!F30/'Tabel 1 Sydj'!E28*100,"-")) -> 3.398058252 | G30: =IF(OR('Tabel 1 Sydj'!E28<5,'Tabel 2 Sydj'!G30<0.5),"-",IFERROR('Tabel 2 Sydj'!G30/'Tabel 1 Sydj'!E28*100,"-")) -> 2.665315893 | I30: =IF(OR('Tabel 1 Sydj'!G28<5,'Tabel 2 Sydj'!I30<0.5),"-",IFERROR('Tabel 2 Sydj'!I30/'Tabel 1 Sydj'!G28*100,"-")) -> 2.621722846 | J30: =IF(OR('Tabel 1 Sydj'!G28<5,'Tabel 2 Sydj'!J30<0.5),"-",IFERROR('Tabel 2 Sydj'!J30/'Tabel 1 Sydj'!G28*100,"-")) -> 2.056386045
A31: Musikudd. | C31: =IF(OR('Tabel 1 Sydj'!C29<5,'Tabel 2 Sydj'!C31<0.5),"-",IFERROR('Tabel 2 Sydj'!C31/'Tabel 1 Sydj'!C29*100,"-")) -> - | D31: =IF(OR('Tabel 1 Sydj'!C29<5,'Tabel 2 Sydj'!D31<0.5),"-",IFERROR('Tabel 2 Sydj'!D31/'Tabel 1 Sydj'!C29*100,"-")) -> - | F31: =IF(OR('Tabel 1 Sydj'!E29<5,'Tabel 2 Sydj'!F31<0.5),"-",IFERROR('Tabel 2 Sydj'!F31/'Tabel 1 Sydj'!E29*100,"-")) -> - | G31: =IF(OR('Tabel 1 Sydj'!E29<5,'Tabel 2 Sydj'!G31<0.5),"-",IFERROR('Tabel 2 Sydj'!G31/'Tabel 1 Sydj'!E29*100,"-")) -> - | I31: =IF(OR('Tabel 1 Sydj'!G29<5,'Tabel 2 Sydj'!I31<0.5),"-",IFERROR('Tabel 2 Sydj'!I31/'Tabel 1 Sydj'!G29*100,"-")) -> - | J31: =IF(OR('Tabel 1 Sydj'!G29<5,'Tabel 2 Sydj'!J31<0.5),"-",IFERROR('Tabel 2 Sydj'!J31/'Tabel 1 Sydj'!G29*100,"-")) -> -
A32: Teolog | C32: =IF(OR('Tabel 1 Sydj'!C30<5,'Tabel 2 Sydj'!C32<0.5),"-",IFERROR('Tabel 2 Sydj'!C32/'Tabel 1 Sydj'!C30*100,"-")) -> 2.5 | D32: =IF(OR('Tabel 1 Sydj'!C30<5,'Tabel 2 Sydj'!D32<0.5),"-",IFERROR('Tabel 2 Sydj'!D32/'Tabel 1 Sydj'!C30*100,"-")) -> 2.008357762 | F32: =IF(OR('Tabel 1 Sydj'!E30<5,'Tabel 2 Sydj'!F32<0.5),"-",IFERROR('Tabel 2 Sydj'!F32/'Tabel 1 Sydj'!E30*100,"-")) -> 1.62601626 | G32: =IF(OR('Tabel 1 Sydj'!E30<5,'Tabel 2 Sydj'!G32<0.5),"-",IFERROR('Tabel 2 Sydj'!G32/'Tabel 1 Sydj'!E30*100,"-")) -> 1.013154272 | I32: =IF(OR('Tabel 1 Sydj'!G30<5,'Tabel 2 Sydj'!I32<0.5),"-",IFERROR('Tabel 2 Sydj'!I32/'Tabel 1 Sydj'!G30*100,"-")) -> 1.97044335 | J32: =IF(OR('Tabel 1 Sydj'!G30<5,'Tabel 2 Sydj'!J32<0.5),"-",IFERROR('Tabel 2 Sydj'!J32/'Tabel 1 Sydj'!G30*100,"-")) -> 1.405352692
A33: Psykolog | C33: =IF(OR('Tabel 1 Sydj'!C31<5,'Tabel 2 Sydj'!C33<0.5),"-",IFERROR('Tabel 2 Sydj'!C33/'Tabel 1 Sydj'!C31*100,"-")) -> 4.109589041 | D33: =IF(OR('Tabel 1 Sydj'!C31<5,'Tabel 2 Sydj'!D33<0.5),"-",IFERROR('Tabel 2 Sydj'!D33/'Tabel 1 Sydj'!C31*100,"-")) -> 3.391122249 | F33: =IF(OR('Tabel 1 Sydj'!E31<5,'Tabel 2 Sydj'!F33<0.5),"-",IFERROR('Tabel 2 Sydj'!F33/'Tabel 1 Sydj'!E31*100,"-")) -> 4.336734694 | G33: =IF(OR('Tabel 1 Sydj'!E31<5,'Tabel 2 Sydj'!G33<0.5),"-",IFERROR('Tabel 2 Sydj'!G33/'Tabel 1 Sydj'!E31*100,"-")) -> 3.558190569 | I33: =IF(OR('Tabel 1 Sydj'!G31<5,'Tabel 2 Sydj'!I33<0.5),"-",IFERROR('Tabel 2 Sydj'!I33/'Tabel 1 Sydj'!G31*100,"-")) -> 4.301075269 | J33: =IF(OR('Tabel 1 Sydj'!G31<5,'Tabel 2 Sydj'!J33<0.5),"-",IFERROR('Tabel 2 Sydj'!J33/'Tabel 1 Sydj'!G31*100,"-")) -> 3.531962639
A34: Jurist | C34: =IF(OR('Tabel 1 Sydj'!C32<5,'Tabel 2 Sydj'!C34<0.5),"-",IFERROR('Tabel 2 Sydj'!C34/'Tabel 1 Sydj'!C32*100,"-")) -> 3.982300885 | D34: =IF(OR('Tabel 1 Sydj'!C32<5,'Tabel 2 Sydj'!D34<0.5),"-",IFERROR('Tabel 2 Sydj'!D34/'Tabel 1 Sydj'!C32*100,"-")) -> 3.714407618 | F34: =IF(OR('Tabel 1 Sydj'!E32<5,'Tabel 2 Sydj'!F34<0.5),"-",IFERROR('Tabel 2 Sydj'!F34/'Tabel 1 Sydj'!E32*100,"-")) -> 1.388888889 | G34: =IF(OR('Tabel 1 Sydj'!E32<5,'Tabel 2 Sydj'!G34<0.5),"-",IFERROR('Tabel 2 Sydj'!G34/'Tabel 1 Sydj'!E32*100,"-")) -> 1.3423455 | I34: =IF(OR('Tabel 1 Sydj'!G32<5,'Tabel 2 Sydj'!I34<0.5),"-",IFERROR('Tabel 2 Sydj'!I34/'Tabel 1 Sydj'!G32*100,"-")) -> 2.191780822 | J34: =IF(OR('Tabel 1 Sydj'!G32<5,'Tabel 2 Sydj'!J34<0.5),"-",IFERROR('Tabel 2 Sydj'!J34/'Tabel 1 Sydj'!G32*100,"-")) -> 2.076709936
A35: Økonom | C35: =IF(OR('Tabel 1 Sydj'!C33<5,'Tabel 2 Sydj'!C35<0.5),"-",IFERROR('Tabel 2 Sydj'!C35/'Tabel 1 Sydj'!C33*100,"-")) -> 1.632653061 | D35: =IF(OR('Tabel 1 Sydj'!C33<5,'Tabel 2 Sydj'!D35<0.5),"-",IFERROR('Tabel 2 Sydj'!D35/'Tabel 1 Sydj'!C33*100,"-")) -> 1.550882937 | F35: =IF(OR('Tabel 1 Sydj'!E33<5,'Tabel 2 Sydj'!F35<0.5),"-",IFERROR('Tabel 2 Sydj'!F35/'Tabel 1 Sydj'!E33*100,"-")) -> 1.973684211 | G35: =IF(OR('Tabel 1 Sydj'!E33<5,'Tabel 2 Sydj'!G35<0.5),"-",IFERROR('Tabel 2 Sydj'!G35/'Tabel 1 Sydj'!E33*100,"-")) -> 1.726291497 | I35: =IF(OR('Tabel 1 Sydj'!G33<5,'Tabel 2 Sydj'!I35<0.5),"-",IFERROR('Tabel 2 Sydj'!I35/'Tabel 1 Sydj'!G33*100,"-")) -> 1.763224181 | J35: =IF(OR('Tabel 1 Sydj'!G33<5,'Tabel 2 Sydj'!J35<0.5),"-",IFERROR('Tabel 2 Sydj'!J35/'Tabel 1 Sydj'!G33*100,"-")) -> 1.618041882
A36: Samf. Adm. | C36: =IF(OR('Tabel 1 Sydj'!C34<5,'Tabel 2 Sydj'!C36<0.5),"-",IFERROR('Tabel 2 Sydj'!C36/'Tabel 1 Sydj'!C34*100,"-")) -> 5.555555556 | D36: =IF(OR('Tabel 1 Sydj'!C34<5,'Tabel 2 Sydj'!D36<0.5),"-",IFERROR('Tabel 2 Sydj'!D36/'Tabel 1 Sydj'!C34*100,"-")) -> 4.946319954 | F36: =IF(OR('Tabel 1 Sydj'!E34<5,'Tabel 2 Sydj'!F36<0.5),"-",IFERROR('Tabel 2 Sydj'!F36/'Tabel 1 Sydj'!E34*100,"-")) -> 6.518282989 | G36: =IF(OR('Tabel 1 Sydj'!E34<5,'Tabel 2 Sydj'!G36<0.5),"-",IFERROR('Tabel 2 Sydj'!G36/'Tabel 1 Sydj'!E34*100,"-")) -> 5.469740124 | I36: =IF(OR('Tabel 1 Sydj'!G34<5,'Tabel 2 Sydj'!I36<0.5),"-",IFERROR('Tabel 2 Sydj'!I36/'Tabel 1 Sydj'!G34*100,"-")) -> 6.136145733 | J36: =IF(OR('Tabel 1 Sydj'!G34<5,'Tabel 2 Sydj'!J36<0.5),"-",IFERROR('Tabel 2 Sydj'!J36/'Tabel 1 Sydj'!G34*100,"-")) -> 5.261977947
A37: Cand. Merc. | C37: =IF(OR('Tabel 1 Sydj'!C35<5,'Tabel 2 Sydj'!C37<0.5),"-",IFERROR('Tabel 2 Sydj'!C37/'Tabel 1 Sydj'!C35*100,"-")) -> 5.43071161 | D37: =IF(OR('Tabel 1 Sydj'!C35<5,'Tabel 2 Sydj'!D37<0.5),"-",IFERROR('Tabel 2 Sydj'!D37/'Tabel 1 Sydj'!C35*100,"-")) -> 4.818129088 | F37: =IF(OR('Tabel 1 Sydj'!E35<5,'Tabel 2 Sydj'!F37<0.5),"-",IFERROR('Tabel 2 Sydj'!F37/'Tabel 1 Sydj'!E35*100,"-")) -> 4.73738414 | G37: =IF(OR('Tabel 1 Sydj'!E35<5,'Tabel 2 Sydj'!G37<0.5),"-",IFERROR('Tabel 2 Sydj'!G37/'Tabel 1 Sydj'!E35*100,"-")) -> 4.112462947 | I37: =IF(OR('Tabel 1 Sydj'!G35<5,'Tabel 2 Sydj'!I37<0.5),"-",IFERROR('Tabel 2 Sydj'!I37/'Tabel 1 Sydj'!G35*100,"-")) -> 5.10053948 | J37: =IF(OR('Tabel 1 Sydj'!G35<5,'Tabel 2 Sydj'!J37<0.5),"-",IFERROR('Tabel 2 Sydj'!J37/'Tabel 1 Sydj'!G35*100,"-")) -> 4.482081112
A38: HA | C38: =IF(OR('Tabel 1 Sydj'!C36<5,'Tabel 2 Sydj'!C38<0.5),"-",IFERROR('Tabel 2 Sydj'!C38/'Tabel 1 Sydj'!C36*100,"-")) -> 6.853582555 | D38: =IF(OR('Tabel 1 Sydj'!C36<5,'Tabel 2 Sydj'!D38<0.5),"-",IFERROR('Tabel 2 Sydj'!D38/'Tabel 1 Sydj'!C36*100,"-")) -> 5.740496674 | F38: =IF(OR('Tabel 1 Sydj'!E36<5,'Tabel 2 Sydj'!F38<0.5),"-",IFERROR('Tabel 2 Sydj'!F38/'Tabel 1 Sydj'!E36*100,"-")) -> 4.87012987 | G38: =IF(OR('Tabel 1 Sydj'!E36<5,'Tabel 2 Sydj'!G38<0.5),"-",IFERROR('Tabel 2 Sydj'!G38/'Tabel 1 Sydj'!E36*100,"-")) -> 3.570152794 | I38: =IF(OR('Tabel 1 Sydj'!G36<5,'Tabel 2 Sydj'!I38<0.5),"-",IFERROR('Tabel 2 Sydj'!I38/'Tabel 1 Sydj'!G36*100,"-")) -> 5.882352941 | J38: =IF(OR('Tabel 1 Sydj'!G36<5,'Tabel 2 Sydj'!J38<0.5),"-",IFERROR('Tabel 2 Sydj'!J38/'Tabel 1 Sydj'!G36*100,"-")) -> 4.677752771
A39: HD | C39: =IF(OR('Tabel 1 Sydj'!C37<5,'Tabel 2 Sydj'!C39<0.5),"-",IFERROR('Tabel 2 Sydj'!C39/'Tabel 1 Sydj'!C37*100,"-")) -> 3.146853147 | D39: =IF(OR('Tabel 1 Sydj'!C37<5,'Tabel 2 Sydj'!D39<0.5),"-",IFERROR('Tabel 2 Sydj'!D39/'Tabel 1 Sydj'!C37*100,"-")) -> 2.640532922 | F39: =IF(OR('Tabel 1 Sydj'!E37<5,'Tabel 2 Sydj'!F39<0.5),"-",IFERROR('Tabel 2 Sydj'!F39/'Tabel 1 Sydj'!E37*100,"-")) -> 5.154639175 | G39: =IF(OR('Tabel 1 Sydj'!E37<5,'Tabel 2 Sydj'!G39<0.5),"-",IFERROR('Tabel 2 Sydj'!G39/'Tabel 1 Sydj'!E37*100,"-")) -> 4.606478519 | I39: =IF(OR('Tabel 1 Sydj'!G37<5,'Tabel 2 Sydj'!I39<0.5),"-",IFERROR('Tabel 2 Sydj'!I39/'Tabel 1 Sydj'!G37*100,"-")) -> 3.958333333 | J39: =IF(OR('Tabel 1 Sydj'!G37<5,'Tabel 2 Sydj'!J39<0.5),"-",IFERROR('Tabel 2 Sydj'!J39/'Tabel 1 Sydj'!G37*100,"-")) -> 3.435102601
A40: Komm. og Sprog | C40: =IF(OR('Tabel 1 Sydj'!C38<5,'Tabel 2 Sydj'!C40<0.5),"-",IFERROR('Tabel 2 Sydj'!C40/'Tabel 1 Sydj'!C38*100,"-")) -> 10.63829787 | D40: =IF(OR('Tabel 1 Sydj'!C38<5,'Tabel 2 Sydj'!D40<0.5),"-",IFERROR('Tabel 2 Sydj'!D40/'Tabel 1 Sydj'!C38*100,"-")) -> 8.392265421 | F40: =IF(OR('Tabel 1 Sydj'!E38<5,'Tabel 2 Sydj'!F40<0.5),"-",IFERROR('Tabel 2 Sydj'!F40/'Tabel 1 Sydj'!E38*100,"-")) -> 4.683840749 | G40: =IF(OR('Tabel 1 Sydj'!E38<5,'Tabel 2 Sydj'!G40<0.5),"-",IFERROR('Tabel 2 Sydj'!G40/'Tabel 1 Sydj'!E38*100,"-")) -> 3.961822885 | I40: =IF(OR('Tabel 1 Sydj'!G38<5,'Tabel 2 Sydj'!I40<0.5),"-",IFERROR('Tabel 2 Sydj'!I40/'Tabel 1 Sydj'!G38*100,"-")) -> 5.274261603 | J40: =IF(OR('Tabel 1 Sydj'!G38<5,'Tabel 2 Sydj'!J40<0.5),"-",IFERROR('Tabel 2 Sydj'!J40/'Tabel 1 Sydj'!G38*100,"-")) -> 4.401128369
A41: Cand. IT. | C41: =IF(OR('Tabel 1 Sydj'!C39<5,'Tabel 2 Sydj'!C41<0.5),"-",IFERROR('Tabel 2 Sydj'!C41/'Tabel 1 Sydj'!C39*100,"-")) -> 6.18556701 | D41: =IF(OR('Tabel 1 Sydj'!C39<5,'Tabel 2 Sydj'!D41<0.5),"-",IFERROR('Tabel 2 Sydj'!D41/'Tabel 1 Sydj'!C39*100,"-")) -> 6.107249159 | F41: =IF(OR('Tabel 1 Sydj'!E39<5,'Tabel 2 Sydj'!F41<0.5),"-",IFERROR('Tabel 2 Sydj'!F41/'Tabel 1 Sydj'!E39*100,"-")) -> 11.23595506 | G41: =IF(OR('Tabel 1 Sydj'!E39<5,'Tabel 2 Sydj'!G41<0.5),"-",IFERROR('Tabel 2 Sydj'!G41/'Tabel 1 Sydj'!E39*100,"-")) -> 9.963999812 | I41: =IF(OR('Tabel 1 Sydj'!G39<5,'Tabel 2 Sydj'!I41<0.5),"-",IFERROR('Tabel 2 Sydj'!I41/'Tabel 1 Sydj'!G39*100,"-")) -> 8.602150538 | J41: =IF(OR('Tabel 1 Sydj'!G39<5,'Tabel 2 Sydj'!J41<0.5),"-",IFERROR('Tabel 2 Sydj'!J41/'Tabel 1 Sydj'!G39*100,"-")) -> 7.952683612
A42: Bac. Samf. | C42: =IF(OR('Tabel 1 Sydj'!C40<5,'Tabel 2 Sydj'!C42<0.5),"-",IFERROR('Tabel 2 Sydj'!C42/'Tabel 1 Sydj'!C40*100,"-")) -> 8.333333333 | D42: =IF(OR('Tabel 1 Sydj'!C40<5,'Tabel 2 Sydj'!D42<0.5),"-",IFERROR('Tabel 2 Sydj'!D42/'Tabel 1 Sydj'!C40*100,"-")) -> 7.63009626 | F42: =IF(OR('Tabel 1 Sydj'!E40<5,'Tabel 2 Sydj'!F42<0.5),"-",IFERROR('Tabel 2 Sydj'!F42/'Tabel 1 Sydj'!E40*100,"-")) -> 10.71428571 | G42: =IF(OR('Tabel 1 Sydj'!E40<5,'Tabel 2 Sydj'!G42<0.5),"-",IFERROR('Tabel 2 Sydj'!G42/'Tabel 1 Sydj'!E40*100,"-")) -> 9.292218727 | I42: =IF(OR('Tabel 1 Sydj'!G40<5,'Tabel 2 Sydj'!I42<0.5),"-",IFERROR('Tabel 2 Sydj'!I42/'Tabel 1 Sydj'!G40*100,"-")) -> 10 | J42: =IF(OR('Tabel 1 Sydj'!G40<5,'Tabel 2 Sydj'!J42<0.5),"-",IFERROR('Tabel 2 Sydj'!J42/'Tabel 1 Sydj'!G40*100,"-")) -> 8.793581987
A43: Bac. Hum. | C43: =IF(OR('Tabel 1 Sydj'!C41<5,'Tabel 2 Sydj'!C43<0.5),"-",IFERROR('Tabel 2 Sydj'!C43/'Tabel 1 Sydj'!C41*100,"-")) -> 22.03389831 | D43: =IF(OR('Tabel 1 Sydj'!C41<5,'Tabel 2 Sydj'!D43<0.5),"-",IFERROR('Tabel 2 Sydj'!D43/'Tabel 1 Sydj'!C41*100,"-")) -> 19.3171499 | F43: =IF(OR('Tabel 1 Sydj'!E41<5,'Tabel 2 Sydj'!F43<0.5),"-",IFERROR('Tabel 2 Sydj'!F43/'Tabel 1 Sydj'!E41*100,"-")) -> 10.57692308 | G43: =IF(OR('Tabel 1 Sydj'!E41<5,'Tabel 2 Sydj'!G43<0.5),"-",IFERROR('Tabel 2 Sydj'!G43/'Tabel 1 Sydj'!E41*100,"-")) -> 7.888777473 | I43: =IF(OR('Tabel 1 Sydj'!G41<5,'Tabel 2 Sydj'!I43<0.5),"-",IFERROR('Tabel 2 Sydj'!I43/'Tabel 1 Sydj'!G41*100,"-")) -> 14.72392638 | J43: =IF(OR('Tabel 1 Sydj'!G41<5,'Tabel 2 Sydj'!J43<0.5),"-",IFERROR('Tabel 2 Sydj'!J43/'Tabel 1 Sydj'!G41*100,"-")) -> 12.02542762
A44: Bac. Nat. | C44: =IF(OR('Tabel 1 Sydj'!C42<5,'Tabel 2 Sydj'!C44<0.5),"-",IFERROR('Tabel 2 Sydj'!C44/'Tabel 1 Sydj'!C42*100,"-")) -> 4.807692308 | D44: =IF(OR('Tabel 1 Sydj'!C42<5,'Tabel 2 Sydj'!D44<0.5),"-",IFERROR('Tabel 2 Sydj'!D44/'Tabel 1 Sydj'!C42*100,"-")) -> 4.318616891 | F44: =IF(OR('Tabel 1 Sydj'!E42<5,'Tabel 2 Sydj'!F44<0.5),"-",IFERROR('Tabel 2 Sydj'!F44/'Tabel 1 Sydj'!E42*100,"-")) -> 8.620689655 | G44: =IF(OR('Tabel 1 Sydj'!E42<5,'Tabel 2 Sydj'!G44<0.5),"-",IFERROR('Tabel 2 Sydj'!G44/'Tabel 1 Sydj'!E42*100,"-")) -> 6.155407919 | I44: =IF(OR('Tabel 1 Sydj'!G42<5,'Tabel 2 Sydj'!I44<0.5),"-",IFERROR('Tabel 2 Sydj'!I44/'Tabel 1 Sydj'!G42*100,"-")) -> 6.172839506 | J44: =IF(OR('Tabel 1 Sydj'!G42<5,'Tabel 2 Sydj'!J44<0.5),"-",IFERROR('Tabel 2 Sydj'!J44/'Tabel 1 Sydj'!G42*100,"-")) -> 4.976233432
A45: Andre | C45: =IF(OR('Tabel 1 Sydj'!C43<5,'Tabel 2 Sydj'!C45<0.5),"-",IFERROR('Tabel 2 Sydj'!C45/'Tabel 1 Sydj'!C43*100,"-")) -> 4.901960784 | D45: =IF(OR('Tabel 1 Sydj'!C43<5,'Tabel 2 Sydj'!D45<0.5),"-",IFERROR('Tabel 2 Sydj'!D45/'Tabel 1 Sydj'!C43*100,"-")) -> 4.302837582 | F45: =IF(OR('Tabel 1 Sydj'!E43<5,'Tabel 2 Sydj'!F45<0.5),"-",IFERROR('Tabel 2 Sydj'!F45/'Tabel 1 Sydj'!E43*100,"-")) -> 5.090909091 | G45: =IF(OR('Tabel 1 Sydj'!E43<5,'Tabel 2 Sydj'!G45<0.5),"-",IFERROR('Tabel 2 Sydj'!G45/'Tabel 1 Sydj'!E43*100,"-")) -> 4.036334152 | I45: =IF(OR('Tabel 1 Sydj'!G43<5,'Tabel 2 Sydj'!I45<0.5),"-",IFERROR('Tabel 2 Sydj'!I45/'Tabel 1 Sydj'!G43*100,"-")) -> 4.984177215 | J45: =IF(OR('Tabel 1 Sydj'!G43<5,'Tabel 2 Sydj'!J45<0.5),"-",IFERROR('Tabel 2 Sydj'!J45/'Tabel 1 Sydj'!G43*100,"-")) -> 4.186874855
A47: Total | C47: =IF(OR('Tabel 1 Sydj'!C45<5,'Tabel 2 Sydj'!C47<0.5),"-",IFERROR('Tabel 2 Sydj'!C47/'Tabel 1 Sydj'!C45*100,"-")) -> 4.029730456 | D47: =IF(OR('Tabel 1 Sydj'!C45<5,'Tabel 2 Sydj'!D47<0.5),"-",IFERROR('Tabel 2 Sydj'!D47/'Tabel 1 Sydj'!C45*100,"-")) -> 3.565260155 | F47: =IF(OR('Tabel 1 Sydj'!E45<5,'Tabel 2 Sydj'!F47<0.5),"-",IFERROR('Tabel 2 Sydj'!F47/'Tabel 1 Sydj'!E45*100,"-")) -> 4.839034205 | G47: =IF(OR('Tabel 1 Sydj'!E45<5,'Tabel 2 Sydj'!G47<0.5),"-",IFERROR('Tabel 2 Sydj'!G47/'Tabel 1 Sydj'!E45*100,"-")) -> 4.031285574 | I47: =IF(OR('Tabel 1 Sydj'!G45<5,'Tabel 2 Sydj'!I47<0.5),"-",IFERROR('Tabel 2 Sydj'!I47/'Tabel 1 Sydj'!G45*100,"-")) -> 4.410858957 | J47: =IF(OR('Tabel 1 Sydj'!G45<5,'Tabel 2 Sydj'!J47<0.5),"-",IFERROR('Tabel 2 Sydj'!J47/'Tabel 1 Sydj'!G45*100,"-")) -> 3.784727283
A49: Ingeniører i alt | C49: =IF(OR('Tabel 1 Sydj'!C47<5,'Tabel 2 Sydj'!C49<0.5),"-",IFERROR('Tabel 2 Sydj'!C49/'Tabel 1 Sydj'!C47*100,"-")) -> 2.564102564 | D49: =IF(OR('Tabel 1 Sydj'!C47<5,'Tabel 2 Sydj'!D49<0.5),"-",IFERROR('Tabel 2 Sydj'!D49/'Tabel 1 Sydj'!C47*100,"-")) -> 2.25353292 | F49: =IF(OR('Tabel 1 Sydj'!E47<5,'Tabel 2 Sydj'!F49<0.5),"-",IFERROR('Tabel 2 Sydj'!F49/'Tabel 1 Sydj'!E47*100,"-")) -> 2.509803922 | G49: =IF(OR('Tabel 1 Sydj'!E47<5,'Tabel 2 Sydj'!G49<0.5),"-",IFERROR('Tabel 2 Sydj'!G49/'Tabel 1 Sydj'!E47*100,"-")) -> 2.174045443 | I49: =IF(OR('Tabel 1 Sydj'!G47<5,'Tabel 2 Sydj'!I49<0.5),"-",IFERROR('Tabel 2 Sydj'!I49/'Tabel 1 Sydj'!G47*100,"-")) -> 2.552773687 | J49: =IF(OR('Tabel 1 Sydj'!G47<5,'Tabel 2 Sydj'!J49<0.5),"-",IFERROR('Tabel 2 Sydj'!J49/'Tabel 1 Sydj'!G47*100,"-")) -> 2.23694864
A50: Magistre i alt | C50: =IF(OR('Tabel 1 Sydj'!C48<5,'Tabel 2 Sydj'!C50<0.5),"-",IFERROR('Tabel 2 Sydj'!C50/'Tabel 1 Sydj'!C48*100,"-")) -> 6.065318818 | D50: =IF(OR('Tabel 1 Sydj'!C48<5,'Tabel 2 Sydj'!D50<0.5),"-",IFERROR('Tabel 2 Sydj'!D50/'Tabel 1 Sydj'!C48*100,"-")) -> 5.379796471 | F50: =IF(OR('Tabel 1 Sydj'!E48<5,'Tabel 2 Sydj'!F50<0.5),"-",IFERROR('Tabel 2 Sydj'!F50/'Tabel 1 Sydj'!E48*100,"-")) -> 7.663375646 | G50: =IF(OR('Tabel 1 Sydj'!E48<5,'Tabel 2 Sydj'!G50<0.5),"-",IFERROR('Tabel 2 Sydj'!G50/'Tabel 1 Sydj'!E48*100,"-")) -> 6.461080463 | I50: =IF(OR('Tabel 1 Sydj'!G48<5,'Tabel 2 Sydj'!I50<0.5),"-",IFERROR('Tabel 2 Sydj'!I50/'Tabel 1 Sydj'!G48*100,"-")) -> 7.061236449 | J50: =IF(OR('Tabel 1 Sydj'!G48<5,'Tabel 2 Sydj'!J50<0.5),"-",IFERROR('Tabel 2 Sydj'!J50/'Tabel 1 Sydj'!G48*100,"-")) -> 6.053658484
A51: DJØF'ere i alt | C51: =IF(OR('Tabel 1 Sydj'!C49<5,'Tabel 2 Sydj'!C51<0.5),"-",IFERROR('Tabel 2 Sydj'!C51/'Tabel 1 Sydj'!C49*100,"-")) -> 5.10114336 | D51: =IF(OR('Tabel 1 Sydj'!C49<5,'Tabel 2 Sydj'!D51<0.5),"-",IFERROR('Tabel 2 Sydj'!D51/'Tabel 1 Sydj'!C49*100,"-")) -> 4.509964908 | F51: =IF(OR('Tabel 1 Sydj'!E49<5,'Tabel 2 Sydj'!F51<0.5),"-",IFERROR('Tabel 2 Sydj'!F51/'Tabel 1 Sydj'!E49*100,"-")) -> 4.368174727 | G51: =IF(OR('Tabel 1 Sydj'!E49<5,'Tabel 2 Sydj'!G51<0.5),"-",IFERROR('Tabel 2 Sydj'!G51/'Tabel 1 Sydj'!E49*100,"-")) -> 3.694311061 | I51: =IF(OR('Tabel 1 Sydj'!G49<5,'Tabel 2 Sydj'!I51<0.5),"-",IFERROR('Tabel 2 Sydj'!I51/'Tabel 1 Sydj'!G49*100,"-")) -> 4.712691195 | J51: =IF(OR('Tabel 1 Sydj'!G49<5,'Tabel 2 Sydj'!J51<0.5),"-",IFERROR('Tabel 2 Sydj'!J51/'Tabel 1 Sydj'!G49*100,"-")) -> 4.077691972
A56: Haderslev
C58: Mænd | F58: Kvinder | I58: I alt
C59: Ledigheds- berørte | D59: Gns. brutto- ledighed | F59: Ledigheds- berørte | G59: Gns. brutto- ledighed | I59: Ledigheds- berørte | J59: Gns. brutto- ledighed
A62: Civ. ing. | C62: =IF(OR('Tabel 1 Sydj'!C60<5,'Tabel 2 Sydj'!C62<0.5),"-",IFERROR('Tabel 2 Sydj'!C62/'Tabel 1 Sydj'!C60*100,"-")) -> 2.5 | D62: =IF(OR('Tabel 1 Sydj'!C60<5,'Tabel 2 Sydj'!D62<0.5),"-",IFERROR('Tabel 2 Sydj'!D62/'Tabel 1 Sydj'!C60*100,"-")) -> 2.499532215 | F62: =IF(OR('Tabel 1 Sydj'!E60<5,'Tabel 2 Sydj'!F62<0.5),"-",IFERROR('Tabel 2 Sydj'!F62/'Tabel 1 Sydj'!E60*100,"-")) -> - | G62: =IF(OR('Tabel 1 Sydj'!E60<5,'Tabel 2 Sydj'!G62<0.5),"-",IFERROR('Tabel 2 Sydj'!G62/'Tabel 1 Sydj'!E60*100,"-")) -> - | I62: =IF(OR('Tabel 1 Sydj'!G60<5,'Tabel 2 Sydj'!I62<0.5),"-",IFERROR('Tabel 2 Sydj'!I62/'Tabel 1 Sydj'!G60*100,"-")) -> 2 | J62: =IF(OR('Tabel 1 Sydj'!G60<5,'Tabel 2 Sydj'!J62<0.5),"-",IFERROR('Tabel 2 Sydj'!J62/'Tabel 1 Sydj'!G60*100,"-")) -> 1.999625772
A63: Diplom ing. | C63: =IF(OR('Tabel 1 Sydj'!C61<5,'Tabel 2 Sydj'!C63<0.5),"-",IFERROR('Tabel 2 Sydj'!C63/'Tabel 1 Sydj'!C61*100,"-")) -> 3.03030303 | D63: =IF(OR('Tabel 1 Sydj'!C61<5,'Tabel 2 Sydj'!D63<0.5),"-",IFERROR('Tabel 2 Sydj'!D63/'Tabel 1 Sydj'!C61*100,"-")) -> 2.565258397 | F63: =IF(OR('Tabel 1 Sydj'!E61<5,'Tabel 2 Sydj'!F63<0.5),"-",IFERROR('Tabel 2 Sydj'!F63/'Tabel 1 Sydj'!E61*100,"-")) -> 2.941176471 | G63: =IF(OR('Tabel 1 Sydj'!E61<5,'Tabel 2 Sydj'!G63<0.5),"-",IFERROR('Tabel 2 Sydj'!G63/'Tabel 1 Sydj'!E61*100,"-")) -> 2.940626135 | I63: =IF(OR('Tabel 1 Sydj'!G61<5,'Tabel 2 Sydj'!I63<0.5),"-",IFERROR('Tabel 2 Sydj'!I63/'Tabel 1 Sydj'!G61*100,"-")) -> 3.012048193 | J63: =IF(OR('Tabel 1 Sydj'!G61<5,'Tabel 2 Sydj'!J63<0.5),"-",IFERROR('Tabel 2 Sydj'!J63/'Tabel 1 Sydj'!G61*100,"-")) -> 2.642140946
A64: Cand. Scient. Tek. | C64: =IF(OR('Tabel 1 Sydj'!C62<5,'Tabel 2 Sydj'!C64<0.5),"-",IFERROR('Tabel 2 Sydj'!C64/'Tabel 1 Sydj'!C62*100,"-")) -> 12.5 | D64: =IF(OR('Tabel 1 Sydj'!C62<5,'Tabel 2 Sydj'!D64<0.5),"-",IFERROR('Tabel 2 Sydj'!D64/'Tabel 1 Sydj'!C62*100,"-")) -> 12.49766107 | F64: =IF(OR('Tabel 1 Sydj'!E62<5,'Tabel 2 Sydj'!F64<0.5),"-",IFERROR('Tabel 2 Sydj'!F64/'Tabel 1 Sydj'!E62*100,"-")) -> 14.28571429 | G64: =IF(OR('Tabel 1 Sydj'!E62<5,'Tabel 2 Sydj'!G64<0.5),"-",IFERROR('Tabel 2 Sydj'!G64/'Tabel 1 Sydj'!E62*100,"-")) -> 13.29400968 | I64: =IF(OR('Tabel 1 Sydj'!G62<5,'Tabel 2 Sydj'!I64<0.5),"-",IFERROR('Tabel 2 Sydj'!I64/'Tabel 1 Sydj'!G62*100,"-")) -> 13.63636364 | J64: =IF(OR('Tabel 1 Sydj'!G62<5,'Tabel 2 Sydj'!J64<0.5),"-",IFERROR('Tabel 2 Sydj'!J64/'Tabel 1 Sydj'!G62*100,"-")) -> 13.00442837
A65: MA. Hum. | C65: =IF(OR('Tabel 1 Sydj'!C63<5,'Tabel 2 Sydj'!C65<0.5),"-",IFERROR('Tabel 2 Sydj'!C65/'Tabel 1 Sydj'!C63*100,"-")) -> 7.462686567 | D65: =IF(OR('Tabel 1 Sydj'!C63<5,'Tabel 2 Sydj'!D65<0.5),"-",IFERROR('Tabel 2 Sydj'!D65/'Tabel 1 Sydj'!C63*100,"-")) -> 7.461290193 | F65: =IF(OR('Tabel 1 Sydj'!E63<5,'Tabel 2 Sydj'!F65<0.5),"-",IFERROR('Tabel 2 Sydj'!F65/'Tabel 1 Sydj'!E63*100,"-")) -> 9.734513274 | G65: =IF(OR('Tabel 1 Sydj'!E63<5,'Tabel 2 Sydj'!G65<0.5),"-",IFERROR('Tabel 2 Sydj'!G65/'Tabel 1 Sydj'!E63*100,"-")) -> 8.328508292 | I65: =IF(OR('Tabel 1 Sydj'!G63<5,'Tabel 2 Sydj'!I65<0.5),"-",IFERROR('Tabel 2 Sydj'!I65/'Tabel 1 Sydj'!G63*100,"-")) -> 8.888888889 | J65: =IF(OR('Tabel 1 Sydj'!G63<5,'Tabel 2 Sydj'!J65<0.5),"-",IFERROR('Tabel 2 Sydj'!J65/'Tabel 1 Sydj'!G63*100,"-")) -> 8.005710444
A66: MA. Nat. | C66: =IF(OR('Tabel 1 Sydj'!C64<5,'Tabel 2 Sydj'!C66<0.5),"-",IFERROR('Tabel 2 Sydj'!C66/'Tabel 1 Sydj'!C64*100,"-")) -> - | D66: =IF(OR('Tabel 1 Sydj'!C64<5,'Tabel 2 Sydj'!D66<0.5),"-",IFERROR('Tabel 2 Sydj'!D66/'Tabel 1 Sydj'!C64*100,"-")) -> - | F66: =IF(OR('Tabel 1 Sydj'!E64<5,'Tabel 2 Sydj'!F66<0.5),"-",IFERROR('Tabel 2 Sydj'!F66/'Tabel 1 Sydj'!E64*100,"-")) -> - | G66: =IF(OR('Tabel 1 Sydj'!E64<5,'Tabel 2 Sydj'!G66<0.5),"-",IFERROR('Tabel 2 Sydj'!G66/'Tabel 1 Sydj'!E64*100,"-")) -> - | I66: =IF(OR('Tabel 1 Sydj'!G64<5,'Tabel 2 Sydj'!I66<0.5),"-",IFERROR('Tabel 2 Sydj'!I66/'Tabel 1 Sydj'!G64*100,"-")) -> - | J66: =IF(OR('Tabel 1 Sydj'!G64<5,'Tabel 2 Sydj'!J66<0.5),"-",IFERROR('Tabel 2 Sydj'!J66/'Tabel 1 Sydj'!G64*100,"-")) -> -
A67: MA. Ph.d. | C67: =IF(OR('Tabel 1 Sydj'!C65<5,'Tabel 2 Sydj'!C67<0.5),"-",IFERROR('Tabel 2 Sydj'!C67/'Tabel 1 Sydj'!C65*100,"-")) -> - | D67: =IF(OR('Tabel 1 Sydj'!C65<5,'Tabel 2 Sydj'!D67<0.5),"-",IFERROR('Tabel 2 Sydj'!D67/'Tabel 1 Sydj'!C65*100,"-")) -> - | F67: =IF(OR('Tabel 1 Sydj'!E65<5,'Tabel 2 Sydj'!F67<0.5),"-",IFERROR('Tabel 2 Sydj'!F67/'Tabel 1 Sydj'!E65*100,"-")) -> - | G67: =IF(OR('Tabel 1 Sydj'!E65<5,'Tabel 2 Sydj'!G67<0.5),"-",IFERROR('Tabel 2 Sydj'!G67/'Tabel 1 Sydj'!E65*100,"-")) -> - | I67: =IF(OR('Tabel 1 Sydj'!G65<5,'Tabel 2 Sydj'!I67<0.5),"-",IFERROR('Tabel 2 Sydj'!I67/'Tabel 1 Sydj'!G65*100,"-")) -> - | J67: =IF(OR('Tabel 1 Sydj'!G65<5,'Tabel 2 Sydj'!J67<0.5),"-",IFERROR('Tabel 2 Sydj'!J67/'Tabel 1 Sydj'!G65*100,"-")) -> -
A68: MA. Samf. | C68: =IF(OR('Tabel 1 Sydj'!C66<5,'Tabel 2 Sydj'!C68<0.5),"-",IFERROR('Tabel 2 Sydj'!C68/'Tabel 1 Sydj'!C66*100,"-")) -> - | D68: =IF(OR('Tabel 1 Sydj'!C66<5,'Tabel 2 Sydj'!D68<0.5),"-",IFERROR('Tabel 2 Sydj'!D68/'Tabel 1 Sydj'!C66*100,"-")) -> - | F68: =IF(OR('Tabel 1 Sydj'!E66<5,'Tabel 2 Sydj'!F68<0.5),"-",IFERROR('Tabel 2 Sydj'!F68/'Tabel 1 Sydj'!E66*100,"-")) -> 40 | G68: =IF(OR('Tabel 1 Sydj'!E66<5,'Tabel 2 Sydj'!G68<0.5),"-",IFERROR('Tabel 2 Sydj'!G68/'Tabel 1 Sydj'!E66*100,"-")) -> 31.46011352 | I68: =IF(OR('Tabel 1 Sydj'!G66<5,'Tabel 2 Sydj'!I68<0.5),"-",IFERROR('Tabel 2 Sydj'!I68/'Tabel 1 Sydj'!G66*100,"-")) -> 42.85714286 | J68: =IF(OR('Tabel 1 Sydj'!G66<5,'Tabel 2 Sydj'!J68<0.5),"-",IFERROR('Tabel 2 Sydj'!J68/'Tabel 1 Sydj'!G66*100,"-")) -> 36.75455088
A69: Øvrige Mag. | C69: =IF(OR('Tabel 1 Sydj'!C67<5,'Tabel 2 Sydj'!C69<0.5),"-",IFERROR('Tabel 2 Sydj'!C69/'Tabel 1 Sydj'!C67*100,"-")) -> 16.66666667 | D69: =IF(OR('Tabel 1 Sydj'!C67<5,'Tabel 2 Sydj'!D69<0.5),"-",IFERROR('Tabel 2 Sydj'!D69/'Tabel 1 Sydj'!C67*100,"-")) -> 16.6635481 | F69: =IF(OR('Tabel 1 Sydj'!E67<5,'Tabel 2 Sydj'!F69<0.5),"-",IFERROR('Tabel 2 Sydj'!F69/'Tabel 1 Sydj'!E67*100,"-")) -> 8.333333333 | G69: =IF(OR('Tabel 1 Sydj'!E67<5,'Tabel 2 Sydj'!G69<0.5),"-",IFERROR('Tabel 2 Sydj'!G69/'Tabel 1 Sydj'!E67*100,"-")) -> - | I69: =IF(OR('Tabel 1 Sydj'!G67<5,'Tabel 2 Sydj'!I69<0.5),"-",IFERROR('Tabel 2 Sydj'!I69/'Tabel 1 Sydj'!G67*100,"-")) -> 11.11111111 | J69: =IF(OR('Tabel 1 Sydj'!G67<5,'Tabel 2 Sydj'!J69<0.5),"-",IFERROR('Tabel 2 Sydj'!J69/'Tabel 1 Sydj'!G67*100,"-")) -> 8.319646285
A70: Agronom | C70: =IF(OR('Tabel 1 Sydj'!C68<5,'Tabel 2 Sydj'!C70<0.5),"-",IFERROR('Tabel 2 Sydj'!C70/'Tabel 1 Sydj'!C68*100,"-")) -> - | D70: =IF(OR('Tabel 1 Sydj'!C68<5,'Tabel 2 Sydj'!D70<0.5),"-",IFERROR('Tabel 2 Sydj'!D70/'Tabel 1 Sydj'!C68*100,"-")) -> - | F70: =IF(OR('Tabel 1 Sydj'!E68<5,'Tabel 2 Sydj'!F70<0.5),"-",IFERROR('Tabel 2 Sydj'!F70/'Tabel 1 Sydj'!E68*100,"-")) -> - | G70: =IF(OR('Tabel 1 Sydj'!E68<5,'Tabel 2 Sydj'!G70<0.5),"-",IFERROR('Tabel 2 Sydj'!G70/'Tabel 1 Sydj'!E68*100,"-")) -> - | I70: =IF(OR('Tabel 1 Sydj'!G68<5,'Tabel 2 Sydj'!I70<0.5),"-",IFERROR('Tabel 2 Sydj'!I70/'Tabel 1 Sydj'!G68*100,"-")) -> - | J70: =IF(OR('Tabel 1 Sydj'!G68<5,'Tabel 2 Sydj'!J70<0.5),"-",IFERROR('Tabel 2 Sydj'!J70/'Tabel 1 Sydj'!G68*100,"-")) -> -
A71: Landsk. Arkt. | C71: =IF(OR('Tabel 1 Sydj'!C69<5,'Tabel 2 Sydj'!C71<0.5),"-",IFERROR('Tabel 2 Sydj'!C71/'Tabel 1 Sydj'!C69*100,"-")) -> - | D71: =IF(OR('Tabel 1 Sydj'!C69<5,'Tabel 2 Sydj'!D71<0.5),"-",IFERROR('Tabel 2 Sydj'!D71/'Tabel 1 Sydj'!C69*100,"-")) -> - | F71: =IF(OR('Tabel 1 Sydj'!E69<5,'Tabel 2 Sydj'!F71<0.5),"-",IFERROR('Tabel 2 Sydj'!F71/'Tabel 1 Sydj'!E69*100,"-")) -> - | G71: =IF(OR('Tabel 1 Sydj'!E69<5,'Tabel 2 Sydj'!G71<0.5),"-",IFERROR('Tabel 2 Sydj'!G71/'Tabel 1 Sydj'!E69*100,"-")) -> - | I71: =IF(OR('Tabel 1 Sydj'!G69<5,'Tabel 2 Sydj'!I71<0.5),"-",IFERROR('Tabel 2 Sydj'!I71/'Tabel 1 Sydj'!G69*100,"-")) -> - | J71: =IF(OR('Tabel 1 Sydj'!G69<5,'Tabel 2 Sydj'!J71<0.5),"-",IFERROR('Tabel 2 Sydj'!J71/'Tabel 1 Sydj'!G69*100,"-")) -> -
A72: Hortonom | C72: =IF(OR('Tabel 1 Sydj'!C70<5,'Tabel 2 Sydj'!C72<0.5),"-",IFERROR('Tabel 2 Sydj'!C72/'Tabel 1 Sydj'!C70*100,"-")) -> - | D72: =IF(OR('Tabel 1 Sydj'!C70<5,'Tabel 2 Sydj'!D72<0.5),"-",IFERROR('Tabel 2 Sydj'!D72/'Tabel 1 Sydj'!C70*100,"-")) -> - | F72: =IF(OR('Tabel 1 Sydj'!E70<5,'Tabel 2 Sydj'!F72<0.5),"-",IFERROR('Tabel 2 Sydj'!F72/'Tabel 1 Sydj'!E70*100,"-")) -> - | G72: =IF(OR('Tabel 1 Sydj'!E70<5,'Tabel 2 Sydj'!G72<0.5),"-",IFERROR('Tabel 2 Sydj'!G72/'Tabel 1 Sydj'!E70*100,"-")) -> - | I72: =IF(OR('Tabel 1 Sydj'!G70<5,'Tabel 2 Sydj'!I72<0.5),"-",IFERROR('Tabel 2 Sydj'!I72/'Tabel 1 Sydj'!G70*100,"-")) -> - | J72: =IF(OR('Tabel 1 Sydj'!G70<5,'Tabel 2 Sydj'!J72<0.5),"-",IFERROR('Tabel 2 Sydj'!J72/'Tabel 1 Sydj'!G70*100,"-")) -> -
A73: Forstkand. | C73: =IF(OR('Tabel 1 Sydj'!C71<5,'Tabel 2 Sydj'!C73<0.5),"-",IFERROR('Tabel 2 Sydj'!C73/'Tabel 1 Sydj'!C71*100,"-")) -> - | D73: =IF(OR('Tabel 1 Sydj'!C71<5,'Tabel 2 Sydj'!D73<0.5),"-",IFERROR('Tabel 2 Sydj'!D73/'Tabel 1 Sydj'!C71*100,"-")) -> - | F73: =IF(OR('Tabel 1 Sydj'!E71<5,'Tabel 2 Sydj'!F73<0.5),"-",IFERROR('Tabel 2 Sydj'!F73/'Tabel 1 Sydj'!E71*100,"-")) -> - | G73: =IF(OR('Tabel 1 Sydj'!E71<5,'Tabel 2 Sydj'!G73<0.5),"-",IFERROR('Tabel 2 Sydj'!G73/'Tabel 1 Sydj'!E71*100,"-")) -> - | I73: =IF(OR('Tabel 1 Sydj'!G71<5,'Tabel 2 Sydj'!I73<0.5),"-",IFERROR('Tabel 2 Sydj'!I73/'Tabel 1 Sydj'!G71*100,"-")) -> - | J73: =IF(OR('Tabel 1 Sydj'!G71<5,'Tabel 2 Sydj'!J73<0.5),"-",IFERROR('Tabel 2 Sydj'!J73/'Tabel 1 Sydj'!G71*100,"-")) -> -
A74: Jordbrugsakad. | C74: =IF(OR('Tabel 1 Sydj'!C72<5,'Tabel 2 Sydj'!C74<0.5),"-",IFERROR('Tabel 2 Sydj'!C74/'Tabel 1 Sydj'!C72*100,"-")) -> - | D74: =IF(OR('Tabel 1 Sydj'!C72<5,'Tabel 2 Sydj'!D74<0.5),"-",IFERROR('Tabel 2 Sydj'!D74/'Tabel 1 Sydj'!C72*100,"-")) -> - | F74: =IF(OR('Tabel 1 Sydj'!E72<5,'Tabel 2 Sydj'!F74<0.5),"-",IFERROR('Tabel 2 Sydj'!F74/'Tabel 1 Sydj'!E72*100,"-")) -> - | G74: =IF(OR('Tabel 1 Sydj'!E72<5,'Tabel 2 Sydj'!G74<0.5),"-",IFERROR('Tabel 2 Sydj'!G74/'Tabel 1 Sydj'!E72*100,"-")) -> - | I74: =IF(OR('Tabel 1 Sydj'!G72<5,'Tabel 2 Sydj'!I74<0.5),"-",IFERROR('Tabel 2 Sydj'!I74/'Tabel 1 Sydj'!G72*100,"-")) -> - | J74: =IF(OR('Tabel 1 Sydj'!G72<5,'Tabel 2 Sydj'!J74<0.5),"-",IFERROR('Tabel 2 Sydj'!J74/'Tabel 1 Sydj'!G72*100,"-")) -> -
A75: Mejeriing. | C75: =IF(OR('Tabel 1 Sydj'!C73<5,'Tabel 2 Sydj'!C75<0.5),"-",IFERROR('Tabel 2 Sydj'!C75/'Tabel 1 Sydj'!C73*100,"-")) -> - | D75: =IF(OR('Tabel 1 Sydj'!C73<5,'Tabel 2 Sydj'!D75<0.5),"-",IFERROR('Tabel 2 Sydj'!D75/'Tabel 1 Sydj'!C73*100,"-")) -> - | F75: =IF(OR('Tabel 1 Sydj'!E73<5,'Tabel 2 Sydj'!F75<0.5),"-",IFERROR('Tabel 2 Sydj'!F75/'Tabel 1 Sydj'!E73*100,"-")) -> - | G75: =IF(OR('Tabel 1 Sydj'!E73<5,'Tabel 2 Sydj'!G75<0.5),"-",IFERROR('Tabel 2 Sydj'!G75/'Tabel 1 Sydj'!E73*100,"-")) -> - | I75: =IF(OR('Tabel 1 Sydj'!G73<5,'Tabel 2 Sydj'!I75<0.5),"-",IFERROR('Tabel 2 Sydj'!I75/'Tabel 1 Sydj'!G73*100,"-")) -> - | J75: =IF(OR('Tabel 1 Sydj'!G73<5,'Tabel 2 Sydj'!J75<0.5),"-",IFERROR('Tabel 2 Sydj'!J75/'Tabel 1 Sydj'!G73*100,"-")) -> -
A76: Levn.m.kand. | C76: =IF(OR('Tabel 1 Sydj'!C74<5,'Tabel 2 Sydj'!C76<0.5),"-",IFERROR('Tabel 2 Sydj'!C76/'Tabel 1 Sydj'!C74*100,"-")) -> - | D76: =IF(OR('Tabel 1 Sydj'!C74<5,'Tabel 2 Sydj'!D76<0.5),"-",IFERROR('Tabel 2 Sydj'!D76/'Tabel 1 Sydj'!C74*100,"-")) -> - | F76: =IF(OR('Tabel 1 Sydj'!E74<5,'Tabel 2 Sydj'!F76<0.5),"-",IFERROR('Tabel 2 Sydj'!F76/'Tabel 1 Sydj'!E74*100,"-")) -> - | G76: =IF(OR('Tabel 1 Sydj'!E74<5,'Tabel 2 Sydj'!G76<0.5),"-",IFERROR('Tabel 2 Sydj'!G76/'Tabel 1 Sydj'!E74*100,"-")) -> - | I76: =IF(OR('Tabel 1 Sydj'!G74<5,'Tabel 2 Sydj'!I76<0.5),"-",IFERROR('Tabel 2 Sydj'!I76/'Tabel 1 Sydj'!G74*100,"-")) -> - | J76: =IF(OR('Tabel 1 Sydj'!G74<5,'Tabel 2 Sydj'!J76<0.5),"-",IFERROR('Tabel 2 Sydj'!J76/'Tabel 1 Sydj'!G74*100,"-")) -> -
A77: Dyrlæge | C77: =IF(OR('Tabel 1 Sydj'!C75<5,'Tabel 2 Sydj'!C77<0.5),"-",IFERROR('Tabel 2 Sydj'!C77/'Tabel 1 Sydj'!C75*100,"-")) -> - | D77: =IF(OR('Tabel 1 Sydj'!C75<5,'Tabel 2 Sydj'!D77<0.5),"-",IFERROR('Tabel 2 Sydj'!D77/'Tabel 1 Sydj'!C75*100,"-")) -> - | F77: =IF(OR('Tabel 1 Sydj'!E75<5,'Tabel 2 Sydj'!F77<0.5),"-",IFERROR('Tabel 2 Sydj'!F77/'Tabel 1 Sydj'!E75*100,"-")) -> - | G77: =IF(OR('Tabel 1 Sydj'!E75<5,'Tabel 2 Sydj'!G77<0.5),"-",IFERROR('Tabel 2 Sydj'!G77/'Tabel 1 Sydj'!E75*100,"-")) -> - | I77: =IF(OR('Tabel 1 Sydj'!G75<5,'Tabel 2 Sydj'!I77<0.5),"-",IFERROR('Tabel 2 Sydj'!I77/'Tabel 1 Sydj'!G75*100,"-")) -> - | J77: =IF(OR('Tabel 1 Sydj'!G75<5,'Tabel 2 Sydj'!J77<0.5),"-",IFERROR('Tabel 2 Sydj'!J77/'Tabel 1 Sydj'!G75*100,"-")) -> -
A78: Farmaceut | C78: =IF(OR('Tabel 1 Sydj'!C76<5,'Tabel 2 Sydj'!C78<0.5),"-",IFERROR('Tabel 2 Sydj'!C78/'Tabel 1 Sydj'!C76*100,"-")) -> - | D78: =IF(OR('Tabel 1 Sydj'!C76<5,'Tabel 2 Sydj'!D78<0.5),"-",IFERROR('Tabel 2 Sydj'!D78/'Tabel 1 Sydj'!C76*100,"-")) -> - | F78: =IF(OR('Tabel 1 Sydj'!E76<5,'Tabel 2 Sydj'!F78<0.5),"-",IFERROR('Tabel 2 Sydj'!F78/'Tabel 1 Sydj'!E76*100,"-")) -> - | G78: =IF(OR('Tabel 1 Sydj'!E76<5,'Tabel 2 Sydj'!G78<0.5),"-",IFERROR('Tabel 2 Sydj'!G78/'Tabel 1 Sydj'!E76*100,"-")) -> - | I78: =IF(OR('Tabel 1 Sydj'!G76<5,'Tabel 2 Sydj'!I78<0.5),"-",IFERROR('Tabel 2 Sydj'!I78/'Tabel 1 Sydj'!G76*100,"-")) -> - | J78: =IF(OR('Tabel 1 Sydj'!G76<5,'Tabel 2 Sydj'!J78<0.5),"-",IFERROR('Tabel 2 Sydj'!J78/'Tabel 1 Sydj'!G76*100,"-")) -> -
A79: Læge | C79: =IF(OR('Tabel 1 Sydj'!C77<5,'Tabel 2 Sydj'!C79<0.5),"-",IFERROR('Tabel 2 Sydj'!C79/'Tabel 1 Sydj'!C77*100,"-")) -> - | D79: =IF(OR('Tabel 1 Sydj'!C77<5,'Tabel 2 Sydj'!D79<0.5),"-",IFERROR('Tabel 2 Sydj'!D79/'Tabel 1 Sydj'!C77*100,"-")) -> - | F79: =IF(OR('Tabel 1 Sydj'!E77<5,'Tabel 2 Sydj'!F79<0.5),"-",IFERROR('Tabel 2 Sydj'!F79/'Tabel 1 Sydj'!E77*100,"-")) -> - | G79: =IF(OR('Tabel 1 Sydj'!E77<5,'Tabel 2 Sydj'!G79<0.5),"-",IFERROR('Tabel 2 Sydj'!G79/'Tabel 1 Sydj'!E77*100,"-")) -> - | I79: =IF(OR('Tabel 1 Sydj'!G77<5,'Tabel 2 Sydj'!I79<0.5),"-",IFERROR('Tabel 2 Sydj'!I79/'Tabel 1 Sydj'!G77*100,"-")) -> - | J79: =IF(OR('Tabel 1 Sydj'!G77<5,'Tabel 2 Sydj'!J79<0.5),"-",IFERROR('Tabel 2 Sydj'!J79/'Tabel 1 Sydj'!G77*100,"-")) -> -
A80: Tandlæge | C80: =IF(OR('Tabel 1 Sydj'!C78<5,'Tabel 2 Sydj'!C80<0.5),"-",IFERROR('Tabel 2 Sydj'!C80/'Tabel 1 Sydj'!C78*100,"-")) -> - | D80: =IF(OR('Tabel 1 Sydj'!C78<5,'Tabel 2 Sydj'!D80<0.5),"-",IFERROR('Tabel 2 Sydj'!D80/'Tabel 1 Sydj'!C78*100,"-")) -> - | F80: =IF(OR('Tabel 1 Sydj'!E78<5,'Tabel 2 Sydj'!F80<0.5),"-",IFERROR('Tabel 2 Sydj'!F80/'Tabel 1 Sydj'!E78*100,"-")) -> - | G80: =IF(OR('Tabel 1 Sydj'!E78<5,'Tabel 2 Sydj'!G80<0.5),"-",IFERROR('Tabel 2 Sydj'!G80/'Tabel 1 Sydj'!E78*100,"-")) -> - | I80: =IF(OR('Tabel 1 Sydj'!G78<5,'Tabel 2 Sydj'!I80<0.5),"-",IFERROR('Tabel 2 Sydj'!I80/'Tabel 1 Sydj'!G78*100,"-")) -> - | J80: =IF(OR('Tabel 1 Sydj'!G78<5,'Tabel 2 Sydj'!J80<0.5),"-",IFERROR('Tabel 2 Sydj'!J80/'Tabel 1 Sydj'!G78*100,"-")) -> -
A81: Arkitekt | C81: =IF(OR('Tabel 1 Sydj'!C79<5,'Tabel 2 Sydj'!C81<0.5),"-",IFERROR('Tabel 2 Sydj'!C81/'Tabel 1 Sydj'!C79*100,"-")) -> - | D81: =IF(OR('Tabel 1 Sydj'!C79<5,'Tabel 2 Sydj'!D81<0.5),"-",IFERROR('Tabel 2 Sydj'!D81/'Tabel 1 Sydj'!C79*100,"-")) -> - | F81: =IF(OR('Tabel 1 Sydj'!E79<5,'Tabel 2 Sydj'!F81<0.5),"-",IFERROR('Tabel 2 Sydj'!F81/'Tabel 1 Sydj'!E79*100,"-")) -> - | G81: =IF(OR('Tabel 1 Sydj'!E79<5,'Tabel 2 Sydj'!G81<0.5),"-",IFERROR('Tabel 2 Sydj'!G81/'Tabel 1 Sydj'!E79*100,"-")) -> - | I81: =IF(OR('Tabel 1 Sydj'!G79<5,'Tabel 2 Sydj'!I81<0.5),"-",IFERROR('Tabel 2 Sydj'!I81/'Tabel 1 Sydj'!G79*100,"-")) -> - | J81: =IF(OR('Tabel 1 Sydj'!G79<5,'Tabel 2 Sydj'!J81<0.5),"-",IFERROR('Tabel 2 Sydj'!J81/'Tabel 1 Sydj'!G79*100,"-")) -> -
A82: Landinspek. | C82: =IF(OR('Tabel 1 Sydj'!C80<5,'Tabel 2 Sydj'!C82<0.5),"-",IFERROR('Tabel 2 Sydj'!C82/'Tabel 1 Sydj'!C80*100,"-")) -> - | D82: =IF(OR('Tabel 1 Sydj'!C80<5,'Tabel 2 Sydj'!D82<0.5),"-",IFERROR('Tabel 2 Sydj'!D82/'Tabel 1 Sydj'!C80*100,"-")) -> - | F82: =IF(OR('Tabel 1 Sydj'!E80<5,'Tabel 2 Sydj'!F82<0.5),"-",IFERROR('Tabel 2 Sydj'!F82/'Tabel 1 Sydj'!E80*100,"-")) -> - | G82: =IF(OR('Tabel 1 Sydj'!E80<5,'Tabel 2 Sydj'!G82<0.5),"-",IFERROR('Tabel 2 Sydj'!G82/'Tabel 1 Sydj'!E80*100,"-")) -> - | I82: =IF(OR('Tabel 1 Sydj'!G80<5,'Tabel 2 Sydj'!I82<0.5),"-",IFERROR('Tabel 2 Sydj'!I82/'Tabel 1 Sydj'!G80*100,"-")) -> - | J82: =IF(OR('Tabel 1 Sydj'!G80<5,'Tabel 2 Sydj'!J82<0.5),"-",IFERROR('Tabel 2 Sydj'!J82/'Tabel 1 Sydj'!G80*100,"-")) -> -
A83: Bibliotekar | C83: =IF(OR('Tabel 1 Sydj'!C81<5,'Tabel 2 Sydj'!C83<0.5),"-",IFERROR('Tabel 2 Sydj'!C83/'Tabel 1 Sydj'!C81*100,"-")) -> - | D83: =IF(OR('Tabel 1 Sydj'!C81<5,'Tabel 2 Sydj'!D83<0.5),"-",IFERROR('Tabel 2 Sydj'!D83/'Tabel 1 Sydj'!C81*100,"-")) -> - | F83: =IF(OR('Tabel 1 Sydj'!E81<5,'Tabel 2 Sydj'!F83<0.5),"-",IFERROR('Tabel 2 Sydj'!F83/'Tabel 1 Sydj'!E81*100,"-")) -> 9.090909091 | G83: =IF(OR('Tabel 1 Sydj'!E81<5,'Tabel 2 Sydj'!G83<0.5),"-",IFERROR('Tabel 2 Sydj'!G83/'Tabel 1 Sydj'!E81*100,"-")) -> 9.089208054 | I83: =IF(OR('Tabel 1 Sydj'!G81<5,'Tabel 2 Sydj'!I83<0.5),"-",IFERROR('Tabel 2 Sydj'!I83/'Tabel 1 Sydj'!G81*100,"-")) -> 9.090909091 | J83: =IF(OR('Tabel 1 Sydj'!G81<5,'Tabel 2 Sydj'!J83<0.5),"-",IFERROR('Tabel 2 Sydj'!J83/'Tabel 1 Sydj'!G81*100,"-")) -> 9.089208054
A84: Musikudd. | C84: =IF(OR('Tabel 1 Sydj'!C82<5,'Tabel 2 Sydj'!C84<0.5),"-",IFERROR('Tabel 2 Sydj'!C84/'Tabel 1 Sydj'!C82*100,"-")) -> - | D84: =IF(OR('Tabel 1 Sydj'!C82<5,'Tabel 2 Sydj'!D84<0.5),"-",IFERROR('Tabel 2 Sydj'!D84/'Tabel 1 Sydj'!C82*100,"-")) -> - | F84: =IF(OR('Tabel 1 Sydj'!E82<5,'Tabel 2 Sydj'!F84<0.5),"-",IFERROR('Tabel 2 Sydj'!F84/'Tabel 1 Sydj'!E82*100,"-")) -> - | G84: =IF(OR('Tabel 1 Sydj'!E82<5,'Tabel 2 Sydj'!G84<0.5),"-",IFERROR('Tabel 2 Sydj'!G84/'Tabel 1 Sydj'!E82*100,"-")) -> - | I84: =IF(OR('Tabel 1 Sydj'!G82<5,'Tabel 2 Sydj'!I84<0.5),"-",IFERROR('Tabel 2 Sydj'!I84/'Tabel 1 Sydj'!G82*100,"-")) -> - | J84: =IF(OR('Tabel 1 Sydj'!G82<5,'Tabel 2 Sydj'!J84<0.5),"-",IFERROR('Tabel 2 Sydj'!J84/'Tabel 1 Sydj'!G82*100,"-")) -> -
A85: Teolog | C85: =IF(OR('Tabel 1 Sydj'!C83<5,'Tabel 2 Sydj'!C85<0.5),"-",IFERROR('Tabel 2 Sydj'!C85/'Tabel 1 Sydj'!C83*100,"-")) -> - | D85: =IF(OR('Tabel 1 Sydj'!C83<5,'Tabel 2 Sydj'!D85<0.5),"-",IFERROR('Tabel 2 Sydj'!D85/'Tabel 1 Sydj'!C83*100,"-")) -> - | F85: =IF(OR('Tabel 1 Sydj'!E83<5,'Tabel 2 Sydj'!F85<0.5),"-",IFERROR('Tabel 2 Sydj'!F85/'Tabel 1 Sydj'!E83*100,"-")) -> - | G85: =IF(OR('Tabel 1 Sydj'!E83<5,'Tabel 2 Sydj'!G85<0.5),"-",IFERROR('Tabel 2 Sydj'!G85/'Tabel 1 Sydj'!E83*100,"-")) -> - | I85: =IF(OR('Tabel 1 Sydj'!G83<5,'Tabel 2 Sydj'!I85<0.5),"-",IFERROR('Tabel 2 Sydj'!I85/'Tabel 1 Sydj'!G83*100,"-")) -> - | J85: =IF(OR('Tabel 1 Sydj'!G83<5,'Tabel 2 Sydj'!J85<0.5),"-",IFERROR('Tabel 2 Sydj'!J85/'Tabel 1 Sydj'!G83*100,"-")) -> -
A86: Psykolog | C86: =IF(OR('Tabel 1 Sydj'!C84<5,'Tabel 2 Sydj'!C86<0.5),"-",IFERROR('Tabel 2 Sydj'!C86/'Tabel 1 Sydj'!C84*100,"-")) -> - | D86: =IF(OR('Tabel 1 Sydj'!C84<5,'Tabel 2 Sydj'!D86<0.5),"-",IFERROR('Tabel 2 Sydj'!D86/'Tabel 1 Sydj'!C84*100,"-")) -> - | F86: =IF(OR('Tabel 1 Sydj'!E84<5,'Tabel 2 Sydj'!F86<0.5),"-",IFERROR('Tabel 2 Sydj'!F86/'Tabel 1 Sydj'!E84*100,"-")) -> - | G86: =IF(OR('Tabel 1 Sydj'!E84<5,'Tabel 2 Sydj'!G86<0.5),"-",IFERROR('Tabel 2 Sydj'!G86/'Tabel 1 Sydj'!E84*100,"-")) -> - | I86: =IF(OR('Tabel 1 Sydj'!G84<5,'Tabel 2 Sydj'!I86<0.5),"-",IFERROR('Tabel 2 Sydj'!I86/'Tabel 1 Sydj'!G84*100,"-")) -> - | J86: =IF(OR('Tabel 1 Sydj'!G84<5,'Tabel 2 Sydj'!J86<0.5),"-",IFERROR('Tabel 2 Sydj'!J86/'Tabel 1 Sydj'!G84*100,"-")) -> -
A87: Jurist | C87: =IF(OR('Tabel 1 Sydj'!C85<5,'Tabel 2 Sydj'!C87<0.5),"-",IFERROR('Tabel 2 Sydj'!C87/'Tabel 1 Sydj'!C85*100,"-")) -> - | D87: =IF(OR('Tabel 1 Sydj'!C85<5,'Tabel 2 Sydj'!D87<0.5),"-",IFERROR('Tabel 2 Sydj'!D87/'Tabel 1 Sydj'!C85*100,"-")) -> - | F87: =IF(OR('Tabel 1 Sydj'!E85<5,'Tabel 2 Sydj'!F87<0.5),"-",IFERROR('Tabel 2 Sydj'!F87/'Tabel 1 Sydj'!E85*100,"-")) -> 3.03030303 | G87: =IF(OR('Tabel 1 Sydj'!E85<5,'Tabel 2 Sydj'!G87<0.5),"-",IFERROR('Tabel 2 Sydj'!G87/'Tabel 1 Sydj'!E85*100,"-")) -> 3.029736018 | I87: =IF(OR('Tabel 1 Sydj'!G85<5,'Tabel 2 Sydj'!I87<0.5),"-",IFERROR('Tabel 2 Sydj'!I87/'Tabel 1 Sydj'!G85*100,"-")) -> 2.325581395 | J87: =IF(OR('Tabel 1 Sydj'!G85<5,'Tabel 2 Sydj'!J87<0.5),"-",IFERROR('Tabel 2 Sydj'!J87/'Tabel 1 Sydj'!G85*100,"-")) -> 2.325146246
A88: Økonom | C88: =IF(OR('Tabel 1 Sydj'!C86<5,'Tabel 2 Sydj'!C88<0.5),"-",IFERROR('Tabel 2 Sydj'!C88/'Tabel 1 Sydj'!C86*100,"-")) -> - | D88: =IF(OR('Tabel 1 Sydj'!C86<5,'Tabel 2 Sydj'!D88<0.5),"-",IFERROR('Tabel 2 Sydj'!D88/'Tabel 1 Sydj'!C86*100,"-")) -> - | F88: =IF(OR('Tabel 1 Sydj'!E86<5,'Tabel 2 Sydj'!F88<0.5),"-",IFERROR('Tabel 2 Sydj'!F88/'Tabel 1 Sydj'!E86*100,"-")) -> - | G88: =IF(OR('Tabel 1 Sydj'!E86<5,'Tabel 2 Sydj'!G88<0.5),"-",IFERROR('Tabel 2 Sydj'!G88/'Tabel 1 Sydj'!E86*100,"-")) -> - | I88: =IF(OR('Tabel 1 Sydj'!G86<5,'Tabel 2 Sydj'!I88<0.5),"-",IFERROR('Tabel 2 Sydj'!I88/'Tabel 1 Sydj'!G86*100,"-")) -> - | J88: =IF(OR('Tabel 1 Sydj'!G86<5,'Tabel 2 Sydj'!J88<0.5),"-",IFERROR('Tabel 2 Sydj'!J88/'Tabel 1 Sydj'!G86*100,"-")) -> -
A89: Samf. Adm. | C89: =IF(OR('Tabel 1 Sydj'!C87<5,'Tabel 2 Sydj'!C89<0.5),"-",IFERROR('Tabel 2 Sydj'!C89/'Tabel 1 Sydj'!C87*100,"-")) -> 4.761904762 | D89: =IF(OR('Tabel 1 Sydj'!C87<5,'Tabel 2 Sydj'!D89<0.5),"-",IFERROR('Tabel 2 Sydj'!D89/'Tabel 1 Sydj'!C87*100,"-")) -> 4.086809052 | F89: =IF(OR('Tabel 1 Sydj'!E87<5,'Tabel 2 Sydj'!F89<0.5),"-",IFERROR('Tabel 2 Sydj'!F89/'Tabel 1 Sydj'!E87*100,"-")) -> 4.761904762 | G89: =IF(OR('Tabel 1 Sydj'!E87<5,'Tabel 2 Sydj'!G89<0.5),"-",IFERROR('Tabel 2 Sydj'!G89/'Tabel 1 Sydj'!E87*100,"-")) -> 4.761013742 | I89: =IF(OR('Tabel 1 Sydj'!G87<5,'Tabel 2 Sydj'!I89<0.5),"-",IFERROR('Tabel 2 Sydj'!I89/'Tabel 1 Sydj'!G87*100,"-")) -> 4.761904762 | J89: =IF(OR('Tabel 1 Sydj'!G87<5,'Tabel 2 Sydj'!J89<0.5),"-",IFERROR('Tabel 2 Sydj'!J89/'Tabel 1 Sydj'!G87*100,"-")) -> 4.423911397
A90: Cand. Merc. | C90: =IF(OR('Tabel 1 Sydj'!C88<5,'Tabel 2 Sydj'!C90<0.5),"-",IFERROR('Tabel 2 Sydj'!C90/'Tabel 1 Sydj'!C88*100,"-")) -> 4.444444444 | D90: =IF(OR('Tabel 1 Sydj'!C88<5,'Tabel 2 Sydj'!D90<0.5),"-",IFERROR('Tabel 2 Sydj'!D90/'Tabel 1 Sydj'!C88*100,"-")) -> 4.443612826 | F90: =IF(OR('Tabel 1 Sydj'!E88<5,'Tabel 2 Sydj'!F90<0.5),"-",IFERROR('Tabel 2 Sydj'!F90/'Tabel 1 Sydj'!E88*100,"-")) -> 3.636363636 | G90: =IF(OR('Tabel 1 Sydj'!E88<5,'Tabel 2 Sydj'!G90<0.5),"-",IFERROR('Tabel 2 Sydj'!G90/'Tabel 1 Sydj'!E88*100,"-")) -> 3.551765393 | I90: =IF(OR('Tabel 1 Sydj'!G88<5,'Tabel 2 Sydj'!I90<0.5),"-",IFERROR('Tabel 2 Sydj'!I90/'Tabel 1 Sydj'!G88*100,"-")) -> 4 | J90: =IF(OR('Tabel 1 Sydj'!G88<5,'Tabel 2 Sydj'!J90<0.5),"-",IFERROR('Tabel 2 Sydj'!J90/'Tabel 1 Sydj'!G88*100,"-")) -> 3.953096738
A91: HA | C91: =IF(OR('Tabel 1 Sydj'!C89<5,'Tabel 2 Sydj'!C91<0.5),"-",IFERROR('Tabel 2 Sydj'!C91/'Tabel 1 Sydj'!C89*100,"-")) -> 11.11111111 | D91: =IF(OR('Tabel 1 Sydj'!C89<5,'Tabel 2 Sydj'!D91<0.5),"-",IFERROR('Tabel 2 Sydj'!D91/'Tabel 1 Sydj'!C89*100,"-")) -> 11.10903207 | F91: =IF(OR('Tabel 1 Sydj'!E89<5,'Tabel 2 Sydj'!F91<0.5),"-",IFERROR('Tabel 2 Sydj'!F91/'Tabel 1 Sydj'!E89*100,"-")) -> 6.666666667 | G91: =IF(OR('Tabel 1 Sydj'!E89<5,'Tabel 2 Sydj'!G91<0.5),"-",IFERROR('Tabel 2 Sydj'!G91/'Tabel 1 Sydj'!E89*100,"-")) -> 6.665419239 | I91: =IF(OR('Tabel 1 Sydj'!G89<5,'Tabel 2 Sydj'!I91<0.5),"-",IFERROR('Tabel 2 Sydj'!I91/'Tabel 1 Sydj'!G89*100,"-")) -> 9.090909091 | J91: =IF(OR('Tabel 1 Sydj'!G89<5,'Tabel 2 Sydj'!J91<0.5),"-",IFERROR('Tabel 2 Sydj'!J91/'Tabel 1 Sydj'!G89*100,"-")) -> 9.089208054
A92: HD | C92: =IF(OR('Tabel 1 Sydj'!C90<5,'Tabel 2 Sydj'!C92<0.5),"-",IFERROR('Tabel 2 Sydj'!C92/'Tabel 1 Sydj'!C90*100,"-")) -> - | D92: =IF(OR('Tabel 1 Sydj'!C90<5,'Tabel 2 Sydj'!D92<0.5),"-",IFERROR('Tabel 2 Sydj'!D92/'Tabel 1 Sydj'!C90*100,"-")) -> - | F92: =IF(OR('Tabel 1 Sydj'!E90<5,'Tabel 2 Sydj'!F92<0.5),"-",IFERROR('Tabel 2 Sydj'!F92/'Tabel 1 Sydj'!E90*100,"-")) -> - | G92: =IF(OR('Tabel 1 Sydj'!E90<5,'Tabel 2 Sydj'!G92<0.5),"-",IFERROR('Tabel 2 Sydj'!G92/'Tabel 1 Sydj'!E90*100,"-")) -> - | I92: =IF(OR('Tabel 1 Sydj'!G90<5,'Tabel 2 Sydj'!I92<0.5),"-",IFERROR('Tabel 2 Sydj'!I92/'Tabel 1 Sydj'!G90*100,"-")) -> - | J92: =IF(OR('Tabel 1 Sydj'!G90<5,'Tabel 2 Sydj'!J92<0.5),"-",IFERROR('Tabel 2 Sydj'!J92/'Tabel 1 Sydj'!G90*100,"-")) -> -
A93: Komm. og Sprog | C93: =IF(OR('Tabel 1 Sydj'!C91<5,'Tabel 2 Sydj'!C93<0.5),"-",IFERROR('Tabel 2 Sydj'!C93/'Tabel 1 Sydj'!C91*100,"-")) -> - | D93: =IF(OR('Tabel 1 Sydj'!C91<5,'Tabel 2 Sydj'!D93<0.5),"-",IFERROR('Tabel 2 Sydj'!D93/'Tabel 1 Sydj'!C91*100,"-")) -> - | F93: =IF(OR('Tabel 1 Sydj'!E91<5,'Tabel 2 Sydj'!F93<0.5),"-",IFERROR('Tabel 2 Sydj'!F93/'Tabel 1 Sydj'!E91*100,"-")) -> 8.695652174 | G93: =IF(OR('Tabel 1 Sydj'!E91<5,'Tabel 2 Sydj'!G93<0.5),"-",IFERROR('Tabel 2 Sydj'!G93/'Tabel 1 Sydj'!E91*100,"-")) -> 5.917143717 | I93: =IF(OR('Tabel 1 Sydj'!G91<5,'Tabel 2 Sydj'!I93<0.5),"-",IFERROR('Tabel 2 Sydj'!I93/'Tabel 1 Sydj'!G91*100,"-")) -> 12 | J93: =IF(OR('Tabel 1 Sydj'!G91<5,'Tabel 2 Sydj'!J93<0.5),"-",IFERROR('Tabel 2 Sydj'!J93/'Tabel 1 Sydj'!G91*100,"-")) -> 9.443023763
A94: Cand. IT. | C94: =IF(OR('Tabel 1 Sydj'!C92<5,'Tabel 2 Sydj'!C94<0.5),"-",IFERROR('Tabel 2 Sydj'!C94/'Tabel 1 Sydj'!C92*100,"-")) -> - | D94: =IF(OR('Tabel 1 Sydj'!C92<5,'Tabel 2 Sydj'!D94<0.5),"-",IFERROR('Tabel 2 Sydj'!D94/'Tabel 1 Sydj'!C92*100,"-")) -> - | F94: =IF(OR('Tabel 1 Sydj'!E92<5,'Tabel 2 Sydj'!F94<0.5),"-",IFERROR('Tabel 2 Sydj'!F94/'Tabel 1 Sydj'!E92*100,"-")) -> 33.33333333 | G94: =IF(OR('Tabel 1 Sydj'!E92<5,'Tabel 2 Sydj'!G94<0.5),"-",IFERROR('Tabel 2 Sydj'!G94/'Tabel 1 Sydj'!E92*100,"-")) -> 28.3477827 | I94: =IF(OR('Tabel 1 Sydj'!G92<5,'Tabel 2 Sydj'!I94<0.5),"-",IFERROR('Tabel 2 Sydj'!I94/'Tabel 1 Sydj'!G92*100,"-")) -> 18.18181818 | J94: =IF(OR('Tabel 1 Sydj'!G92<5,'Tabel 2 Sydj'!J94<0.5),"-",IFERROR('Tabel 2 Sydj'!J94/'Tabel 1 Sydj'!G92*100,"-")) -> 15.46242693
A95: Bac. Samf. | C95: =IF(OR('Tabel 1 Sydj'!C93<5,'Tabel 2 Sydj'!C95<0.5),"-",IFERROR('Tabel 2 Sydj'!C95/'Tabel 1 Sydj'!C93*100,"-")) -> - | D95: =IF(OR('Tabel 1 Sydj'!C93<5,'Tabel 2 Sydj'!D95<0.5),"-",IFERROR('Tabel 2 Sydj'!D95/'Tabel 1 Sydj'!C93*100,"-")) -> - | F95: =IF(OR('Tabel 1 Sydj'!E93<5,'Tabel 2 Sydj'!F95<0.5),"-",IFERROR('Tabel 2 Sydj'!F95/'Tabel 1 Sydj'!E93*100,"-")) -> - | G95: =IF(OR('Tabel 1 Sydj'!E93<5,'Tabel 2 Sydj'!G95<0.5),"-",IFERROR('Tabel 2 Sydj'!G95/'Tabel 1 Sydj'!E93*100,"-")) -> - | I95: =IF(OR('Tabel 1 Sydj'!G93<5,'Tabel 2 Sydj'!I95<0.5),"-",IFERROR('Tabel 2 Sydj'!I95/'Tabel 1 Sydj'!G93*100,"-")) -> - | J95: =IF(OR('Tabel 1 Sydj'!G93<5,'Tabel 2 Sydj'!J95<0.5),"-",IFERROR('Tabel 2 Sydj'!J95/'Tabel 1 Sydj'!G93*100,"-")) -> -
A96: Bac. Hum. | C96: =IF(OR('Tabel 1 Sydj'!C94<5,'Tabel 2 Sydj'!C96<0.5),"-",IFERROR('Tabel 2 Sydj'!C96/'Tabel 1 Sydj'!C94*100,"-")) -> - | D96: =IF(OR('Tabel 1 Sydj'!C94<5,'Tabel 2 Sydj'!D96<0.5),"-",IFERROR('Tabel 2 Sydj'!D96/'Tabel 1 Sydj'!C94*100,"-")) -> - | F96: =IF(OR('Tabel 1 Sydj'!E94<5,'Tabel 2 Sydj'!F96<0.5),"-",IFERROR('Tabel 2 Sydj'!F96/'Tabel 1 Sydj'!E94*100,"-")) -> 14.28571429 | G96: =IF(OR('Tabel 1 Sydj'!E94<5,'Tabel 2 Sydj'!G96<0.5),"-",IFERROR('Tabel 2 Sydj'!G96/'Tabel 1 Sydj'!E94*100,"-")) -> 14.28304123 | I96: =IF(OR('Tabel 1 Sydj'!G94<5,'Tabel 2 Sydj'!I96<0.5),"-",IFERROR('Tabel 2 Sydj'!I96/'Tabel 1 Sydj'!G94*100,"-")) -> 20 | J96: =IF(OR('Tabel 1 Sydj'!G94<5,'Tabel 2 Sydj'!J96<0.5),"-",IFERROR('Tabel 2 Sydj'!J96/'Tabel 1 Sydj'!G94*100,"-")) -> 12.29963201
A97: Bac. Nat. | C97: =IF(OR('Tabel 1 Sydj'!C95<5,'Tabel 2 Sydj'!C97<0.5),"-",IFERROR('Tabel 2 Sydj'!C97/'Tabel 1 Sydj'!C95*100,"-")) -> - | D97: =IF(OR('Tabel 1 Sydj'!C95<5,'Tabel 2 Sydj'!D97<0.5),"-",IFERROR('Tabel 2 Sydj'!D97/'Tabel 1 Sydj'!C95*100,"-")) -> - | F97: =IF(OR('Tabel 1 Sydj'!E95<5,'Tabel 2 Sydj'!F97<0.5),"-",IFERROR('Tabel 2 Sydj'!F97/'Tabel 1 Sydj'!E95*100,"-")) -> 16.66666667 | G97: =IF(OR('Tabel 1 Sydj'!E95<5,'Tabel 2 Sydj'!G97<0.5),"-",IFERROR('Tabel 2 Sydj'!G97/'Tabel 1 Sydj'!E95*100,"-")) -> - | I97: =IF(OR('Tabel 1 Sydj'!G95<5,'Tabel 2 Sydj'!I97<0.5),"-",IFERROR('Tabel 2 Sydj'!I97/'Tabel 1 Sydj'!G95*100,"-")) -> 9.090909091 | J97: =IF(OR('Tabel 1 Sydj'!G95<5,'Tabel 2 Sydj'!J97<0.5),"-",IFERROR('Tabel 2 Sydj'!J97/'Tabel 1 Sydj'!G95*100,"-")) -> -
A98: Andre | C98: =IF(OR('Tabel 1 Sydj'!C96<5,'Tabel 2 Sydj'!C98<0.5),"-",IFERROR('Tabel 2 Sydj'!C98/'Tabel 1 Sydj'!C96*100,"-")) -> 2.702702703 | D98: =IF(OR('Tabel 1 Sydj'!C96<5,'Tabel 2 Sydj'!D98<0.5),"-",IFERROR('Tabel 2 Sydj'!D98/'Tabel 1 Sydj'!C96*100,"-")) -> 2.577454271 | F98: =IF(OR('Tabel 1 Sydj'!E96<5,'Tabel 2 Sydj'!F98<0.5),"-",IFERROR('Tabel 2 Sydj'!F98/'Tabel 1 Sydj'!E96*100,"-")) -> - | G98: =IF(OR('Tabel 1 Sydj'!E96<5,'Tabel 2 Sydj'!G98<0.5),"-",IFERROR('Tabel 2 Sydj'!G98/'Tabel 1 Sydj'!E96*100,"-")) -> - | I98: =IF(OR('Tabel 1 Sydj'!G96<5,'Tabel 2 Sydj'!I98<0.5),"-",IFERROR('Tabel 2 Sydj'!I98/'Tabel 1 Sydj'!G96*100,"-")) -> 1.818181818 | J98: =IF(OR('Tabel 1 Sydj'!G96<5,'Tabel 2 Sydj'!J98<0.5),"-",IFERROR('Tabel 2 Sydj'!J98/'Tabel 1 Sydj'!G96*100,"-")) -> 1.733923782
A100: Total | C100: =IF(OR('Tabel 1 Sydj'!C98<5,'Tabel 2 Sydj'!C100<0.5),"-",IFERROR('Tabel 2 Sydj'!C100/'Tabel 1 Sydj'!C98*100,"-")) -> 4.077669903 | D100: =IF(OR('Tabel 1 Sydj'!C98<5,'Tabel 2 Sydj'!D100<0.5),"-",IFERROR('Tabel 2 Sydj'!D100/'Tabel 1 Sydj'!C98*100,"-")) -> 3.771953356 | F100: =IF(OR('Tabel 1 Sydj'!E98<5,'Tabel 2 Sydj'!F100<0.5),"-",IFERROR('Tabel 2 Sydj'!F100/'Tabel 1 Sydj'!E98*100,"-")) -> 5.272727273 | G100: =IF(OR('Tabel 1 Sydj'!E98<5,'Tabel 2 Sydj'!G100<0.5),"-",IFERROR('Tabel 2 Sydj'!G100/'Tabel 1 Sydj'!E98*100,"-")) -> 4.518067849 | I100: =IF(OR('Tabel 1 Sydj'!G98<5,'Tabel 2 Sydj'!I100<0.5),"-",IFERROR('Tabel 2 Sydj'!I100/'Tabel 1 Sydj'!G98*100,"-")) -> 4.694835681 | J100: =IF(OR('Tabel 1 Sydj'!G98<5,'Tabel 2 Sydj'!J100<0.5),"-",IFERROR('Tabel 2 Sydj'!J100/'Tabel 1 Sydj'!G98*100,"-")) -> 4.1572707
A102: Ingeniører i alt | C102: =IF(OR('Tabel 1 Sydj'!C100<5,'Tabel 2 Sydj'!C102<0.5),"-",IFERROR('Tabel 2 Sydj'!C102/'Tabel 1 Sydj'!C100*100,"-")) -> 2.906976744 | D102: =IF(OR('Tabel 1 Sydj'!C100<5,'Tabel 2 Sydj'!D102<0.5),"-",IFERROR('Tabel 2 Sydj'!D102/'Tabel 1 Sydj'!C100*100,"-")) -> 2.549973238 | F102: =IF(OR('Tabel 1 Sydj'!E100<5,'Tabel 2 Sydj'!F102<0.5),"-",IFERROR('Tabel 2 Sydj'!F102/'Tabel 1 Sydj'!E100*100,"-")) -> 2.272727273 | G102: =IF(OR('Tabel 1 Sydj'!E100<5,'Tabel 2 Sydj'!G102<0.5),"-",IFERROR('Tabel 2 Sydj'!G102/'Tabel 1 Sydj'!E100*100,"-")) -> 2.272302013 | I102: =IF(OR('Tabel 1 Sydj'!G100<5,'Tabel 2 Sydj'!I102<0.5),"-",IFERROR('Tabel 2 Sydj'!I102/'Tabel 1 Sydj'!G100*100,"-")) -> 2.777777778 | J102: =IF(OR('Tabel 1 Sydj'!G100<5,'Tabel 2 Sydj'!J102<0.5),"-",IFERROR('Tabel 2 Sydj'!J102/'Tabel 1 Sydj'!G100*100,"-")) -> 2.493410581
A103: Magistre i alt | C103: =IF(OR('Tabel 1 Sydj'!C101<5,'Tabel 2 Sydj'!C103<0.5),"-",IFERROR('Tabel 2 Sydj'!C103/'Tabel 1 Sydj'!C101*100,"-")) -> 7 | D103: =IF(OR('Tabel 1 Sydj'!C101<5,'Tabel 2 Sydj'!D103<0.5),"-",IFERROR('Tabel 2 Sydj'!D103/'Tabel 1 Sydj'!C101*100,"-")) -> 6.998690201 | F103: =IF(OR('Tabel 1 Sydj'!E101<5,'Tabel 2 Sydj'!F103<0.5),"-",IFERROR('Tabel 2 Sydj'!F103/'Tabel 1 Sydj'!E101*100,"-")) -> 9.459459459 | G103: =IF(OR('Tabel 1 Sydj'!E101<5,'Tabel 2 Sydj'!G103<0.5),"-",IFERROR('Tabel 2 Sydj'!G103/'Tabel 1 Sydj'!E101*100,"-")) -> 7.758069927 | I103: =IF(OR('Tabel 1 Sydj'!G101<5,'Tabel 2 Sydj'!I103<0.5),"-",IFERROR('Tabel 2 Sydj'!I103/'Tabel 1 Sydj'!G101*100,"-")) -> 8.467741935 | J103: =IF(OR('Tabel 1 Sydj'!G101<5,'Tabel 2 Sydj'!J103<0.5),"-",IFERROR('Tabel 2 Sydj'!J103/'Tabel 1 Sydj'!G101*100,"-")) -> 7.451868425
A104: DJØF'ere i alt | C104: =IF(OR('Tabel 1 Sydj'!C102<5,'Tabel 2 Sydj'!C104<0.5),"-",IFERROR('Tabel 2 Sydj'!C104/'Tabel 1 Sydj'!C102*100,"-")) -> 4.62962963 | D104: =IF(OR('Tabel 1 Sydj'!C102<5,'Tabel 2 Sydj'!D104<0.5),"-",IFERROR('Tabel 2 Sydj'!D104/'Tabel 1 Sydj'!C102*100,"-")) -> 4.497668004 | F104: =IF(OR('Tabel 1 Sydj'!E102<5,'Tabel 2 Sydj'!F104<0.5),"-",IFERROR('Tabel 2 Sydj'!F104/'Tabel 1 Sydj'!E102*100,"-")) -> 3.787878788 | G104: =IF(OR('Tabel 1 Sydj'!E102<5,'Tabel 2 Sydj'!G104<0.5),"-",IFERROR('Tabel 2 Sydj'!G104/'Tabel 1 Sydj'!E102*100,"-")) -> 3.752204261 | I104: =IF(OR('Tabel 1 Sydj'!G102<5,'Tabel 2 Sydj'!I104<0.5),"-",IFERROR('Tabel 2 Sydj'!I104/'Tabel 1 Sydj'!G102*100,"-")) -> 4.166666667 | J104: =IF(OR('Tabel 1 Sydj'!G102<5,'Tabel 2 Sydj'!J104<0.5),"-",IFERROR('Tabel 2 Sydj'!J104/'Tabel 1 Sydj'!G102*100,"-")) -> 4.087662945
A109: Billund
C111: Mænd | F111: Kvinder | I111: I alt
C112: Ledigheds- berørte | D112: Gns. brutto- ledighed | F112: Ledigheds- berørte | G112: Gns. brutto- ledighed | I112: Ledigheds- berørte | J112: Gns. brutto- ledighed
A115: Civ. ing. | C115: =IF(OR('Tabel 1 Sydj'!C113<5,'Tabel 2 Sydj'!C115<0.5),"-",IFERROR('Tabel 2 Sydj'!C115/'Tabel 1 Sydj'!C113*100,"-")) -> 6.060606061 | D115: =IF(OR('Tabel 1 Sydj'!C113<5,'Tabel 2 Sydj'!D115<0.5),"-",IFERROR('Tabel 2 Sydj'!D115/'Tabel 1 Sydj'!C113*100,"-")) -> 5.779745941 | F115: =IF(OR('Tabel 1 Sydj'!E113<5,'Tabel 2 Sydj'!F115<0.5),"-",IFERROR('Tabel 2 Sydj'!F115/'Tabel 1 Sydj'!E113*100,"-")) -> - | G115: =IF(OR('Tabel 1 Sydj'!E113<5,'Tabel 2 Sydj'!G115<0.5),"-",IFERROR('Tabel 2 Sydj'!G115/'Tabel 1 Sydj'!E113*100,"-")) -> - | I115: =IF(OR('Tabel 1 Sydj'!G113<5,'Tabel 2 Sydj'!I115<0.5),"-",IFERROR('Tabel 2 Sydj'!I115/'Tabel 1 Sydj'!G113*100,"-")) -> 4.651162791 | J115: =IF(OR('Tabel 1 Sydj'!G113<5,'Tabel 2 Sydj'!J115<0.5),"-",IFERROR('Tabel 2 Sydj'!J115/'Tabel 1 Sydj'!G113*100,"-")) -> 4.435618978
A116: Diplom ing. | C116: =IF(OR('Tabel 1 Sydj'!C114<5,'Tabel 2 Sydj'!C116<0.5),"-",IFERROR('Tabel 2 Sydj'!C116/'Tabel 1 Sydj'!C114*100,"-")) -> - | D116: =IF(OR('Tabel 1 Sydj'!C114<5,'Tabel 2 Sydj'!D116<0.5),"-",IFERROR('Tabel 2 Sydj'!D116/'Tabel 1 Sydj'!C114*100,"-")) -> - | F116: =IF(OR('Tabel 1 Sydj'!E114<5,'Tabel 2 Sydj'!F116<0.5),"-",IFERROR('Tabel 2 Sydj'!F116/'Tabel 1 Sydj'!E114*100,"-")) -> - | G116: =IF(OR('Tabel 1 Sydj'!E114<5,'Tabel 2 Sydj'!G116<0.5),"-",IFERROR('Tabel 2 Sydj'!G116/'Tabel 1 Sydj'!E114*100,"-")) -> - | I116: =IF(OR('Tabel 1 Sydj'!G114<5,'Tabel 2 Sydj'!I116<0.5),"-",IFERROR('Tabel 2 Sydj'!I116/'Tabel 1 Sydj'!G114*100,"-")) -> - | J116: =IF(OR('Tabel 1 Sydj'!G114<5,'Tabel 2 Sydj'!J116<0.5),"-",IFERROR('Tabel 2 Sydj'!J116/'Tabel 1 Sydj'!G114*100,"-")) -> -
A117: Cand. Scient. Tek. | C117: =IF(OR('Tabel 1 Sydj'!C115<5,'Tabel 2 Sydj'!C117<0.5),"-",IFERROR('Tabel 2 Sydj'!C117/'Tabel 1 Sydj'!C115*100,"-")) -> 6.25 | D117: =IF(OR('Tabel 1 Sydj'!C115<5,'Tabel 2 Sydj'!D117<0.5),"-",IFERROR('Tabel 2 Sydj'!D117/'Tabel 1 Sydj'!C115*100,"-")) -> 6.248830537 | F117: =IF(OR('Tabel 1 Sydj'!E115<5,'Tabel 2 Sydj'!F117<0.5),"-",IFERROR('Tabel 2 Sydj'!F117/'Tabel 1 Sydj'!E115*100,"-")) -> - | G117: =IF(OR('Tabel 1 Sydj'!E115<5,'Tabel 2 Sydj'!G117<0.5),"-",IFERROR('Tabel 2 Sydj'!G117/'Tabel 1 Sydj'!E115*100,"-")) -> - | I117: =IF(OR('Tabel 1 Sydj'!G115<5,'Tabel 2 Sydj'!I117<0.5),"-",IFERROR('Tabel 2 Sydj'!I117/'Tabel 1 Sydj'!G115*100,"-")) -> 4.545454545 | J117: =IF(OR('Tabel 1 Sydj'!G115<5,'Tabel 2 Sydj'!J117<0.5),"-",IFERROR('Tabel 2 Sydj'!J117/'Tabel 1 Sydj'!G115*100,"-")) -> 4.544604027
A118: MA. Hum. | C118: =IF(OR('Tabel 1 Sydj'!C116<5,'Tabel 2 Sydj'!C118<0.5),"-",IFERROR('Tabel 2 Sydj'!C118/'Tabel 1 Sydj'!C116*100,"-")) -> 17.64705882 | D118: =IF(OR('Tabel 1 Sydj'!C116<5,'Tabel 2 Sydj'!D118<0.5),"-",IFERROR('Tabel 2 Sydj'!D118/'Tabel 1 Sydj'!C116*100,"-")) -> 17.51534519 | F118: =IF(OR('Tabel 1 Sydj'!E116<5,'Tabel 2 Sydj'!F118<0.5),"-",IFERROR('Tabel 2 Sydj'!F118/'Tabel 1 Sydj'!E116*100,"-")) -> 15.38461538 | G118: =IF(OR('Tabel 1 Sydj'!E116<5,'Tabel 2 Sydj'!G118<0.5),"-",IFERROR('Tabel 2 Sydj'!G118/'Tabel 1 Sydj'!E116*100,"-")) -> 15.15624025 | I118: =IF(OR('Tabel 1 Sydj'!G116<5,'Tabel 2 Sydj'!I118<0.5),"-",IFERROR('Tabel 2 Sydj'!I118/'Tabel 1 Sydj'!G116*100,"-")) -> 16.27906977 | J118: =IF(OR('Tabel 1 Sydj'!G116<5,'Tabel 2 Sydj'!J118<0.5),"-",IFERROR('Tabel 2 Sydj'!J118/'Tabel 1 Sydj'!G116*100,"-")) -> 16.08890965
A119: MA. Nat. | C119: =IF(OR('Tabel 1 Sydj'!C117<5,'Tabel 2 Sydj'!C119<0.5),"-",IFERROR('Tabel 2 Sydj'!C119/'Tabel 1 Sydj'!C117*100,"-")) -> - | D119: =IF(OR('Tabel 1 Sydj'!C117<5,'Tabel 2 Sydj'!D119<0.5),"-",IFERROR('Tabel 2 Sydj'!D119/'Tabel 1 Sydj'!C117*100,"-")) -> - | F119: =IF(OR('Tabel 1 Sydj'!E117<5,'Tabel 2 Sydj'!F119<0.5),"-",IFERROR('Tabel 2 Sydj'!F119/'Tabel 1 Sydj'!E117*100,"-")) -> 9.090909091 | G119: =IF(OR('Tabel 1 Sydj'!E117<5,'Tabel 2 Sydj'!G119<0.5),"-",IFERROR('Tabel 2 Sydj'!G119/'Tabel 1 Sydj'!E117*100,"-")) -> 9.089208054 | I119: =IF(OR('Tabel 1 Sydj'!G117<5,'Tabel 2 Sydj'!I119<0.5),"-",IFERROR('Tabel 2 Sydj'!I119/'Tabel 1 Sydj'!G117*100,"-")) -> 5.555555556 | J119: =IF(OR('Tabel 1 Sydj'!G117<5,'Tabel 2 Sydj'!J119<0.5),"-",IFERROR('Tabel 2 Sydj'!J119/'Tabel 1 Sydj'!G117*100,"-")) -> 5.554516033
A120: MA. Ph.d. | C120: =IF(OR('Tabel 1 Sydj'!C118<5,'Tabel 2 Sydj'!C120<0.5),"-",IFERROR('Tabel 2 Sydj'!C120/'Tabel 1 Sydj'!C118*100,"-")) -> - | D120: =IF(OR('Tabel 1 Sydj'!C118<5,'Tabel 2 Sydj'!D120<0.5),"-",IFERROR('Tabel 2 Sydj'!D120/'Tabel 1 Sydj'!C118*100,"-")) -> - | F120: =IF(OR('Tabel 1 Sydj'!E118<5,'Tabel 2 Sydj'!F120<0.5),"-",IFERROR('Tabel 2 Sydj'!F120/'Tabel 1 Sydj'!E118*100,"-")) -> - | G120: =IF(OR('Tabel 1 Sydj'!E118<5,'Tabel 2 Sydj'!G120<0.5),"-",IFERROR('Tabel 2 Sydj'!G120/'Tabel 1 Sydj'!E118*100,"-")) -> - | I120: =IF(OR('Tabel 1 Sydj'!G118<5,'Tabel 2 Sydj'!I120<0.5),"-",IFERROR('Tabel 2 Sydj'!I120/'Tabel 1 Sydj'!G118*100,"-")) -> - | J120: =IF(OR('Tabel 1 Sydj'!G118<5,'Tabel 2 Sydj'!J120<0.5),"-",IFERROR('Tabel 2 Sydj'!J120/'Tabel 1 Sydj'!G118*100,"-")) -> -
A121: MA. Samf. | C121: =IF(OR('Tabel 1 Sydj'!C119<5,'Tabel 2 Sydj'!C121<0.5),"-",IFERROR('Tabel 2 Sydj'!C121/'Tabel 1 Sydj'!C119*100,"-")) -> - | D121: =IF(OR('Tabel 1 Sydj'!C119<5,'Tabel 2 Sydj'!D121<0.5),"-",IFERROR('Tabel 2 Sydj'!D121/'Tabel 1 Sydj'!C119*100,"-")) -> - | F121: =IF(OR('Tabel 1 Sydj'!E119<5,'Tabel 2 Sydj'!F121<0.5),"-",IFERROR('Tabel 2 Sydj'!F121/'Tabel 1 Sydj'!E119*100,"-")) -> - | G121: =IF(OR('Tabel 1 Sydj'!E119<5,'Tabel 2 Sydj'!G121<0.5),"-",IFERROR('Tabel 2 Sydj'!G121/'Tabel 1 Sydj'!E119*100,"-")) -> - | I121: =IF(OR('Tabel 1 Sydj'!G119<5,'Tabel 2 Sydj'!I121<0.5),"-",IFERROR('Tabel 2 Sydj'!I121/'Tabel 1 Sydj'!G119*100,"-")) -> - | J121: =IF(OR('Tabel 1 Sydj'!G119<5,'Tabel 2 Sydj'!J121<0.5),"-",IFERROR('Tabel 2 Sydj'!J121/'Tabel 1 Sydj'!G119*100,"-")) -> -
A122: Øvrige Mag. | C122: =IF(OR('Tabel 1 Sydj'!C120<5,'Tabel 2 Sydj'!C122<0.5),"-",IFERROR('Tabel 2 Sydj'!C122/'Tabel 1 Sydj'!C120*100,"-")) -> - | D122: =IF(OR('Tabel 1 Sydj'!C120<5,'Tabel 2 Sydj'!D122<0.5),"-",IFERROR('Tabel 2 Sydj'!D122/'Tabel 1 Sydj'!C120*100,"-")) -> - | F122: =IF(OR('Tabel 1 Sydj'!E120<5,'Tabel 2 Sydj'!F122<0.5),"-",IFERROR('Tabel 2 Sydj'!F122/'Tabel 1 Sydj'!E120*100,"-")) -> - | G122: =IF(OR('Tabel 1 Sydj'!E120<5,'Tabel 2 Sydj'!G122<0.5),"-",IFERROR('Tabel 2 Sydj'!G122/'Tabel 1 Sydj'!E120*100,"-")) -> - | I122: =IF(OR('Tabel 1 Sydj'!G120<5,'Tabel 2 Sydj'!I122<0.5),"-",IFERROR('Tabel 2 Sydj'!I122/'Tabel 1 Sydj'!G120*100,"-")) -> - | J122: =IF(OR('Tabel 1 Sydj'!G120<5,'Tabel 2 Sydj'!J122<0.5),"-",IFERROR('Tabel 2 Sydj'!J122/'Tabel 1 Sydj'!G120*100,"-")) -> -
A123: Agronom | C123: =IF(OR('Tabel 1 Sydj'!C121<5,'Tabel 2 Sydj'!C123<0.5),"-",IFERROR('Tabel 2 Sydj'!C123/'Tabel 1 Sydj'!C121*100,"-")) -> - | D123: =IF(OR('Tabel 1 Sydj'!C121<5,'Tabel 2 Sydj'!D123<0.5),"-",IFERROR('Tabel 2 Sydj'!D123/'Tabel 1 Sydj'!C121*100,"-")) -> - | F123: =IF(OR('Tabel 1 Sydj'!E121<5,'Tabel 2 Sydj'!F123<0.5),"-",IFERROR('Tabel 2 Sydj'!F123/'Tabel 1 Sydj'!E121*100,"-")) -> - | G123: =IF(OR('Tabel 1 Sydj'!E121<5,'Tabel 2 Sydj'!G123<0.5),"-",IFERROR('Tabel 2 Sydj'!G123/'Tabel 1 Sydj'!E121*100,"-")) -> - | I123: =IF(OR('Tabel 1 Sydj'!G121<5,'Tabel 2 Sydj'!I123<0.5),"-",IFERROR('Tabel 2 Sydj'!I123/'Tabel 1 Sydj'!G121*100,"-")) -> - | J123: =IF(OR('Tabel 1 Sydj'!G121<5,'Tabel 2 Sydj'!J123<0.5),"-",IFERROR('Tabel 2 Sydj'!J123/'Tabel 1 Sydj'!G121*100,"-")) -> -
A124: Landsk. Arkt. | C124: =IF(OR('Tabel 1 Sydj'!C122<5,'Tabel 2 Sydj'!C124<0.5),"-",IFERROR('Tabel 2 Sydj'!C124/'Tabel 1 Sydj'!C122*100,"-")) -> - | D124: =IF(OR('Tabel 1 Sydj'!C122<5,'Tabel 2 Sydj'!D124<0.5),"-",IFERROR('Tabel 2 Sydj'!D124/'Tabel 1 Sydj'!C122*100,"-")) -> - | F124: =IF(OR('Tabel 1 Sydj'!E122<5,'Tabel 2 Sydj'!F124<0.5),"-",IFERROR('Tabel 2 Sydj'!F124/'Tabel 1 Sydj'!E122*100,"-")) -> - | G124: =IF(OR('Tabel 1 Sydj'!E122<5,'Tabel 2 Sydj'!G124<0.5),"-",IFERROR('Tabel 2 Sydj'!G124/'Tabel 1 Sydj'!E122*100,"-")) -> - | I124: =IF(OR('Tabel 1 Sydj'!G122<5,'Tabel 2 Sydj'!I124<0.5),"-",IFERROR('Tabel 2 Sydj'!I124/'Tabel 1 Sydj'!G122*100,"-")) -> - | J124: =IF(OR('Tabel 1 Sydj'!G122<5,'Tabel 2 Sydj'!J124<0.5),"-",IFERROR('Tabel 2 Sydj'!J124/'Tabel 1 Sydj'!G122*100,"-")) -> -
A125: Hortonom | C125: =IF(OR('Tabel 1 Sydj'!C123<5,'Tabel 2 Sydj'!C125<0.5),"-",IFERROR('Tabel 2 Sydj'!C125/'Tabel 1 Sydj'!C123*100,"-")) -> - | D125: =IF(OR('Tabel 1 Sydj'!C123<5,'Tabel 2 Sydj'!D125<0.5),"-",IFERROR('Tabel 2 Sydj'!D125/'Tabel 1 Sydj'!C123*100,"-")) -> - | F125: =IF(OR('Tabel 1 Sydj'!E123<5,'Tabel 2 Sydj'!F125<0.5),"-",IFERROR('Tabel 2 Sydj'!F125/'Tabel 1 Sydj'!E123*100,"-")) -> - | G125: =IF(OR('Tabel 1 Sydj'!E123<5,'Tabel 2 Sydj'!G125<0.5),"-",IFERROR('Tabel 2 Sydj'!G125/'Tabel 1 Sydj'!E123*100,"-")) -> - | I125: =IF(OR('Tabel 1 Sydj'!G123<5,'Tabel 2 Sydj'!I125<0.5),"-",IFERROR('Tabel 2 Sydj'!I125/'Tabel 1 Sydj'!G123*100,"-")) -> - | J125: =IF(OR('Tabel 1 Sydj'!G123<5,'Tabel 2 Sydj'!J125<0.5),"-",IFERROR('Tabel 2 Sydj'!J125/'Tabel 1 Sydj'!G123*100,"-")) -> -
A126: Forstkand. | C126: =IF(OR('Tabel 1 Sydj'!C124<5,'Tabel 2 Sydj'!C126<0.5),"-",IFERROR('Tabel 2 Sydj'!C126/'Tabel 1 Sydj'!C124*100,"-")) -> - | D126: =IF(OR('Tabel 1 Sydj'!C124<5,'Tabel 2 Sydj'!D126<0.5),"-",IFERROR('Tabel 2 Sydj'!D126/'Tabel 1 Sydj'!C124*100,"-")) -> - | F126: =IF(OR('Tabel 1 Sydj'!E124<5,'Tabel 2 Sydj'!F126<0.5),"-",IFERROR('Tabel 2 Sydj'!F126/'Tabel 1 Sydj'!E124*100,"-")) -> - | G126: =IF(OR('Tabel 1 Sydj'!E124<5,'Tabel 2 Sydj'!G126<0.5),"-",IFERROR('Tabel 2 Sydj'!G126/'Tabel 1 Sydj'!E124*100,"-")) -> - | I126: =IF(OR('Tabel 1 Sydj'!G124<5,'Tabel 2 Sydj'!I126<0.5),"-",IFERROR('Tabel 2 Sydj'!I126/'Tabel 1 Sydj'!G124*100,"-")) -> - | J126: =IF(OR('Tabel 1 Sydj'!G124<5,'Tabel 2 Sydj'!J126<0.5),"-",IFERROR('Tabel 2 Sydj'!J126/'Tabel 1 Sydj'!G124*100,"-")) -> -
A127: Jordbrugsakad. | C127: =IF(OR('Tabel 1 Sydj'!C125<5,'Tabel 2 Sydj'!C127<0.5),"-",IFERROR('Tabel 2 Sydj'!C127/'Tabel 1 Sydj'!C125*100,"-")) -> - | D127: =IF(OR('Tabel 1 Sydj'!C125<5,'Tabel 2 Sydj'!D127<0.5),"-",IFERROR('Tabel 2 Sydj'!D127/'Tabel 1 Sydj'!C125*100,"-")) -> - | F127: =IF(OR('Tabel 1 Sydj'!E125<5,'Tabel 2 Sydj'!F127<0.5),"-",IFERROR('Tabel 2 Sydj'!F127/'Tabel 1 Sydj'!E125*100,"-")) -> - | G127: =IF(OR('Tabel 1 Sydj'!E125<5,'Tabel 2 Sydj'!G127<0.5),"-",IFERROR('Tabel 2 Sydj'!G127/'Tabel 1 Sydj'!E125*100,"-")) -> - | I127: =IF(OR('Tabel 1 Sydj'!G125<5,'Tabel 2 Sydj'!I127<0.5),"-",IFERROR('Tabel 2 Sydj'!I127/'Tabel 1 Sydj'!G125*100,"-")) -> - | J127: =IF(OR('Tabel 1 Sydj'!G125<5,'Tabel 2 Sydj'!J127<0.5),"-",IFERROR('Tabel 2 Sydj'!J127/'Tabel 1 Sydj'!G125*100,"-")) -> -
A128: Mejeriing. | C128: =IF(OR('Tabel 1 Sydj'!C126<5,'Tabel 2 Sydj'!C128<0.5),"-",IFERROR('Tabel 2 Sydj'!C128/'Tabel 1 Sydj'!C126*100,"-")) -> - | D128: =IF(OR('Tabel 1 Sydj'!C126<5,'Tabel 2 Sydj'!D128<0.5),"-",IFERROR('Tabel 2 Sydj'!D128/'Tabel 1 Sydj'!C126*100,"-")) -> - | F128: =IF(OR('Tabel 1 Sydj'!E126<5,'Tabel 2 Sydj'!F128<0.5),"-",IFERROR('Tabel 2 Sydj'!F128/'Tabel 1 Sydj'!E126*100,"-")) -> - | G128: =IF(OR('Tabel 1 Sydj'!E126<5,'Tabel 2 Sydj'!G128<0.5),"-",IFERROR('Tabel 2 Sydj'!G128/'Tabel 1 Sydj'!E126*100,"-")) -> - | I128: =IF(OR('Tabel 1 Sydj'!G126<5,'Tabel 2 Sydj'!I128<0.5),"-",IFERROR('Tabel 2 Sydj'!I128/'Tabel 1 Sydj'!G126*100,"-")) -> - | J128: =IF(OR('Tabel 1 Sydj'!G126<5,'Tabel 2 Sydj'!J128<0.5),"-",IFERROR('Tabel 2 Sydj'!J128/'Tabel 1 Sydj'!G126*100,"-")) -> -
A129: Levn.m.kand. | C129: =IF(OR('Tabel 1 Sydj'!C127<5,'Tabel 2 Sydj'!C129<0.5),"-",IFERROR('Tabel 2 Sydj'!C129/'Tabel 1 Sydj'!C127*100,"-")) -> - | D129: =IF(OR('Tabel 1 Sydj'!C127<5,'Tabel 2 Sydj'!D129<0.5),"-",IFERROR('Tabel 2 Sydj'!D129/'Tabel 1 Sydj'!C127*100,"-")) -> - | F129: =IF(OR('Tabel 1 Sydj'!E127<5,'Tabel 2 Sydj'!F129<0.5),"-",IFERROR('Tabel 2 Sydj'!F129/'Tabel 1 Sydj'!E127*100,"-")) -> - | G129: =IF(OR('Tabel 1 Sydj'!E127<5,'Tabel 2 Sydj'!G129<0.5),"-",IFERROR('Tabel 2 Sydj'!G129/'Tabel 1 Sydj'!E127*100,"-")) -> - | I129: =IF(OR('Tabel 1 Sydj'!G127<5,'Tabel 2 Sydj'!I129<0.5),"-",IFERROR('Tabel 2 Sydj'!I129/'Tabel 1 Sydj'!G127*100,"-")) -> - | J129: =IF(OR('Tabel 1 Sydj'!G127<5,'Tabel 2 Sydj'!J129<0.5),"-",IFERROR('Tabel 2 Sydj'!J129/'Tabel 1 Sydj'!G127*100,"-")) -> -
A130: Dyrlæge | C130: =IF(OR('Tabel 1 Sydj'!C128<5,'Tabel 2 Sydj'!C130<0.5),"-",IFERROR('Tabel 2 Sydj'!C130/'Tabel 1 Sydj'!C128*100,"-")) -> - | D130: =IF(OR('Tabel 1 Sydj'!C128<5,'Tabel 2 Sydj'!D130<0.5),"-",IFERROR('Tabel 2 Sydj'!D130/'Tabel 1 Sydj'!C128*100,"-")) -> - | F130: =IF(OR('Tabel 1 Sydj'!E128<5,'Tabel 2 Sydj'!F130<0.5),"-",IFERROR('Tabel 2 Sydj'!F130/'Tabel 1 Sydj'!E128*100,"-")) -> - | G130: =IF(OR('Tabel 1 Sydj'!E128<5,'Tabel 2 Sydj'!G130<0.5),"-",IFERROR('Tabel 2 Sydj'!G130/'Tabel 1 Sydj'!E128*100,"-")) -> - | I130: =IF(OR('Tabel 1 Sydj'!G128<5,'Tabel 2 Sydj'!I130<0.5),"-",IFERROR('Tabel 2 Sydj'!I130/'Tabel 1 Sydj'!G128*100,"-")) -> - | J130: =IF(OR('Tabel 1 Sydj'!G128<5,'Tabel 2 Sydj'!J130<0.5),"-",IFERROR('Tabel 2 Sydj'!J130/'Tabel 1 Sydj'!G128*100,"-")) -> -
A131: Farmaceut | C131: =IF(OR('Tabel 1 Sydj'!C129<5,'Tabel 2 Sydj'!C131<0.5),"-",IFERROR('Tabel 2 Sydj'!C131/'Tabel 1 Sydj'!C129*100,"-")) -> - | D131: =IF(OR('Tabel 1 Sydj'!C129<5,'Tabel 2 Sydj'!D131<0.5),"-",IFERROR('Tabel 2 Sydj'!D131/'Tabel 1 Sydj'!C129*100,"-")) -> - | F131: =IF(OR('Tabel 1 Sydj'!E129<5,'Tabel 2 Sydj'!F131<0.5),"-",IFERROR('Tabel 2 Sydj'!F131/'Tabel 1 Sydj'!E129*100,"-")) -> - | G131: =IF(OR('Tabel 1 Sydj'!E129<5,'Tabel 2 Sydj'!G131<0.5),"-",IFERROR('Tabel 2 Sydj'!G131/'Tabel 1 Sydj'!E129*100,"-")) -> - | I131: =IF(OR('Tabel 1 Sydj'!G129<5,'Tabel 2 Sydj'!I131<0.5),"-",IFERROR('Tabel 2 Sydj'!I131/'Tabel 1 Sydj'!G129*100,"-")) -> - | J131: =IF(OR('Tabel 1 Sydj'!G129<5,'Tabel 2 Sydj'!J131<0.5),"-",IFERROR('Tabel 2 Sydj'!J131/'Tabel 1 Sydj'!G129*100,"-")) -> -
A132: Læge | C132: =IF(OR('Tabel 1 Sydj'!C130<5,'Tabel 2 Sydj'!C132<0.5),"-",IFERROR('Tabel 2 Sydj'!C132/'Tabel 1 Sydj'!C130*100,"-")) -> - | D132: =IF(OR('Tabel 1 Sydj'!C130<5,'Tabel 2 Sydj'!D132<0.5),"-",IFERROR('Tabel 2 Sydj'!D132/'Tabel 1 Sydj'!C130*100,"-")) -> - | F132: =IF(OR('Tabel 1 Sydj'!E130<5,'Tabel 2 Sydj'!F132<0.5),"-",IFERROR('Tabel 2 Sydj'!F132/'Tabel 1 Sydj'!E130*100,"-")) -> - | G132: =IF(OR('Tabel 1 Sydj'!E130<5,'Tabel 2 Sydj'!G132<0.5),"-",IFERROR('Tabel 2 Sydj'!G132/'Tabel 1 Sydj'!E130*100,"-")) -> - | I132: =IF(OR('Tabel 1 Sydj'!G130<5,'Tabel 2 Sydj'!I132<0.5),"-",IFERROR('Tabel 2 Sydj'!I132/'Tabel 1 Sydj'!G130*100,"-")) -> - | J132: =IF(OR('Tabel 1 Sydj'!G130<5,'Tabel 2 Sydj'!J132<0.5),"-",IFERROR('Tabel 2 Sydj'!J132/'Tabel 1 Sydj'!G130*100,"-")) -> -
A133: Tandlæge | C133: =IF(OR('Tabel 1 Sydj'!C131<5,'Tabel 2 Sydj'!C133<0.5),"-",IFERROR('Tabel 2 Sydj'!C133/'Tabel 1 Sydj'!C131*100,"-")) -> - | D133: =IF(OR('Tabel 1 Sydj'!C131<5,'Tabel 2 Sydj'!D133<0.5),"-",IFERROR('Tabel 2 Sydj'!D133/'Tabel 1 Sydj'!C131*100,"-")) -> - | F133: =IF(OR('Tabel 1 Sydj'!E131<5,'Tabel 2 Sydj'!F133<0.5),"-",IFERROR('Tabel 2 Sydj'!F133/'Tabel 1 Sydj'!E131*100,"-")) -> - | G133: =IF(OR('Tabel 1 Sydj'!E131<5,'Tabel 2 Sydj'!G133<0.5),"-",IFERROR('Tabel 2 Sydj'!G133/'Tabel 1 Sydj'!E131*100,"-")) -> - | I133: =IF(OR('Tabel 1 Sydj'!G131<5,'Tabel 2 Sydj'!I133<0.5),"-",IFERROR('Tabel 2 Sydj'!I133/'Tabel 1 Sydj'!G131*100,"-")) -> - | J133: =IF(OR('Tabel 1 Sydj'!G131<5,'Tabel 2 Sydj'!J133<0.5),"-",IFERROR('Tabel 2 Sydj'!J133/'Tabel 1 Sydj'!G131*100,"-")) -> -
A134: Arkitekt | C134: =IF(OR('Tabel 1 Sydj'!C132<5,'Tabel 2 Sydj'!C134<0.5),"-",IFERROR('Tabel 2 Sydj'!C134/'Tabel 1 Sydj'!C132*100,"-")) -> - | D134: =IF(OR('Tabel 1 Sydj'!C132<5,'Tabel 2 Sydj'!D134<0.5),"-",IFERROR('Tabel 2 Sydj'!D134/'Tabel 1 Sydj'!C132*100,"-")) -> - | F134: =IF(OR('Tabel 1 Sydj'!E132<5,'Tabel 2 Sydj'!F134<0.5),"-",IFERROR('Tabel 2 Sydj'!F134/'Tabel 1 Sydj'!E132*100,"-")) -> - | G134: =IF(OR('Tabel 1 Sydj'!E132<5,'Tabel 2 Sydj'!G134<0.5),"-",IFERROR('Tabel 2 Sydj'!G134/'Tabel 1 Sydj'!E132*100,"-")) -> - | I134: =IF(OR('Tabel 1 Sydj'!G132<5,'Tabel 2 Sydj'!I134<0.5),"-",IFERROR('Tabel 2 Sydj'!I134/'Tabel 1 Sydj'!G132*100,"-")) -> - | J134: =IF(OR('Tabel 1 Sydj'!G132<5,'Tabel 2 Sydj'!J134<0.5),"-",IFERROR('Tabel 2 Sydj'!J134/'Tabel 1 Sydj'!G132*100,"-")) -> -
A135: Landinspek. | C135: =IF(OR('Tabel 1 Sydj'!C133<5,'Tabel 2 Sydj'!C135<0.5),"-",IFERROR('Tabel 2 Sydj'!C135/'Tabel 1 Sydj'!C133*100,"-")) -> - | D135: =IF(OR('Tabel 1 Sydj'!C133<5,'Tabel 2 Sydj'!D135<0.5),"-",IFERROR('Tabel 2 Sydj'!D135/'Tabel 1 Sydj'!C133*100,"-")) -> - | F135: =IF(OR('Tabel 1 Sydj'!E133<5,'Tabel 2 Sydj'!F135<0.5),"-",IFERROR('Tabel 2 Sydj'!F135/'Tabel 1 Sydj'!E133*100,"-")) -> - | G135: =IF(OR('Tabel 1 Sydj'!E133<5,'Tabel 2 Sydj'!G135<0.5),"-",IFERROR('Tabel 2 Sydj'!G135/'Tabel 1 Sydj'!E133*100,"-")) -> - | I135: =IF(OR('Tabel 1 Sydj'!G133<5,'Tabel 2 Sydj'!I135<0.5),"-",IFERROR('Tabel 2 Sydj'!I135/'Tabel 1 Sydj'!G133*100,"-")) -> - | J135: =IF(OR('Tabel 1 Sydj'!G133<5,'Tabel 2 Sydj'!J135<0.5),"-",IFERROR('Tabel 2 Sydj'!J135/'Tabel 1 Sydj'!G133*100,"-")) -> -
A136: Bibliotekar | C136: =IF(OR('Tabel 1 Sydj'!C134<5,'Tabel 2 Sydj'!C136<0.5),"-",IFERROR('Tabel 2 Sydj'!C136/'Tabel 1 Sydj'!C134*100,"-")) -> - | D136: =IF(OR('Tabel 1 Sydj'!C134<5,'Tabel 2 Sydj'!D136<0.5),"-",IFERROR('Tabel 2 Sydj'!D136/'Tabel 1 Sydj'!C134*100,"-")) -> - | F136: =IF(OR('Tabel 1 Sydj'!E134<5,'Tabel 2 Sydj'!F136<0.5),"-",IFERROR('Tabel 2 Sydj'!F136/'Tabel 1 Sydj'!E134*100,"-")) -> - | G136: =IF(OR('Tabel 1 Sydj'!E134<5,'Tabel 2 Sydj'!G136<0.5),"-",IFERROR('Tabel 2 Sydj'!G136/'Tabel 1 Sydj'!E134*100,"-")) -> - | I136: =IF(OR('Tabel 1 Sydj'!G134<5,'Tabel 2 Sydj'!I136<0.5),"-",IFERROR('Tabel 2 Sydj'!I136/'Tabel 1 Sydj'!G134*100,"-")) -> - | J136: =IF(OR('Tabel 1 Sydj'!G134<5,'Tabel 2 Sydj'!J136<0.5),"-",IFERROR('Tabel 2 Sydj'!J136/'Tabel 1 Sydj'!G134*100,"-")) -> -
A137: Musikudd. | C137: =IF(OR('Tabel 1 Sydj'!C135<5,'Tabel 2 Sydj'!C137<0.5),"-",IFERROR('Tabel 2 Sydj'!C137/'Tabel 1 Sydj'!C135*100,"-")) -> - | D137: =IF(OR('Tabel 1 Sydj'!C135<5,'Tabel 2 Sydj'!D137<0.5),"-",IFERROR('Tabel 2 Sydj'!D137/'Tabel 1 Sydj'!C135*100,"-")) -> - | F137: =IF(OR('Tabel 1 Sydj'!E135<5,'Tabel 2 Sydj'!F137<0.5),"-",IFERROR('Tabel 2 Sydj'!F137/'Tabel 1 Sydj'!E135*100,"-")) -> - | G137: =IF(OR('Tabel 1 Sydj'!E135<5,'Tabel 2 Sydj'!G137<0.5),"-",IFERROR('Tabel 2 Sydj'!G137/'Tabel 1 Sydj'!E135*100,"-")) -> - | I137: =IF(OR('Tabel 1 Sydj'!G135<5,'Tabel 2 Sydj'!I137<0.5),"-",IFERROR('Tabel 2 Sydj'!I137/'Tabel 1 Sydj'!G135*100,"-")) -> - | J137: =IF(OR('Tabel 1 Sydj'!G135<5,'Tabel 2 Sydj'!J137<0.5),"-",IFERROR('Tabel 2 Sydj'!J137/'Tabel 1 Sydj'!G135*100,"-")) -> -
A138: Teolog | C138: =IF(OR('Tabel 1 Sydj'!C136<5,'Tabel 2 Sydj'!C138<0.5),"-",IFERROR('Tabel 2 Sydj'!C138/'Tabel 1 Sydj'!C136*100,"-")) -> - | D138: =IF(OR('Tabel 1 Sydj'!C136<5,'Tabel 2 Sydj'!D138<0.5),"-",IFERROR('Tabel 2 Sydj'!D138/'Tabel 1 Sydj'!C136*100,"-")) -> - | F138: =IF(OR('Tabel 1 Sydj'!E136<5,'Tabel 2 Sydj'!F138<0.5),"-",IFERROR('Tabel 2 Sydj'!F138/'Tabel 1 Sydj'!E136*100,"-")) -> - | G138: =IF(OR('Tabel 1 Sydj'!E136<5,'Tabel 2 Sydj'!G138<0.5),"-",IFERROR('Tabel 2 Sydj'!G138/'Tabel 1 Sydj'!E136*100,"-")) -> - | I138: =IF(OR('Tabel 1 Sydj'!G136<5,'Tabel 2 Sydj'!I138<0.5),"-",IFERROR('Tabel 2 Sydj'!I138/'Tabel 1 Sydj'!G136*100,"-")) -> - | J138: =IF(OR('Tabel 1 Sydj'!G136<5,'Tabel 2 Sydj'!J138<0.5),"-",IFERROR('Tabel 2 Sydj'!J138/'Tabel 1 Sydj'!G136*100,"-")) -> -
A139: Psykolog | C139: =IF(OR('Tabel 1 Sydj'!C137<5,'Tabel 2 Sydj'!C139<0.5),"-",IFERROR('Tabel 2 Sydj'!C139/'Tabel 1 Sydj'!C137*100,"-")) -> - | D139: =IF(OR('Tabel 1 Sydj'!C137<5,'Tabel 2 Sydj'!D139<0.5),"-",IFERROR('Tabel 2 Sydj'!D139/'Tabel 1 Sydj'!C137*100,"-")) -> - | F139: =IF(OR('Tabel 1 Sydj'!E137<5,'Tabel 2 Sydj'!F139<0.5),"-",IFERROR('Tabel 2 Sydj'!F139/'Tabel 1 Sydj'!E137*100,"-")) -> 20 | G139: =IF(OR('Tabel 1 Sydj'!E137<5,'Tabel 2 Sydj'!G139<0.5),"-",IFERROR('Tabel 2 Sydj'!G139/'Tabel 1 Sydj'!E137*100,"-")) -> 19.99625772 | I139: =IF(OR('Tabel 1 Sydj'!G137<5,'Tabel 2 Sydj'!I139<0.5),"-",IFERROR('Tabel 2 Sydj'!I139/'Tabel 1 Sydj'!G137*100,"-")) -> 16.66666667 | J139: =IF(OR('Tabel 1 Sydj'!G137<5,'Tabel 2 Sydj'!J139<0.5),"-",IFERROR('Tabel 2 Sydj'!J139/'Tabel 1 Sydj'!G137*100,"-")) -> 16.6635481
A140: Jurist | C140: =IF(OR('Tabel 1 Sydj'!C138<5,'Tabel 2 Sydj'!C140<0.5),"-",IFERROR('Tabel 2 Sydj'!C140/'Tabel 1 Sydj'!C138*100,"-")) -> - | D140: =IF(OR('Tabel 1 Sydj'!C138<5,'Tabel 2 Sydj'!D140<0.5),"-",IFERROR('Tabel 2 Sydj'!D140/'Tabel 1 Sydj'!C138*100,"-")) -> - | F140: =IF(OR('Tabel 1 Sydj'!E138<5,'Tabel 2 Sydj'!F140<0.5),"-",IFERROR('Tabel 2 Sydj'!F140/'Tabel 1 Sydj'!E138*100,"-")) -> - | G140: =IF(OR('Tabel 1 Sydj'!E138<5,'Tabel 2 Sydj'!G140<0.5),"-",IFERROR('Tabel 2 Sydj'!G140/'Tabel 1 Sydj'!E138*100,"-")) -> - | I140: =IF(OR('Tabel 1 Sydj'!G138<5,'Tabel 2 Sydj'!I140<0.5),"-",IFERROR('Tabel 2 Sydj'!I140/'Tabel 1 Sydj'!G138*100,"-")) -> - | J140: =IF(OR('Tabel 1 Sydj'!G138<5,'Tabel 2 Sydj'!J140<0.5),"-",IFERROR('Tabel 2 Sydj'!J140/'Tabel 1 Sydj'!G138*100,"-")) -> -
A141: Økonom | C141: =IF(OR('Tabel 1 Sydj'!C139<5,'Tabel 2 Sydj'!C141<0.5),"-",IFERROR('Tabel 2 Sydj'!C141/'Tabel 1 Sydj'!C139*100,"-")) -> - | D141: =IF(OR('Tabel 1 Sydj'!C139<5,'Tabel 2 Sydj'!D141<0.5),"-",IFERROR('Tabel 2 Sydj'!D141/'Tabel 1 Sydj'!C139*100,"-")) -> - | F141: =IF(OR('Tabel 1 Sydj'!E139<5,'Tabel 2 Sydj'!F141<0.5),"-",IFERROR('Tabel 2 Sydj'!F141/'Tabel 1 Sydj'!E139*100,"-")) -> - | G141: =IF(OR('Tabel 1 Sydj'!E139<5,'Tabel 2 Sydj'!G141<0.5),"-",IFERROR('Tabel 2 Sydj'!G141/'Tabel 1 Sydj'!E139*100,"-")) -> - | I141: =IF(OR('Tabel 1 Sydj'!G139<5,'Tabel 2 Sydj'!I141<0.5),"-",IFERROR('Tabel 2 Sydj'!I141/'Tabel 1 Sydj'!G139*100,"-")) -> - | J141: =IF(OR('Tabel 1 Sydj'!G139<5,'Tabel 2 Sydj'!J141<0.5),"-",IFERROR('Tabel 2 Sydj'!J141/'Tabel 1 Sydj'!G139*100,"-")) -> -
A142: Samf. Adm. | C142: =IF(OR('Tabel 1 Sydj'!C140<5,'Tabel 2 Sydj'!C142<0.5),"-",IFERROR('Tabel 2 Sydj'!C142/'Tabel 1 Sydj'!C140*100,"-")) -> - | D142: =IF(OR('Tabel 1 Sydj'!C140<5,'Tabel 2 Sydj'!D142<0.5),"-",IFERROR('Tabel 2 Sydj'!D142/'Tabel 1 Sydj'!C140*100,"-")) -> - | F142: =IF(OR('Tabel 1 Sydj'!E140<5,'Tabel 2 Sydj'!F142<0.5),"-",IFERROR('Tabel 2 Sydj'!F142/'Tabel 1 Sydj'!E140*100,"-")) -> - | G142: =IF(OR('Tabel 1 Sydj'!E140<5,'Tabel 2 Sydj'!G142<0.5),"-",IFERROR('Tabel 2 Sydj'!G142/'Tabel 1 Sydj'!E140*100,"-")) -> - | I142: =IF(OR('Tabel 1 Sydj'!G140<5,'Tabel 2 Sydj'!I142<0.5),"-",IFERROR('Tabel 2 Sydj'!I142/'Tabel 1 Sydj'!G140*100,"-")) -> - | J142: =IF(OR('Tabel 1 Sydj'!G140<5,'Tabel 2 Sydj'!J142<0.5),"-",IFERROR('Tabel 2 Sydj'!J142/'Tabel 1 Sydj'!G140*100,"-")) -> -
A143: Cand. Merc. | C143: =IF(OR('Tabel 1 Sydj'!C141<5,'Tabel 2 Sydj'!C143<0.5),"-",IFERROR('Tabel 2 Sydj'!C143/'Tabel 1 Sydj'!C141*100,"-")) -> 3.448275862 | D143: =IF(OR('Tabel 1 Sydj'!C141<5,'Tabel 2 Sydj'!D143<0.5),"-",IFERROR('Tabel 2 Sydj'!D143/'Tabel 1 Sydj'!C141*100,"-")) -> 3.447630641 | F143: =IF(OR('Tabel 1 Sydj'!E141<5,'Tabel 2 Sydj'!F143<0.5),"-",IFERROR('Tabel 2 Sydj'!F143/'Tabel 1 Sydj'!E141*100,"-")) -> 6.666666667 | G143: =IF(OR('Tabel 1 Sydj'!E141<5,'Tabel 2 Sydj'!G143<0.5),"-",IFERROR('Tabel 2 Sydj'!G143/'Tabel 1 Sydj'!E141*100,"-")) -> 4.860807917 | I143: =IF(OR('Tabel 1 Sydj'!G141<5,'Tabel 2 Sydj'!I143<0.5),"-",IFERROR('Tabel 2 Sydj'!I143/'Tabel 1 Sydj'!G141*100,"-")) -> 5.084745763 | J143: =IF(OR('Tabel 1 Sydj'!G141<5,'Tabel 2 Sydj'!J143<0.5),"-",IFERROR('Tabel 2 Sydj'!J143/'Tabel 1 Sydj'!G141*100,"-")) -> 4.166195358
A144: HA | C144: =IF(OR('Tabel 1 Sydj'!C142<5,'Tabel 2 Sydj'!C144<0.5),"-",IFERROR('Tabel 2 Sydj'!C144/'Tabel 1 Sydj'!C142*100,"-")) -> - | D144: =IF(OR('Tabel 1 Sydj'!C142<5,'Tabel 2 Sydj'!D144<0.5),"-",IFERROR('Tabel 2 Sydj'!D144/'Tabel 1 Sydj'!C142*100,"-")) -> - | F144: =IF(OR('Tabel 1 Sydj'!E142<5,'Tabel 2 Sydj'!F144<0.5),"-",IFERROR('Tabel 2 Sydj'!F144/'Tabel 1 Sydj'!E142*100,"-")) -> - | G144: =IF(OR('Tabel 1 Sydj'!E142<5,'Tabel 2 Sydj'!G144<0.5),"-",IFERROR('Tabel 2 Sydj'!G144/'Tabel 1 Sydj'!E142*100,"-")) -> - | I144: =IF(OR('Tabel 1 Sydj'!G142<5,'Tabel 2 Sydj'!I144<0.5),"-",IFERROR('Tabel 2 Sydj'!I144/'Tabel 1 Sydj'!G142*100,"-")) -> - | J144: =IF(OR('Tabel 1 Sydj'!G142<5,'Tabel 2 Sydj'!J144<0.5),"-",IFERROR('Tabel 2 Sydj'!J144/'Tabel 1 Sydj'!G142*100,"-")) -> -
A145: HD | C145: =IF(OR('Tabel 1 Sydj'!C143<5,'Tabel 2 Sydj'!C145<0.5),"-",IFERROR('Tabel 2 Sydj'!C145/'Tabel 1 Sydj'!C143*100,"-")) -> - | D145: =IF(OR('Tabel 1 Sydj'!C143<5,'Tabel 2 Sydj'!D145<0.5),"-",IFERROR('Tabel 2 Sydj'!D145/'Tabel 1 Sydj'!C143*100,"-")) -> - | F145: =IF(OR('Tabel 1 Sydj'!E143<5,'Tabel 2 Sydj'!F145<0.5),"-",IFERROR('Tabel 2 Sydj'!F145/'Tabel 1 Sydj'!E143*100,"-")) -> - | G145: =IF(OR('Tabel 1 Sydj'!E143<5,'Tabel 2 Sydj'!G145<0.5),"-",IFERROR('Tabel 2 Sydj'!G145/'Tabel 1 Sydj'!E143*100,"-")) -> - | I145: =IF(OR('Tabel 1 Sydj'!G143<5,'Tabel 2 Sydj'!I145<0.5),"-",IFERROR('Tabel 2 Sydj'!I145/'Tabel 1 Sydj'!G143*100,"-")) -> - | J145: =IF(OR('Tabel 1 Sydj'!G143<5,'Tabel 2 Sydj'!J145<0.5),"-",IFERROR('Tabel 2 Sydj'!J145/'Tabel 1 Sydj'!G143*100,"-")) -> -
A146: Komm. og Sprog | C146: =IF(OR('Tabel 1 Sydj'!C144<5,'Tabel 2 Sydj'!C146<0.5),"-",IFERROR('Tabel 2 Sydj'!C146/'Tabel 1 Sydj'!C144*100,"-")) -> - | D146: =IF(OR('Tabel 1 Sydj'!C144<5,'Tabel 2 Sydj'!D146<0.5),"-",IFERROR('Tabel 2 Sydj'!D146/'Tabel 1 Sydj'!C144*100,"-")) -> - | F146: =IF(OR('Tabel 1 Sydj'!E144<5,'Tabel 2 Sydj'!F146<0.5),"-",IFERROR('Tabel 2 Sydj'!F146/'Tabel 1 Sydj'!E144*100,"-")) -> 9.523809524 | G146: =IF(OR('Tabel 1 Sydj'!E144<5,'Tabel 2 Sydj'!G146<0.5),"-",IFERROR('Tabel 2 Sydj'!G146/'Tabel 1 Sydj'!E144*100,"-")) -> 5.916368918 | I146: =IF(OR('Tabel 1 Sydj'!G144<5,'Tabel 2 Sydj'!I146<0.5),"-",IFERROR('Tabel 2 Sydj'!I146/'Tabel 1 Sydj'!G144*100,"-")) -> 13.04347826 | J146: =IF(OR('Tabel 1 Sydj'!G144<5,'Tabel 2 Sydj'!J146<0.5),"-",IFERROR('Tabel 2 Sydj'!J146/'Tabel 1 Sydj'!G144*100,"-")) -> 9.748914603
A147: Cand. IT. | C147: =IF(OR('Tabel 1 Sydj'!C145<5,'Tabel 2 Sydj'!C147<0.5),"-",IFERROR('Tabel 2 Sydj'!C147/'Tabel 1 Sydj'!C145*100,"-")) -> - | D147: =IF(OR('Tabel 1 Sydj'!C145<5,'Tabel 2 Sydj'!D147<0.5),"-",IFERROR('Tabel 2 Sydj'!D147/'Tabel 1 Sydj'!C145*100,"-")) -> - | F147: =IF(OR('Tabel 1 Sydj'!E145<5,'Tabel 2 Sydj'!F147<0.5),"-",IFERROR('Tabel 2 Sydj'!F147/'Tabel 1 Sydj'!E145*100,"-")) -> - | G147: =IF(OR('Tabel 1 Sydj'!E145<5,'Tabel 2 Sydj'!G147<0.5),"-",IFERROR('Tabel 2 Sydj'!G147/'Tabel 1 Sydj'!E145*100,"-")) -> - | I147: =IF(OR('Tabel 1 Sydj'!G145<5,'Tabel 2 Sydj'!I147<0.5),"-",IFERROR('Tabel 2 Sydj'!I147/'Tabel 1 Sydj'!G145*100,"-")) -> - | J147: =IF(OR('Tabel 1 Sydj'!G145<5,'Tabel 2 Sydj'!J147<0.5),"-",IFERROR('Tabel 2 Sydj'!J147/'Tabel 1 Sydj'!G145*100,"-")) -> -
A148: Bac. Samf. | C148: =IF(OR('Tabel 1 Sydj'!C146<5,'Tabel 2 Sydj'!C148<0.5),"-",IFERROR('Tabel 2 Sydj'!C148/'Tabel 1 Sydj'!C146*100,"-")) -> - | D148: =IF(OR('Tabel 1 Sydj'!C146<5,'Tabel 2 Sydj'!D148<0.5),"-",IFERROR('Tabel 2 Sydj'!D148/'Tabel 1 Sydj'!C146*100,"-")) -> - | F148: =IF(OR('Tabel 1 Sydj'!E146<5,'Tabel 2 Sydj'!F148<0.5),"-",IFERROR('Tabel 2 Sydj'!F148/'Tabel 1 Sydj'!E146*100,"-")) -> - | G148: =IF(OR('Tabel 1 Sydj'!E146<5,'Tabel 2 Sydj'!G148<0.5),"-",IFERROR('Tabel 2 Sydj'!G148/'Tabel 1 Sydj'!E146*100,"-")) -> - | I148: =IF(OR('Tabel 1 Sydj'!G146<5,'Tabel 2 Sydj'!I148<0.5),"-",IFERROR('Tabel 2 Sydj'!I148/'Tabel 1 Sydj'!G146*100,"-")) -> - | J148: =IF(OR('Tabel 1 Sydj'!G146<5,'Tabel 2 Sydj'!J148<0.5),"-",IFERROR('Tabel 2 Sydj'!J148/'Tabel 1 Sydj'!G146*100,"-")) -> -
A149: Bac. Hum. | C149: =IF(OR('Tabel 1 Sydj'!C147<5,'Tabel 2 Sydj'!C149<0.5),"-",IFERROR('Tabel 2 Sydj'!C149/'Tabel 1 Sydj'!C147*100,"-")) -> - | D149: =IF(OR('Tabel 1 Sydj'!C147<5,'Tabel 2 Sydj'!D149<0.5),"-",IFERROR('Tabel 2 Sydj'!D149/'Tabel 1 Sydj'!C147*100,"-")) -> - | F149: =IF(OR('Tabel 1 Sydj'!E147<5,'Tabel 2 Sydj'!F149<0.5),"-",IFERROR('Tabel 2 Sydj'!F149/'Tabel 1 Sydj'!E147*100,"-")) -> - | G149: =IF(OR('Tabel 1 Sydj'!E147<5,'Tabel 2 Sydj'!G149<0.5),"-",IFERROR('Tabel 2 Sydj'!G149/'Tabel 1 Sydj'!E147*100,"-")) -> - | I149: =IF(OR('Tabel 1 Sydj'!G147<5,'Tabel 2 Sydj'!I149<0.5),"-",IFERROR('Tabel 2 Sydj'!I149/'Tabel 1 Sydj'!G147*100,"-")) -> - | J149: =IF(OR('Tabel 1 Sydj'!G147<5,'Tabel 2 Sydj'!J149<0.5),"-",IFERROR('Tabel 2 Sydj'!J149/'Tabel 1 Sydj'!G147*100,"-")) -> -
A150: Bac. Nat. | C150: =IF(OR('Tabel 1 Sydj'!C148<5,'Tabel 2 Sydj'!C150<0.5),"-",IFERROR('Tabel 2 Sydj'!C150/'Tabel 1 Sydj'!C148*100,"-")) -> - | D150: =IF(OR('Tabel 1 Sydj'!C148<5,'Tabel 2 Sydj'!D150<0.5),"-",IFERROR('Tabel 2 Sydj'!D150/'Tabel 1 Sydj'!C148*100,"-")) -> - | F150: =IF(OR('Tabel 1 Sydj'!E148<5,'Tabel 2 Sydj'!F150<0.5),"-",IFERROR('Tabel 2 Sydj'!F150/'Tabel 1 Sydj'!E148*100,"-")) -> - | G150: =IF(OR('Tabel 1 Sydj'!E148<5,'Tabel 2 Sydj'!G150<0.5),"-",IFERROR('Tabel 2 Sydj'!G150/'Tabel 1 Sydj'!E148*100,"-")) -> - | I150: =IF(OR('Tabel 1 Sydj'!G148<5,'Tabel 2 Sydj'!I150<0.5),"-",IFERROR('Tabel 2 Sydj'!I150/'Tabel 1 Sydj'!G148*100,"-")) -> - | J150: =IF(OR('Tabel 1 Sydj'!G148<5,'Tabel 2 Sydj'!J150<0.5),"-",IFERROR('Tabel 2 Sydj'!J150/'Tabel 1 Sydj'!G148*100,"-")) -> -
A151: Andre | C151: =IF(OR('Tabel 1 Sydj'!C149<5,'Tabel 2 Sydj'!C151<0.5),"-",IFERROR('Tabel 2 Sydj'!C151/'Tabel 1 Sydj'!C149*100,"-")) -> 9.523809524 | D151: =IF(OR('Tabel 1 Sydj'!C149<5,'Tabel 2 Sydj'!D151<0.5),"-",IFERROR('Tabel 2 Sydj'!D151/'Tabel 1 Sydj'!C149*100,"-")) -> 5.346116492 | F151: =IF(OR('Tabel 1 Sydj'!E149<5,'Tabel 2 Sydj'!F151<0.5),"-",IFERROR('Tabel 2 Sydj'!F151/'Tabel 1 Sydj'!E149*100,"-")) -> 9.090909091 | G151: =IF(OR('Tabel 1 Sydj'!E149<5,'Tabel 2 Sydj'!G151<0.5),"-",IFERROR('Tabel 2 Sydj'!G151/'Tabel 1 Sydj'!E149*100,"-")) -> 6.781467768 | I151: =IF(OR('Tabel 1 Sydj'!G149<5,'Tabel 2 Sydj'!I151<0.5),"-",IFERROR('Tabel 2 Sydj'!I151/'Tabel 1 Sydj'!G149*100,"-")) -> 9.302325581 | J151: =IF(OR('Tabel 1 Sydj'!G149<5,'Tabel 2 Sydj'!J151<0.5),"-",IFERROR('Tabel 2 Sydj'!J151/'Tabel 1 Sydj'!G149*100,"-")) -> 6.080482261
A153: Total | C153: =IF(OR('Tabel 1 Sydj'!C151<5,'Tabel 2 Sydj'!C153<0.5),"-",IFERROR('Tabel 2 Sydj'!C153/'Tabel 1 Sydj'!C151*100,"-")) -> 4.132231405 | D153: =IF(OR('Tabel 1 Sydj'!C151<5,'Tabel 2 Sydj'!D153<0.5),"-",IFERROR('Tabel 2 Sydj'!D153/'Tabel 1 Sydj'!C151*100,"-")) -> 3.721920646 | F153: =IF(OR('Tabel 1 Sydj'!E151<5,'Tabel 2 Sydj'!F153<0.5),"-",IFERROR('Tabel 2 Sydj'!F153/'Tabel 1 Sydj'!E151*100,"-")) -> 4.958677686 | G153: =IF(OR('Tabel 1 Sydj'!E151<5,'Tabel 2 Sydj'!G153<0.5),"-",IFERROR('Tabel 2 Sydj'!G153/'Tabel 1 Sydj'!E151*100,"-")) -> 4.18712851 | I153: =IF(OR('Tabel 1 Sydj'!G151<5,'Tabel 2 Sydj'!I153<0.5),"-",IFERROR('Tabel 2 Sydj'!I153/'Tabel 1 Sydj'!G151*100,"-")) -> 4.545454545 | J153: =IF(OR('Tabel 1 Sydj'!G151<5,'Tabel 2 Sydj'!J153<0.5),"-",IFERROR('Tabel 2 Sydj'!J153/'Tabel 1 Sydj'!G151*100,"-")) -> 3.954524578
A155: Ingeniører i alt | C155: =IF(OR('Tabel 1 Sydj'!C153<5,'Tabel 2 Sydj'!C155<0.5),"-",IFERROR('Tabel 2 Sydj'!C155/'Tabel 1 Sydj'!C153*100,"-")) -> 2.127659574 | D155: =IF(OR('Tabel 1 Sydj'!C153<5,'Tabel 2 Sydj'!D155<0.5),"-",IFERROR('Tabel 2 Sydj'!D155/'Tabel 1 Sydj'!C153*100,"-")) -> 2.029059745 | F155: =IF(OR('Tabel 1 Sydj'!E153<5,'Tabel 2 Sydj'!F155<0.5),"-",IFERROR('Tabel 2 Sydj'!F155/'Tabel 1 Sydj'!E153*100,"-")) -> - | G155: =IF(OR('Tabel 1 Sydj'!E153<5,'Tabel 2 Sydj'!G155<0.5),"-",IFERROR('Tabel 2 Sydj'!G155/'Tabel 1 Sydj'!E153*100,"-")) -> - | I155: =IF(OR('Tabel 1 Sydj'!G153<5,'Tabel 2 Sydj'!I155<0.5),"-",IFERROR('Tabel 2 Sydj'!I155/'Tabel 1 Sydj'!G153*100,"-")) -> 1.6 | J155: =IF(OR('Tabel 1 Sydj'!G153<5,'Tabel 2 Sydj'!J155<0.5),"-",IFERROR('Tabel 2 Sydj'!J155/'Tabel 1 Sydj'!G153*100,"-")) -> 1.525852928
A156: Magistre i alt | C156: =IF(OR('Tabel 1 Sydj'!C154<5,'Tabel 2 Sydj'!C156<0.5),"-",IFERROR('Tabel 2 Sydj'!C156/'Tabel 1 Sydj'!C154*100,"-")) -> 11.53846154 | D156: =IF(OR('Tabel 1 Sydj'!C154<5,'Tabel 2 Sydj'!D156<0.5),"-",IFERROR('Tabel 2 Sydj'!D156/'Tabel 1 Sydj'!C154*100,"-")) -> 11.45234108 | F156: =IF(OR('Tabel 1 Sydj'!E154<5,'Tabel 2 Sydj'!F156<0.5),"-",IFERROR('Tabel 2 Sydj'!F156/'Tabel 1 Sydj'!E154*100,"-")) -> 12.19512195 | G156: =IF(OR('Tabel 1 Sydj'!E154<5,'Tabel 2 Sydj'!G156<0.5),"-",IFERROR('Tabel 2 Sydj'!G156/'Tabel 1 Sydj'!E154*100,"-")) -> 12.04984232 | I156: =IF(OR('Tabel 1 Sydj'!G154<5,'Tabel 2 Sydj'!I156<0.5),"-",IFERROR('Tabel 2 Sydj'!I156/'Tabel 1 Sydj'!G154*100,"-")) -> 11.94029851 | J156: =IF(OR('Tabel 1 Sydj'!G154<5,'Tabel 2 Sydj'!J156<0.5),"-",IFERROR('Tabel 2 Sydj'!J156/'Tabel 1 Sydj'!G154*100,"-")) -> 11.81797617
A157: DJØF'ere i alt | C157: =IF(OR('Tabel 1 Sydj'!C155<5,'Tabel 2 Sydj'!C157<0.5),"-",IFERROR('Tabel 2 Sydj'!C157/'Tabel 1 Sydj'!C155*100,"-")) -> 1.851851852 | D157: =IF(OR('Tabel 1 Sydj'!C155<5,'Tabel 2 Sydj'!D157<0.5),"-",IFERROR('Tabel 2 Sydj'!D157/'Tabel 1 Sydj'!C155*100,"-")) -> 1.851505344 | F157: =IF(OR('Tabel 1 Sydj'!E155<5,'Tabel 2 Sydj'!F157<0.5),"-",IFERROR('Tabel 2 Sydj'!F157/'Tabel 1 Sydj'!E155*100,"-")) -> 3.125 | G157: =IF(OR('Tabel 1 Sydj'!E155<5,'Tabel 2 Sydj'!G157<0.5),"-",IFERROR('Tabel 2 Sydj'!G157/'Tabel 1 Sydj'!E155*100,"-")) -> 2.278503711 | I157: =IF(OR('Tabel 1 Sydj'!G155<5,'Tabel 2 Sydj'!I157<0.5),"-",IFERROR('Tabel 2 Sydj'!I157/'Tabel 1 Sydj'!G155*100,"-")) -> 2.542372881 | J157: =IF(OR('Tabel 1 Sydj'!G155<5,'Tabel 2 Sydj'!J157<0.5),"-",IFERROR('Tabel 2 Sydj'!J157/'Tabel 1 Sydj'!G155*100,"-")) -> 2.083097679
A162: Sønderborg
C164: Mænd | F164: Kvinder | I164: I alt
C165: Ledigheds- berørte | D165: Gns. brutto- ledighed | F165: Ledigheds- berørte | G165: Gns. brutto- ledighed | I165: Ledigheds- berørte | J165: Gns. brutto- ledighed
A168: Civ. ing. | C168: =IF(OR('Tabel 1 Sydj'!C166<5,'Tabel 2 Sydj'!C168<0.5),"-",IFERROR('Tabel 2 Sydj'!C168/'Tabel 1 Sydj'!C166*100,"-")) -> 3.493449782 | D168: =IF(OR('Tabel 1 Sydj'!C166<5,'Tabel 2 Sydj'!D168<0.5),"-",IFERROR('Tabel 2 Sydj'!D168/'Tabel 1 Sydj'!C166*100,"-")) -> 3.318483139 | F168: =IF(OR('Tabel 1 Sydj'!E166<5,'Tabel 2 Sydj'!F168<0.5),"-",IFERROR('Tabel 2 Sydj'!F168/'Tabel 1 Sydj'!E166*100,"-")) -> 7.142857143 | G168: =IF(OR('Tabel 1 Sydj'!E166<5,'Tabel 2 Sydj'!G168<0.5),"-",IFERROR('Tabel 2 Sydj'!G168/'Tabel 1 Sydj'!E166*100,"-")) -> 5.622332511 | I168: =IF(OR('Tabel 1 Sydj'!G166<5,'Tabel 2 Sydj'!I168<0.5),"-",IFERROR('Tabel 2 Sydj'!I168/'Tabel 1 Sydj'!G166*100,"-")) -> 4.05904059 | J168: =IF(OR('Tabel 1 Sydj'!G166<5,'Tabel 2 Sydj'!J168<0.5),"-",IFERROR('Tabel 2 Sydj'!J168/'Tabel 1 Sydj'!G166*100,"-")) -> 3.675537286
A169: Diplom ing. | C169: =IF(OR('Tabel 1 Sydj'!C167<5,'Tabel 2 Sydj'!C169<0.5),"-",IFERROR('Tabel 2 Sydj'!C169/'Tabel 1 Sydj'!C167*100,"-")) -> 2.34948605 | D169: =IF(OR('Tabel 1 Sydj'!C167<5,'Tabel 2 Sydj'!D169<0.5),"-",IFERROR('Tabel 2 Sydj'!D169/'Tabel 1 Sydj'!C167*100,"-")) -> 2.079961181 | F169: =IF(OR('Tabel 1 Sydj'!E167<5,'Tabel 2 Sydj'!F169<0.5),"-",IFERROR('Tabel 2 Sydj'!F169/'Tabel 1 Sydj'!E167*100,"-")) -> 2.105263158 | G169: =IF(OR('Tabel 1 Sydj'!E167<5,'Tabel 2 Sydj'!G169<0.5),"-",IFERROR('Tabel 2 Sydj'!G169/'Tabel 1 Sydj'!E167*100,"-")) -> 1.988661543 | I169: =IF(OR('Tabel 1 Sydj'!G167<5,'Tabel 2 Sydj'!I169<0.5),"-",IFERROR('Tabel 2 Sydj'!I169/'Tabel 1 Sydj'!G167*100,"-")) -> 2.319587629 | J169: =IF(OR('Tabel 1 Sydj'!G167<5,'Tabel 2 Sydj'!J169<0.5),"-",IFERROR('Tabel 2 Sydj'!J169/'Tabel 1 Sydj'!G167*100,"-")) -> 2.068784035
A170: Cand. Scient. Tek. | C170: =IF(OR('Tabel 1 Sydj'!C168<5,'Tabel 2 Sydj'!C170<0.5),"-",IFERROR('Tabel 2 Sydj'!C170/'Tabel 1 Sydj'!C168*100,"-")) -> 6.493506494 | D170: =IF(OR('Tabel 1 Sydj'!C168<5,'Tabel 2 Sydj'!D170<0.5),"-",IFERROR('Tabel 2 Sydj'!D170/'Tabel 1 Sydj'!C168*100,"-")) -> 6.492291467 | F170: =IF(OR('Tabel 1 Sydj'!E168<5,'Tabel 2 Sydj'!F170<0.5),"-",IFERROR('Tabel 2 Sydj'!F170/'Tabel 1 Sydj'!E168*100,"-")) -> 7.894736842 | G170: =IF(OR('Tabel 1 Sydj'!E168<5,'Tabel 2 Sydj'!G170<0.5),"-",IFERROR('Tabel 2 Sydj'!G170/'Tabel 1 Sydj'!E168*100,"-")) -> 7.893259626 | I170: =IF(OR('Tabel 1 Sydj'!G168<5,'Tabel 2 Sydj'!I170<0.5),"-",IFERROR('Tabel 2 Sydj'!I170/'Tabel 1 Sydj'!G168*100,"-")) -> 6.956521739 | J170: =IF(OR('Tabel 1 Sydj'!G168<5,'Tabel 2 Sydj'!J170<0.5),"-",IFERROR('Tabel 2 Sydj'!J170/'Tabel 1 Sydj'!G168*100,"-")) -> 6.955220076
A171: MA. Hum. | C171: =IF(OR('Tabel 1 Sydj'!C169<5,'Tabel 2 Sydj'!C171<0.5),"-",IFERROR('Tabel 2 Sydj'!C171/'Tabel 1 Sydj'!C169*100,"-")) -> 8.823529412 | D171: =IF(OR('Tabel 1 Sydj'!C169<5,'Tabel 2 Sydj'!D171<0.5),"-",IFERROR('Tabel 2 Sydj'!D171/'Tabel 1 Sydj'!C169*100,"-")) -> 8.821878405 | F171: =IF(OR('Tabel 1 Sydj'!E169<5,'Tabel 2 Sydj'!F171<0.5),"-",IFERROR('Tabel 2 Sydj'!F171/'Tabel 1 Sydj'!E169*100,"-")) -> 7.042253521 | G171: =IF(OR('Tabel 1 Sydj'!E169<5,'Tabel 2 Sydj'!G171<0.5),"-",IFERROR('Tabel 2 Sydj'!G171/'Tabel 1 Sydj'!E169*100,"-")) -> 5.433775233 | I171: =IF(OR('Tabel 1 Sydj'!G169<5,'Tabel 2 Sydj'!I171<0.5),"-",IFERROR('Tabel 2 Sydj'!I171/'Tabel 1 Sydj'!G169*100,"-")) -> 7.619047619 | J171: =IF(OR('Tabel 1 Sydj'!G169<5,'Tabel 2 Sydj'!J171<0.5),"-",IFERROR('Tabel 2 Sydj'!J171/'Tabel 1 Sydj'!G169*100,"-")) -> 6.530875308
A172: MA. Nat. | C172: =IF(OR('Tabel 1 Sydj'!C170<5,'Tabel 2 Sydj'!C172<0.5),"-",IFERROR('Tabel 2 Sydj'!C172/'Tabel 1 Sydj'!C170*100,"-")) -> 4.651162791 | D172: =IF(OR('Tabel 1 Sydj'!C170<5,'Tabel 2 Sydj'!D172<0.5),"-",IFERROR('Tabel 2 Sydj'!D172/'Tabel 1 Sydj'!C170*100,"-")) -> 4.418213017 | F172: =IF(OR('Tabel 1 Sydj'!E170<5,'Tabel 2 Sydj'!F172<0.5),"-",IFERROR('Tabel 2 Sydj'!F172/'Tabel 1 Sydj'!E170*100,"-")) -> 2.857142857 | G172: =IF(OR('Tabel 1 Sydj'!E170<5,'Tabel 2 Sydj'!G172<0.5),"-",IFERROR('Tabel 2 Sydj'!G172/'Tabel 1 Sydj'!E170*100,"-")) -> 2.856608245 | I172: =IF(OR('Tabel 1 Sydj'!G170<5,'Tabel 2 Sydj'!I172<0.5),"-",IFERROR('Tabel 2 Sydj'!I172/'Tabel 1 Sydj'!G170*100,"-")) -> 3.846153846 | J172: =IF(OR('Tabel 1 Sydj'!G170<5,'Tabel 2 Sydj'!J172<0.5),"-",IFERROR('Tabel 2 Sydj'!J172/'Tabel 1 Sydj'!G170*100,"-")) -> 3.717492927
A173: MA. Ph.d. | C173: =IF(OR('Tabel 1 Sydj'!C171<5,'Tabel 2 Sydj'!C173<0.5),"-",IFERROR('Tabel 2 Sydj'!C173/'Tabel 1 Sydj'!C171*100,"-")) -> - | D173: =IF(OR('Tabel 1 Sydj'!C171<5,'Tabel 2 Sydj'!D173<0.5),"-",IFERROR('Tabel 2 Sydj'!D173/'Tabel 1 Sydj'!C171*100,"-")) -> - | F173: =IF(OR('Tabel 1 Sydj'!E171<5,'Tabel 2 Sydj'!F173<0.5),"-",IFERROR('Tabel 2 Sydj'!F173/'Tabel 1 Sydj'!E171*100,"-")) -> 20 | G173: =IF(OR('Tabel 1 Sydj'!E171<5,'Tabel 2 Sydj'!G173<0.5),"-",IFERROR('Tabel 2 Sydj'!G173/'Tabel 1 Sydj'!E171*100,"-")) -> 17.37666064 | I173: =IF(OR('Tabel 1 Sydj'!G171<5,'Tabel 2 Sydj'!I173<0.5),"-",IFERROR('Tabel 2 Sydj'!I173/'Tabel 1 Sydj'!G171*100,"-")) -> 7.692307692 | J173: =IF(OR('Tabel 1 Sydj'!G171<5,'Tabel 2 Sydj'!J173<0.5),"-",IFERROR('Tabel 2 Sydj'!J173/'Tabel 1 Sydj'!G171*100,"-")) -> 6.683331014
A174: MA. Samf. | C174: =IF(OR('Tabel 1 Sydj'!C172<5,'Tabel 2 Sydj'!C174<0.5),"-",IFERROR('Tabel 2 Sydj'!C174/'Tabel 1 Sydj'!C172*100,"-")) -> - | D174: =IF(OR('Tabel 1 Sydj'!C172<5,'Tabel 2 Sydj'!D174<0.5),"-",IFERROR('Tabel 2 Sydj'!D174/'Tabel 1 Sydj'!C172*100,"-")) -> - | F174: =IF(OR('Tabel 1 Sydj'!E172<5,'Tabel 2 Sydj'!F174<0.5),"-",IFERROR('Tabel 2 Sydj'!F174/'Tabel 1 Sydj'!E172*100,"-")) -> - | G174: =IF(OR('Tabel 1 Sydj'!E172<5,'Tabel 2 Sydj'!G174<0.5),"-",IFERROR('Tabel 2 Sydj'!G174/'Tabel 1 Sydj'!E172*100,"-")) -> - | I174: =IF(OR('Tabel 1 Sydj'!G172<5,'Tabel 2 Sydj'!I174<0.5),"-",IFERROR('Tabel 2 Sydj'!I174/'Tabel 1 Sydj'!G172*100,"-")) -> - | J174: =IF(OR('Tabel 1 Sydj'!G172<5,'Tabel 2 Sydj'!J174<0.5),"-",IFERROR('Tabel 2 Sydj'!J174/'Tabel 1 Sydj'!G172*100,"-")) -> -
A175: Øvrige Mag. | C175: =IF(OR('Tabel 1 Sydj'!C173<5,'Tabel 2 Sydj'!C175<0.5),"-",IFERROR('Tabel 2 Sydj'!C175/'Tabel 1 Sydj'!C173*100,"-")) -> - | D175: =IF(OR('Tabel 1 Sydj'!C173<5,'Tabel 2 Sydj'!D175<0.5),"-",IFERROR('Tabel 2 Sydj'!D175/'Tabel 1 Sydj'!C173*100,"-")) -> - | F175: =IF(OR('Tabel 1 Sydj'!E173<5,'Tabel 2 Sydj'!F175<0.5),"-",IFERROR('Tabel 2 Sydj'!F175/'Tabel 1 Sydj'!E173*100,"-")) -> - | G175: =IF(OR('Tabel 1 Sydj'!E173<5,'Tabel 2 Sydj'!G175<0.5),"-",IFERROR('Tabel 2 Sydj'!G175/'Tabel 1 Sydj'!E173*100,"-")) -> - | I175: =IF(OR('Tabel 1 Sydj'!G173<5,'Tabel 2 Sydj'!I175<0.5),"-",IFERROR('Tabel 2 Sydj'!I175/'Tabel 1 Sydj'!G173*100,"-")) -> - | J175: =IF(OR('Tabel 1 Sydj'!G173<5,'Tabel 2 Sydj'!J175<0.5),"-",IFERROR('Tabel 2 Sydj'!J175/'Tabel 1 Sydj'!G173*100,"-")) -> -
A176: Agronom | C176: =IF(OR('Tabel 1 Sydj'!C174<5,'Tabel 2 Sydj'!C176<0.5),"-",IFERROR('Tabel 2 Sydj'!C176/'Tabel 1 Sydj'!C174*100,"-")) -> - | D176: =IF(OR('Tabel 1 Sydj'!C174<5,'Tabel 2 Sydj'!D176<0.5),"-",IFERROR('Tabel 2 Sydj'!D176/'Tabel 1 Sydj'!C174*100,"-")) -> - | F176: =IF(OR('Tabel 1 Sydj'!E174<5,'Tabel 2 Sydj'!F176<0.5),"-",IFERROR('Tabel 2 Sydj'!F176/'Tabel 1 Sydj'!E174*100,"-")) -> - | G176: =IF(OR('Tabel 1 Sydj'!E174<5,'Tabel 2 Sydj'!G176<0.5),"-",IFERROR('Tabel 2 Sydj'!G176/'Tabel 1 Sydj'!E174*100,"-")) -> - | I176: =IF(OR('Tabel 1 Sydj'!G174<5,'Tabel 2 Sydj'!I176<0.5),"-",IFERROR('Tabel 2 Sydj'!I176/'Tabel 1 Sydj'!G174*100,"-")) -> - | J176: =IF(OR('Tabel 1 Sydj'!G174<5,'Tabel 2 Sydj'!J176<0.5),"-",IFERROR('Tabel 2 Sydj'!J176/'Tabel 1 Sydj'!G174*100,"-")) -> -
A177: Landsk. Arkt. | C177: =IF(OR('Tabel 1 Sydj'!C175<5,'Tabel 2 Sydj'!C177<0.5),"-",IFERROR('Tabel 2 Sydj'!C177/'Tabel 1 Sydj'!C175*100,"-")) -> - | D177: =IF(OR('Tabel 1 Sydj'!C175<5,'Tabel 2 Sydj'!D177<0.5),"-",IFERROR('Tabel 2 Sydj'!D177/'Tabel 1 Sydj'!C175*100,"-")) -> - | F177: =IF(OR('Tabel 1 Sydj'!E175<5,'Tabel 2 Sydj'!F177<0.5),"-",IFERROR('Tabel 2 Sydj'!F177/'Tabel 1 Sydj'!E175*100,"-")) -> - | G177: =IF(OR('Tabel 1 Sydj'!E175<5,'Tabel 2 Sydj'!G177<0.5),"-",IFERROR('Tabel 2 Sydj'!G177/'Tabel 1 Sydj'!E175*100,"-")) -> - | I177: =IF(OR('Tabel 1 Sydj'!G175<5,'Tabel 2 Sydj'!I177<0.5),"-",IFERROR('Tabel 2 Sydj'!I177/'Tabel 1 Sydj'!G175*100,"-")) -> - | J177: =IF(OR('Tabel 1 Sydj'!G175<5,'Tabel 2 Sydj'!J177<0.5),"-",IFERROR('Tabel 2 Sydj'!J177/'Tabel 1 Sydj'!G175*100,"-")) -> -
A178: Hortonom | C178: =IF(OR('Tabel 1 Sydj'!C176<5,'Tabel 2 Sydj'!C178<0.5),"-",IFERROR('Tabel 2 Sydj'!C178/'Tabel 1 Sydj'!C176*100,"-")) -> - | D178: =IF(OR('Tabel 1 Sydj'!C176<5,'Tabel 2 Sydj'!D178<0.5),"-",IFERROR('Tabel 2 Sydj'!D178/'Tabel 1 Sydj'!C176*100,"-")) -> - | F178: =IF(OR('Tabel 1 Sydj'!E176<5,'Tabel 2 Sydj'!F178<0.5),"-",IFERROR('Tabel 2 Sydj'!F178/'Tabel 1 Sydj'!E176*100,"-")) -> - | G178: =IF(OR('Tabel 1 Sydj'!E176<5,'Tabel 2 Sydj'!G178<0.5),"-",IFERROR('Tabel 2 Sydj'!G178/'Tabel 1 Sydj'!E176*100,"-")) -> - | I178: =IF(OR('Tabel 1 Sydj'!G176<5,'Tabel 2 Sydj'!I178<0.5),"-",IFERROR('Tabel 2 Sydj'!I178/'Tabel 1 Sydj'!G176*100,"-")) -> - | J178: =IF(OR('Tabel 1 Sydj'!G176<5,'Tabel 2 Sydj'!J178<0.5),"-",IFERROR('Tabel 2 Sydj'!J178/'Tabel 1 Sydj'!G176*100,"-")) -> -
A179: Forstkand. | C179: =IF(OR('Tabel 1 Sydj'!C177<5,'Tabel 2 Sydj'!C179<0.5),"-",IFERROR('Tabel 2 Sydj'!C179/'Tabel 1 Sydj'!C177*100,"-")) -> - | D179: =IF(OR('Tabel 1 Sydj'!C177<5,'Tabel 2 Sydj'!D179<0.5),"-",IFERROR('Tabel 2 Sydj'!D179/'Tabel 1 Sydj'!C177*100,"-")) -> - | F179: =IF(OR('Tabel 1 Sydj'!E177<5,'Tabel 2 Sydj'!F179<0.5),"-",IFERROR('Tabel 2 Sydj'!F179/'Tabel 1 Sydj'!E177*100,"-")) -> - | G179: =IF(OR('Tabel 1 Sydj'!E177<5,'Tabel 2 Sydj'!G179<0.5),"-",IFERROR('Tabel 2 Sydj'!G179/'Tabel 1 Sydj'!E177*100,"-")) -> - | I179: =IF(OR('Tabel 1 Sydj'!G177<5,'Tabel 2 Sydj'!I179<0.5),"-",IFERROR('Tabel 2 Sydj'!I179/'Tabel 1 Sydj'!G177*100,"-")) -> - | J179: =IF(OR('Tabel 1 Sydj'!G177<5,'Tabel 2 Sydj'!J179<0.5),"-",IFERROR('Tabel 2 Sydj'!J179/'Tabel 1 Sydj'!G177*100,"-")) -> -
A180: Jordbrugsakad. | C180: =IF(OR('Tabel 1 Sydj'!C178<5,'Tabel 2 Sydj'!C180<0.5),"-",IFERROR('Tabel 2 Sydj'!C180/'Tabel 1 Sydj'!C178*100,"-")) -> - | D180: =IF(OR('Tabel 1 Sydj'!C178<5,'Tabel 2 Sydj'!D180<0.5),"-",IFERROR('Tabel 2 Sydj'!D180/'Tabel 1 Sydj'!C178*100,"-")) -> - | F180: =IF(OR('Tabel 1 Sydj'!E178<5,'Tabel 2 Sydj'!F180<0.5),"-",IFERROR('Tabel 2 Sydj'!F180/'Tabel 1 Sydj'!E178*100,"-")) -> - | G180: =IF(OR('Tabel 1 Sydj'!E178<5,'Tabel 2 Sydj'!G180<0.5),"-",IFERROR('Tabel 2 Sydj'!G180/'Tabel 1 Sydj'!E178*100,"-")) -> - | I180: =IF(OR('Tabel 1 Sydj'!G178<5,'Tabel 2 Sydj'!I180<0.5),"-",IFERROR('Tabel 2 Sydj'!I180/'Tabel 1 Sydj'!G178*100,"-")) -> - | J180: =IF(OR('Tabel 1 Sydj'!G178<5,'Tabel 2 Sydj'!J180<0.5),"-",IFERROR('Tabel 2 Sydj'!J180/'Tabel 1 Sydj'!G178*100,"-")) -> -
A181: Mejeriing. | C181: =IF(OR('Tabel 1 Sydj'!C179<5,'Tabel 2 Sydj'!C181<0.5),"-",IFERROR('Tabel 2 Sydj'!C181/'Tabel 1 Sydj'!C179*100,"-")) -> - | D181: =IF(OR('Tabel 1 Sydj'!C179<5,'Tabel 2 Sydj'!D181<0.5),"-",IFERROR('Tabel 2 Sydj'!D181/'Tabel 1 Sydj'!C179*100,"-")) -> - | F181: =IF(OR('Tabel 1 Sydj'!E179<5,'Tabel 2 Sydj'!F181<0.5),"-",IFERROR('Tabel 2 Sydj'!F181/'Tabel 1 Sydj'!E179*100,"-")) -> - | G181: =IF(OR('Tabel 1 Sydj'!E179<5,'Tabel 2 Sydj'!G181<0.5),"-",IFERROR('Tabel 2 Sydj'!G181/'Tabel 1 Sydj'!E179*100,"-")) -> - | I181: =IF(OR('Tabel 1 Sydj'!G179<5,'Tabel 2 Sydj'!I181<0.5),"-",IFERROR('Tabel 2 Sydj'!I181/'Tabel 1 Sydj'!G179*100,"-")) -> - | J181: =IF(OR('Tabel 1 Sydj'!G179<5,'Tabel 2 Sydj'!J181<0.5),"-",IFERROR('Tabel 2 Sydj'!J181/'Tabel 1 Sydj'!G179*100,"-")) -> -
A182: Levn.m.kand. | C182: =IF(OR('Tabel 1 Sydj'!C180<5,'Tabel 2 Sydj'!C182<0.5),"-",IFERROR('Tabel 2 Sydj'!C182/'Tabel 1 Sydj'!C180*100,"-")) -> - | D182: =IF(OR('Tabel 1 Sydj'!C180<5,'Tabel 2 Sydj'!D182<0.5),"-",IFERROR('Tabel 2 Sydj'!D182/'Tabel 1 Sydj'!C180*100,"-")) -> - | F182: =IF(OR('Tabel 1 Sydj'!E180<5,'Tabel 2 Sydj'!F182<0.5),"-",IFERROR('Tabel 2 Sydj'!F182/'Tabel 1 Sydj'!E180*100,"-")) -> - | G182: =IF(OR('Tabel 1 Sydj'!E180<5,'Tabel 2 Sydj'!G182<0.5),"-",IFERROR('Tabel 2 Sydj'!G182/'Tabel 1 Sydj'!E180*100,"-")) -> - | I182: =IF(OR('Tabel 1 Sydj'!G180<5,'Tabel 2 Sydj'!I182<0.5),"-",IFERROR('Tabel 2 Sydj'!I182/'Tabel 1 Sydj'!G180*100,"-")) -> - | J182: =IF(OR('Tabel 1 Sydj'!G180<5,'Tabel 2 Sydj'!J182<0.5),"-",IFERROR('Tabel 2 Sydj'!J182/'Tabel 1 Sydj'!G180*100,"-")) -> -
A183: Dyrlæge | C183: =IF(OR('Tabel 1 Sydj'!C181<5,'Tabel 2 Sydj'!C183<0.5),"-",IFERROR('Tabel 2 Sydj'!C183/'Tabel 1 Sydj'!C181*100,"-")) -> - | D183: =IF(OR('Tabel 1 Sydj'!C181<5,'Tabel 2 Sydj'!D183<0.5),"-",IFERROR('Tabel 2 Sydj'!D183/'Tabel 1 Sydj'!C181*100,"-")) -> - | F183: =IF(OR('Tabel 1 Sydj'!E181<5,'Tabel 2 Sydj'!F183<0.5),"-",IFERROR('Tabel 2 Sydj'!F183/'Tabel 1 Sydj'!E181*100,"-")) -> 7.142857143 | G183: =IF(OR('Tabel 1 Sydj'!E181<5,'Tabel 2 Sydj'!G183<0.5),"-",IFERROR('Tabel 2 Sydj'!G183/'Tabel 1 Sydj'!E181*100,"-")) -> 4.726857998 | I183: =IF(OR('Tabel 1 Sydj'!G181<5,'Tabel 2 Sydj'!I183<0.5),"-",IFERROR('Tabel 2 Sydj'!I183/'Tabel 1 Sydj'!G181*100,"-")) -> 5.882352941 | J183: =IF(OR('Tabel 1 Sydj'!G181<5,'Tabel 2 Sydj'!J183<0.5),"-",IFERROR('Tabel 2 Sydj'!J183/'Tabel 1 Sydj'!G181*100,"-")) -> 3.892706587
A184: Farmaceut | C184: =IF(OR('Tabel 1 Sydj'!C182<5,'Tabel 2 Sydj'!C184<0.5),"-",IFERROR('Tabel 2 Sydj'!C184/'Tabel 1 Sydj'!C182*100,"-")) -> - | D184: =IF(OR('Tabel 1 Sydj'!C182<5,'Tabel 2 Sydj'!D184<0.5),"-",IFERROR('Tabel 2 Sydj'!D184/'Tabel 1 Sydj'!C182*100,"-")) -> - | F184: =IF(OR('Tabel 1 Sydj'!E182<5,'Tabel 2 Sydj'!F184<0.5),"-",IFERROR('Tabel 2 Sydj'!F184/'Tabel 1 Sydj'!E182*100,"-")) -> - | G184: =IF(OR('Tabel 1 Sydj'!E182<5,'Tabel 2 Sydj'!G184<0.5),"-",IFERROR('Tabel 2 Sydj'!G184/'Tabel 1 Sydj'!E182*100,"-")) -> - | I184: =IF(OR('Tabel 1 Sydj'!G182<5,'Tabel 2 Sydj'!I184<0.5),"-",IFERROR('Tabel 2 Sydj'!I184/'Tabel 1 Sydj'!G182*100,"-")) -> - | J184: =IF(OR('Tabel 1 Sydj'!G182<5,'Tabel 2 Sydj'!J184<0.5),"-",IFERROR('Tabel 2 Sydj'!J184/'Tabel 1 Sydj'!G182*100,"-")) -> -
A185: Læge | C185: =IF(OR('Tabel 1 Sydj'!C183<5,'Tabel 2 Sydj'!C185<0.5),"-",IFERROR('Tabel 2 Sydj'!C185/'Tabel 1 Sydj'!C183*100,"-")) -> 4.761904762 | D185: =IF(OR('Tabel 1 Sydj'!C183<5,'Tabel 2 Sydj'!D185<0.5),"-",IFERROR('Tabel 2 Sydj'!D185/'Tabel 1 Sydj'!C183*100,"-")) -> - | F185: =IF(OR('Tabel 1 Sydj'!E183<5,'Tabel 2 Sydj'!F185<0.5),"-",IFERROR('Tabel 2 Sydj'!F185/'Tabel 1 Sydj'!E183*100,"-")) -> - | G185: =IF(OR('Tabel 1 Sydj'!E183<5,'Tabel 2 Sydj'!G185<0.5),"-",IFERROR('Tabel 2 Sydj'!G185/'Tabel 1 Sydj'!E183*100,"-")) -> - | I185: =IF(OR('Tabel 1 Sydj'!G183<5,'Tabel 2 Sydj'!I185<0.5),"-",IFERROR('Tabel 2 Sydj'!I185/'Tabel 1 Sydj'!G183*100,"-")) -> 1.612903226 | J185: =IF(OR('Tabel 1 Sydj'!G183<5,'Tabel 2 Sydj'!J185<0.5),"-",IFERROR('Tabel 2 Sydj'!J185/'Tabel 1 Sydj'!G183*100,"-")) -> -
A186: Tandlæge | C186: =IF(OR('Tabel 1 Sydj'!C184<5,'Tabel 2 Sydj'!C186<0.5),"-",IFERROR('Tabel 2 Sydj'!C186/'Tabel 1 Sydj'!C184*100,"-")) -> - | D186: =IF(OR('Tabel 1 Sydj'!C184<5,'Tabel 2 Sydj'!D186<0.5),"-",IFERROR('Tabel 2 Sydj'!D186/'Tabel 1 Sydj'!C184*100,"-")) -> - | F186: =IF(OR('Tabel 1 Sydj'!E184<5,'Tabel 2 Sydj'!F186<0.5),"-",IFERROR('Tabel 2 Sydj'!F186/'Tabel 1 Sydj'!E184*100,"-")) -> - | G186: =IF(OR('Tabel 1 Sydj'!E184<5,'Tabel 2 Sydj'!G186<0.5),"-",IFERROR('Tabel 2 Sydj'!G186/'Tabel 1 Sydj'!E184*100,"-")) -> - | I186: =IF(OR('Tabel 1 Sydj'!G184<5,'Tabel 2 Sydj'!I186<0.5),"-",IFERROR('Tabel 2 Sydj'!I186/'Tabel 1 Sydj'!G184*100,"-")) -> - | J186: =IF(OR('Tabel 1 Sydj'!G184<5,'Tabel 2 Sydj'!J186<0.5),"-",IFERROR('Tabel 2 Sydj'!J186/'Tabel 1 Sydj'!G184*100,"-")) -> -
A187: Arkitekt | C187: =IF(OR('Tabel 1 Sydj'!C185<5,'Tabel 2 Sydj'!C187<0.5),"-",IFERROR('Tabel 2 Sydj'!C187/'Tabel 1 Sydj'!C185*100,"-")) -> - | D187: =IF(OR('Tabel 1 Sydj'!C185<5,'Tabel 2 Sydj'!D187<0.5),"-",IFERROR('Tabel 2 Sydj'!D187/'Tabel 1 Sydj'!C185*100,"-")) -> - | F187: =IF(OR('Tabel 1 Sydj'!E185<5,'Tabel 2 Sydj'!F187<0.5),"-",IFERROR('Tabel 2 Sydj'!F187/'Tabel 1 Sydj'!E185*100,"-")) -> - | G187: =IF(OR('Tabel 1 Sydj'!E185<5,'Tabel 2 Sydj'!G187<0.5),"-",IFERROR('Tabel 2 Sydj'!G187/'Tabel 1 Sydj'!E185*100,"-")) -> - | I187: =IF(OR('Tabel 1 Sydj'!G185<5,'Tabel 2 Sydj'!I187<0.5),"-",IFERROR('Tabel 2 Sydj'!I187/'Tabel 1 Sydj'!G185*100,"-")) -> - | J187: =IF(OR('Tabel 1 Sydj'!G185<5,'Tabel 2 Sydj'!J187<0.5),"-",IFERROR('Tabel 2 Sydj'!J187/'Tabel 1 Sydj'!G185*100,"-")) -> -
A188: Landinspek. | C188: =IF(OR('Tabel 1 Sydj'!C186<5,'Tabel 2 Sydj'!C188<0.5),"-",IFERROR('Tabel 2 Sydj'!C188/'Tabel 1 Sydj'!C186*100,"-")) -> - | D188: =IF(OR('Tabel 1 Sydj'!C186<5,'Tabel 2 Sydj'!D188<0.5),"-",IFERROR('Tabel 2 Sydj'!D188/'Tabel 1 Sydj'!C186*100,"-")) -> - | F188: =IF(OR('Tabel 1 Sydj'!E186<5,'Tabel 2 Sydj'!F188<0.5),"-",IFERROR('Tabel 2 Sydj'!F188/'Tabel 1 Sydj'!E186*100,"-")) -> - | G188: =IF(OR('Tabel 1 Sydj'!E186<5,'Tabel 2 Sydj'!G188<0.5),"-",IFERROR('Tabel 2 Sydj'!G188/'Tabel 1 Sydj'!E186*100,"-")) -> - | I188: =IF(OR('Tabel 1 Sydj'!G186<5,'Tabel 2 Sydj'!I188<0.5),"-",IFERROR('Tabel 2 Sydj'!I188/'Tabel 1 Sydj'!G186*100,"-")) -> - | J188: =IF(OR('Tabel 1 Sydj'!G186<5,'Tabel 2 Sydj'!J188<0.5),"-",IFERROR('Tabel 2 Sydj'!J188/'Tabel 1 Sydj'!G186*100,"-")) -> -
A189: Bibliotekar | C189: =IF(OR('Tabel 1 Sydj'!C187<5,'Tabel 2 Sydj'!C189<0.5),"-",IFERROR('Tabel 2 Sydj'!C189/'Tabel 1 Sydj'!C187*100,"-")) -> - | D189: =IF(OR('Tabel 1 Sydj'!C187<5,'Tabel 2 Sydj'!D189<0.5),"-",IFERROR('Tabel 2 Sydj'!D189/'Tabel 1 Sydj'!C187*100,"-")) -> - | F189: =IF(OR('Tabel 1 Sydj'!E187<5,'Tabel 2 Sydj'!F189<0.5),"-",IFERROR('Tabel 2 Sydj'!F189/'Tabel 1 Sydj'!E187*100,"-")) -> - | G189: =IF(OR('Tabel 1 Sydj'!E187<5,'Tabel 2 Sydj'!G189<0.5),"-",IFERROR('Tabel 2 Sydj'!G189/'Tabel 1 Sydj'!E187*100,"-")) -> - | I189: =IF(OR('Tabel 1 Sydj'!G187<5,'Tabel 2 Sydj'!I189<0.5),"-",IFERROR('Tabel 2 Sydj'!I189/'Tabel 1 Sydj'!G187*100,"-")) -> - | J189: =IF(OR('Tabel 1 Sydj'!G187<5,'Tabel 2 Sydj'!J189<0.5),"-",IFERROR('Tabel 2 Sydj'!J189/'Tabel 1 Sydj'!G187*100,"-")) -> -
A190: Musikudd. | C190: =IF(OR('Tabel 1 Sydj'!C188<5,'Tabel 2 Sydj'!C190<0.5),"-",IFERROR('Tabel 2 Sydj'!C190/'Tabel 1 Sydj'!C188*100,"-")) -> - | D190: =IF(OR('Tabel 1 Sydj'!C188<5,'Tabel 2 Sydj'!D190<0.5),"-",IFERROR('Tabel 2 Sydj'!D190/'Tabel 1 Sydj'!C188*100,"-")) -> - | F190: =IF(OR('Tabel 1 Sydj'!E188<5,'Tabel 2 Sydj'!F190<0.5),"-",IFERROR('Tabel 2 Sydj'!F190/'Tabel 1 Sydj'!E188*100,"-")) -> - | G190: =IF(OR('Tabel 1 Sydj'!E188<5,'Tabel 2 Sydj'!G190<0.5),"-",IFERROR('Tabel 2 Sydj'!G190/'Tabel 1 Sydj'!E188*100,"-")) -> - | I190: =IF(OR('Tabel 1 Sydj'!G188<5,'Tabel 2 Sydj'!I190<0.5),"-",IFERROR('Tabel 2 Sydj'!I190/'Tabel 1 Sydj'!G188*100,"-")) -> - | J190: =IF(OR('Tabel 1 Sydj'!G188<5,'Tabel 2 Sydj'!J190<0.5),"-",IFERROR('Tabel 2 Sydj'!J190/'Tabel 1 Sydj'!G188*100,"-")) -> -
A191: Teolog | C191: =IF(OR('Tabel 1 Sydj'!C189<5,'Tabel 2 Sydj'!C191<0.5),"-",IFERROR('Tabel 2 Sydj'!C191/'Tabel 1 Sydj'!C189*100,"-")) -> - | D191: =IF(OR('Tabel 1 Sydj'!C189<5,'Tabel 2 Sydj'!D191<0.5),"-",IFERROR('Tabel 2 Sydj'!D191/'Tabel 1 Sydj'!C189*100,"-")) -> - | F191: =IF(OR('Tabel 1 Sydj'!E189<5,'Tabel 2 Sydj'!F191<0.5),"-",IFERROR('Tabel 2 Sydj'!F191/'Tabel 1 Sydj'!E189*100,"-")) -> - | G191: =IF(OR('Tabel 1 Sydj'!E189<5,'Tabel 2 Sydj'!G191<0.5),"-",IFERROR('Tabel 2 Sydj'!G191/'Tabel 1 Sydj'!E189*100,"-")) -> - | I191: =IF(OR('Tabel 1 Sydj'!G189<5,'Tabel 2 Sydj'!I191<0.5),"-",IFERROR('Tabel 2 Sydj'!I191/'Tabel 1 Sydj'!G189*100,"-")) -> - | J191: =IF(OR('Tabel 1 Sydj'!G189<5,'Tabel 2 Sydj'!J191<0.5),"-",IFERROR('Tabel 2 Sydj'!J191/'Tabel 1 Sydj'!G189*100,"-")) -> -
A192: Psykolog | C192: =IF(OR('Tabel 1 Sydj'!C190<5,'Tabel 2 Sydj'!C192<0.5),"-",IFERROR('Tabel 2 Sydj'!C192/'Tabel 1 Sydj'!C190*100,"-")) -> - | D192: =IF(OR('Tabel 1 Sydj'!C190<5,'Tabel 2 Sydj'!D192<0.5),"-",IFERROR('Tabel 2 Sydj'!D192/'Tabel 1 Sydj'!C190*100,"-")) -> - | F192: =IF(OR('Tabel 1 Sydj'!E190<5,'Tabel 2 Sydj'!F192<0.5),"-",IFERROR('Tabel 2 Sydj'!F192/'Tabel 1 Sydj'!E190*100,"-")) -> 2.631578947 | G192: =IF(OR('Tabel 1 Sydj'!E190<5,'Tabel 2 Sydj'!G192<0.5),"-",IFERROR('Tabel 2 Sydj'!G192/'Tabel 1 Sydj'!E190*100,"-")) -> 2.631086542 | I192: =IF(OR('Tabel 1 Sydj'!G190<5,'Tabel 2 Sydj'!I192<0.5),"-",IFERROR('Tabel 2 Sydj'!I192/'Tabel 1 Sydj'!G190*100,"-")) -> 2.127659574 | J192: =IF(OR('Tabel 1 Sydj'!G190<5,'Tabel 2 Sydj'!J192<0.5),"-",IFERROR('Tabel 2 Sydj'!J192/'Tabel 1 Sydj'!G190*100,"-")) -> 2.127261459
A193: Jurist | C193: =IF(OR('Tabel 1 Sydj'!C191<5,'Tabel 2 Sydj'!C193<0.5),"-",IFERROR('Tabel 2 Sydj'!C193/'Tabel 1 Sydj'!C191*100,"-")) -> 4.347826087 | D193: =IF(OR('Tabel 1 Sydj'!C191<5,'Tabel 2 Sydj'!D193<0.5),"-",IFERROR('Tabel 2 Sydj'!D193/'Tabel 1 Sydj'!C191*100,"-")) -> 4.347012547 | F193: =IF(OR('Tabel 1 Sydj'!E191<5,'Tabel 2 Sydj'!F193<0.5),"-",IFERROR('Tabel 2 Sydj'!F193/'Tabel 1 Sydj'!E191*100,"-")) -> 6.060606061 | G193: =IF(OR('Tabel 1 Sydj'!E191<5,'Tabel 2 Sydj'!G193<0.5),"-",IFERROR('Tabel 2 Sydj'!G193/'Tabel 1 Sydj'!E191*100,"-")) -> 5.352596633 | I193: =IF(OR('Tabel 1 Sydj'!G191<5,'Tabel 2 Sydj'!I193<0.5),"-",IFERROR('Tabel 2 Sydj'!I193/'Tabel 1 Sydj'!G191*100,"-")) -> 5.357142857 | J193: =IF(OR('Tabel 1 Sydj'!G191<5,'Tabel 2 Sydj'!J193<0.5),"-",IFERROR('Tabel 2 Sydj'!J193/'Tabel 1 Sydj'!G191*100,"-")) -> 4.939588884
A194: Økonom | C194: =IF(OR('Tabel 1 Sydj'!C192<5,'Tabel 2 Sydj'!C194<0.5),"-",IFERROR('Tabel 2 Sydj'!C194/'Tabel 1 Sydj'!C192*100,"-")) -> - | D194: =IF(OR('Tabel 1 Sydj'!C192<5,'Tabel 2 Sydj'!D194<0.5),"-",IFERROR('Tabel 2 Sydj'!D194/'Tabel 1 Sydj'!C192*100,"-")) -> - | F194: =IF(OR('Tabel 1 Sydj'!E192<5,'Tabel 2 Sydj'!F194<0.5),"-",IFERROR('Tabel 2 Sydj'!F194/'Tabel 1 Sydj'!E192*100,"-")) -> - | G194: =IF(OR('Tabel 1 Sydj'!E192<5,'Tabel 2 Sydj'!G194<0.5),"-",IFERROR('Tabel 2 Sydj'!G194/'Tabel 1 Sydj'!E192*100,"-")) -> - | I194: =IF(OR('Tabel 1 Sydj'!G192<5,'Tabel 2 Sydj'!I194<0.5),"-",IFERROR('Tabel 2 Sydj'!I194/'Tabel 1 Sydj'!G192*100,"-")) -> - | J194: =IF(OR('Tabel 1 Sydj'!G192<5,'Tabel 2 Sydj'!J194<0.5),"-",IFERROR('Tabel 2 Sydj'!J194/'Tabel 1 Sydj'!G192*100,"-")) -> -
A195: Samf. Adm. | C195: =IF(OR('Tabel 1 Sydj'!C193<5,'Tabel 2 Sydj'!C195<0.5),"-",IFERROR('Tabel 2 Sydj'!C195/'Tabel 1 Sydj'!C193*100,"-")) -> 2.5 | D195: =IF(OR('Tabel 1 Sydj'!C193<5,'Tabel 2 Sydj'!D195<0.5),"-",IFERROR('Tabel 2 Sydj'!D195/'Tabel 1 Sydj'!C193*100,"-")) -> - | F195: =IF(OR('Tabel 1 Sydj'!E193<5,'Tabel 2 Sydj'!F195<0.5),"-",IFERROR('Tabel 2 Sydj'!F195/'Tabel 1 Sydj'!E193*100,"-")) -> 3.636363636 | G195: =IF(OR('Tabel 1 Sydj'!E193<5,'Tabel 2 Sydj'!G195<0.5),"-",IFERROR('Tabel 2 Sydj'!G195/'Tabel 1 Sydj'!E193*100,"-")) -> 3.369187415 | I195: =IF(OR('Tabel 1 Sydj'!G193<5,'Tabel 2 Sydj'!I195<0.5),"-",IFERROR('Tabel 2 Sydj'!I195/'Tabel 1 Sydj'!G193*100,"-")) -> 3.157894737 | J195: =IF(OR('Tabel 1 Sydj'!G193<5,'Tabel 2 Sydj'!J195<0.5),"-",IFERROR('Tabel 2 Sydj'!J195/'Tabel 1 Sydj'!G193*100,"-")) -> 2.371424726
A196: Cand. Merc. | C196: =IF(OR('Tabel 1 Sydj'!C194<5,'Tabel 2 Sydj'!C196<0.5),"-",IFERROR('Tabel 2 Sydj'!C196/'Tabel 1 Sydj'!C194*100,"-")) -> 6.194690265 | D196: =IF(OR('Tabel 1 Sydj'!C194<5,'Tabel 2 Sydj'!D196<0.5),"-",IFERROR('Tabel 2 Sydj'!D196/'Tabel 1 Sydj'!C194*100,"-")) -> 4.799282895 | F196: =IF(OR('Tabel 1 Sydj'!E194<5,'Tabel 2 Sydj'!F196<0.5),"-",IFERROR('Tabel 2 Sydj'!F196/'Tabel 1 Sydj'!E194*100,"-")) -> 3.773584906 | G196: =IF(OR('Tabel 1 Sydj'!E194<5,'Tabel 2 Sydj'!G196<0.5),"-",IFERROR('Tabel 2 Sydj'!G196/'Tabel 1 Sydj'!E194*100,"-")) -> 3.772878815 | I196: =IF(OR('Tabel 1 Sydj'!G194<5,'Tabel 2 Sydj'!I196<0.5),"-",IFERROR('Tabel 2 Sydj'!I196/'Tabel 1 Sydj'!G194*100,"-")) -> 5.02283105 | J196: =IF(OR('Tabel 1 Sydj'!G194<5,'Tabel 2 Sydj'!J196<0.5),"-",IFERROR('Tabel 2 Sydj'!J196/'Tabel 1 Sydj'!G194*100,"-")) -> 4.302484573
A197: HA | C197: =IF(OR('Tabel 1 Sydj'!C195<5,'Tabel 2 Sydj'!C197<0.5),"-",IFERROR('Tabel 2 Sydj'!C197/'Tabel 1 Sydj'!C195*100,"-")) -> 4.166666667 | D197: =IF(OR('Tabel 1 Sydj'!C195<5,'Tabel 2 Sydj'!D197<0.5),"-",IFERROR('Tabel 2 Sydj'!D197/'Tabel 1 Sydj'!C195*100,"-")) -> 4.165887025 | F197: =IF(OR('Tabel 1 Sydj'!E195<5,'Tabel 2 Sydj'!F197<0.5),"-",IFERROR('Tabel 2 Sydj'!F197/'Tabel 1 Sydj'!E195*100,"-")) -> 2.43902439 | G197: =IF(OR('Tabel 1 Sydj'!E195<5,'Tabel 2 Sydj'!G197<0.5),"-",IFERROR('Tabel 2 Sydj'!G197/'Tabel 1 Sydj'!E195*100,"-")) -> 2.438568014 | I197: =IF(OR('Tabel 1 Sydj'!G195<5,'Tabel 2 Sydj'!I197<0.5),"-",IFERROR('Tabel 2 Sydj'!I197/'Tabel 1 Sydj'!G195*100,"-")) -> 3.370786517 | J197: =IF(OR('Tabel 1 Sydj'!G195<5,'Tabel 2 Sydj'!J197<0.5),"-",IFERROR('Tabel 2 Sydj'!J197/'Tabel 1 Sydj'!G195*100,"-")) -> 3.370155795
A198: HD | C198: =IF(OR('Tabel 1 Sydj'!C196<5,'Tabel 2 Sydj'!C198<0.5),"-",IFERROR('Tabel 2 Sydj'!C198/'Tabel 1 Sydj'!C196*100,"-")) -> - | D198: =IF(OR('Tabel 1 Sydj'!C196<5,'Tabel 2 Sydj'!D198<0.5),"-",IFERROR('Tabel 2 Sydj'!D198/'Tabel 1 Sydj'!C196*100,"-")) -> - | F198: =IF(OR('Tabel 1 Sydj'!E196<5,'Tabel 2 Sydj'!F198<0.5),"-",IFERROR('Tabel 2 Sydj'!F198/'Tabel 1 Sydj'!E196*100,"-")) -> 4.545454545 | G198: =IF(OR('Tabel 1 Sydj'!E196<5,'Tabel 2 Sydj'!G198<0.5),"-",IFERROR('Tabel 2 Sydj'!G198/'Tabel 1 Sydj'!E196*100,"-")) -> 4.544604027 | I198: =IF(OR('Tabel 1 Sydj'!G196<5,'Tabel 2 Sydj'!I198<0.5),"-",IFERROR('Tabel 2 Sydj'!I198/'Tabel 1 Sydj'!G196*100,"-")) -> 2.083333333 | J198: =IF(OR('Tabel 1 Sydj'!G196<5,'Tabel 2 Sydj'!J198<0.5),"-",IFERROR('Tabel 2 Sydj'!J198/'Tabel 1 Sydj'!G196*100,"-")) -> 2.082943512
A199: Komm. og Sprog | C199: =IF(OR('Tabel 1 Sydj'!C197<5,'Tabel 2 Sydj'!C199<0.5),"-",IFERROR('Tabel 2 Sydj'!C199/'Tabel 1 Sydj'!C197*100,"-")) -> - | D199: =IF(OR('Tabel 1 Sydj'!C197<5,'Tabel 2 Sydj'!D199<0.5),"-",IFERROR('Tabel 2 Sydj'!D199/'Tabel 1 Sydj'!C197*100,"-")) -> - | F199: =IF(OR('Tabel 1 Sydj'!E197<5,'Tabel 2 Sydj'!F199<0.5),"-",IFERROR('Tabel 2 Sydj'!F199/'Tabel 1 Sydj'!E197*100,"-")) -> 5.172413793 | G199: =IF(OR('Tabel 1 Sydj'!E197<5,'Tabel 2 Sydj'!G199<0.5),"-",IFERROR('Tabel 2 Sydj'!G199/'Tabel 1 Sydj'!E197*100,"-")) -> 4.296096198 | I199: =IF(OR('Tabel 1 Sydj'!G197<5,'Tabel 2 Sydj'!I199<0.5),"-",IFERROR('Tabel 2 Sydj'!I199/'Tabel 1 Sydj'!G197*100,"-")) -> 4.761904762 | J199: =IF(OR('Tabel 1 Sydj'!G197<5,'Tabel 2 Sydj'!J199<0.5),"-",IFERROR('Tabel 2 Sydj'!J199/'Tabel 1 Sydj'!G197*100,"-")) -> 3.955136182
A200: Cand. IT. | C200: =IF(OR('Tabel 1 Sydj'!C198<5,'Tabel 2 Sydj'!C200<0.5),"-",IFERROR('Tabel 2 Sydj'!C200/'Tabel 1 Sydj'!C198*100,"-")) -> 14.28571429 | D200: =IF(OR('Tabel 1 Sydj'!C198<5,'Tabel 2 Sydj'!D200<0.5),"-",IFERROR('Tabel 2 Sydj'!D200/'Tabel 1 Sydj'!C198*100,"-")) -> 14.28304123 | F200: =IF(OR('Tabel 1 Sydj'!E198<5,'Tabel 2 Sydj'!F200<0.5),"-",IFERROR('Tabel 2 Sydj'!F200/'Tabel 1 Sydj'!E198*100,"-")) -> 12.5 | G200: =IF(OR('Tabel 1 Sydj'!E198<5,'Tabel 2 Sydj'!G200<0.5),"-",IFERROR('Tabel 2 Sydj'!G200/'Tabel 1 Sydj'!E198*100,"-")) -> 9.036050646 | I200: =IF(OR('Tabel 1 Sydj'!G198<5,'Tabel 2 Sydj'!I200<0.5),"-",IFERROR('Tabel 2 Sydj'!I200/'Tabel 1 Sydj'!G198*100,"-")) -> 13.63636364 | J200: =IF(OR('Tabel 1 Sydj'!G198<5,'Tabel 2 Sydj'!J200<0.5),"-",IFERROR('Tabel 2 Sydj'!J200/'Tabel 1 Sydj'!G198*100,"-")) -> 12.37504465
A201: Bac. Samf. | C201: =IF(OR('Tabel 1 Sydj'!C199<5,'Tabel 2 Sydj'!C201<0.5),"-",IFERROR('Tabel 2 Sydj'!C201/'Tabel 1 Sydj'!C199*100,"-")) -> - | D201: =IF(OR('Tabel 1 Sydj'!C199<5,'Tabel 2 Sydj'!D201<0.5),"-",IFERROR('Tabel 2 Sydj'!D201/'Tabel 1 Sydj'!C199*100,"-")) -> - | F201: =IF(OR('Tabel 1 Sydj'!E199<5,'Tabel 2 Sydj'!F201<0.5),"-",IFERROR('Tabel 2 Sydj'!F201/'Tabel 1 Sydj'!E199*100,"-")) -> 11.11111111 | G201: =IF(OR('Tabel 1 Sydj'!E199<5,'Tabel 2 Sydj'!G201<0.5),"-",IFERROR('Tabel 2 Sydj'!G201/'Tabel 1 Sydj'!E199*100,"-")) -> 11.10903207 | I201: =IF(OR('Tabel 1 Sydj'!G199<5,'Tabel 2 Sydj'!I201<0.5),"-",IFERROR('Tabel 2 Sydj'!I201/'Tabel 1 Sydj'!G199*100,"-")) -> 18.18181818 | J201: =IF(OR('Tabel 1 Sydj'!G199<5,'Tabel 2 Sydj'!J201<0.5),"-",IFERROR('Tabel 2 Sydj'!J201/'Tabel 1 Sydj'!G199*100,"-")) -> 17.48666103
A202: Bac. Hum. | C202: =IF(OR('Tabel 1 Sydj'!C200<5,'Tabel 2 Sydj'!C202<0.5),"-",IFERROR('Tabel 2 Sydj'!C202/'Tabel 1 Sydj'!C200*100,"-")) -> 12.5 | D202: =IF(OR('Tabel 1 Sydj'!C200<5,'Tabel 2 Sydj'!D202<0.5),"-",IFERROR('Tabel 2 Sydj'!D202/'Tabel 1 Sydj'!C200*100,"-")) -> 12.49766107 | F202: =IF(OR('Tabel 1 Sydj'!E200<5,'Tabel 2 Sydj'!F202<0.5),"-",IFERROR('Tabel 2 Sydj'!F202/'Tabel 1 Sydj'!E200*100,"-")) -> 7.692307692 | G202: =IF(OR('Tabel 1 Sydj'!E200<5,'Tabel 2 Sydj'!G202<0.5),"-",IFERROR('Tabel 2 Sydj'!G202/'Tabel 1 Sydj'!E200*100,"-")) -> 7.690868353 | I202: =IF(OR('Tabel 1 Sydj'!G200<5,'Tabel 2 Sydj'!I202<0.5),"-",IFERROR('Tabel 2 Sydj'!I202/'Tabel 1 Sydj'!G200*100,"-")) -> 9.523809524 | J202: =IF(OR('Tabel 1 Sydj'!G200<5,'Tabel 2 Sydj'!J202<0.5),"-",IFERROR('Tabel 2 Sydj'!J202/'Tabel 1 Sydj'!G200*100,"-")) -> 9.522027485
A203: Bac. Nat. | C203: =IF(OR('Tabel 1 Sydj'!C201<5,'Tabel 2 Sydj'!C203<0.5),"-",IFERROR('Tabel 2 Sydj'!C203/'Tabel 1 Sydj'!C201*100,"-")) -> 14.28571429 | D203: =IF(OR('Tabel 1 Sydj'!C201<5,'Tabel 2 Sydj'!D203<0.5),"-",IFERROR('Tabel 2 Sydj'!D203/'Tabel 1 Sydj'!C201*100,"-")) -> 14.28304123 | F203: =IF(OR('Tabel 1 Sydj'!E201<5,'Tabel 2 Sydj'!F203<0.5),"-",IFERROR('Tabel 2 Sydj'!F203/'Tabel 1 Sydj'!E201*100,"-")) -> - | G203: =IF(OR('Tabel 1 Sydj'!E201<5,'Tabel 2 Sydj'!G203<0.5),"-",IFERROR('Tabel 2 Sydj'!G203/'Tabel 1 Sydj'!E201*100,"-")) -> - | I203: =IF(OR('Tabel 1 Sydj'!G201<5,'Tabel 2 Sydj'!I203<0.5),"-",IFERROR('Tabel 2 Sydj'!I203/'Tabel 1 Sydj'!G201*100,"-")) -> 11.11111111 | J203: =IF(OR('Tabel 1 Sydj'!G201<5,'Tabel 2 Sydj'!J203<0.5),"-",IFERROR('Tabel 2 Sydj'!J203/'Tabel 1 Sydj'!G201*100,"-")) -> 11.10903207
A204: Andre | C204: =IF(OR('Tabel 1 Sydj'!C202<5,'Tabel 2 Sydj'!C204<0.5),"-",IFERROR('Tabel 2 Sydj'!C204/'Tabel 1 Sydj'!C202*100,"-")) -> 2.53164557 | D204: =IF(OR('Tabel 1 Sydj'!C202<5,'Tabel 2 Sydj'!D204<0.5),"-",IFERROR('Tabel 2 Sydj'!D204/'Tabel 1 Sydj'!C202*100,"-")) -> 2.531171863 | F204: =IF(OR('Tabel 1 Sydj'!E202<5,'Tabel 2 Sydj'!F204<0.5),"-",IFERROR('Tabel 2 Sydj'!F204/'Tabel 1 Sydj'!E202*100,"-")) -> 3.448275862 | G204: =IF(OR('Tabel 1 Sydj'!E202<5,'Tabel 2 Sydj'!G204<0.5),"-",IFERROR('Tabel 2 Sydj'!G204/'Tabel 1 Sydj'!E202*100,"-")) -> 3.017483337 | I204: =IF(OR('Tabel 1 Sydj'!G202<5,'Tabel 2 Sydj'!I204<0.5),"-",IFERROR('Tabel 2 Sydj'!I204/'Tabel 1 Sydj'!G202*100,"-")) -> 2.919708029 | J204: =IF(OR('Tabel 1 Sydj'!G202<5,'Tabel 2 Sydj'!J204<0.5),"-",IFERROR('Tabel 2 Sydj'!J204/'Tabel 1 Sydj'!G202*100,"-")) -> 2.737055553
A206: Total | C206: =IF(OR('Tabel 1 Sydj'!C204<5,'Tabel 2 Sydj'!C206<0.5),"-",IFERROR('Tabel 2 Sydj'!C206/'Tabel 1 Sydj'!C204*100,"-")) -> 3.611457036 | D206: =IF(OR('Tabel 1 Sydj'!C204<5,'Tabel 2 Sydj'!D206<0.5),"-",IFERROR('Tabel 2 Sydj'!D206/'Tabel 1 Sydj'!C204*100,"-")) -> 3.291467885 | F206: =IF(OR('Tabel 1 Sydj'!E204<5,'Tabel 2 Sydj'!F206<0.5),"-",IFERROR('Tabel 2 Sydj'!F206/'Tabel 1 Sydj'!E204*100,"-")) -> 4 | G206: =IF(OR('Tabel 1 Sydj'!E204<5,'Tabel 2 Sydj'!G206<0.5),"-",IFERROR('Tabel 2 Sydj'!G206/'Tabel 1 Sydj'!E204*100,"-")) -> 3.507889977 | I206: =IF(OR('Tabel 1 Sydj'!G204<5,'Tabel 2 Sydj'!I206<0.5),"-",IFERROR('Tabel 2 Sydj'!I206/'Tabel 1 Sydj'!G204*100,"-")) -> 3.760552571 | J206: =IF(OR('Tabel 1 Sydj'!G204<5,'Tabel 2 Sydj'!J206<0.5),"-",IFERROR('Tabel 2 Sydj'!J206/'Tabel 1 Sydj'!G204*100,"-")) -> 3.374515503
A208: Ingeniører i alt | C208: =IF(OR('Tabel 1 Sydj'!C206<5,'Tabel 2 Sydj'!C208<0.5),"-",IFERROR('Tabel 2 Sydj'!C208/'Tabel 1 Sydj'!C206*100,"-")) -> 2.637362637 | D208: =IF(OR('Tabel 1 Sydj'!C206<5,'Tabel 2 Sydj'!D208<0.5),"-",IFERROR('Tabel 2 Sydj'!D208/'Tabel 1 Sydj'!C206*100,"-")) -> 2.391633191 | F208: =IF(OR('Tabel 1 Sydj'!E206<5,'Tabel 2 Sydj'!F208<0.5),"-",IFERROR('Tabel 2 Sydj'!F208/'Tabel 1 Sydj'!E206*100,"-")) -> 3.649635036 | G208: =IF(OR('Tabel 1 Sydj'!E206<5,'Tabel 2 Sydj'!G208<0.5),"-",IFERROR('Tabel 2 Sydj'!G208/'Tabel 1 Sydj'!E206*100,"-")) -> 3.102633665 | I208: =IF(OR('Tabel 1 Sydj'!G206<5,'Tabel 2 Sydj'!I208<0.5),"-",IFERROR('Tabel 2 Sydj'!I208/'Tabel 1 Sydj'!G206*100,"-")) -> 2.769818529 | J208: =IF(OR('Tabel 1 Sydj'!G206<5,'Tabel 2 Sydj'!J208<0.5),"-",IFERROR('Tabel 2 Sydj'!J208/'Tabel 1 Sydj'!G206*100,"-")) -> 2.484667637
A209: Magistre i alt | C209: =IF(OR('Tabel 1 Sydj'!C207<5,'Tabel 2 Sydj'!C209<0.5),"-",IFERROR('Tabel 2 Sydj'!C209/'Tabel 1 Sydj'!C207*100,"-")) -> 6.201550388 | D209: =IF(OR('Tabel 1 Sydj'!C207<5,'Tabel 2 Sydj'!D209<0.5),"-",IFERROR('Tabel 2 Sydj'!D209/'Tabel 1 Sydj'!C207*100,"-")) -> 6.123030165 | F209: =IF(OR('Tabel 1 Sydj'!E207<5,'Tabel 2 Sydj'!F209<0.5),"-",IFERROR('Tabel 2 Sydj'!F209/'Tabel 1 Sydj'!E207*100,"-")) -> 5.882352941 | G209: =IF(OR('Tabel 1 Sydj'!E207<5,'Tabel 2 Sydj'!G209<0.5),"-",IFERROR('Tabel 2 Sydj'!G209/'Tabel 1 Sydj'!E207*100,"-")) -> 4.698336641 | I209: =IF(OR('Tabel 1 Sydj'!G207<5,'Tabel 2 Sydj'!I209<0.5),"-",IFERROR('Tabel 2 Sydj'!I209/'Tabel 1 Sydj'!G207*100,"-")) -> 6.006006006 | J209: =IF(OR('Tabel 1 Sydj'!G207<5,'Tabel 2 Sydj'!J209<0.5),"-",IFERROR('Tabel 2 Sydj'!J209/'Tabel 1 Sydj'!G207*100,"-")) -> 5.250244943
A210: DJØF'ere i alt | C210: =IF(OR('Tabel 1 Sydj'!C208<5,'Tabel 2 Sydj'!C210<0.5),"-",IFERROR('Tabel 2 Sydj'!C210/'Tabel 1 Sydj'!C208*100,"-")) -> 4.38247012 | D210: =IF(OR('Tabel 1 Sydj'!C208<5,'Tabel 2 Sydj'!D210<0.5),"-",IFERROR('Tabel 2 Sydj'!D210/'Tabel 1 Sydj'!C208*100,"-")) -> 3.514911849 | F210: =IF(OR('Tabel 1 Sydj'!E208<5,'Tabel 2 Sydj'!F210<0.5),"-",IFERROR('Tabel 2 Sydj'!F210/'Tabel 1 Sydj'!E208*100,"-")) -> 3.6 | G210: =IF(OR('Tabel 1 Sydj'!E208<5,'Tabel 2 Sydj'!G210<0.5),"-",IFERROR('Tabel 2 Sydj'!G210/'Tabel 1 Sydj'!E208*100,"-")) -> 3.447389759 | I210: =IF(OR('Tabel 1 Sydj'!G208<5,'Tabel 2 Sydj'!I210<0.5),"-",IFERROR('Tabel 2 Sydj'!I210/'Tabel 1 Sydj'!G208*100,"-")) -> 3.992015968 | J210: =IF(OR('Tabel 1 Sydj'!G208<5,'Tabel 2 Sydj'!J210<0.5),"-",IFERROR('Tabel 2 Sydj'!J210/'Tabel 1 Sydj'!G208*100,"-")) -> 3.481218191
A215: Tønder
C217: Mænd | F217: Kvinder | I217: I alt
C218: Ledigheds- berørte | D218: Gns. brutto- ledighed | F218: Ledigheds- berørte | G218: Gns. brutto- ledighed | I218: Ledigheds- berørte | J218: Gns. brutto- ledighed
A221: Civ. ing. | C221: =IF(OR('Tabel 1 Sydj'!C219<5,'Tabel 2 Sydj'!C221<0.5),"-",IFERROR('Tabel 2 Sydj'!C221/'Tabel 1 Sydj'!C219*100,"-")) -> 13.63636364 | D221: =IF(OR('Tabel 1 Sydj'!C219<5,'Tabel 2 Sydj'!D221<0.5),"-",IFERROR('Tabel 2 Sydj'!D221/'Tabel 1 Sydj'!C219*100,"-")) -> 13.21422294 | F221: =IF(OR('Tabel 1 Sydj'!E219<5,'Tabel 2 Sydj'!F221<0.5),"-",IFERROR('Tabel 2 Sydj'!F221/'Tabel 1 Sydj'!E219*100,"-")) -> - | G221: =IF(OR('Tabel 1 Sydj'!E219<5,'Tabel 2 Sydj'!G221<0.5),"-",IFERROR('Tabel 2 Sydj'!G221/'Tabel 1 Sydj'!E219*100,"-")) -> - | I221: =IF(OR('Tabel 1 Sydj'!G219<5,'Tabel 2 Sydj'!I221<0.5),"-",IFERROR('Tabel 2 Sydj'!I221/'Tabel 1 Sydj'!G219*100,"-")) -> 9.375 | J221: =IF(OR('Tabel 1 Sydj'!G219<5,'Tabel 2 Sydj'!J221<0.5),"-",IFERROR('Tabel 2 Sydj'!J221/'Tabel 1 Sydj'!G219*100,"-")) -> 9.08477827
A222: Diplom ing. | C222: =IF(OR('Tabel 1 Sydj'!C220<5,'Tabel 2 Sydj'!C222<0.5),"-",IFERROR('Tabel 2 Sydj'!C222/'Tabel 1 Sydj'!C220*100,"-")) -> 2.325581395 | D222: =IF(OR('Tabel 1 Sydj'!C220<5,'Tabel 2 Sydj'!D222<0.5),"-",IFERROR('Tabel 2 Sydj'!D222/'Tabel 1 Sydj'!C220*100,"-")) -> 2.325146246 | F222: =IF(OR('Tabel 1 Sydj'!E220<5,'Tabel 2 Sydj'!F222<0.5),"-",IFERROR('Tabel 2 Sydj'!F222/'Tabel 1 Sydj'!E220*100,"-")) -> 6.666666667 | G222: =IF(OR('Tabel 1 Sydj'!E220<5,'Tabel 2 Sydj'!G222<0.5),"-",IFERROR('Tabel 2 Sydj'!G222/'Tabel 1 Sydj'!E220*100,"-")) -> 6.083286555 | I222: =IF(OR('Tabel 1 Sydj'!G220<5,'Tabel 2 Sydj'!I222<0.5),"-",IFERROR('Tabel 2 Sydj'!I222/'Tabel 1 Sydj'!G220*100,"-")) -> 3.448275862 | J222: =IF(OR('Tabel 1 Sydj'!G220<5,'Tabel 2 Sydj'!J222<0.5),"-",IFERROR('Tabel 2 Sydj'!J222/'Tabel 1 Sydj'!G220*100,"-")) -> 3.297079085
A223: Cand. Scient. Tek. | C223: =IF(OR('Tabel 1 Sydj'!C221<5,'Tabel 2 Sydj'!C223<0.5),"-",IFERROR('Tabel 2 Sydj'!C223/'Tabel 1 Sydj'!C221*100,"-")) -> - | D223: =IF(OR('Tabel 1 Sydj'!C221<5,'Tabel 2 Sydj'!D223<0.5),"-",IFERROR('Tabel 2 Sydj'!D223/'Tabel 1 Sydj'!C221*100,"-")) -> - | F223: =IF(OR('Tabel 1 Sydj'!E221<5,'Tabel 2 Sydj'!F223<0.5),"-",IFERROR('Tabel 2 Sydj'!F223/'Tabel 1 Sydj'!E221*100,"-")) -> - | G223: =IF(OR('Tabel 1 Sydj'!E221<5,'Tabel 2 Sydj'!G223<0.5),"-",IFERROR('Tabel 2 Sydj'!G223/'Tabel 1 Sydj'!E221*100,"-")) -> - | I223: =IF(OR('Tabel 1 Sydj'!G221<5,'Tabel 2 Sydj'!I223<0.5),"-",IFERROR('Tabel 2 Sydj'!I223/'Tabel 1 Sydj'!G221*100,"-")) -> - | J223: =IF(OR('Tabel 1 Sydj'!G221<5,'Tabel 2 Sydj'!J223<0.5),"-",IFERROR('Tabel 2 Sydj'!J223/'Tabel 1 Sydj'!G221*100,"-")) -> -
A224: MA. Hum. | C224: =IF(OR('Tabel 1 Sydj'!C222<5,'Tabel 2 Sydj'!C224<0.5),"-",IFERROR('Tabel 2 Sydj'!C224/'Tabel 1 Sydj'!C222*100,"-")) -> 16.12903226 | D224: =IF(OR('Tabel 1 Sydj'!C222<5,'Tabel 2 Sydj'!D224<0.5),"-",IFERROR('Tabel 2 Sydj'!D224/'Tabel 1 Sydj'!C222*100,"-")) -> 13.79211827 | F224: =IF(OR('Tabel 1 Sydj'!E222<5,'Tabel 2 Sydj'!F224<0.5),"-",IFERROR('Tabel 2 Sydj'!F224/'Tabel 1 Sydj'!E222*100,"-")) -> 5 | G224: =IF(OR('Tabel 1 Sydj'!E222<5,'Tabel 2 Sydj'!G224<0.5),"-",IFERROR('Tabel 2 Sydj'!G224/'Tabel 1 Sydj'!E222*100,"-")) -> 4.905507391 | I224: =IF(OR('Tabel 1 Sydj'!G222<5,'Tabel 2 Sydj'!I224<0.5),"-",IFERROR('Tabel 2 Sydj'!I224/'Tabel 1 Sydj'!G222*100,"-")) -> 9.85915493 | J224: =IF(OR('Tabel 1 Sydj'!G222<5,'Tabel 2 Sydj'!J224<0.5),"-",IFERROR('Tabel 2 Sydj'!J224/'Tabel 1 Sydj'!G222*100,"-")) -> 8.785576931
A225: MA. Nat. | C225: =IF(OR('Tabel 1 Sydj'!C223<5,'Tabel 2 Sydj'!C225<0.5),"-",IFERROR('Tabel 2 Sydj'!C225/'Tabel 1 Sydj'!C223*100,"-")) -> - | D225: =IF(OR('Tabel 1 Sydj'!C223<5,'Tabel 2 Sydj'!D225<0.5),"-",IFERROR('Tabel 2 Sydj'!D225/'Tabel 1 Sydj'!C223*100,"-")) -> - | F225: =IF(OR('Tabel 1 Sydj'!E223<5,'Tabel 2 Sydj'!F225<0.5),"-",IFERROR('Tabel 2 Sydj'!F225/'Tabel 1 Sydj'!E223*100,"-")) -> - | G225: =IF(OR('Tabel 1 Sydj'!E223<5,'Tabel 2 Sydj'!G225<0.5),"-",IFERROR('Tabel 2 Sydj'!G225/'Tabel 1 Sydj'!E223*100,"-")) -> - | I225: =IF(OR('Tabel 1 Sydj'!G223<5,'Tabel 2 Sydj'!I225<0.5),"-",IFERROR('Tabel 2 Sydj'!I225/'Tabel 1 Sydj'!G223*100,"-")) -> - | J225: =IF(OR('Tabel 1 Sydj'!G223<5,'Tabel 2 Sydj'!J225<0.5),"-",IFERROR('Tabel 2 Sydj'!J225/'Tabel 1 Sydj'!G223*100,"-")) -> -
A226: MA. Ph.d. | C226: =IF(OR('Tabel 1 Sydj'!C224<5,'Tabel 2 Sydj'!C226<0.5),"-",IFERROR('Tabel 2 Sydj'!C226/'Tabel 1 Sydj'!C224*100,"-")) -> - | D226: =IF(OR('Tabel 1 Sydj'!C224<5,'Tabel 2 Sydj'!D226<0.5),"-",IFERROR('Tabel 2 Sydj'!D226/'Tabel 1 Sydj'!C224*100,"-")) -> - | F226: =IF(OR('Tabel 1 Sydj'!E224<5,'Tabel 2 Sydj'!F226<0.5),"-",IFERROR('Tabel 2 Sydj'!F226/'Tabel 1 Sydj'!E224*100,"-")) -> - | G226: =IF(OR('Tabel 1 Sydj'!E224<5,'Tabel 2 Sydj'!G226<0.5),"-",IFERROR('Tabel 2 Sydj'!G226/'Tabel 1 Sydj'!E224*100,"-")) -> - | I226: =IF(OR('Tabel 1 Sydj'!G224<5,'Tabel 2 Sydj'!I226<0.5),"-",IFERROR('Tabel 2 Sydj'!I226/'Tabel 1 Sydj'!G224*100,"-")) -> - | J226: =IF(OR('Tabel 1 Sydj'!G224<5,'Tabel 2 Sydj'!J226<0.5),"-",IFERROR('Tabel 2 Sydj'!J226/'Tabel 1 Sydj'!G224*100,"-")) -> -
A227: MA. Samf. | C227: =IF(OR('Tabel 1 Sydj'!C225<5,'Tabel 2 Sydj'!C227<0.5),"-",IFERROR('Tabel 2 Sydj'!C227/'Tabel 1 Sydj'!C225*100,"-")) -> - | D227: =IF(OR('Tabel 1 Sydj'!C225<5,'Tabel 2 Sydj'!D227<0.5),"-",IFERROR('Tabel 2 Sydj'!D227/'Tabel 1 Sydj'!C225*100,"-")) -> - | F227: =IF(OR('Tabel 1 Sydj'!E225<5,'Tabel 2 Sydj'!F227<0.5),"-",IFERROR('Tabel 2 Sydj'!F227/'Tabel 1 Sydj'!E225*100,"-")) -> - | G227: =IF(OR('Tabel 1 Sydj'!E225<5,'Tabel 2 Sydj'!G227<0.5),"-",IFERROR('Tabel 2 Sydj'!G227/'Tabel 1 Sydj'!E225*100,"-")) -> - | I227: =IF(OR('Tabel 1 Sydj'!G225<5,'Tabel 2 Sydj'!I227<0.5),"-",IFERROR('Tabel 2 Sydj'!I227/'Tabel 1 Sydj'!G225*100,"-")) -> - | J227: =IF(OR('Tabel 1 Sydj'!G225<5,'Tabel 2 Sydj'!J227<0.5),"-",IFERROR('Tabel 2 Sydj'!J227/'Tabel 1 Sydj'!G225*100,"-")) -> -
A228: Øvrige Mag. | C228: =IF(OR('Tabel 1 Sydj'!C226<5,'Tabel 2 Sydj'!C228<0.5),"-",IFERROR('Tabel 2 Sydj'!C228/'Tabel 1 Sydj'!C226*100,"-")) -> - | D228: =IF(OR('Tabel 1 Sydj'!C226<5,'Tabel 2 Sydj'!D228<0.5),"-",IFERROR('Tabel 2 Sydj'!D228/'Tabel 1 Sydj'!C226*100,"-")) -> - | F228: =IF(OR('Tabel 1 Sydj'!E226<5,'Tabel 2 Sydj'!F228<0.5),"-",IFERROR('Tabel 2 Sydj'!F228/'Tabel 1 Sydj'!E226*100,"-")) -> - | G228: =IF(OR('Tabel 1 Sydj'!E226<5,'Tabel 2 Sydj'!G228<0.5),"-",IFERROR('Tabel 2 Sydj'!G228/'Tabel 1 Sydj'!E226*100,"-")) -> - | I228: =IF(OR('Tabel 1 Sydj'!G226<5,'Tabel 2 Sydj'!I228<0.5),"-",IFERROR('Tabel 2 Sydj'!I228/'Tabel 1 Sydj'!G226*100,"-")) -> - | J228: =IF(OR('Tabel 1 Sydj'!G226<5,'Tabel 2 Sydj'!J228<0.5),"-",IFERROR('Tabel 2 Sydj'!J228/'Tabel 1 Sydj'!G226*100,"-")) -> -
A229: Agronom | C229: =IF(OR('Tabel 1 Sydj'!C227<5,'Tabel 2 Sydj'!C229<0.5),"-",IFERROR('Tabel 2 Sydj'!C229/'Tabel 1 Sydj'!C227*100,"-")) -> - | D229: =IF(OR('Tabel 1 Sydj'!C227<5,'Tabel 2 Sydj'!D229<0.5),"-",IFERROR('Tabel 2 Sydj'!D229/'Tabel 1 Sydj'!C227*100,"-")) -> - | F229: =IF(OR('Tabel 1 Sydj'!E227<5,'Tabel 2 Sydj'!F229<0.5),"-",IFERROR('Tabel 2 Sydj'!F229/'Tabel 1 Sydj'!E227*100,"-")) -> - | G229: =IF(OR('Tabel 1 Sydj'!E227<5,'Tabel 2 Sydj'!G229<0.5),"-",IFERROR('Tabel 2 Sydj'!G229/'Tabel 1 Sydj'!E227*100,"-")) -> - | I229: =IF(OR('Tabel 1 Sydj'!G227<5,'Tabel 2 Sydj'!I229<0.5),"-",IFERROR('Tabel 2 Sydj'!I229/'Tabel 1 Sydj'!G227*100,"-")) -> - | J229: =IF(OR('Tabel 1 Sydj'!G227<5,'Tabel 2 Sydj'!J229<0.5),"-",IFERROR('Tabel 2 Sydj'!J229/'Tabel 1 Sydj'!G227*100,"-")) -> -
A230: Landsk. Arkt. | C230: =IF(OR('Tabel 1 Sydj'!C228<5,'Tabel 2 Sydj'!C230<0.5),"-",IFERROR('Tabel 2 Sydj'!C230/'Tabel 1 Sydj'!C228*100,"-")) -> - | D230: =IF(OR('Tabel 1 Sydj'!C228<5,'Tabel 2 Sydj'!D230<0.5),"-",IFERROR('Tabel 2 Sydj'!D230/'Tabel 1 Sydj'!C228*100,"-")) -> - | F230: =IF(OR('Tabel 1 Sydj'!E228<5,'Tabel 2 Sydj'!F230<0.5),"-",IFERROR('Tabel 2 Sydj'!F230/'Tabel 1 Sydj'!E228*100,"-")) -> - | G230: =IF(OR('Tabel 1 Sydj'!E228<5,'Tabel 2 Sydj'!G230<0.5),"-",IFERROR('Tabel 2 Sydj'!G230/'Tabel 1 Sydj'!E228*100,"-")) -> - | I230: =IF(OR('Tabel 1 Sydj'!G228<5,'Tabel 2 Sydj'!I230<0.5),"-",IFERROR('Tabel 2 Sydj'!I230/'Tabel 1 Sydj'!G228*100,"-")) -> - | J230: =IF(OR('Tabel 1 Sydj'!G228<5,'Tabel 2 Sydj'!J230<0.5),"-",IFERROR('Tabel 2 Sydj'!J230/'Tabel 1 Sydj'!G228*100,"-")) -> -
A231: Hortonom | C231: =IF(OR('Tabel 1 Sydj'!C229<5,'Tabel 2 Sydj'!C231<0.5),"-",IFERROR('Tabel 2 Sydj'!C231/'Tabel 1 Sydj'!C229*100,"-")) -> - | D231: =IF(OR('Tabel 1 Sydj'!C229<5,'Tabel 2 Sydj'!D231<0.5),"-",IFERROR('Tabel 2 Sydj'!D231/'Tabel 1 Sydj'!C229*100,"-")) -> - | F231: =IF(OR('Tabel 1 Sydj'!E229<5,'Tabel 2 Sydj'!F231<0.5),"-",IFERROR('Tabel 2 Sydj'!F231/'Tabel 1 Sydj'!E229*100,"-")) -> - | G231: =IF(OR('Tabel 1 Sydj'!E229<5,'Tabel 2 Sydj'!G231<0.5),"-",IFERROR('Tabel 2 Sydj'!G231/'Tabel 1 Sydj'!E229*100,"-")) -> - | I231: =IF(OR('Tabel 1 Sydj'!G229<5,'Tabel 2 Sydj'!I231<0.5),"-",IFERROR('Tabel 2 Sydj'!I231/'Tabel 1 Sydj'!G229*100,"-")) -> - | J231: =IF(OR('Tabel 1 Sydj'!G229<5,'Tabel 2 Sydj'!J231<0.5),"-",IFERROR('Tabel 2 Sydj'!J231/'Tabel 1 Sydj'!G229*100,"-")) -> -
A232: Forstkand. | C232: =IF(OR('Tabel 1 Sydj'!C230<5,'Tabel 2 Sydj'!C232<0.5),"-",IFERROR('Tabel 2 Sydj'!C232/'Tabel 1 Sydj'!C230*100,"-")) -> - | D232: =IF(OR('Tabel 1 Sydj'!C230<5,'Tabel 2 Sydj'!D232<0.5),"-",IFERROR('Tabel 2 Sydj'!D232/'Tabel 1 Sydj'!C230*100,"-")) -> - | F232: =IF(OR('Tabel 1 Sydj'!E230<5,'Tabel 2 Sydj'!F232<0.5),"-",IFERROR('Tabel 2 Sydj'!F232/'Tabel 1 Sydj'!E230*100,"-")) -> - | G232: =IF(OR('Tabel 1 Sydj'!E230<5,'Tabel 2 Sydj'!G232<0.5),"-",IFERROR('Tabel 2 Sydj'!G232/'Tabel 1 Sydj'!E230*100,"-")) -> - | I232: =IF(OR('Tabel 1 Sydj'!G230<5,'Tabel 2 Sydj'!I232<0.5),"-",IFERROR('Tabel 2 Sydj'!I232/'Tabel 1 Sydj'!G230*100,"-")) -> - | J232: =IF(OR('Tabel 1 Sydj'!G230<5,'Tabel 2 Sydj'!J232<0.5),"-",IFERROR('Tabel 2 Sydj'!J232/'Tabel 1 Sydj'!G230*100,"-")) -> -
A233: Jordbrugsakad. | C233: =IF(OR('Tabel 1 Sydj'!C231<5,'Tabel 2 Sydj'!C233<0.5),"-",IFERROR('Tabel 2 Sydj'!C233/'Tabel 1 Sydj'!C231*100,"-")) -> - | D233: =IF(OR('Tabel 1 Sydj'!C231<5,'Tabel 2 Sydj'!D233<0.5),"-",IFERROR('Tabel 2 Sydj'!D233/'Tabel 1 Sydj'!C231*100,"-")) -> - | F233: =IF(OR('Tabel 1 Sydj'!E231<5,'Tabel 2 Sydj'!F233<0.5),"-",IFERROR('Tabel 2 Sydj'!F233/'Tabel 1 Sydj'!E231*100,"-")) -> - | G233: =IF(OR('Tabel 1 Sydj'!E231<5,'Tabel 2 Sydj'!G233<0.5),"-",IFERROR('Tabel 2 Sydj'!G233/'Tabel 1 Sydj'!E231*100,"-")) -> - | I233: =IF(OR('Tabel 1 Sydj'!G231<5,'Tabel 2 Sydj'!I233<0.5),"-",IFERROR('Tabel 2 Sydj'!I233/'Tabel 1 Sydj'!G231*100,"-")) -> - | J233: =IF(OR('Tabel 1 Sydj'!G231<5,'Tabel 2 Sydj'!J233<0.5),"-",IFERROR('Tabel 2 Sydj'!J233/'Tabel 1 Sydj'!G231*100,"-")) -> -
A234: Mejeriing. | C234: =IF(OR('Tabel 1 Sydj'!C232<5,'Tabel 2 Sydj'!C234<0.5),"-",IFERROR('Tabel 2 Sydj'!C234/'Tabel 1 Sydj'!C232*100,"-")) -> - | D234: =IF(OR('Tabel 1 Sydj'!C232<5,'Tabel 2 Sydj'!D234<0.5),"-",IFERROR('Tabel 2 Sydj'!D234/'Tabel 1 Sydj'!C232*100,"-")) -> - | F234: =IF(OR('Tabel 1 Sydj'!E232<5,'Tabel 2 Sydj'!F234<0.5),"-",IFERROR('Tabel 2 Sydj'!F234/'Tabel 1 Sydj'!E232*100,"-")) -> - | G234: =IF(OR('Tabel 1 Sydj'!E232<5,'Tabel 2 Sydj'!G234<0.5),"-",IFERROR('Tabel 2 Sydj'!G234/'Tabel 1 Sydj'!E232*100,"-")) -> - | I234: =IF(OR('Tabel 1 Sydj'!G232<5,'Tabel 2 Sydj'!I234<0.5),"-",IFERROR('Tabel 2 Sydj'!I234/'Tabel 1 Sydj'!G232*100,"-")) -> - | J234: =IF(OR('Tabel 1 Sydj'!G232<5,'Tabel 2 Sydj'!J234<0.5),"-",IFERROR('Tabel 2 Sydj'!J234/'Tabel 1 Sydj'!G232*100,"-")) -> -
A235: Levn.m.kand. | C235: =IF(OR('Tabel 1 Sydj'!C233<5,'Tabel 2 Sydj'!C235<0.5),"-",IFERROR('Tabel 2 Sydj'!C235/'Tabel 1 Sydj'!C233*100,"-")) -> - | D235: =IF(OR('Tabel 1 Sydj'!C233<5,'Tabel 2 Sydj'!D235<0.5),"-",IFERROR('Tabel 2 Sydj'!D235/'Tabel 1 Sydj'!C233*100,"-")) -> - | F235: =IF(OR('Tabel 1 Sydj'!E233<5,'Tabel 2 Sydj'!F235<0.5),"-",IFERROR('Tabel 2 Sydj'!F235/'Tabel 1 Sydj'!E233*100,"-")) -> - | G235: =IF(OR('Tabel 1 Sydj'!E233<5,'Tabel 2 Sydj'!G235<0.5),"-",IFERROR('Tabel 2 Sydj'!G235/'Tabel 1 Sydj'!E233*100,"-")) -> - | I235: =IF(OR('Tabel 1 Sydj'!G233<5,'Tabel 2 Sydj'!I235<0.5),"-",IFERROR('Tabel 2 Sydj'!I235/'Tabel 1 Sydj'!G233*100,"-")) -> - | J235: =IF(OR('Tabel 1 Sydj'!G233<5,'Tabel 2 Sydj'!J235<0.5),"-",IFERROR('Tabel 2 Sydj'!J235/'Tabel 1 Sydj'!G233*100,"-")) -> -
A236: Dyrlæge | C236: =IF(OR('Tabel 1 Sydj'!C234<5,'Tabel 2 Sydj'!C236<0.5),"-",IFERROR('Tabel 2 Sydj'!C236/'Tabel 1 Sydj'!C234*100,"-")) -> - | D236: =IF(OR('Tabel 1 Sydj'!C234<5,'Tabel 2 Sydj'!D236<0.5),"-",IFERROR('Tabel 2 Sydj'!D236/'Tabel 1 Sydj'!C234*100,"-")) -> - | F236: =IF(OR('Tabel 1 Sydj'!E234<5,'Tabel 2 Sydj'!F236<0.5),"-",IFERROR('Tabel 2 Sydj'!F236/'Tabel 1 Sydj'!E234*100,"-")) -> 6.25 | G236: =IF(OR('Tabel 1 Sydj'!E234<5,'Tabel 2 Sydj'!G236<0.5),"-",IFERROR('Tabel 2 Sydj'!G236/'Tabel 1 Sydj'!E234*100,"-")) -> 6.248830537 | I236: =IF(OR('Tabel 1 Sydj'!G234<5,'Tabel 2 Sydj'!I236<0.5),"-",IFERROR('Tabel 2 Sydj'!I236/'Tabel 1 Sydj'!G234*100,"-")) -> 4.761904762 | J236: =IF(OR('Tabel 1 Sydj'!G234<5,'Tabel 2 Sydj'!J236<0.5),"-",IFERROR('Tabel 2 Sydj'!J236/'Tabel 1 Sydj'!G234*100,"-")) -> 4.761013742
A237: Farmaceut | C237: =IF(OR('Tabel 1 Sydj'!C235<5,'Tabel 2 Sydj'!C237<0.5),"-",IFERROR('Tabel 2 Sydj'!C237/'Tabel 1 Sydj'!C235*100,"-")) -> - | D237: =IF(OR('Tabel 1 Sydj'!C235<5,'Tabel 2 Sydj'!D237<0.5),"-",IFERROR('Tabel 2 Sydj'!D237/'Tabel 1 Sydj'!C235*100,"-")) -> - | F237: =IF(OR('Tabel 1 Sydj'!E235<5,'Tabel 2 Sydj'!F237<0.5),"-",IFERROR('Tabel 2 Sydj'!F237/'Tabel 1 Sydj'!E235*100,"-")) -> - | G237: =IF(OR('Tabel 1 Sydj'!E235<5,'Tabel 2 Sydj'!G237<0.5),"-",IFERROR('Tabel 2 Sydj'!G237/'Tabel 1 Sydj'!E235*100,"-")) -> - | I237: =IF(OR('Tabel 1 Sydj'!G235<5,'Tabel 2 Sydj'!I237<0.5),"-",IFERROR('Tabel 2 Sydj'!I237/'Tabel 1 Sydj'!G235*100,"-")) -> - | J237: =IF(OR('Tabel 1 Sydj'!G235<5,'Tabel 2 Sydj'!J237<0.5),"-",IFERROR('Tabel 2 Sydj'!J237/'Tabel 1 Sydj'!G235*100,"-")) -> -
A238: Læge | C238: =IF(OR('Tabel 1 Sydj'!C236<5,'Tabel 2 Sydj'!C238<0.5),"-",IFERROR('Tabel 2 Sydj'!C238/'Tabel 1 Sydj'!C236*100,"-")) -> - | D238: =IF(OR('Tabel 1 Sydj'!C236<5,'Tabel 2 Sydj'!D238<0.5),"-",IFERROR('Tabel 2 Sydj'!D238/'Tabel 1 Sydj'!C236*100,"-")) -> - | F238: =IF(OR('Tabel 1 Sydj'!E236<5,'Tabel 2 Sydj'!F238<0.5),"-",IFERROR('Tabel 2 Sydj'!F238/'Tabel 1 Sydj'!E236*100,"-")) -> - | G238: =IF(OR('Tabel 1 Sydj'!E236<5,'Tabel 2 Sydj'!G238<0.5),"-",IFERROR('Tabel 2 Sydj'!G238/'Tabel 1 Sydj'!E236*100,"-")) -> - | I238: =IF(OR('Tabel 1 Sydj'!G236<5,'Tabel 2 Sydj'!I238<0.5),"-",IFERROR('Tabel 2 Sydj'!I238/'Tabel 1 Sydj'!G236*100,"-")) -> - | J238: =IF(OR('Tabel 1 Sydj'!G236<5,'Tabel 2 Sydj'!J238<0.5),"-",IFERROR('Tabel 2 Sydj'!J238/'Tabel 1 Sydj'!G236*100,"-")) -> -
A239: Tandlæge | C239: =IF(OR('Tabel 1 Sydj'!C237<5,'Tabel 2 Sydj'!C239<0.5),"-",IFERROR('Tabel 2 Sydj'!C239/'Tabel 1 Sydj'!C237*100,"-")) -> - | D239: =IF(OR('Tabel 1 Sydj'!C237<5,'Tabel 2 Sydj'!D239<0.5),"-",IFERROR('Tabel 2 Sydj'!D239/'Tabel 1 Sydj'!C237*100,"-")) -> - | F239: =IF(OR('Tabel 1 Sydj'!E237<5,'Tabel 2 Sydj'!F239<0.5),"-",IFERROR('Tabel 2 Sydj'!F239/'Tabel 1 Sydj'!E237*100,"-")) -> - | G239: =IF(OR('Tabel 1 Sydj'!E237<5,'Tabel 2 Sydj'!G239<0.5),"-",IFERROR('Tabel 2 Sydj'!G239/'Tabel 1 Sydj'!E237*100,"-")) -> - | I239: =IF(OR('Tabel 1 Sydj'!G237<5,'Tabel 2 Sydj'!I239<0.5),"-",IFERROR('Tabel 2 Sydj'!I239/'Tabel 1 Sydj'!G237*100,"-")) -> - | J239: =IF(OR('Tabel 1 Sydj'!G237<5,'Tabel 2 Sydj'!J239<0.5),"-",IFERROR('Tabel 2 Sydj'!J239/'Tabel 1 Sydj'!G237*100,"-")) -> -
A240: Arkitekt | C240: =IF(OR('Tabel 1 Sydj'!C238<5,'Tabel 2 Sydj'!C240<0.5),"-",IFERROR('Tabel 2 Sydj'!C240/'Tabel 1 Sydj'!C238*100,"-")) -> - | D240: =IF(OR('Tabel 1 Sydj'!C238<5,'Tabel 2 Sydj'!D240<0.5),"-",IFERROR('Tabel 2 Sydj'!D240/'Tabel 1 Sydj'!C238*100,"-")) -> - | F240: =IF(OR('Tabel 1 Sydj'!E238<5,'Tabel 2 Sydj'!F240<0.5),"-",IFERROR('Tabel 2 Sydj'!F240/'Tabel 1 Sydj'!E238*100,"-")) -> - | G240: =IF(OR('Tabel 1 Sydj'!E238<5,'Tabel 2 Sydj'!G240<0.5),"-",IFERROR('Tabel 2 Sydj'!G240/'Tabel 1 Sydj'!E238*100,"-")) -> - | I240: =IF(OR('Tabel 1 Sydj'!G238<5,'Tabel 2 Sydj'!I240<0.5),"-",IFERROR('Tabel 2 Sydj'!I240/'Tabel 1 Sydj'!G238*100,"-")) -> - | J240: =IF(OR('Tabel 1 Sydj'!G238<5,'Tabel 2 Sydj'!J240<0.5),"-",IFERROR('Tabel 2 Sydj'!J240/'Tabel 1 Sydj'!G238*100,"-")) -> -
... 373 more rows

Sheet Tabel 4F Sydj
A1: Tabel 4. Antal forsikrede - aldersfordelt
A3: Sydjylland
C5: Under 30 år | D5: 30 - 39 år | E5: 40 - 49 år | F5: 50 - 59 år | G5: Over 60 år | I5: I alt
A7: Civ. ing. | C7: 265 | D7: 674 | E7: 530 | F7: 356 | G7: 83 | I7: 1908
A8: Diplom ing. | C8: 266 | D8: 730 | E8: 1218 | F8: 1585 | G8: 404 | I8: 4203
A9: Cand. Scient. Tek. | C9: 246 | D9: 345 | E9: 124 | F9: 46 | G9: 11 | I9: 772
A10: MA. Hum. | C10: 274 | D10: 692 | E10: 787 | F10: 305 | G10: 189 | I10: 2247
A11: MA. Nat. | C11: 35 | D11: 148 | E11: 279 | F11: 186 | G11: 95 | I11: 743
A12: MA. Ph.d. | C12: 1 | D12: 19 | E12: 25 | F12: 19 | G12: 5 | I12: 69
A13: MA. Samf. | C13: 40 | D13: 62 | E13: 13 | F13: 9 | G13: 1 | I13: 125
A14: Øvrige Mag. | C14: 14 | D14: 46 | E14: 60 | F14: 77 | G14: 32 | I14: 229
A15: Agronom | C15: 9 | D15: 31 | E15: 62 | F15: 90 | G15: 40 | I15: 232
A16: Landsk. Arkt. | C16: 1 | D16: 8 | E16: 7 | F16: 10 | G16: 4 | I16: 30
A17: Hortonom | C17: 0 | D17: 3 | E17: 1 | F17: 10 | G17: 3 | I17: 17
A18: Forstkand. | C18: 2 | D18: 11 | E18: 19 | F18: 10 | G18: 4 | I18: 46
A19: Jordbrugsakad. | C19: 12 | D19: 53 | E19: 89 | F19: 120 | G19: 51 | I19: 325
A20: Mejeriing. | C20: 2 | D20: 2 | E20: 10 | F20: 19 | G20: 4 | I20: 37
A21: Levn.m.kand. | C21: 3 | D21: 4 | E21: 3 | F21: 0 | G21: 0 | I21: 10
A22: Dyrlæge | C22: 28 | D22: 100 | E22: 88 | F22: 48 | G22: 21 | I22: 285
A23: Farmaceut | C23: 38 | D23: 50 | E23: 47 | F23: 33 | G23: 16 | I23: 184
A24: Læge | C24: 139 | D24: 275 | E24: 173 | F24: 110 | G24: 61 | I24: 758
A25: Tandlæge | C25: 35 | D25: 55 | E25: 39 | F25: 44 | G25: 9 | I25: 182
A26: Arkitekt | C26: 19 | D26: 90 | E26: 69 | F26: 40 | G26: 33 | I26: 251
A27: Landinspek. | C27: 4 | D27: 22 | E27: 33 | F27: 25 | G27: 11 | I27: 95
A28: Bibliotekar | C28: 3 | D28: 52 | E28: 85 | F28: 77 | G28: 50 | I28: 267
A29: Musikudd. | C29: 2 | D29: 12 | E29: 20 | F29: 49 | G29: 19 | I29: 102
A30: Teolog | C30: 1 | D30: 30 | E30: 68 | F30: 82 | G30: 22 | I30: 203
A31: Psykolog | C31: 85 | D31: 189 | E31: 107 | F31: 57 | G31: 27 | I31: 465
A32: Jurist | C32: 110 | D32: 241 | E32: 211 | F32: 138 | G32: 30 | I32: 730
A33: Økonom | C33: 65 | D33: 104 | E33: 103 | F33: 98 | G33: 27 | I33: 397
A34: Samf. Adm. | C34: 126 | D34: 398 | E34: 320 | F34: 172 | G34: 27 | I34: 1043
A35: Cand. Merc. | C35: 314 | D35: 824 | E35: 508 | F35: 352 | G35: 41 | I35: 2039
A36: HA | C36: 66 | D36: 68 | E36: 172 | F36: 282 | G36: 41 | I36: 629
A37: HD | C37: 39 | D37: 60 | E37: 133 | F37: 187 | G37: 61 | I37: 480
A38: Komm. og Sprog | C38: 29 | D38: 80 | E38: 133 | F38: 156 | G38: 76 | I38: 474
A39: Cand. IT. | C39: 57 | D39: 79 | E39: 42 | F39: 6 | G39: 2 | I39: 186
A40: Bac. Samf. | C40: 19 | D40: 21 | E40: 25 | F40: 14 | G40: 1 | I40: 80
A41: Bac. Hum. | C41: 45 | D41: 49 | E41: 42 | F41: 18 | G41: 9 | I41: 163
A42: Bac. Nat. | C42: 47 | D42: 58 | E42: 37 | F42: 20 | G42: 0 | I42: 162
A43: Andre | C43: 155 | D43: 422 | E43: 305 | F43: 253 | G43: 129 | I43: 1264
A45: Total | C45: 2584 | D45: 6054 | E45: 5898 | F45: 4983 | G45: 1588 | I45: 21107
A47: Ingeniører i alt | C47: 531 | D47: 1404 | E47: 1748 | F47: 1941 | G47: 487 | I47: 6111
A48: Magistre i alt | C48: 364 | D48: 967 | E48: 1164 | F48: 596 | G48: 322 | I48: 3413
A49: DJØF'ere i alt | C49: 681 | D49: 1635 | E49: 1314 | F49: 1042 | G49: 166 | I49: 4838
A56: Haderslev
C58: Under 30 år | D58: 30 - 39 år | E58: 40 - 49 år | F58: 50 - 59 år | G58: Over 60 år | I58: I alt
A60: Civ. ing. | C60: 2 | D60: 19 | E60: 14 | F60: 12 | G60: 3 | I60: 50
A61: Diplom ing. | C61: 10 | D61: 24 | E61: 50 | F61: 67 | G61: 15 | I61: 166
A62: Cand. Scient. Tek. | C62: 7 | D62: 11 | E62: 2 | F62: 2 | G62: 0 | I62: 22
A63: MA. Hum. | C63: 21 | D63: 54 | E63: 52 | F63: 36 | G63: 17 | I63: 180
A64: MA. Nat. | C64: 1 | D64: 8 | E64: 17 | F64: 10 | G64: 5 | I64: 41
A65: MA. Ph.d. | C65: 0 | D65: 1 | E65: 1 | F65: 0 | G65: 0 | I65: 2
A66: MA. Samf. | C66: 2 | D66: 3 | E66: 0 | F66: 2 | G66: 0 | I66: 7
A67: Øvrige Mag. | C67: 1 | D67: 1 | E67: 5 | F67: 8 | G67: 3 | I67: 18
A68: Agronom | C68: 0 | D68: 3 | E68: 3 | F68: 16 | G68: 1 | I68: 23
A69: Landsk. Arkt. | C69: 0 | D69: 0 | E69: 0 | F69: 3 | G69: 0 | I69: 3
A70: Hortonom | C70: 0 | D70: 0 | E70: 0 | F70: 2 | G70: 0 | I70: 2
A71: Forstkand. | C71: 0 | D71: 1 | E71: 0 | F71: 0 | G71: 0 | I71: 1
A72: Jordbrugsakad. | C72: 0 | D72: 4 | E72: 3 | F72: 21 | G72: 1 | I72: 29
A73: Mejeriing. | C73: 1 | D73: 0 | E73: 2 | F73: 1 | G73: 0 | I73: 4
A74: Levn.m.kand. | C74: 1 | D74: 0 | E74: 0 | F74: 0 | G74: 0 | I74: 1
A75: Dyrlæge | C75: 3 | D75: 8 | E75: 6 | F75: 3 | G75: 1 | I75: 21
A76: Farmaceut | C76: 0 | D76: 5 | E76: 3 | F76: 1 | G76: 1 | I76: 10
A77: Læge | C77: 2 | D77: 5 | E77: 5 | F77: 7 | G77: 5 | I77: 24
A78: Tandlæge | C78: 1 | D78: 4 | E78: 5 | F78: 8 | G78: 1 | I78: 19
A79: Arkitekt | C79: 0 | D79: 4 | E79: 1 | F79: 6 | G79: 8 | I79: 19
A80: Landinspek. | C80: 0 | D80: 0 | E80: 1 | F80: 1 | G80: 1 | I80: 3
A81: Bibliotekar | C81: 0 | D81: 0 | E81: 2 | F81: 5 | G81: 4 | I81: 11
A82: Musikudd. | C82: 0 | D82: 2 | E82: 5 | F82: 5 | G82: 1 | I82: 13
A83: Teolog | C83: 1 | D83: 3 | E83: 4 | F83: 10 | G83: 2 | I83: 20
A84: Psykolog | C84: 3 | D84: 8 | E84: 4 | F84: 3 | G84: 3 | I84: 21
A85: Jurist | C85: 6 | D85: 15 | E85: 10 | F85: 8 | G85: 4 | I85: 43
A86: Økonom | C86: 4 | D86: 5 | E86: 3 | F86: 5 | G86: 5 | I86: 22
A87: Samf. Adm. | C87: 5 | D87: 14 | E87: 9 | F87: 12 | G87: 2 | I87: 42
A88: Cand. Merc. | C88: 17 | D88: 38 | E88: 22 | F88: 21 | G88: 2 | I88: 100
A89: HA | C89: 6 | D89: 5 | E89: 6 | F89: 15 | G89: 1 | I89: 33
A90: HD | C90: 0 | D90: 6 | E90: 8 | F90: 11 | G90: 2 | I90: 27
A91: Komm. og Sprog | C91: 1 | D91: 7 | E91: 6 | F91: 9 | G91: 2 | I91: 25
A92: Cand. IT. | C92: 5 | D92: 4 | E92: 1 | F92: 0 | G92: 1 | I92: 11
A93: Bac. Samf. | C93: 0 | D93: 2 | E93: 2 | F93: 1 | G93: 0 | I93: 5
A94: Bac. Hum. | C94: 4 | D94: 5 | E94: 0 | F94: 0 | G94: 1 | I94: 10
A95: Bac. Nat. | C95: 3 | D95: 2 | E95: 4 | F95: 2 | G95: 0 | I95: 11
A96: Andre | C96: 1 | D96: 13 | E96: 12 | F96: 16 | G96: 13 | I96: 55
A98: Total | C98: 108 | D98: 280 | E98: 265 | F98: 308 | G98: 104 | I98: 1065
A100: Ingeniører i alt | C100: 12 | D100: 43 | E100: 64 | F100: 79 | G100: 18 | I100: 216
A101: Magistre i alt | C101: 25 | D101: 67 | E101: 75 | F101: 56 | G101: 25 | I101: 248
A102: DJØF'ere i alt | C102: 38 | D102: 77 | E102: 50 | F102: 61 | G102: 14 | I102: 240
A109: Billund
C111: Under 30 år | D111: 30 - 39 år | E111: 40 - 49 år | F111: 50 - 59 år | G111: Over 60 år | I111: I alt
A113: Civ. ing. | C113: 7 | D113: 21 | E113: 6 | F113: 8 | G113: 1 | I113: 43
A114: Diplom ing. | C114: 3 | D114: 11 | E114: 23 | F114: 36 | G114: 9 | I114: 82
A115: Cand. Scient. Tek. | C115: 6 | D115: 10 | E115: 5 | F115: 1 | G115: 0 | I115: 22
A116: MA. Hum. | C116: 9 | D116: 8 | E116: 15 | F116: 6 | G116: 5 | I116: 43
A117: MA. Nat. | C117: 0 | D117: 5 | E117: 5 | F117: 6 | G117: 2 | I117: 18
A118: MA. Ph.d. | C118: 0 | D118: 0 | E118: 0 | F118: 0 | G118: 0 | I118: 0
A119: MA. Samf. | C119: 0 | D119: 2 | E119: 0 | F119: 0 | G119: 0 | I119: 2
A120: Øvrige Mag. | C120: 0 | D120: 2 | E120: 2 | F120: 0 | G120: 0 | I120: 4
A121: Agronom | C121: 0 | D121: 0 | E121: 1 | F121: 3 | G121: 3 | I121: 7
A122: Landsk. Arkt. | C122: 0 | D122: 0 | E122: 0 | F122: 0 | G122: 0 | I122: 0
A123: Hortonom | C123: 0 | D123: 0 | E123: 0 | F123: 0 | G123: 0 | I123: 0
A124: Forstkand. | C124: 0 | D124: 0 | E124: 1 | F124: 0 | G124: 0 | I124: 1
A125: Jordbrugsakad. | C125: 0 | D125: 0 | E125: 2 | F125: 3 | G125: 3 | I125: 8
A126: Mejeriing. | C126: 0 | D126: 0 | E126: 0 | F126: 0 | G126: 0 | I126: 0
A127: Levn.m.kand. | C127: 0 | D127: 0 | E127: 0 | F127: 0 | G127: 0 | I127: 0
A128: Dyrlæge | C128: 0 | D128: 3 | E128: 1 | F128: 2 | G128: 1 | I128: 7
A129: Farmaceut | C129: 1 | D129: 1 | E129: 0 | F129: 2 | G129: 0 | I129: 4
A130: Læge | C130: 1 | D130: 0 | E130: 1 | F130: 0 | G130: 0 | I130: 2
A131: Tandlæge | C131: 0 | D131: 2 | E131: 4 | F131: 1 | G131: 1 | I131: 8
A132: Arkitekt | C132: 0 | D132: 4 | E132: 2 | F132: 1 | G132: 2 | I132: 9
A133: Landinspek. | C133: 0 | D133: 0 | E133: 0 | F133: 0 | G133: 0 | I133: 0
A134: Bibliotekar | C134: 0 | D134: 0 | E134: 2 | F134: 1 | G134: 2 | I134: 5
A135: Musikudd. | C135: 0 | D135: 0 | E135: 2 | F135: 1 | G135: 0 | I135: 3
A136: Teolog | C136: 0 | D136: 1 | E136: 1 | F136: 2 | G136: 0 | I136: 4
A137: Psykolog | C137: 1 | D137: 4 | E137: 1 | F137: 0 | G137: 0 | I137: 6
A138: Jurist | C138: 0 | D138: 3 | E138: 10 | F138: 0 | G138: 0 | I138: 13
A139: Økonom | C139: 0 | D139: 2 | E139: 1 | F139: 3 | G139: 3 | I139: 9
A140: Samf. Adm. | C140: 3 | D140: 11 | E140: 5 | F140: 2 | G140: 1 | I140: 22
A141: Cand. Merc. | C141: 10 | D141: 18 | E141: 17 | F141: 11 | G141: 3 | I141: 59
A142: HA | C142: 0 | D142: 3 | E142: 3 | F142: 7 | G142: 2 | I142: 15
A143: HD | C143: 0 | D143: 2 | E143: 2 | F143: 4 | G143: 2 | I143: 10
A144: Komm. og Sprog | C144: 2 | D144: 4 | E144: 0 | F144: 11 | G144: 6 | I144: 23
A145: Cand. IT. | C145: 1 | D145: 3 | E145: 1 | F145: 0 | G145: 0 | I145: 5
A146: Bac. Samf. | C146: 0 | D146: 2 | E146: 1 | F146: 1 | G146: 1 | I146: 5
A147: Bac. Hum. | C147: 0 | D147: 1 | E147: 1 | F147: 0 | G147: 0 | I147: 2
A148: Bac. Nat. | C148: 3 | D148: 2 | E148: 2 | F148: 1 | G148: 0 | I148: 8
A149: Andre | C149: 3 | D149: 14 | E149: 14 | F149: 9 | G149: 3 | I149: 43
A151: Total | C151: 50 | D151: 139 | E151: 129 | F151: 119 | G151: 47 | I151: 484
A153: Ingeniører i alt | C153: 10 | D153: 32 | E153: 29 | F153: 44 | G153: 10 | I153: 125
A154: Magistre i alt | C154: 9 | D154: 17 | E154: 22 | F154: 12 | G154: 7 | I154: 67
A155: DJØF'ere i alt | C155: 13 | D155: 37 | E155: 36 | F155: 23 | G155: 9 | I155: 118
A162: Sønderborg
C164: Under 30 år | D164: 30 - 39 år | E164: 40 - 49 år | F164: 50 - 59 år | G164: Over 60 år | I164: I alt
A166: Civ. ing. | C166: 40 | D166: 73 | E166: 88 | F166: 56 | G166: 14 | I166: 271
A167: Diplom ing. | C167: 49 | D167: 119 | E167: 235 | F167: 281 | G167: 92 | I167: 776
A168: Cand. Scient. Tek. | C168: 34 | D168: 45 | E168: 22 | F168: 11 | G168: 3 | I168: 115
A169: MA. Hum. | C169: 25 | D169: 59 | E169: 68 | F169: 28 | G169: 30 | I169: 210
A170: MA. Nat. | C170: 4 | D170: 20 | E170: 23 | F170: 23 | G170: 8 | I170: 78
A171: MA. Ph.d. | C171: 0 | D171: 3 | E171: 7 | F171: 2 | G171: 1 | I171: 13
A172: MA. Samf. | C172: 4 | D172: 5 | E172: 1 | F172: 2 | G172: 0 | I172: 12
A173: Øvrige Mag. | C173: 2 | D173: 4 | E173: 6 | F173: 5 | G173: 3 | I173: 20
A174: Agronom | C174: 1 | D174: 6 | E174: 11 | F174: 9 | G174: 1 | I174: 28
A175: Landsk. Arkt. | C175: 0 | D175: 1 | E175: 1 | F175: 1 | G175: 0 | I175: 3
A176: Hortonom | C176: 0 | D176: 0 | E176: 0 | F176: 0 | G176: 0 | I176: 0
A177: Forstkand. | C177: 0 | D177: 2 | E177: 2 | F177: 3 | G177: 0 | I177: 7
A178: Jordbrugsakad. | C178: 1 | D178: 9 | E178: 14 | F178: 13 | G178: 1 | I178: 38
A179: Mejeriing. | C179: 0 | D179: 0 | E179: 0 | F179: 1 | G179: 0 | I179: 1
A180: Levn.m.kand. | C180: 0 | D180: 0 | E180: 0 | F180: 0 | G180: 0 | I180: 0
A181: Dyrlæge | C181: 1 | D181: 7 | E181: 6 | F181: 3 | G181: 0 | I181: 17
A182: Farmaceut | C182: 2 | D182: 6 | E182: 6 | F182: 6 | G182: 1 | I182: 21
A183: Læge | C183: 12 | D183: 26 | E183: 6 | F183: 10 | G183: 8 | I183: 62
A184: Tandlæge | C184: 5 | D184: 6 | E184: 1 | F184: 2 | G184: 0 | I184: 14
A185: Arkitekt | C185: 0 | D185: 9 | E185: 1 | F185: 0 | G185: 2 | I185: 12
A186: Landinspek. | C186: 0 | D186: 0 | E186: 4 | F186: 1 | G186: 1 | I186: 6
A187: Bibliotekar | C187: 1 | D187: 3 | E187: 13 | F187: 14 | G187: 6 | I187: 37
A188: Musikudd. | C188: 0 | D188: 1 | E188: 1 | F188: 2 | G188: 0 | I188: 4
A189: Teolog | C189: 0 | D189: 2 | E189: 6 | F189: 10 | G189: 4 | I189: 22
A190: Psykolog | C190: 7 | D190: 12 | E190: 14 | F190: 9 | G190: 5 | I190: 47
A191: Jurist | C191: 13 | D191: 18 | E191: 12 | F191: 11 | G191: 2 | I191: 56
A192: Økonom | C192: 4 | D192: 11 | E192: 14 | F192: 12 | G192: 1 | I192: 42
A193: Samf. Adm. | C193: 14 | D193: 28 | E193: 35 | F193: 14 | G193: 4 | I193: 95
A194: Cand. Merc. | C194: 22 | D194: 77 | E194: 69 | F194: 46 | G194: 5 | I194: 219
A195: HA | C195: 3 | D195: 11 | E195: 15 | F195: 54 | G195: 6 | I195: 89
A196: HD | C196: 6 | D196: 5 | E196: 14 | F196: 18 | G196: 5 | I196: 48
A197: Komm. og Sprog | C197: 7 | D197: 12 | E197: 19 | F197: 19 | G197: 6 | I197: 63
A198: Cand. IT. | C198: 5 | D198: 10 | E198: 6 | F198: 1 | G198: 0 | I198: 22
A199: Bac. Samf. | C199: 3 | D199: 3 | E199: 4 | F199: 1 | G199: 0 | I199: 11
A200: Bac. Hum. | C200: 4 | D200: 10 | E200: 4 | F200: 1 | G200: 2 | I200: 21
A201: Bac. Nat. | C201: 9 | D201: 10 | E201: 5 | F201: 3 | G201: 0 | I201: 27
A202: Andre | C202: 21 | D202: 49 | E202: 31 | F202: 26 | G202: 10 | I202: 137
A204: Total | C204: 298 | D204: 653 | E204: 750 | F204: 685 | G204: 220 | I204: 2606
A206: Ingeniører i alt | C206: 89 | D206: 192 | E206: 323 | F206: 337 | G206: 106 | I206: 1047
A207: Magistre i alt | C207: 35 | D207: 91 | E207: 105 | F207: 60 | G207: 42 | I207: 333
A208: DJØF'ere i alt | C208: 56 | D208: 145 | E208: 145 | F208: 137 | G208: 18 | I208: 501
A215: Tønder
C217: Under 30 år | D217: 30 - 39 år | E217: 40 - 49 år | F217: 50 - 59 år | G217: Over 60 år | I217: I alt
A219: Civ. ing. | C219: 3 | D219: 13 | E219: 8 | F219: 7 | G219: 1 | I219: 32
A220: Diplom ing. | C220: 0 | D220: 8 | E220: 15 | F220: 25 | G220: 10 | I220: 58
A221: Cand. Scient. Tek. | C221: 3 | D221: 5 | E221: 3 | F221: 2 | G221: 0 | I221: 13
A222: MA. Hum. | C222: 8 | D222: 19 | E222: 24 | F222: 13 | G222: 7 | I222: 71
A223: MA. Nat. | C223: 0 | D223: 5 | E223: 9 | F223: 8 | G223: 5 | I223: 27
A224: MA. Ph.d. | C224: 0 | D224: 0 | E224: 1 | F224: 0 | G224: 0 | I224: 1
A225: MA. Samf. | C225: 1 | D225: 0 | E225: 2 | F225: 0 | G225: 0 | I225: 3
A226: Øvrige Mag. | C226: 0 | D226: 2 | E226: 1 | F226: 5 | G226: 1 | I226: 9
A227: Agronom | C227: 1 | D227: 4 | E227: 5 | F227: 4 | G227: 1 | I227: 15
A228: Landsk. Arkt. | C228: 0 | D228: 0 | E228: 1 | F228: 0 | G228: 0 | I228: 1
A229: Hortonom | C229: 0 | D229: 0 | E229: 0 | F229: 0 | G229: 0 | I229: 0
A230: Forstkand. | C230: 0 | D230: 1 | E230: 1 | F230: 1 | G230: 0 | I230: 3
A231: Jordbrugsakad. | C231: 1 | D231: 5 | E231: 7 | F231: 5 | G231: 1 | I231: 19
A232: Mejeriing. | C232: 0 | D232: 0 | E232: 0 | F232: 0 | G232: 0 | I232: 0
A233: Levn.m.kand. | C233: 0 | D233: 0 | E233: 0 | F233: 0 | G233: 0 | I233: 0
A234: Dyrlæge | C234: 0 | D234: 4 | E234: 11 | F234: 5 | G234: 1 | I234: 21
A235: Farmaceut | C235: 0 | D235: 1 | E235: 0 | F235: 1 | G235: 2 | I235: 4
A236: Læge | C236: 1 | D236: 2 | E236: 0 | F236: 5 | G236: 1 | I236: 9
A237: Tandlæge | C237: 1 | D237: 1 | E237: 0 | F237: 2 | G237: 0 | I237: 4
A238: Arkitekt | C238: 0 | D238: 2 | E238: 1 | F238: 2 | G238: 0 | I238: 5
A239: Landinspek. | C239: 0 | D239: 1 | E239: 1 | F239: 1 | G239: 1 | I239: 4
A240: Bibliotekar | C240: 0 | D240: 5 | E240: 1 | F240: 2 | G240: 3 | I240: 11
A241: Musikudd. | C241: 0 | D241: 0 | E241: 0 | F241: 3 | G241: 3 | I241: 6
A242: Teolog | C242: 0 | D242: 2 | E242: 6 | F242: 4 | G242: 4 | I242: 16
A243: Psykolog | C243: 2 | D243: 4 | E243: 1 | F243: 1 | G243: 1 | I243: 9
... 360 more rows

Sheet Tabel 4 Sydj
A1: Tabel 4. Ledighedsberørte - aldersfordelt
A3: Sydjylland
C5: Under 30 år | D5: 30 - 39 år | E5: 40 - 49 år | F5: 50 - 59 år | G5: Over 60 år | I5: I alt
A7: Civ. ing. | C7: 50 | D7: 13 | E7: 6 | F7: 4 | G7: 4 | I7: 77
A8: Diplom ing. | C8: 15 | D8: 10 | E8: 12 | F8: 29 | G8: 13 | I8: 79
A9: Cand. Scient. Tek | C9: 44 | D9: 16 | E9: 2 | F9: 1 | G9: 1 | I9: 64
A10: MA. Hum. | C10: 71 | D10: 61 | E10: 27 | F10: 13 | G10: 10 | I10: 182
A11: MA. Nat. | C11: 5 | D11: 4 | E11: 2 | F11: 8 | G11: 2 | I11: 21
A12: MA. Ph.d. | C12: 0 | D12: 0 | E12: 2 | F12: 0 | G12: 0 | I12: 2
A13: MA. Samf. | C13: 12 | D13: 10 | E13: 1 | F13: 2 | G13: 0 | I13: 25
A14: Øvrige Mag. | C14: 3 | D14: 3 | E14: 4 | F14: 1 | G14: 0 | I14: 11
A15: Agronom | C15: 0 | D15: 1 | E15: 0 | F15: 3 | G15: 0 | I15: 4
A16: Landsk. Arkt. | C16: 0 | D16: 0 | E16: 0 | F16: 0 | G16: 0 | I16: 0
A17: Hortonom | C17: 0 | D17: 0 | E17: 0 | F17: 0 | G17: 0 | I17: 0
A18: Forstkand. | C18: 1 | D18: 0 | E18: 0 | F18: 0 | G18: 0 | I18: 1
A19: Jordbrugsakad. | C19: 1 | D19: 1 | E19: 0 | F19: 3 | G19: 0 | I19: 5
A20: Mejeriing. | C20: 0 | D20: 0 | E20: 0 | F20: 1 | G20: 0 | I20: 1
A21: Levn.m.kand. | C21: 1 | D21: 0 | E21: 0 | F21: 0 | G21: 0 | I21: 1
A22: Dyrlæge | C22: 1 | D22: 3 | E22: 1 | F22: 0 | G22: 1 | I22: 6
A23: Farmaceut | C23: 6 | D23: 2 | E23: 0 | F23: 0 | G23: 1 | I23: 9
A24: Læge | C24: 2 | D24: 2 | E24: 1 | F24: 2 | G24: 1 | I24: 8
A25: Tandlæge | C25: 0 | D25: 0 | E25: 0 | F25: 0 | G25: 0 | I25: 0
A26: Arkitekt | C26: 6 | D26: 1 | E26: 4 | F26: 1 | G26: 1 | I26: 13
A27: Landinspek. | C27: 1 | D27: 0 | E27: 1 | F27: 0 | G27: 1 | I27: 3
A28: Bibliotekar | C28: 0 | D28: 3 | E28: 2 | F28: 1 | G28: 1 | I28: 7
A29: Musikudd. | C29: 0 | D29: 0 | E29: 0 | F29: 0 | G29: 0 | I29: 0
A30: Teolog | C30: 0 | D30: 0 | E30: 3 | F30: 1 | G30: 0 | I30: 4
A31: Psykolog | C31: 9 | D31: 8 | E31: 1 | F31: 2 | G31: 0 | I31: 20
A32: Jurist | C32: 9 | D32: 5 | E32: 2 | F32: 0 | G32: 0 | I32: 16
A33: Økonom | C33: 1 | D33: 3 | E33: 1 | F33: 2 | G33: 0 | I33: 7
A34: Samf. Adm. | C34: 25 | D34: 26 | E34: 11 | F34: 2 | G34: 0 | I34: 64
A35: Cand. Merc. | C35: 46 | D35: 36 | E35: 12 | F35: 9 | G35: 1 | I35: 104
A36: HA | C36: 15 | D36: 8 | E36: 2 | F36: 9 | G36: 3 | I36: 37
A37: HD | C37: 9 | D37: 4 | E37: 1 | F37: 5 | G37: 0 | I37: 19
A38: Komm. og Sprog | C38: 3 | D38: 5 | E38: 6 | F38: 9 | G38: 2 | I38: 25
A39: Cand. IT. | C39: 10 | D39: 4 | E39: 1 | F39: 0 | G39: 1 | I39: 16
A40: Bac. Samf. | C40: 5 | D40: 1 | E40: 0 | F40: 2 | G40: 0 | I40: 8
A41: Bac. Hum. | C41: 11 | D41: 8 | E41: 3 | F41: 1 | G41: 1 | I41: 24
A42: Bac. Nat. | C42: 8 | D42: 2 | E42: 0 | F42: 0 | G42: 0 | I42: 10
A43: Andre | C43: 21 | D43: 14 | E43: 9 | F43: 10 | G43: 9 | I43: 63
A45: Total | C45: 390 | D45: 253 | E45: 117 | F45: 118 | G45: 53 | I45: 931
A47: Ingeniører i alt | C47: 65 | D47: 23 | E47: 18 | F47: 33 | G47: 17 | I47: 156
A48: Magistre i alt | C48: 91 | D48: 78 | E48: 36 | F48: 24 | G48: 12 | I48: 241
A49: DJØF'ere i alt | C49: 96 | D49: 78 | E49: 28 | F49: 22 | G49: 4 | I49: 228
A56: Haderslev
C58: Under 30 år | D58: 30 - 39 år | E58: 40 - 49 år | F58: 50 - 59 år | G58: Over 60 år | I58: I alt
A60: Civ. ing. | C60: 0 | D60: 0 | E60: 0 | F60: 0 | G60: 1 | I60: 1
A61: Diplom ing. | C61: 2 | D61: 0 | E61: 0 | F61: 2 | G61: 1 | I61: 5
A62: Cand. Scient. Tek | C62: 3 | D62: 0 | E62: 0 | F62: 0 | G62: 0 | I62: 3
A63: MA. Hum. | C63: 7 | D63: 3 | E63: 2 | F63: 0 | G63: 4 | I63: 16
A64: MA. Nat. | C64: 0 | D64: 0 | E64: 0 | F64: 0 | G64: 0 | I64: 0
A65: MA. Ph.d. | C65: 0 | D65: 0 | E65: 0 | F65: 0 | G65: 0 | I65: 0
A66: MA. Samf. | C66: 2 | D66: 0 | E66: 0 | F66: 1 | G66: 0 | I66: 3
A67: Øvrige Mag. | C67: 1 | D67: 0 | E67: 1 | F67: 0 | G67: 0 | I67: 2
A68: Agronom | C68: 0 | D68: 0 | E68: 0 | F68: 0 | G68: 0 | I68: 0
A69: Landsk. Arkt. | C69: 0 | D69: 0 | E69: 0 | F69: 0 | G69: 0 | I69: 0
A70: Hortonom | C70: 0 | D70: 0 | E70: 0 | F70: 0 | G70: 0 | I70: 0
A71: Forstkand. | C71: 0 | D71: 0 | E71: 0 | F71: 0 | G71: 0 | I71: 0
A72: Jordbrugsakad. | C72: 0 | D72: 0 | E72: 0 | F72: 0 | G72: 0 | I72: 0
A73: Mejeriing. | C73: 0 | D73: 0 | E73: 0 | F73: 0 | G73: 0 | I73: 0
A74: Levn.m.kand. | C74: 0 | D74: 0 | E74: 0 | F74: 0 | G74: 0 | I74: 0
A75: Dyrlæge | C75: 0 | D75: 0 | E75: 0 | F75: 0 | G75: 0 | I75: 0
A76: Farmaceut | C76: 0 | D76: 0 | E76: 0 | F76: 0 | G76: 0 | I76: 0
A77: Læge | C77: 0 | D77: 0 | E77: 0 | F77: 0 | G77: 0 | I77: 0
A78: Tandlæge | C78: 0 | D78: 0 | E78: 0 | F78: 0 | G78: 0 | I78: 0
A79: Arkitekt | C79: 0 | D79: 0 | E79: 0 | F79: 0 | G79: 0 | I79: 0
A80: Landinspek. | C80: 0 | D80: 0 | E80: 0 | F80: 0 | G80: 0 | I80: 0
A81: Bibliotekar | C81: 0 | D81: 0 | E81: 0 | F81: 1 | G81: 0 | I81: 1
A82: Musikudd. | C82: 0 | D82: 0 | E82: 0 | F82: 0 | G82: 0 | I82: 0
A83: Teolog | C83: 0 | D83: 0 | E83: 0 | F83: 0 | G83: 0 | I83: 0
A84: Psykolog | C84: 0 | D84: 0 | E84: 0 | F84: 0 | G84: 0 | I84: 0
A85: Jurist | C85: 0 | D85: 0 | E85: 1 | F85: 0 | G85: 0 | I85: 1
A86: Økonom | C86: 0 | D86: 0 | E86: 0 | F86: 0 | G86: 0 | I86: 0
A87: Samf. Adm. | C87: 1 | D87: 0 | E87: 0 | F87: 1 | G87: 0 | I87: 2
A88: Cand. Merc. | C88: 2 | D88: 0 | E88: 1 | F88: 1 | G88: 0 | I88: 4
A89: HA | C89: 1 | D89: 1 | E89: 1 | F89: 0 | G89: 0 | I89: 3
A90: HD | C90: 0 | D90: 0 | E90: 0 | F90: 0 | G90: 0 | I90: 0
A91: Komm. og Sprog | C91: 0 | D91: 1 | E91: 1 | F91: 1 | G91: 0 | I91: 3
A92: Cand. IT. | C92: 1 | D92: 0 | E92: 0 | F92: 0 | G92: 1 | I92: 2
A93: Bac. Samf. | C93: 0 | D93: 0 | E93: 0 | F93: 0 | G93: 0 | I93: 0
A94: Bac. Hum. | C94: 1 | D94: 0 | E94: 0 | F94: 0 | G94: 1 | I94: 2
A95: Bac. Nat. | C95: 1 | D95: 0 | E95: 0 | F95: 0 | G95: 0 | I95: 1
A96: Andre | C96: 0 | D96: 0 | E96: 0 | F96: 0 | G96: 1 | I96: 1
A98: Total | C98: 22 | D98: 5 | E98: 7 | F98: 7 | G98: 9 | I98: 50
A100: Ingeniører i alt | C100: 2 | D100: 0 | E100: 0 | F100: 2 | G100: 2 | I100: 6
A101: Magistre i alt | C101: 10 | D101: 3 | E101: 3 | F101: 1 | G101: 4 | I101: 21
A102: DJØF'ere i alt | C102: 4 | D102: 1 | E102: 3 | F102: 2 | G102: 0 | I102: 10
A109: Billund
C111: Under 30 år | D111: 30 - 39 år | E111: 40 - 49 år | F111: 50 - 59 år | G111: Over 60 år | I111: I alt
A113: Civ. ing. | C113: 2 | D113: 0 | E113: 0 | F113: 0 | G113: 0 | I113: 2
A114: Diplom ing. | C114: 0 | D114: 0 | E114: 0 | F114: 0 | G114: 0 | I114: 0
A115: Cand. Scient. Tek | C115: 1 | D115: 0 | E115: 0 | F115: 0 | G115: 0 | I115: 1
A116: MA. Hum. | C116: 3 | D116: 2 | E116: 1 | F116: 1 | G116: 0 | I116: 7
A117: MA. Nat. | C117: 0 | D117: 0 | E117: 0 | F117: 1 | G117: 0 | I117: 1
A118: MA. Ph.d. | C118: 0 | D118: 0 | E118: 0 | F118: 0 | G118: 0 | I118: 0
A119: MA. Samf. | C119: 0 | D119: 0 | E119: 0 | F119: 0 | G119: 0 | I119: 0
A120: Øvrige Mag. | C120: 0 | D120: 0 | E120: 0 | F120: 0 | G120: 0 | I120: 0
A121: Agronom | C121: 0 | D121: 0 | E121: 0 | F121: 0 | G121: 0 | I121: 0
A122: Landsk. Arkt. | C122: 0 | D122: 0 | E122: 0 | F122: 0 | G122: 0 | I122: 0
A123: Hortonom | C123: 0 | D123: 0 | E123: 0 | F123: 0 | G123: 0 | I123: 0
A124: Forstkand. | C124: 0 | D124: 0 | E124: 0 | F124: 0 | G124: 0 | I124: 0
A125: Jordbrugsakad. | C125: 0 | D125: 0 | E125: 0 | F125: 0 | G125: 0 | I125: 0
A126: Mejeriing. | C126: 0 | D126: 0 | E126: 0 | F126: 0 | G126: 0 | I126: 0
A127: Levn.m.kand. | C127: 0 | D127: 0 | E127: 0 | F127: 0 | G127: 0 | I127: 0
A128: Dyrlæge | C128: 0 | D128: 0 | E128: 0 | F128: 0 | G128: 0 | I128: 0
A129: Farmaceut | C129: 0 | D129: 0 | E129: 0 | F129: 0 | G129: 0 | I129: 0
A130: Læge | C130: 0 | D130: 0 | E130: 0 | F130: 0 | G130: 0 | I130: 0
A131: Tandlæge | C131: 0 | D131: 0 | E131: 0 | F131: 0 | G131: 0 | I131: 0
A132: Arkitekt | C132: 0 | D132: 0 | E132: 0 | F132: 0 | G132: 0 | I132: 0
A133: Landinspek. | C133: 0 | D133: 0 | E133: 0 | F133: 0 | G133: 0 | I133: 0
A134: Bibliotekar | C134: 0 | D134: 0 | E134: 0 | F134: 0 | G134: 0 | I134: 0
A135: Musikudd. | C135: 0 | D135: 0 | E135: 0 | F135: 0 | G135: 0 | I135: 0
A136: Teolog | C136: 0 | D136: 0 | E136: 0 | F136: 0 | G136: 0 | I136: 0
A137: Psykolog | C137: 0 | D137: 1 | E137: 0 | F137: 0 | G137: 0 | I137: 1
A138: Jurist | C138: 0 | D138: 0 | E138: 0 | F138: 0 | G138: 0 | I138: 0
A139: Økonom | C139: 0 | D139: 0 | E139: 0 | F139: 0 | G139: 0 | I139: 0
A140: Samf. Adm. | C140: 0 | D140: 0 | E140: 0 | F140: 0 | G140: 0 | I140: 0
A141: Cand. Merc. | C141: 3 | D141: 0 | E141: 0 | F141: 0 | G141: 0 | I141: 3
A142: HA | C142: 0 | D142: 0 | E142: 0 | F142: 0 | G142: 0 | I142: 0
A143: HD | C143: 0 | D143: 0 | E143: 0 | F143: 0 | G143: 0 | I143: 0
A144: Komm. og Sprog | C144: 0 | D144: 0 | E144: 0 | F144: 2 | G144: 1 | I144: 3
A145: Cand. IT. | C145: 0 | D145: 0 | E145: 0 | F145: 0 | G145: 0 | I145: 0
A146: Bac. Samf. | C146: 0 | D146: 0 | E146: 0 | F146: 0 | G146: 0 | I146: 0
A147: Bac. Hum. | C147: 0 | D147: 0 | E147: 0 | F147: 0 | G147: 0 | I147: 0
A148: Bac. Nat. | C148: 0 | D148: 0 | E148: 0 | F148: 0 | G148: 0 | I148: 0
A149: Andre | C149: 2 | D149: 1 | E149: 1 | F149: 0 | G149: 0 | I149: 4
A151: Total | C151: 11 | D151: 4 | E151: 2 | F151: 4 | G151: 1 | I151: 22
A153: Ingeniører i alt | C153: 2 | D153: 0 | E153: 0 | F153: 0 | G153: 0 | I153: 2
A154: Magistre i alt | C154: 3 | D154: 2 | E154: 1 | F154: 2 | G154: 0 | I154: 8
A155: DJØF'ere i alt | C155: 3 | D155: 0 | E155: 0 | F155: 0 | G155: 0 | I155: 3
A162: Sønderborg
C164: Under 30 år | D164: 30 - 39 år | E164: 40 - 49 år | F164: 50 - 59 år | G164: Over 60 år | I164: I alt
A166: Civ. ing. | C166: 7 | D166: 0 | E166: 2 | F166: 2 | G166: 0 | I166: 11
A167: Diplom ing. | C167: 4 | D167: 1 | E167: 2 | F167: 8 | G167: 3 | I167: 18
A168: Cand. Scient. Tek | C168: 4 | D168: 3 | E168: 0 | F168: 1 | G168: 0 | I168: 8
A169: MA. Hum. | C169: 4 | D169: 5 | E169: 2 | F169: 3 | G169: 2 | I169: 16
A170: MA. Nat. | C170: 0 | D170: 0 | E170: 0 | F170: 2 | G170: 1 | I170: 3
A171: MA. Ph.d. | C171: 0 | D171: 0 | E171: 1 | F171: 0 | G171: 0 | I171: 1
A172: MA. Samf. | C172: 0 | D172: 0 | E172: 0 | F172: 0 | G172: 0 | I172: 0
A173: Øvrige Mag. | C173: 0 | D173: 0 | E173: 0 | F173: 0 | G173: 0 | I173: 0
A174: Agronom | C174: 0 | D174: 0 | E174: 0 | F174: 0 | G174: 0 | I174: 0
A175: Landsk. Arkt. | C175: 0 | D175: 0 | E175: 0 | F175: 0 | G175: 0 | I175: 0
A176: Hortonom | C176: 0 | D176: 0 | E176: 0 | F176: 0 | G176: 0 | I176: 0
A177: Forstkand. | C177: 0 | D177: 0 | E177: 0 | F177: 0 | G177: 0 | I177: 0
A178: Jordbrugsakad. | C178: 0 | D178: 0 | E178: 0 | F178: 0 | G178: 0 | I178: 0
A179: Mejeriing. | C179: 0 | D179: 0 | E179: 0 | F179: 0 | G179: 0 | I179: 0
A180: Levn.m.kand. | C180: 0 | D180: 0 | E180: 0 | F180: 0 | G180: 0 | I180: 0
A181: Dyrlæge | C181: 0 | D181: 1 | E181: 0 | F181: 0 | G181: 0 | I181: 1
A182: Farmaceut | C182: 0 | D182: 0 | E182: 0 | F182: 0 | G182: 0 | I182: 0
A183: Læge | C183: 0 | D183: 0 | E183: 0 | F183: 1 | G183: 0 | I183: 1
A184: Tandlæge | C184: 0 | D184: 0 | E184: 0 | F184: 0 | G184: 0 | I184: 0
A185: Arkitekt | C185: 0 | D185: 0 | E185: 0 | F185: 0 | G185: 0 | I185: 0
A186: Landinspek. | C186: 0 | D186: 0 | E186: 0 | F186: 0 | G186: 0 | I186: 0
A187: Bibliotekar | C187: 0 | D187: 0 | E187: 0 | F187: 0 | G187: 0 | I187: 0
A188: Musikudd. | C188: 0 | D188: 0 | E188: 0 | F188: 0 | G188: 0 | I188: 0
A189: Teolog | C189: 0 | D189: 0 | E189: 0 | F189: 0 | G189: 0 | I189: 0
A190: Psykolog | C190: 0 | D190: 1 | E190: 0 | F190: 0 | G190: 0 | I190: 1
A191: Jurist | C191: 2 | D191: 1 | E191: 0 | F191: 0 | G191: 0 | I191: 3
A192: Økonom | C192: 0 | D192: 0 | E192: 0 | F192: 0 | G192: 0 | I192: 0
A193: Samf. Adm. | C193: 2 | D193: 1 | E193: 0 | F193: 0 | G193: 0 | I193: 3
A194: Cand. Merc. | C194: 5 | D194: 3 | E194: 2 | F194: 1 | G194: 0 | I194: 11
A195: HA | C195: 1 | D195: 1 | E195: 0 | F195: 0 | G195: 1 | I195: 3
A196: HD | C196: 1 | D196: 0 | E196: 0 | F196: 0 | G196: 0 | I196: 1
A197: Komm. og Sprog | C197: 0 | D197: 1 | E197: 0 | F197: 2 | G197: 0 | I197: 3
A198: Cand. IT. | C198: 2 | D198: 1 | E198: 0 | F198: 0 | G198: 0 | I198: 3
A199: Bac. Samf. | C199: 1 | D199: 0 | E199: 0 | F199: 1 | G199: 0 | I199: 2
A200: Bac. Hum. | C200: 1 | D200: 1 | E200: 0 | F200: 0 | G200: 0 | I200: 2
A201: Bac. Nat. | C201: 2 | D201: 1 | E201: 0 | F201: 0 | G201: 0 | I201: 3
A202: Andre | C202: 1 | D202: 1 | E202: 0 | F202: 1 | G202: 1 | I202: 4
A204: Total | C204: 37 | D204: 22 | E204: 9 | F204: 22 | G204: 8 | I204: 98
A206: Ingeniører i alt | C206: 11 | D206: 1 | E206: 4 | F206: 10 | G206: 3 | I206: 29
A207: Magistre i alt | C207: 4 | D207: 5 | E207: 3 | F207: 5 | G207: 3 | I207: 20
A208: DJØF'ere i alt | C208: 10 | D208: 6 | E208: 2 | F208: 1 | G208: 1 | I208: 20
A215: Tønder
C217: Under 30 år | D217: 30 - 39 år | E217: 40 - 49 år | F217: 50 - 59 år | G217: Over 60 år | I217: I alt
A219: Civ. ing. | C219: 2 | D219: 0 | E219: 0 | F219: 1 | G219: 0 | I219: 3
A220: Diplom ing. | C220: 0 | D220: 1 | E220: 0 | F220: 1 | G220: 0 | I220: 2
A221: Cand. Scient. Tek | C221: 0 | D221: 0 | E221: 0 | F221: 0 | G221: 0 | I221: 0
A222: MA. Hum. | C222: 2 | D222: 3 | E222: 2 | F222: 0 | G222: 0 | I222: 7
A223: MA. Nat. | C223: 0 | D223: 0 | E223: 0 | F223: 0 | G223: 0 | I223: 0
A224: MA. Ph.d. | C224: 0 | D224: 0 | E224: 0 | F224: 0 | G224: 0 | I224: 0
A225: MA. Samf. | C225: 0 | D225: 0 | E225: 0 | F225: 0 | G225: 0 | I225: 0
A226: Øvrige Mag. | C226: 0 | D226: 0 | E226: 0 | F226: 0 | G226: 0 | I226: 0
A227: Agronom | C227: 0 | D227: 0 | E227: 0 | F227: 0 | G227: 0 | I227: 0
A228: Landsk. Arkt. | C228: 0 | D228: 0 | E228: 0 | F228: 0 | G228: 0 | I228: 0
A229: Hortonom | C229: 0 | D229: 0 | E229: 0 | F229: 0 | G229: 0 | I229: 0
A230: Forstkand. | C230: 0 | D230: 0 | E230: 0 | F230: 0 | G230: 0 | I230: 0
A231: Jordbrugsakad. | C231: 0 | D231: 0 | E231: 0 | F231: 0 | G231: 0 | I231: 0
A232: Mejeriing. | C232: 0 | D232: 0 | E232: 0 | F232: 0 | G232: 0 | I232: 0
A233: Levn.m.kand. | C233: 0 | D233: 0 | E233: 0 | F233: 0 | G233: 0 | I233: 0
A234: Dyrlæge | C234: 0 | D234: 0 | E234: 0 | F234: 0 | G234: 1 | I234: 1
A235: Farmaceut | C235: 0 | D235: 0 | E235: 0 | F235: 0 | G235: 0 | I235: 0
A236: Læge | C236: 0 | D236: 0 | E236: 0 | F236: 0 | G236: 0 | I236: 0
A237: Tandlæge | C237: 0 | D237: 0 | E237: 0 | F237: 0 | G237: 0 | I237: 0
A238: Arkitekt | C238: 0 | D238: 0 | E238: 0 | F238: 0 | G238: 0 | I238: 0
A239: Landinspek. | C239: 0 | D239: 0 | E239: 0 | F239: 0 | G239: 0 | I239: 0
A240: Bibliotekar | C240: 0 | D240: 0 | E240: 0 | F240: 0 | G240: 0 | I240: 0
A241: Musikudd. | C241: 0 | D241: 0 | E241: 0 | F241: 0 | G241: 0 | I241: 0
A242: Teolog | C242: 0 | D242: 0 | E242: 0 | F242: 0 | G242: 0 | I242: 0
A243: Psykolog | C243: 1 | D243: 1 | E243: 0 | F243: 0 | G243: 0 | I243: 2
... 360 more rows

Sheet Tabel 4(Br) Sydj
A1: Tabel 4. Ledighedsberørte - aldersfordelt
A3: Sydjylland
C5: Under 30 år | D5: 30 - 39 år | E5: 40 - 49 år | F5: 50 - 59 år | G5: Over 60 år | I5: I alt
A7: Civ. ing. | C7: 43.96369987 | D7: 11.52996944 | E7: 5.998877316 | F7: 3.660575064 | G7: 3.999251544 | I7: 69.15237323
A8: Diplom ing. | C8: 12.22790495 | D8: 8.239256533 | E8: 10.43472837 | F8: 26.28578557 | G8: 10.35988274 | I8: 67.54755816
A9: Cand. Scient. Tek | C9: 38.83615044 | D9: 14.09093744 | E9: 1.90731616 | F9: 0.9998128859 | G9: 0.9536580802 | I9: 56.78787501
A10: MA. Hum. | C10: 63.66868334 | D10: 50.07921163 | E10: 23.58510572 | F10: 11.3721699 | G10: 9.090001871 | I10: 157.7951725
A11: MA. Nat. | C11: 4.091561155 | D11: 3.96557101 | E11: 1.468845506 | F11: 7.39973804 | G11: 1.999625772 | I11: 18.92534148
A12: MA. Ph.d. | C12: 0 | D12: 0 | E12: 1.765733175 | F12: 0 | G12: 0 | I12: 1.765733175
A13: MA. Samf. | C13: 10.87694131 | D13: 6.726127362 | E13: 0.9998128859 | F13: 1.999625772 | G13: 0 | I13: 20.60250733
A14: Øvrige Mag. | C14: 2.073223976 | D14: 2.307116572 | E14: 2.696937566 | F14: 0.4453315038 | G14: 0 | I14: 7.522609618
A15: Agronom | C15: 0 | D15: 0.9998128859 | E15: 0 | F15: 2.999438658 | G15: 0 | I15: 3.999251544
A16: Landsk. Arkt. | C16: 0 | D16: 0 | E16: 0 | F16: 0 | G16: 0 | I16: 0
A17: Hortonom | C17: 0 | D17: 0 | E17: 0 | F17: 0 | G17: 0 | I17: 0
A18: Forstkand. | C18: 0.9998128859 | D18: 0 | E18: 0 | F18: 0 | G18: 0 | I18: 0.9998128859
A19: Jordbrugsakad. | C19: 0.9998128859 | D19: 0.9998128859 | E19: 0 | F19: 2.999438658 | G19: 0 | I19: 4.99906443
A20: Mejeriing. | C20: 0 | D20: 0 | E20: 0 | F20: 0.9998128859 | G20: 0 | I20: 0.9998128859
A21: Levn.m.kand. | C21: 0.9998128859 | D21: 0 | E21: 0 | F21: 0 | G21: 0 | I21: 0.9998128859
A22: Dyrlæge | C22: 0.9998128859 | D22: 1.922909 | E22: 0.6555229838 | F22: 0 | G22: 0.9998128859 | I22: 4.578057756
A23: Farmaceut | C23: 5.025884114 | D23: 1.556789122 | E23: 0 | F23: 0 | G23: 0.2108151937 | I23: 6.79348843
A24: Læge | C24: 1.142019585 | D24: 1.127674172 | E24: 0.5382648288 | F24: 1.454500094 | G24: 0.2257843198 | I24: 4.488242999
A25: Tandlæge | C25: 0 | D25: 0 | E25: 0 | F25: 0 | G25: 0 | I25: 0
A26: Arkitekt | C26: 4.909873386 | D26: 0.9998128859 | E26: 3.999251544 | F26: 0.9998128859 | G26: 0.9998128859 | I26: 11.90856359
A27: Landinspek. | C27: 0.4459552174 | D27: 0 | E27: 0.9998128859 | F27: 0 | G27: 0.7228840516 | I27: 2.168652155
A28: Bibliotekar | C28: 0 | D28: 2.322085698 | E28: 1.58423252 | F28: 0.9998128859 | G28: 0.5844196345 | I28: 5.490550739
A29: Musikudd. | C29: 0 | D29: 0 | E29: 0 | F29: 0 | G29: 0 | I29: 0
A30: Teolog | C30: 0 | D30: 0 | E30: 1.853053078 | F30: 0.9998128859 | G30: 0 | I30: 2.852865964
A31: Psykolog | C31: 7.429052579 | D31: 6.966880808 | E31: 0.6767292459 | F31: 1.350963637 | G31: 0 | I31: 16.42362627
A32: Jurist | C32: 8.952161168 | D32: 4.208195597 | E32: 1.999625772 | F32: 0 | G32: 0 | I32: 15.15998254
A33: Økonom | C33: 0.9075032745 | D33: 2.623963076 | E33: 0.8925341483 | F33: 1.999625772 | G33: 0 | I33: 6.423626271
A34: Samf. Adm. | C34: 24.11463856 | D34: 19.68190607 | E34: 9.227842575 | F34: 1.858042787 | G34: 0 | I34: 54.88242999
A35: Cand. Merc. | C35: 41.0416017 | D35: 31.40086072 | E35: 10.02993825 | F35: 8.194349155 | G35: 0.7228840516 | I35: 91.38963388
A36: HA | C36: 12.12062621 | D36: 5.882866588 | E36: 1.175700119 | F36: 7.982910248 | G36: 2.260961766 | I36: 29.42306493
A37: HD | C37: 7.382897773 | D37: 3.399239069 | E37: 0.9998128859 | F37: 4.706542756 | G37: 0 | I37: 16.48849248
A38: Komm. og Sprog | C38: 2.537890601 | D38: 4.295515499 | E38: 4.505706979 | F38: 8.279797917 | G38: 1.242437473 | I38: 20.86134847
A39: Cand. IT. | C39: 8.90912493 | D39: 3.924405913 | E39: 0.9998128859 | F39: 0 | G39: 0.9586477889 | I39: 14.79199152
A40: Bac. Samf. | C40: 4.127736543 | D40: 0.9998128859 | E40: 0 | F40: 1.90731616 | G40: 0 | I40: 7.03486559
A41: Bac. Hum. | C41: 9.1922909 | D41: 6.456683091 | E41: 2.722509823 | F41: 0.9998128859 | G41: 0.230150315 | I41: 19.60144702
A42: Bac. Nat. | C42: 6.569575251 | D42: 1.491922909 | E42: 0 | F42: 0 | G42: 0 | I42: 8.06149816
A43: Andre | C43: 18.24923595 | D43: 12.08881682 | E43: 6.570198965 | F43: 8.897898085 | G43: 7.115948357 | I43: 52.92209817
A45: Total | C45: 341.7956714 | D45: 209.2883428 | E45: 98.28790619 | F45: 106.7934884 | G45: 42.67697873 | I45: 798.8423876
A47: Ingeniører i alt | C47: 56.19160482 | D47: 19.76922597 | E47: 16.43360569 | F47: 29.94636063 | G47: 14.35913429 | I47: 136.6999314
A48: Magistre i alt | C48: 80.71040978 | D48: 63.07802657 | E48: 30.51643485 | F48: 21.21686522 | G48: 11.08962764 | I48: 206.6113641
A49: DJØF'ere i alt | C49: 87.13653091 | D49: 63.79779205 | E49: 23.32564087 | F49: 20.03492796 | G49: 2.983845818 | I49: 197.2787376
A56: Haderslev
C58: Under 30 år | D58: 30 - 39 år | E58: 40 - 49 år | F58: 50 - 59 år | G58: Over 60 år | I58: I alt
A60: Civ. ing. | C60: 0 | D60: 0 | E60: 0 | F60: 0 | G60: 0.9998128859 | I60: 0.9998128859
A61: Diplom ing. | C61: 1.90731616 | D61: 0 | E61: 0 | F61: 1.478824924 | G61: 0.9998128859 | I61: 4.38595397
A62: Cand. Scient. Tek | C62: 2.860974241 | D62: 0 | E62: 0 | F62: 0 | G62: 0 | I62: 2.860974241
A63: MA. Hum. | C63: 6.419260276 | D63: 2.499844072 | E63: 1.999625772 | F63: 0 | G63: 3.491548681 | I63: 14.4102788
A64: MA. Nat. | C64: 0 | D64: 0 | E64: 0 | F64: 0 | G64: 0 | I64: 0
A65: MA. Ph.d. | C65: 0 | D65: 0 | E65: 0 | F65: 0 | G65: 0 | I65: 0
A66: MA. Samf. | C66: 1.573005676 | D66: 0 | E66: 0 | F66: 0.9998128859 | G66: 0 | I66: 2.572818562
A67: Øvrige Mag. | C67: 0.9998128859 | D67: 0 | E67: 0.4977234454 | F67: 0 | G67: 0 | I67: 1.497536331
A68: Agronom | C68: 0 | D68: 0 | E68: 0 | F68: 0 | G68: 0 | I68: 0
A69: Landsk. Arkt. | C69: 0 | D69: 0 | E69: 0 | F69: 0 | G69: 0 | I69: 0
A70: Hortonom | C70: 0 | D70: 0 | E70: 0 | F70: 0 | G70: 0 | I70: 0
A71: Forstkand. | C71: 0 | D71: 0 | E71: 0 | F71: 0 | G71: 0 | I71: 0
A72: Jordbrugsakad. | C72: 0 | D72: 0 | E72: 0 | F72: 0 | G72: 0 | I72: 0
A73: Mejeriing. | C73: 0 | D73: 0 | E73: 0 | F73: 0 | G73: 0 | I73: 0
A74: Levn.m.kand. | C74: 0 | D74: 0 | E74: 0 | F74: 0 | G74: 0 | I74: 0
A75: Dyrlæge | C75: 0 | D75: 0 | E75: 0 | F75: 0 | G75: 0 | I75: 0
A76: Farmaceut | C76: 0 | D76: 0 | E76: 0 | F76: 0 | G76: 0 | I76: 0
A77: Læge | C77: 0 | D77: 0 | E77: 0 | F77: 0 | G77: 0 | I77: 0
A78: Tandlæge | C78: 0 | D78: 0 | E78: 0 | F78: 0 | G78: 0 | I78: 0
A79: Arkitekt | C79: 0 | D79: 0 | E79: 0 | F79: 0 | G79: 0 | I79: 0
A80: Landinspek. | C80: 0 | D80: 0 | E80: 0 | F80: 0 | G80: 0 | I80: 0
A81: Bibliotekar | C81: 0 | D81: 0 | E81: 0 | F81: 0.9998128859 | G81: 0 | I81: 0.9998128859
A82: Musikudd. | C82: 0 | D82: 0 | E82: 0 | F82: 0 | G82: 0 | I82: 0
A83: Teolog | C83: 0 | D83: 0 | E83: 0 | F83: 0 | G83: 0 | I83: 0
A84: Psykolog | C84: 0 | D84: 0 | E84: 0 | F84: 0 | G84: 0 | I84: 0
A85: Jurist | C85: 0 | D85: 0 | E85: 0.9998128859 | F85: 0 | G85: 0 | I85: 0.9998128859
A86: Økonom | C86: 0 | D86: 0 | E86: 0 | F86: 0 | G86: 0 | I86: 0
A87: Samf. Adm. | C87: 0.9998128859 | D87: 0 | E87: 0 | F87: 0.8582299008 | G87: 0 | I87: 1.858042787
A88: Cand. Merc. | C88: 1.953470966 | D88: 0 | E88: 0.9998128859 | F88: 0.9998128859 | G88: 0 | I88: 3.953096738
A89: HA | C89: 0.9998128859 | D89: 0.9998128859 | E89: 0.9998128859 | F89: 0 | G89: 0 | I89: 2.999438658
A90: HD | C90: 0 | D90: 0 | E90: 0 | F90: 0 | G90: 0 | I90: 0
A91: Komm. og Sprog | C91: 0 | D91: 0.9998128859 | E91: 0.6380590033 | F91: 0.7228840516 | G91: 0 | I91: 2.360755941
A92: Cand. IT. | C92: 0.742219173 | D92: 0 | E92: 0 | F92: 0 | G92: 0.9586477889 | I92: 1.700866962
A93: Bac. Samf. | C93: 0 | D93: 0 | E93: 0 | F93: 0 | G93: 0 | I93: 0
A94: Bac. Hum. | C94: 0.9998128859 | D94: 0 | E94: 0 | F94: 0 | G94: 0.230150315 | I94: 1.229963201
A95: Bac. Nat. | C95: 0.4921100231 | D95: 0 | E95: 0 | F95: 0 | G95: 0 | I95: 0.4921100231
A96: Andre | C96: 0 | D96: 0 | E96: 0 | F96: 0 | G96: 0.9536580802 | I96: 0.9536580802
A98: Total | C98: 19.94760806 | D98: 4.499469843 | E98: 6.134846878 | F98: 6.059377534 | G98: 7.633630637 | I98: 44.27493295
A100: Ingeniører i alt | C100: 1.90731616 | D100: 0 | E100: 0 | F100: 1.478824924 | G100: 1.999625772 | I100: 5.385766856
A101: Magistre i alt | C101: 8.992078837 | D101: 2.499844072 | E101: 2.497349217 | F101: 0.9998128859 | G101: 3.491548681 | I101: 18.48063369
A102: DJØF'ere i alt | C102: 3.953096738 | D102: 0.9998128859 | E102: 2.999438658 | F102: 1.858042787 | G102: 0 | I102: 9.810391068
A109: Billund
C111: Under 30 år | D111: 30 - 39 år | E111: 40 - 49 år | F111: 50 - 59 år | G111: Over 60 år | I111: I alt
A113: Civ. ing. | C113: 1.90731616 | D113: 0 | E113: 0 | F113: 0 | G113: 0 | I113: 1.90731616
A114: Diplom ing. | C114: 0 | D114: 0 | E114: 0 | F114: 0 | G114: 0 | I114: 0
A115: Cand. Scient. Tek | C115: 0.9998128859 | D115: 0 | E115: 0 | F115: 0 | G115: 0 | I115: 0.9998128859
A116: MA. Hum. | C116: 2.999438658 | D116: 1.940996694 | E116: 0.9779829102 | F116: 0.9998128859 | G116: 0 | I116: 6.918231148
A117: MA. Nat. | C117: 0 | D117: 0 | E117: 0 | F117: 0.9998128859 | G117: 0 | I117: 0.9998128859
A118: MA. Ph.d. | C118: 0 | D118: 0 | E118: 0 | F118: 0 | G118: 0 | I118: 0
A119: MA. Samf. | C119: 0 | D119: 0 | E119: 0 | F119: 0 | G119: 0 | I119: 0
A120: Øvrige Mag. | C120: 0 | D120: 0 | E120: 0 | F120: 0 | G120: 0 | I120: 0
A121: Agronom | C121: 0 | D121: 0 | E121: 0 | F121: 0 | G121: 0 | I121: 0
A122: Landsk. Arkt. | C122: 0 | D122: 0 | E122: 0 | F122: 0 | G122: 0 | I122: 0
A123: Hortonom | C123: 0 | D123: 0 | E123: 0 | F123: 0 | G123: 0 | I123: 0
A124: Forstkand. | C124: 0 | D124: 0 | E124: 0 | F124: 0 | G124: 0 | I124: 0
A125: Jordbrugsakad. | C125: 0 | D125: 0 | E125: 0 | F125: 0 | G125: 0 | I125: 0
A126: Mejeriing. | C126: 0 | D126: 0 | E126: 0 | F126: 0 | G126: 0 | I126: 0
A127: Levn.m.kand. | C127: 0 | D127: 0 | E127: 0 | F127: 0 | G127: 0 | I127: 0
A128: Dyrlæge | C128: 0 | D128: 0 | E128: 0 | F128: 0 | G128: 0 | I128: 0
A129: Farmaceut | C129: 0 | D129: 0 | E129: 0 | F129: 0 | G129: 0 | I129: 0
A130: Læge | C130: 0 | D130: 0 | E130: 0 | F130: 0 | G130: 0 | I130: 0
A131: Tandlæge | C131: 0 | D131: 0 | E131: 0 | F131: 0 | G131: 0 | I131: 0
A132: Arkitekt | C132: 0 | D132: 0 | E132: 0 | F132: 0 | G132: 0 | I132: 0
A133: Landinspek. | C133: 0 | D133: 0 | E133: 0 | F133: 0 | G133: 0 | I133: 0
A134: Bibliotekar | C134: 0 | D134: 0 | E134: 0 | F134: 0 | G134: 0 | I134: 0
A135: Musikudd. | C135: 0 | D135: 0 | E135: 0 | F135: 0 | G135: 0 | I135: 0
A136: Teolog | C136: 0 | D136: 0 | E136: 0 | F136: 0 | G136: 0 | I136: 0
A137: Psykolog | C137: 0 | D137: 0.9998128859 | E137: 0 | F137: 0 | G137: 0 | I137: 0.9998128859
A138: Jurist | C138: 0 | D138: 0 | E138: 0 | F138: 0 | G138: 0 | I138: 0
A139: Økonom | C139: 0 | D139: 0 | E139: 0 | F139: 0 | G139: 0 | I139: 0
A140: Samf. Adm. | C140: 0 | D140: 0 | E140: 0 | F140: 0 | G140: 0 | I140: 0
A141: Cand. Merc. | C141: 2.458055261 | D141: 0 | E141: 0 | F141: 0 | G141: 0 | I141: 2.458055261
A142: HA | C142: 0 | D142: 0 | E142: 0 | F142: 0 | G142: 0 | I142: 0
A143: HD | C143: 0 | D143: 0 | E143: 0 | F143: 0 | G143: 0 | I143: 0
A144: Komm. og Sprog | C144: 0 | D144: 0 | E144: 0 | F144: 1.999625772 | G144: 0.2426245868 | I144: 2.242250359
A145: Cand. IT. | C145: 0 | D145: 0 | E145: 0 | F145: 0 | G145: 0 | I145: 0
A146: Bac. Samf. | C146: 0 | D146: 0 | E146: 0 | F146: 0 | G146: 0 | I146: 0
A147: Bac. Hum. | C147: 0 | D147: 0 | E147: 0 | F147: 0 | G147: 0 | I147: 0
A148: Bac. Nat. | C148: 0 | D148: 0 | E148: 0 | F148: 0 | G148: 0 | I148: 0
A149: Andre | C149: 1.26114888 | D149: 0.8613484688 | E149: 0.4921100231 | F149: 0 | G149: 0 | I149: 2.614607372
A151: Total | C151: 9.625771846 | D151: 3.802158049 | E151: 1.470092933 | F151: 3.999251544 | G151: 0.2426245868 | I151: 19.13989896
A153: Ingeniører i alt | C153: 1.90731616 | D153: 0 | E153: 0 | F153: 0 | G153: 0 | I153: 1.90731616
A154: Magistre i alt | C154: 2.999438658 | D154: 1.940996694 | E154: 0.9779829102 | F154: 1.999625772 | G154: 0 | I154: 7.918044034
A155: DJØF'ere i alt | C155: 2.458055261 | D155: 0 | E155: 0 | F155: 0 | G155: 0 | I155: 2.458055261
A162: Sønderborg
C164: Under 30 år | D164: 30 - 39 år | E164: 40 - 49 år | F164: 50 - 59 år | G164: Over 60 år | I164: I alt
A166: Civ. ing. | C166: 6.30013098 | D166: 0 | E166: 1.999625772 | F166: 1.660949292 | G166: 0 | I166: 9.960706044
A167: Diplom ing. | C167: 3.153495915 | D167: 0.9998128859 | E167: 1.999625772 | F167: 7.857543816 | G167: 2.043285723 | I167: 16.05376411
A168: Cand. Scient. Tek | C168: 3.999251544 | D168: 2.999438658 | E168: 0 | F168: 0.9998128859 | G168: 0 | I168: 7.998503087
A169: MA. Hum. | C169: 3.580739724 | D169: 3.643111083 | E169: 1.999625772 | F169: 2.491735795 | G169: 1.999625772 | I169: 13.71483815
A170: MA. Nat. | C170: 0 | D170: 0 | E170: 0 | F170: 1.899831597 | G170: 0.9998128859 | I170: 2.899644483
A171: MA. Ph.d. | C171: 0 | D171: 0 | E171: 0.8688330319 | F171: 0 | G171: 0 | I171: 0.8688330319
A172: MA. Samf. | C172: 0 | D172: 0 | E172: 0 | F172: 0 | G172: 0 | I172: 0
A173: Øvrige Mag. | C173: 0 | D173: 0 | E173: 0 | F173: 0 | G173: 0 | I173: 0
A174: Agronom | C174: 0 | D174: 0 | E174: 0 | F174: 0 | G174: 0 | I174: 0
A175: Landsk. Arkt. | C175: 0 | D175: 0 | E175: 0 | F175: 0 | G175: 0 | I175: 0
A176: Hortonom | C176: 0 | D176: 0 | E176: 0 | F176: 0 | G176: 0 | I176: 0
A177: Forstkand. | C177: 0 | D177: 0 | E177: 0 | F177: 0 | G177: 0 | I177: 0
A178: Jordbrugsakad. | C178: 0 | D178: 0 | E178: 0 | F178: 0 | G178: 0 | I178: 0
A179: Mejeriing. | C179: 0 | D179: 0 | E179: 0 | F179: 0 | G179: 0 | I179: 0
A180: Levn.m.kand. | C180: 0 | D180: 0 | E180: 0 | F180: 0 | G180: 0 | I180: 0
A181: Dyrlæge | C181: 0 | D181: 0.6617601198 | E181: 0 | F181: 0 | G181: 0 | I181: 0.6617601198
A182: Farmaceut | C182: 0 | D182: 0 | E182: 0 | F182: 0 | G182: 0 | I182: 0
A183: Læge | C183: 0 | D183: 0 | E183: 0 | F183: 0.4546872076 | G183: 0 | I183: 0.4546872076
A184: Tandlæge | C184: 0 | D184: 0 | E184: 0 | F184: 0 | G184: 0 | I184: 0
A185: Arkitekt | C185: 0 | D185: 0 | E185: 0 | F185: 0 | G185: 0 | I185: 0
A186: Landinspek. | C186: 0 | D186: 0 | E186: 0 | F186: 0 | G186: 0 | I186: 0
A187: Bibliotekar | C187: 0 | D187: 0 | E187: 0 | F187: 0 | G187: 0 | I187: 0
A188: Musikudd. | C188: 0 | D188: 0 | E188: 0 | F188: 0 | G188: 0 | I188: 0
A189: Teolog | C189: 0 | D189: 0 | E189: 0 | F189: 0 | G189: 0 | I189: 0
A190: Psykolog | C190: 0 | D190: 0.9998128859 | E190: 0 | F190: 0 | G190: 0 | I190: 0.9998128859
A191: Jurist | C191: 1.999625772 | D191: 0.766544003 | E191: 0 | F191: 0 | G191: 0 | I191: 2.766169775
A192: Økonom | C192: 0 | D192: 0 | E192: 0 | F192: 0 | G192: 0 | I192: 0
A193: Samf. Adm. | C193: 1.253040604 | D193: 0.9998128859 | E193: 0 | F193: 0 | G193: 0 | I193: 2.25285349
A194: Cand. Merc. | C194: 4.992827294 | D194: 2.122497349 | E194: 1.307303686 | F194: 0.9998128859 | G194: 0 | I194: 9.422441215
A195: HA | C195: 0.9998128859 | D195: 0.9998128859 | E195: 0 | F195: 0 | G195: 0.9998128859 | I195: 2.999438658
A196: HD | C196: 0.9998128859 | D196: 0 | E196: 0 | F196: 0 | G196: 0 | I196: 0.9998128859
A197: Komm. og Sprog | C197: 0 | D197: 0.4921100231 | E197: 0 | F197: 1.999625772 | G197: 0 | I197: 2.491735795
A198: Cand. IT. | C198: 1.722696938 | D198: 0.9998128859 | E198: 0 | F198: 0 | G198: 0 | I198: 2.722509823
A199: Bac. Samf. | C199: 0.9237198279 | D199: 0 | E199: 0 | F199: 0.9998128859 | G199: 0 | I199: 1.923532714
A200: Bac. Hum. | C200: 0.9998128859 | D200: 0.9998128859 | E200: 0 | F200: 0 | G200: 0 | I200: 1.999625772
A201: Bac. Nat. | C201: 1.999625772 | D201: 0.9998128859 | E201: 0 | F201: 0 | G201: 0 | I201: 2.999438658
A202: Andre | C202: 0.9998128859 | D202: 0.7503274496 | E202: 0 | F202: 0.9998128859 | G202: 0.9998128859 | I202: 3.749766107
A204: Total | C204: 33.92440591 | D204: 18.43447889 | E204: 8.175014034 | F204: 20.36362502 | G204: 7.042350153 | I204: 87.93987401
A206: Ingeniører i alt | C206: 9.453626895 | D206: 0.9998128859 | E206: 3.999251544 | F206: 9.518493108 | G206: 2.043285723 | I206: 26.01447016
A207: Magistre i alt | C207: 3.580739724 | D207: 3.643111083 | E207: 2.868458804 | F207: 4.391567392 | G207: 2.999438658 | I207: 17.48331566
A208: DJØF'ere i alt | C208: 9.245306555 | D208: 4.888667124 | E208: 1.307303686 | F208: 0.9998128859 | G208: 0.9998128859 | I208: 17.44090314
A215: Tønder
C217: Under 30 år | D217: 30 - 39 år | E217: 40 - 49 år | F217: 50 - 59 år | G217: Over 60 år | I217: I alt
A219: Civ. ing. | C219: 1.90731616 | D219: 0 | E219: 0 | F219: 0.9998128859 | G219: 0 | I219: 2.907129046
A220: Diplom ing. | C220: 0 | D220: 0.9124929832 | E220: 0 | F220: 0.9998128859 | G220: 0 | I220: 1.912305869
A221: Cand. Scient. Tek | C221: 0 | D221: 0 | E221: 0 | F221: 0 | G221: 0 | I221: 0
A222: MA. Hum. | C222: 1.737666064 | D222: 2.999438658 | E222: 1.500654899 | F222: 0 | G222: 0 | I222: 6.237759621
A223: MA. Nat. | C223: 0 | D223: 0 | E223: 0 | F223: 0 | G223: 0 | I223: 0
A224: MA. Ph.d. | C224: 0 | D224: 0 | E224: 0 | F224: 0 | G224: 0 | I224: 0
A225: MA. Samf. | C225: 0 | D225: 0 | E225: 0 | F225: 0 | G225: 0 | I225: 0
A226: Øvrige Mag. | C226: 0 | D226: 0 | E226: 0 | F226: 0 | G226: 0 | I226: 0
A227: Agronom | C227: 0 | D227: 0 | E227: 0 | F227: 0 | G227: 0 | I227: 0
A228: Landsk. Arkt. | C228: 0 | D228: 0 | E228: 0 | F228: 0 | G228: 0 | I228: 0
A229: Hortonom | C229: 0 | D229: 0 | E229: 0 | F229: 0 | G229: 0 | I229: 0
A230: Forstkand. | C230: 0 | D230: 0 | E230: 0 | F230: 0 | G230: 0 | I230: 0
A231: Jordbrugsakad. | C231: 0 | D231: 0 | E231: 0 | F231: 0 | G231: 0 | I231: 0
A232: Mejeriing. | C232: 0 | D232: 0 | E232: 0 | F232: 0 | G232: 0 | I232: 0
A233: Levn.m.kand. | C233: 0 | D233: 0 | E233: 0 | F233: 0 | G233: 0 | I233: 0
A234: Dyrlæge | C234: 0 | D234: 0 | E234: 0 | F234: 0 | G234: 0.9998128859 | I234: 0.9998128859
A235: Farmaceut | C235: 0 | D235: 0 | E235: 0 | F235: 0 | G235: 0 | I235: 0
A236: Læge | C236: 0 | D236: 0 | E236: 0 | F236: 0 | G236: 0 | I236: 0
A237: Tandlæge | C237: 0 | D237: 0 | E237: 0 | F237: 0 | G237: 0 | I237: 0
A238: Arkitekt | C238: 0 | D238: 0 | E238: 0 | F238: 0 | G238: 0 | I238: 0
A239: Landinspek. | C239: 0 | D239: 0 | E239: 0 | F239: 0 | G239: 0 | I239: 0
A240: Bibliotekar | C240: 0 | D240: 0 | E240: 0 | F240: 0 | G240: 0 | I240: 0
A241: Musikudd. | C241: 0 | D241: 0 | E241: 0 | F241: 0 | G241: 0 | I241: 0
A242: Teolog | C242: 0 | D242: 0 | E242: 0 | F242: 0 | G242: 0 | I242: 0
A243: Psykolog | C243: 0.9998128859 | D243: 0.5844196345 | E243: 0 | F243: 0 | G243: 0 | I243: 1.58423252
... 360 more rows

Sheet Tabel 4P Sydj
A1: Tabel 4. Ledighedsberørte - aldersfordelt
A3: Sydjylland
C5: Under 30 år | D5: 30 - 39 år | E5: 40 - 49 år | F5: 50 - 59 år | G5: Over 60 år | I5: I alt
A7: Civ. ing. | C7: =IF(OR('Tabel 4F Sydj'!C7<5,'Tabel 4 Sydj'!C7<0.5),"-",IFERROR('Tabel 4 Sydj'!C7/'Tabel 4F Sydj'!C7*100,"-")) -> 18.86792453 | D7: =IF(OR('Tabel 4F Sydj'!D7<5,'Tabel 4 Sydj'!D7<0.5),"-",IFERROR('Tabel 4 Sydj'!D7/'Tabel 4F Sydj'!D7*100,"-")) -> 1.928783383 | E7: =IF(OR('Tabel 4F Sydj'!E7<5,'Tabel 4 Sydj'!E7<0.5),"-",IFERROR('Tabel 4 Sydj'!E7/'Tabel 4F Sydj'!E7*100,"-")) -> 1.132075472 | F7: =IF(OR('Tabel 4F Sydj'!F7<5,'Tabel 4 Sydj'!F7<0.5),"-",IFERROR('Tabel 4 Sydj'!F7/'Tabel 4F Sydj'!F7*100,"-")) -> 1.123595506 | G7: =IF(OR('Tabel 4F Sydj'!G7<5,'Tabel 4 Sydj'!G7<0.5),"-",IFERROR('Tabel 4 Sydj'!G7/'Tabel 4F Sydj'!G7*100,"-")) -> 4.819277108 | I7: =IF(OR('Tabel 4F Sydj'!I7<5,'Tabel 4 Sydj'!I7<0.5),"-",IFERROR('Tabel 4 Sydj'!I7/'Tabel 4F Sydj'!I7*100,"-")) -> 4.035639413
A8: Diplom ing. | C8: =IF(OR('Tabel 4F Sydj'!C8<5,'Tabel 4 Sydj'!C8<0.5),"-",IFERROR('Tabel 4 Sydj'!C8/'Tabel 4F Sydj'!C8*100,"-")) -> 5.639097744 | D8: =IF(OR('Tabel 4F Sydj'!D8<5,'Tabel 4 Sydj'!D8<0.5),"-",IFERROR('Tabel 4 Sydj'!D8/'Tabel 4F Sydj'!D8*100,"-")) -> 1.369863014 | E8: =IF(OR('Tabel 4F Sydj'!E8<5,'Tabel 4 Sydj'!E8<0.5),"-",IFERROR('Tabel 4 Sydj'!E8/'Tabel 4F Sydj'!E8*100,"-")) -> 0.9852216749 | F8: =IF(OR('Tabel 4F Sydj'!F8<5,'Tabel 4 Sydj'!F8<0.5),"-",IFERROR('Tabel 4 Sydj'!F8/'Tabel 4F Sydj'!F8*100,"-")) -> 1.829652997 | G8: =IF(OR('Tabel 4F Sydj'!G8<5,'Tabel 4 Sydj'!G8<0.5),"-",IFERROR('Tabel 4 Sydj'!G8/'Tabel 4F Sydj'!G8*100,"-")) -> 3.217821782 | I8: =IF(OR('Tabel 4F Sydj'!I8<5,'Tabel 4 Sydj'!I8<0.5),"-",IFERROR('Tabel 4 Sydj'!I8/'Tabel 4F Sydj'!I8*100,"-")) -> 1.879609803
A9: Cand. Scient. Tek | C9: =IF(OR('Tabel 4F Sydj'!C9<5,'Tabel 4 Sydj'!C9<0.5),"-",IFERROR('Tabel 4 Sydj'!C9/'Tabel 4F Sydj'!C9*100,"-")) -> 17.88617886 | D9: =IF(OR('Tabel 4F Sydj'!D9<5,'Tabel 4 Sydj'!D9<0.5),"-",IFERROR('Tabel 4 Sydj'!D9/'Tabel 4F Sydj'!D9*100,"-")) -> 4.637681159 | E9: =IF(OR('Tabel 4F Sydj'!E9<5,'Tabel 4 Sydj'!E9<0.5),"-",IFERROR('Tabel 4 Sydj'!E9/'Tabel 4F Sydj'!E9*100,"-")) -> 1.612903226 | F9: =IF(OR('Tabel 4F Sydj'!F9<5,'Tabel 4 Sydj'!F9<0.5),"-",IFERROR('Tabel 4 Sydj'!F9/'Tabel 4F Sydj'!F9*100,"-")) -> 2.173913043 | G9: =IF(OR('Tabel 4F Sydj'!G9<5,'Tabel 4 Sydj'!G9<0.5),"-",IFERROR('Tabel 4 Sydj'!G9/'Tabel 4F Sydj'!G9*100,"-")) -> 9.090909091 | I9: =IF(OR('Tabel 4F Sydj'!I9<5,'Tabel 4 Sydj'!I9<0.5),"-",IFERROR('Tabel 4 Sydj'!I9/'Tabel 4F Sydj'!I9*100,"-")) -> 8.29015544
A10: MA. Hum. | C10: =IF(OR('Tabel 4F Sydj'!C10<5,'Tabel 4 Sydj'!C10<0.5),"-",IFERROR('Tabel 4 Sydj'!C10/'Tabel 4F Sydj'!C10*100,"-")) -> 25.91240876 | D10: =IF(OR('Tabel 4F Sydj'!D10<5,'Tabel 4 Sydj'!D10<0.5),"-",IFERROR('Tabel 4 Sydj'!D10/'Tabel 4F Sydj'!D10*100,"-")) -> 8.815028902 | E10: =IF(OR('Tabel 4F Sydj'!E10<5,'Tabel 4 Sydj'!E10<0.5),"-",IFERROR('Tabel 4 Sydj'!E10/'Tabel 4F Sydj'!E10*100,"-")) -> 3.430749682 | F10: =IF(OR('Tabel 4F Sydj'!F10<5,'Tabel 4 Sydj'!F10<0.5),"-",IFERROR('Tabel 4 Sydj'!F10/'Tabel 4F Sydj'!F10*100,"-")) -> 4.262295082 | G10: =IF(OR('Tabel 4F Sydj'!G10<5,'Tabel 4 Sydj'!G10<0.5),"-",IFERROR('Tabel 4 Sydj'!G10/'Tabel 4F Sydj'!G10*100,"-")) -> 5.291005291 | I10: =IF(OR('Tabel 4F Sydj'!I10<5,'Tabel 4 Sydj'!I10<0.5),"-",IFERROR('Tabel 4 Sydj'!I10/'Tabel 4F Sydj'!I10*100,"-")) -> 8.099688474
A11: MA. Nat. | C11: =IF(OR('Tabel 4F Sydj'!C11<5,'Tabel 4 Sydj'!C11<0.5),"-",IFERROR('Tabel 4 Sydj'!C11/'Tabel 4F Sydj'!C11*100,"-")) -> 14.28571429 | D11: =IF(OR('Tabel 4F Sydj'!D11<5,'Tabel 4 Sydj'!D11<0.5),"-",IFERROR('Tabel 4 Sydj'!D11/'Tabel 4F Sydj'!D11*100,"-")) -> 2.702702703 | E11: =IF(OR('Tabel 4F Sydj'!E11<5,'Tabel 4 Sydj'!E11<0.5),"-",IFERROR('Tabel 4 Sydj'!E11/'Tabel 4F Sydj'!E11*100,"-")) -> 0.7168458781 | F11: =IF(OR('Tabel 4F Sydj'!F11<5,'Tabel 4 Sydj'!F11<0.5),"-",IFERROR('Tabel 4 Sydj'!F11/'Tabel 4F Sydj'!F11*100,"-")) -> 4.301075269 | G11: =IF(OR('Tabel 4F Sydj'!G11<5,'Tabel 4 Sydj'!G11<0.5),"-",IFERROR('Tabel 4 Sydj'!G11/'Tabel 4F Sydj'!G11*100,"-")) -> 2.105263158 | I11: =IF(OR('Tabel 4F Sydj'!I11<5,'Tabel 4 Sydj'!I11<0.5),"-",IFERROR('Tabel 4 Sydj'!I11/'Tabel 4F Sydj'!I11*100,"-")) -> 2.826379542
A12: MA. Ph.d. | C12: =IF(OR('Tabel 4F Sydj'!C12<5,'Tabel 4 Sydj'!C12<0.5),"-",IFERROR('Tabel 4 Sydj'!C12/'Tabel 4F Sydj'!C12*100,"-")) -> - | D12: =IF(OR('Tabel 4F Sydj'!D12<5,'Tabel 4 Sydj'!D12<0.5),"-",IFERROR('Tabel 4 Sydj'!D12/'Tabel 4F Sydj'!D12*100,"-")) -> - | E12: =IF(OR('Tabel 4F Sydj'!E12<5,'Tabel 4 Sydj'!E12<0.5),"-",IFERROR('Tabel 4 Sydj'!E12/'Tabel 4F Sydj'!E12*100,"-")) -> 8 | F12: =IF(OR('Tabel 4F Sydj'!F12<5,'Tabel 4 Sydj'!F12<0.5),"-",IFERROR('Tabel 4 Sydj'!F12/'Tabel 4F Sydj'!F12*100,"-")) -> - | G12: =IF(OR('Tabel 4F Sydj'!G12<5,'Tabel 4 Sydj'!G12<0.5),"-",IFERROR('Tabel 4 Sydj'!G12/'Tabel 4F Sydj'!G12*100,"-")) -> - | I12: =IF(OR('Tabel 4F Sydj'!I12<5,'Tabel 4 Sydj'!I12<0.5),"-",IFERROR('Tabel 4 Sydj'!I12/'Tabel 4F Sydj'!I12*100,"-")) -> 2.898550725
A13: MA. Samf. | C13: =IF(OR('Tabel 4F Sydj'!C13<5,'Tabel 4 Sydj'!C13<0.5),"-",IFERROR('Tabel 4 Sydj'!C13/'Tabel 4F Sydj'!C13*100,"-")) -> 30 | D13: =IF(OR('Tabel 4F Sydj'!D13<5,'Tabel 4 Sydj'!D13<0.5),"-",IFERROR('Tabel 4 Sydj'!D13/'Tabel 4F Sydj'!D13*100,"-")) -> 16.12903226 | E13: =IF(OR('Tabel 4F Sydj'!E13<5,'Tabel 4 Sydj'!E13<0.5),"-",IFERROR('Tabel 4 Sydj'!E13/'Tabel 4F Sydj'!E13*100,"-")) -> 7.692307692 | F13: =IF(OR('Tabel 4F Sydj'!F13<5,'Tabel 4 Sydj'!F13<0.5),"-",IFERROR('Tabel 4 Sydj'!F13/'Tabel 4F Sydj'!F13*100,"-")) -> 22.22222222 | G13: =IF(OR('Tabel 4F Sydj'!G13<5,'Tabel 4 Sydj'!G13<0.5),"-",IFERROR('Tabel 4 Sydj'!G13/'Tabel 4F Sydj'!G13*100,"-")) -> - | I13: =IF(OR('Tabel 4F Sydj'!I13<5,'Tabel 4 Sydj'!I13<0.5),"-",IFERROR('Tabel 4 Sydj'!I13/'Tabel 4F Sydj'!I13*100,"-")) -> 20
A14: Øvrige Mag. | C14: =IF(OR('Tabel 4F Sydj'!C14<5,'Tabel 4 Sydj'!C14<0.5),"-",IFERROR('Tabel 4 Sydj'!C14/'Tabel 4F Sydj'!C14*100,"-")) -> 21.42857143 | D14: =IF(OR('Tabel 4F Sydj'!D14<5,'Tabel 4 Sydj'!D14<0.5),"-",IFERROR('Tabel 4 Sydj'!D14/'Tabel 4F Sydj'!D14*100,"-")) -> 6.52173913 | E14: =IF(OR('Tabel 4F Sydj'!E14<5,'Tabel 4 Sydj'!E14<0.5),"-",IFERROR('Tabel 4 Sydj'!E14/'Tabel 4F Sydj'!E14*100,"-")) -> 6.666666667 | F14: =IF(OR('Tabel 4F Sydj'!F14<5,'Tabel 4 Sydj'!F14<0.5),"-",IFERROR('Tabel 4 Sydj'!F14/'Tabel 4F Sydj'!F14*100,"-")) -> 1.298701299 | G14: =IF(OR('Tabel 4F Sydj'!G14<5,'Tabel 4 Sydj'!G14<0.5),"-",IFERROR('Tabel 4 Sydj'!G14/'Tabel 4F Sydj'!G14*100,"-")) -> - | I14: =IF(OR('Tabel 4F Sydj'!I14<5,'Tabel 4 Sydj'!I14<0.5),"-",IFERROR('Tabel 4 Sydj'!I14/'Tabel 4F Sydj'!I14*100,"-")) -> 4.80349345
A15: Agronom | C15: =IF(OR('Tabel 4F Sydj'!C15<5,'Tabel 4 Sydj'!C15<0.5),"-",IFERROR('Tabel 4 Sydj'!C15/'Tabel 4F Sydj'!C15*100,"-")) -> - | D15: =IF(OR('Tabel 4F Sydj'!D15<5,'Tabel 4 Sydj'!D15<0.5),"-",IFERROR('Tabel 4 Sydj'!D15/'Tabel 4F Sydj'!D15*100,"-")) -> 3.225806452 | E15: =IF(OR('Tabel 4F Sydj'!E15<5,'Tabel 4 Sydj'!E15<0.5),"-",IFERROR('Tabel 4 Sydj'!E15/'Tabel 4F Sydj'!E15*100,"-")) -> - | F15: =IF(OR('Tabel 4F Sydj'!F15<5,'Tabel 4 Sydj'!F15<0.5),"-",IFERROR('Tabel 4 Sydj'!F15/'Tabel 4F Sydj'!F15*100,"-")) -> 3.333333333 | G15: =IF(OR('Tabel 4F Sydj'!G15<5,'Tabel 4 Sydj'!G15<0.5),"-",IFERROR('Tabel 4 Sydj'!G15/'Tabel 4F Sydj'!G15*100,"-")) -> - | I15: =IF(OR('Tabel 4F Sydj'!I15<5,'Tabel 4 Sydj'!I15<0.5),"-",IFERROR('Tabel 4 Sydj'!I15/'Tabel 4F Sydj'!I15*100,"-")) -> 1.724137931
A16: Landsk. Arkt. | C16: =IF(OR('Tabel 4F Sydj'!C16<5,'Tabel 4 Sydj'!C16<0.5),"-",IFERROR('Tabel 4 Sydj'!C16/'Tabel 4F Sydj'!C16*100,"-")) -> - | D16: =IF(OR('Tabel 4F Sydj'!D16<5,'Tabel 4 Sydj'!D16<0.5),"-",IFERROR('Tabel 4 Sydj'!D16/'Tabel 4F Sydj'!D16*100,"-")) -> - | E16: =IF(OR('Tabel 4F Sydj'!E16<5,'Tabel 4 Sydj'!E16<0.5),"-",IFERROR('Tabel 4 Sydj'!E16/'Tabel 4F Sydj'!E16*100,"-")) -> - | F16: =IF(OR('Tabel 4F Sydj'!F16<5,'Tabel 4 Sydj'!F16<0.5),"-",IFERROR('Tabel 4 Sydj'!F16/'Tabel 4F Sydj'!F16*100,"-")) -> - | G16: =IF(OR('Tabel 4F Sydj'!G16<5,'Tabel 4 Sydj'!G16<0.5),"-",IFERROR('Tabel 4 Sydj'!G16/'Tabel 4F Sydj'!G16*100,"-")) -> - | I16: =IF(OR('Tabel 4F Sydj'!I16<5,'Tabel 4 Sydj'!I16<0.5),"-",IFERROR('Tabel 4 Sydj'!I16/'Tabel 4F Sydj'!I16*100,"-")) -> -
A17: Hortonom | C17: =IF(OR('Tabel 4F Sydj'!C17<5,'Tabel 4 Sydj'!C17<0.5),"-",IFERROR('Tabel 4 Sydj'!C17/'Tabel 4F Sydj'!C17*100,"-")) -> - | D17: =IF(OR('Tabel 4F Sydj'!D17<5,'Tabel 4 Sydj'!D17<0.5),"-",IFERROR('Tabel 4 Sydj'!D17/'Tabel 4F Sydj'!D17*100,"-")) -> - | E17: =IF(OR('Tabel 4F Sydj'!E17<5,'Tabel 4 Sydj'!E17<0.5),"-",IFERROR('Tabel 4 Sydj'!E17/'Tabel 4F Sydj'!E17*100,"-")) -> - | F17: =IF(OR('Tabel 4F Sydj'!F17<5,'Tabel 4 Sydj'!F17<0.5),"-",IFERROR('Tabel 4 Sydj'!F17/'Tabel 4F Sydj'!F17*100,"-")) -> - | G17: =IF(OR('Tabel 4F Sydj'!G17<5,'Tabel 4 Sydj'!G17<0.5),"-",IFERROR('Tabel 4 Sydj'!G17/'Tabel 4F Sydj'!G17*100,"-")) -> - | I17: =IF(OR('Tabel 4F Sydj'!I17<5,'Tabel 4 Sydj'!I17<0.5),"-",IFERROR('Tabel 4 Sydj'!I17/'Tabel 4F Sydj'!I17*100,"-")) -> -
A18: Forstkand. | C18: =IF(OR('Tabel 4F Sydj'!C18<5,'Tabel 4 Sydj'!C18<0.5),"-",IFERROR('Tabel 4 Sydj'!C18/'Tabel 4F Sydj'!C18*100,"-")) -> - | D18: =IF(OR('Tabel 4F Sydj'!D18<5,'Tabel 4 Sydj'!D18<0.5),"-",IFERROR('Tabel 4 Sydj'!D18/'Tabel 4F Sydj'!D18*100,"-")) -> - | E18: =IF(OR('Tabel 4F Sydj'!E18<5,'Tabel 4 Sydj'!E18<0.5),"-",IFERROR('Tabel 4 Sydj'!E18/'Tabel 4F Sydj'!E18*100,"-")) -> - | F18: =IF(OR('Tabel 4F Sydj'!F18<5,'Tabel 4 Sydj'!F18<0.5),"-",IFERROR('Tabel 4 Sydj'!F18/'Tabel 4F Sydj'!F18*100,"-")) -> - | G18: =IF(OR('Tabel 4F Sydj'!G18<5,'Tabel 4 Sydj'!G18<0.5),"-",IFERROR('Tabel 4 Sydj'!G18/'Tabel 4F Sydj'!G18*100,"-")) -> - | I18: =IF(OR('Tabel 4F Sydj'!I18<5,'Tabel 4 Sydj'!I18<0.5),"-",IFERROR('Tabel 4 Sydj'!I18/'Tabel 4F Sydj'!I18*100,"-")) -> 2.173913043
A19: Jordbrugsakad. | C19: =IF(OR('Tabel 4F Sydj'!C19<5,'Tabel 4 Sydj'!C19<0.5),"-",IFERROR('Tabel 4 Sydj'!C19/'Tabel 4F Sydj'!C19*100,"-")) -> 8.333333333 | D19: =IF(OR('Tabel 4F Sydj'!D19<5,'Tabel 4 Sydj'!D19<0.5),"-",IFERROR('Tabel 4 Sydj'!D19/'Tabel 4F Sydj'!D19*100,"-")) -> 1.886792453 | E19: =IF(OR('Tabel 4F Sydj'!E19<5,'Tabel 4 Sydj'!E19<0.5),"-",IFERROR('Tabel 4 Sydj'!E19/'Tabel 4F Sydj'!E19*100,"-")) -> - | F19: =IF(OR('Tabel 4F Sydj'!F19<5,'Tabel 4 Sydj'!F19<0.5),"-",IFERROR('Tabel 4 Sydj'!F19/'Tabel 4F Sydj'!F19*100,"-")) -> 2.5 | G19: =IF(OR('Tabel 4F Sydj'!G19<5,'Tabel 4 Sydj'!G19<0.5),"-",IFERROR('Tabel 4 Sydj'!G19/'Tabel 4F Sydj'!G19*100,"-")) -> - | I19: =IF(OR('Tabel 4F Sydj'!I19<5,'Tabel 4 Sydj'!I19<0.5),"-",IFERROR('Tabel 4 Sydj'!I19/'Tabel 4F Sydj'!I19*100,"-")) -> 1.538461538
A20: Mejeriing. | C20: =IF(OR('Tabel 4F Sydj'!C20<5,'Tabel 4 Sydj'!C20<0.5),"-",IFERROR('Tabel 4 Sydj'!C20/'Tabel 4F Sydj'!C20*100,"-")) -> - | D20: =IF(OR('Tabel 4F Sydj'!D20<5,'Tabel 4 Sydj'!D20<0.5),"-",IFERROR('Tabel 4 Sydj'!D20/'Tabel 4F Sydj'!D20*100,"-")) -> - | E20: =IF(OR('Tabel 4F Sydj'!E20<5,'Tabel 4 Sydj'!E20<0.5),"-",IFERROR('Tabel 4 Sydj'!E20/'Tabel 4F Sydj'!E20*100,"-")) -> - | F20: =IF(OR('Tabel 4F Sydj'!F20<5,'Tabel 4 Sydj'!F20<0.5),"-",IFERROR('Tabel 4 Sydj'!F20/'Tabel 4F Sydj'!F20*100,"-")) -> 5.263157895 | G20: =IF(OR('Tabel 4F Sydj'!G20<5,'Tabel 4 Sydj'!G20<0.5),"-",IFERROR('Tabel 4 Sydj'!G20/'Tabel 4F Sydj'!G20*100,"-")) -> - | I20: =IF(OR('Tabel 4F Sydj'!I20<5,'Tabel 4 Sydj'!I20<0.5),"-",IFERROR('Tabel 4 Sydj'!I20/'Tabel 4F Sydj'!I20*100,"-")) -> 2.702702703
A21: Levn.m.kand. | C21: =IF(OR('Tabel 4F Sydj'!C21<5,'Tabel 4 Sydj'!C21<0.5),"-",IFERROR('Tabel 4 Sydj'!C21/'Tabel 4F Sydj'!C21*100,"-")) -> - | D21: =IF(OR('Tabel 4F Sydj'!D21<5,'Tabel 4 Sydj'!D21<0.5),"-",IFERROR('Tabel 4 Sydj'!D21/'Tabel 4F Sydj'!D21*100,"-")) -> - | E21: =IF(OR('Tabel 4F Sydj'!E21<5,'Tabel 4 Sydj'!E21<0.5),"-",IFERROR('Tabel 4 Sydj'!E21/'Tabel 4F Sydj'!E21*100,"-")) -> - | F21: =IF(OR('Tabel 4F Sydj'!F21<5,'Tabel 4 Sydj'!F21<0.5),"-",IFERROR('Tabel 4 Sydj'!F21/'Tabel 4F Sydj'!F21*100,"-")) -> - | G21: =IF(OR('Tabel 4F Sydj'!G21<5,'Tabel 4 Sydj'!G21<0.5),"-",IFERROR('Tabel 4 Sydj'!G21/'Tabel 4F Sydj'!G21*100,"-")) -> - | I21: =IF(OR('Tabel 4F Sydj'!I21<5,'Tabel 4 Sydj'!I21<0.5),"-",IFERROR('Tabel 4 Sydj'!I21/'Tabel 4F Sydj'!I21*100,"-")) -> 10
A22: Dyrlæge | C22: =IF(OR('Tabel 4F Sydj'!C22<5,'Tabel 4 Sydj'!C22<0.5),"-",IFERROR('Tabel 4 Sydj'!C22/'Tabel 4F Sydj'!C22*100,"-")) -> 3.571428571 | D22: =IF(OR('Tabel 4F Sydj'!D22<5,'Tabel 4 Sydj'!D22<0.5),"-",IFERROR('Tabel 4 Sydj'!D22/'Tabel 4F Sydj'!D22*100,"-")) -> 3 | E22: =IF(OR('Tabel 4F Sydj'!E22<5,'Tabel 4 Sydj'!E22<0.5),"-",IFERROR('Tabel 4 Sydj'!E22/'Tabel 4F Sydj'!E22*100,"-")) -> 1.136363636 | F22: =IF(OR('Tabel 4F Sydj'!F22<5,'Tabel 4 Sydj'!F22<0.5),"-",IFERROR('Tabel 4 Sydj'!F22/'Tabel 4F Sydj'!F22*100,"-")) -> - | G22: =IF(OR('Tabel 4F Sydj'!G22<5,'Tabel 4 Sydj'!G22<0.5),"-",IFERROR('Tabel 4 Sydj'!G22/'Tabel 4F Sydj'!G22*100,"-")) -> 4.761904762 | I22: =IF(OR('Tabel 4F Sydj'!I22<5,'Tabel 4 Sydj'!I22<0.5),"-",IFERROR('Tabel 4 Sydj'!I22/'Tabel 4F Sydj'!I22*100,"-")) -> 2.105263158
A23: Farmaceut | C23: =IF(OR('Tabel 4F Sydj'!C23<5,'Tabel 4 Sydj'!C23<0.5),"-",IFERROR('Tabel 4 Sydj'!C23/'Tabel 4F Sydj'!C23*100,"-")) -> 15.78947368 | D23: =IF(OR('Tabel 4F Sydj'!D23<5,'Tabel 4 Sydj'!D23<0.5),"-",IFERROR('Tabel 4 Sydj'!D23/'Tabel 4F Sydj'!D23*100,"-")) -> 4 | E23: =IF(OR('Tabel 4F Sydj'!E23<5,'Tabel 4 Sydj'!E23<0.5),"-",IFERROR('Tabel 4 Sydj'!E23/'Tabel 4F Sydj'!E23*100,"-")) -> - | F23: =IF(OR('Tabel 4F Sydj'!F23<5,'Tabel 4 Sydj'!F23<0.5),"-",IFERROR('Tabel 4 Sydj'!F23/'Tabel 4F Sydj'!F23*100,"-")) -> - | G23: =IF(OR('Tabel 4F Sydj'!G23<5,'Tabel 4 Sydj'!G23<0.5),"-",IFERROR('Tabel 4 Sydj'!G23/'Tabel 4F Sydj'!G23*100,"-")) -> 6.25 | I23: =IF(OR('Tabel 4F Sydj'!I23<5,'Tabel 4 Sydj'!I23<0.5),"-",IFERROR('Tabel 4 Sydj'!I23/'Tabel 4F Sydj'!I23*100,"-")) -> 4.891304348
A24: Læge | C24: =IF(OR('Tabel 4F Sydj'!C24<5,'Tabel 4 Sydj'!C24<0.5),"-",IFERROR('Tabel 4 Sydj'!C24/'Tabel 4F Sydj'!C24*100,"-")) -> 1.438848921 | D24: =IF(OR('Tabel 4F Sydj'!D24<5,'Tabel 4 Sydj'!D24<0.5),"-",IFERROR('Tabel 4 Sydj'!D24/'Tabel 4F Sydj'!D24*100,"-")) -> 0.7272727273 | E24: =IF(OR('Tabel 4F Sydj'!E24<5,'Tabel 4 Sydj'!E24<0.5),"-",IFERROR('Tabel 4 Sydj'!E24/'Tabel 4F Sydj'!E24*100,"-")) -> 0.5780346821 | F24: =IF(OR('Tabel 4F Sydj'!F24<5,'Tabel 4 Sydj'!F24<0.5),"-",IFERROR('Tabel 4 Sydj'!F24/'Tabel 4F Sydj'!F24*100,"-")) -> 1.818181818 | G24: =IF(OR('Tabel 4F Sydj'!G24<5,'Tabel 4 Sydj'!G24<0.5),"-",IFERROR('Tabel 4 Sydj'!G24/'Tabel 4F Sydj'!G24*100,"-")) -> 1.639344262 | I24: =IF(OR('Tabel 4F Sydj'!I24<5,'Tabel 4 Sydj'!I24<0.5),"-",IFERROR('Tabel 4 Sydj'!I24/'Tabel 4F Sydj'!I24*100,"-")) -> 1.055408971
A25: Tandlæge | C25: =IF(OR('Tabel 4F Sydj'!C25<5,'Tabel 4 Sydj'!C25<0.5),"-",IFERROR('Tabel 4 Sydj'!C25/'Tabel 4F Sydj'!C25*100,"-")) -> - | D25: =IF(OR('Tabel 4F Sydj'!D25<5,'Tabel 4 Sydj'!D25<0.5),"-",IFERROR('Tabel 4 Sydj'!D25/'Tabel 4F Sydj'!D25*100,"-")) -> - | E25: =IF(OR('Tabel 4F Sydj'!E25<5,'Tabel 4 Sydj'!E25<0.5),"-",IFERROR('Tabel 4 Sydj'!E25/'Tabel 4F Sydj'!E25*100,"-")) -> - | F25: =IF(OR('Tabel 4F Sydj'!F25<5,'Tabel 4 Sydj'!F25<0.5),"-",IFERROR('Tabel 4 Sydj'!F25/'Tabel 4F Sydj'!F25*100,"-")) -> - | G25: =IF(OR('Tabel 4F Sydj'!G25<5,'Tabel 4 Sydj'!G25<0.5),"-",IFERROR('Tabel 4 Sydj'!G25/'Tabel 4F Sydj'!G25*100,"-")) -> - | I25: =IF(OR('Tabel 4F Sydj'!I25<5,'Tabel 4 Sydj'!I25<0.5),"-",IFERROR('Tabel 4 Sydj'!I25/'Tabel 4F Sydj'!I25*100,"-")) -> -
A26: Arkitekt | C26: =IF(OR('Tabel 4F Sydj'!C26<5,'Tabel 4 Sydj'!C26<0.5),"-",IFERROR('Tabel 4 Sydj'!C26/'Tabel 4F Sydj'!C26*100,"-")) -> 31.57894737 | D26: =IF(OR('Tabel 4F Sydj'!D26<5,'Tabel 4 Sydj'!D26<0.5),"-",IFERROR('Tabel 4 Sydj'!D26/'Tabel 4F Sydj'!D26*100,"-")) -> 1.111111111 | E26: =IF(OR('Tabel 4F Sydj'!E26<5,'Tabel 4 Sydj'!E26<0.5),"-",IFERROR('Tabel 4 Sydj'!E26/'Tabel 4F Sydj'!E26*100,"-")) -> 5.797101449 | F26: =IF(OR('Tabel 4F Sydj'!F26<5,'Tabel 4 Sydj'!F26<0.5),"-",IFERROR('Tabel 4 Sydj'!F26/'Tabel 4F Sydj'!F26*100,"-")) -> 2.5 | G26: =IF(OR('Tabel 4F Sydj'!G26<5,'Tabel 4 Sydj'!G26<0.5),"-",IFERROR('Tabel 4 Sydj'!G26/'Tabel 4F Sydj'!G26*100,"-")) -> 3.03030303 | I26: =IF(OR('Tabel 4F Sydj'!I26<5,'Tabel 4 Sydj'!I26<0.5),"-",IFERROR('Tabel 4 Sydj'!I26/'Tabel 4F Sydj'!I26*100,"-")) -> 5.179282869
A27: Landinspek. | C27: =IF(OR('Tabel 4F Sydj'!C27<5,'Tabel 4 Sydj'!C27<0.5),"-",IFERROR('Tabel 4 Sydj'!C27/'Tabel 4F Sydj'!C27*100,"-")) -> - | D27: =IF(OR('Tabel 4F Sydj'!D27<5,'Tabel 4 Sydj'!D27<0.5),"-",IFERROR('Tabel 4 Sydj'!D27/'Tabel 4F Sydj'!D27*100,"-")) -> - | E27: =IF(OR('Tabel 4F Sydj'!E27<5,'Tabel 4 Sydj'!E27<0.5),"-",IFERROR('Tabel 4 Sydj'!E27/'Tabel 4F Sydj'!E27*100,"-")) -> 3.03030303 | F27: =IF(OR('Tabel 4F Sydj'!F27<5,'Tabel 4 Sydj'!F27<0.5),"-",IFERROR('Tabel 4 Sydj'!F27/'Tabel 4F Sydj'!F27*100,"-")) -> - | G27: =IF(OR('Tabel 4F Sydj'!G27<5,'Tabel 4 Sydj'!G27<0.5),"-",IFERROR('Tabel 4 Sydj'!G27/'Tabel 4F Sydj'!G27*100,"-")) -> 9.090909091 | I27: =IF(OR('Tabel 4F Sydj'!I27<5,'Tabel 4 Sydj'!I27<0.5),"-",IFERROR('Tabel 4 Sydj'!I27/'Tabel 4F Sydj'!I27*100,"-")) -> 3.157894737
A28: Bibliotekar | C28: =IF(OR('Tabel 4F Sydj'!C28<5,'Tabel 4 Sydj'!C28<0.5),"-",IFERROR('Tabel 4 Sydj'!C28/'Tabel 4F Sydj'!C28*100,"-")) -> - | D28: =IF(OR('Tabel 4F Sydj'!D28<5,'Tabel 4 Sydj'!D28<0.5),"-",IFERROR('Tabel 4 Sydj'!D28/'Tabel 4F Sydj'!D28*100,"-")) -> 5.769230769 | E28: =IF(OR('Tabel 4F Sydj'!E28<5,'Tabel 4 Sydj'!E28<0.5),"-",IFERROR('Tabel 4 Sydj'!E28/'Tabel 4F Sydj'!E28*100,"-")) -> 2.352941176 | F28: =IF(OR('Tabel 4F Sydj'!F28<5,'Tabel 4 Sydj'!F28<0.5),"-",IFERROR('Tabel 4 Sydj'!F28/'Tabel 4F Sydj'!F28*100,"-")) -> 1.298701299 | G28: =IF(OR('Tabel 4F Sydj'!G28<5,'Tabel 4 Sydj'!G28<0.5),"-",IFERROR('Tabel 4 Sydj'!G28/'Tabel 4F Sydj'!G28*100,"-")) -> 2 | I28: =IF(OR('Tabel 4F Sydj'!I28<5,'Tabel 4 Sydj'!I28<0.5),"-",IFERROR('Tabel 4 Sydj'!I28/'Tabel 4F Sydj'!I28*100,"-")) -> 2.621722846
A29: Musikudd. | C29: =IF(OR('Tabel 4F Sydj'!C29<5,'Tabel 4 Sydj'!C29<0.5),"-",IFERROR('Tabel 4 Sydj'!C29/'Tabel 4F Sydj'!C29*100,"-")) -> - | D29: =IF(OR('Tabel 4F Sydj'!D29<5,'Tabel 4 Sydj'!D29<0.5),"-",IFERROR('Tabel 4 Sydj'!D29/'Tabel 4F Sydj'!D29*100,"-")) -> - | E29: =IF(OR('Tabel 4F Sydj'!E29<5,'Tabel 4 Sydj'!E29<0.5),"-",IFERROR('Tabel 4 Sydj'!E29/'Tabel 4F Sydj'!E29*100,"-")) -> - | F29: =IF(OR('Tabel 4F Sydj'!F29<5,'Tabel 4 Sydj'!F29<0.5),"-",IFERROR('Tabel 4 Sydj'!F29/'Tabel 4F Sydj'!F29*100,"-")) -> - | G29: =IF(OR('Tabel 4F Sydj'!G29<5,'Tabel 4 Sydj'!G29<0.5),"-",IFERROR('Tabel 4 Sydj'!G29/'Tabel 4F Sydj'!G29*100,"-")) -> - | I29: =IF(OR('Tabel 4F Sydj'!I29<5,'Tabel 4 Sydj'!I29<0.5),"-",IFERROR('Tabel 4 Sydj'!I29/'Tabel 4F Sydj'!I29*100,"-")) -> -
A30: Teolog | C30: =IF(OR('Tabel 4F Sydj'!C30<5,'Tabel 4 Sydj'!C30<0.5),"-",IFERROR('Tabel 4 Sydj'!C30/'Tabel 4F Sydj'!C30*100,"-")) -> - | D30: =IF(OR('Tabel 4F Sydj'!D30<5,'Tabel 4 Sydj'!D30<0.5),"-",IFERROR('Tabel 4 Sydj'!D30/'Tabel 4F Sydj'!D30*100,"-")) -> - | E30: =IF(OR('Tabel 4F Sydj'!E30<5,'Tabel 4 Sydj'!E30<0.5),"-",IFERROR('Tabel 4 Sydj'!E30/'Tabel 4F Sydj'!E30*100,"-")) -> 4.411764706 | F30: =IF(OR('Tabel 4F Sydj'!F30<5,'Tabel 4 Sydj'!F30<0.5),"-",IFERROR('Tabel 4 Sydj'!F30/'Tabel 4F Sydj'!F30*100,"-")) -> 1.219512195 | G30: =IF(OR('Tabel 4F Sydj'!G30<5,'Tabel 4 Sydj'!G30<0.5),"-",IFERROR('Tabel 4 Sydj'!G30/'Tabel 4F Sydj'!G30*100,"-")) -> - | I30: =IF(OR('Tabel 4F Sydj'!I30<5,'Tabel 4 Sydj'!I30<0.5),"-",IFERROR('Tabel 4 Sydj'!I30/'Tabel 4F Sydj'!I30*100,"-")) -> 1.97044335
A31: Psykolog | C31: =IF(OR('Tabel 4F Sydj'!C31<5,'Tabel 4 Sydj'!C31<0.5),"-",IFERROR('Tabel 4 Sydj'!C31/'Tabel 4F Sydj'!C31*100,"-")) -> 10.58823529 | D31: =IF(OR('Tabel 4F Sydj'!D31<5,'Tabel 4 Sydj'!D31<0.5),"-",IFERROR('Tabel 4 Sydj'!D31/'Tabel 4F Sydj'!D31*100,"-")) -> 4.232804233 | E31: =IF(OR('Tabel 4F Sydj'!E31<5,'Tabel 4 Sydj'!E31<0.5),"-",IFERROR('Tabel 4 Sydj'!E31/'Tabel 4F Sydj'!E31*100,"-")) -> 0.9345794393 | F31: =IF(OR('Tabel 4F Sydj'!F31<5,'Tabel 4 Sydj'!F31<0.5),"-",IFERROR('Tabel 4 Sydj'!F31/'Tabel 4F Sydj'!F31*100,"-")) -> 3.50877193 | G31: =IF(OR('Tabel 4F Sydj'!G31<5,'Tabel 4 Sydj'!G31<0.5),"-",IFERROR('Tabel 4 Sydj'!G31/'Tabel 4F Sydj'!G31*100,"-")) -> - | I31: =IF(OR('Tabel 4F Sydj'!I31<5,'Tabel 4 Sydj'!I31<0.5),"-",IFERROR('Tabel 4 Sydj'!I31/'Tabel 4F Sydj'!I31*100,"-")) -> 4.301075269
A32: Jurist | C32: =IF(OR('Tabel 4F Sydj'!C32<5,'Tabel 4 Sydj'!C32<0.5),"-",IFERROR('Tabel 4 Sydj'!C32/'Tabel 4F Sydj'!C32*100,"-")) -> 8.181818182 | D32: =IF(OR('Tabel 4F Sydj'!D32<5,'Tabel 4 Sydj'!D32<0.5),"-",IFERROR('Tabel 4 Sydj'!D32/'Tabel 4F Sydj'!D32*100,"-")) -> 2.074688797 | E32: =IF(OR('Tabel 4F Sydj'!E32<5,'Tabel 4 Sydj'!E32<0.5),"-",IFERROR('Tabel 4 Sydj'!E32/'Tabel 4F Sydj'!E32*100,"-")) -> 0.9478672986 | F32: =IF(OR('Tabel 4F Sydj'!F32<5,'Tabel 4 Sydj'!F32<0.5),"-",IFERROR('Tabel 4 Sydj'!F32/'Tabel 4F Sydj'!F32*100,"-")) -> - | G32: =IF(OR('Tabel 4F Sydj'!G32<5,'Tabel 4 Sydj'!G32<0.5),"-",IFERROR('Tabel 4 Sydj'!G32/'Tabel 4F Sydj'!G32*100,"-")) -> - | I32: =IF(OR('Tabel 4F Sydj'!I32<5,'Tabel 4 Sydj'!I32<0.5),"-",IFERROR('Tabel 4 Sydj'!I32/'Tabel 4F Sydj'!I32*100,"-")) -> 2.191780822
A33: Økonom | C33: =IF(OR('Tabel 4F Sydj'!C33<5,'Tabel 4 Sydj'!C33<0.5),"-",IFERROR('Tabel 4 Sydj'!C33/'Tabel 4F Sydj'!C33*100,"-")) -> 1.538461538 | D33: =IF(OR('Tabel 4F Sydj'!D33<5,'Tabel 4 Sydj'!D33<0.5),"-",IFERROR('Tabel 4 Sydj'!D33/'Tabel 4F Sydj'!D33*100,"-")) -> 2.884615385 | E33: =IF(OR('Tabel 4F Sydj'!E33<5,'Tabel 4 Sydj'!E33<0.5),"-",IFERROR('Tabel 4 Sydj'!E33/'Tabel 4F Sydj'!E33*100,"-")) -> 0.9708737864 | F33: =IF(OR('Tabel 4F Sydj'!F33<5,'Tabel 4 Sydj'!F33<0.5),"-",IFERROR('Tabel 4 Sydj'!F33/'Tabel 4F Sydj'!F33*100,"-")) -> 2.040816327 | G33: =IF(OR('Tabel 4F Sydj'!G33<5,'Tabel 4 Sydj'!G33<0.5),"-",IFERROR('Tabel 4 Sydj'!G33/'Tabel 4F Sydj'!G33*100,"-")) -> - | I33: =IF(OR('Tabel 4F Sydj'!I33<5,'Tabel 4 Sydj'!I33<0.5),"-",IFERROR('Tabel 4 Sydj'!I33/'Tabel 4F Sydj'!I33*100,"-")) -> 1.763224181
A34: Samf. Adm. | C34: =IF(OR('Tabel 4F Sydj'!C34<5,'Tabel 4 Sydj'!C34<0.5),"-",IFERROR('Tabel 4 Sydj'!C34/'Tabel 4F Sydj'!C34*100,"-")) -> 19.84126984 | D34: =IF(OR('Tabel 4F Sydj'!D34<5,'Tabel 4 Sydj'!D34<0.5),"-",IFERROR('Tabel 4 Sydj'!D34/'Tabel 4F Sydj'!D34*100,"-")) -> 6.532663317 | E34: =IF(OR('Tabel 4F Sydj'!E34<5,'Tabel 4 Sydj'!E34<0.5),"-",IFERROR('Tabel 4 Sydj'!E34/'Tabel 4F Sydj'!E34*100,"-")) -> 3.4375 | F34: =IF(OR('Tabel 4F Sydj'!F34<5,'Tabel 4 Sydj'!F34<0.5),"-",IFERROR('Tabel 4 Sydj'!F34/'Tabel 4F Sydj'!F34*100,"-")) -> 1.162790698 | G34: =IF(OR('Tabel 4F Sydj'!G34<5,'Tabel 4 Sydj'!G34<0.5),"-",IFERROR('Tabel 4 Sydj'!G34/'Tabel 4F Sydj'!G34*100,"-")) -> - | I34: =IF(OR('Tabel 4F Sydj'!I34<5,'Tabel 4 Sydj'!I34<0.5),"-",IFERROR('Tabel 4 Sydj'!I34/'Tabel 4F Sydj'!I34*100,"-")) -> 6.136145733
A35: Cand. Merc. | C35: =IF(OR('Tabel 4F Sydj'!C35<5,'Tabel 4 Sydj'!C35<0.5),"-",IFERROR('Tabel 4 Sydj'!C35/'Tabel 4F Sydj'!C35*100,"-")) -> 14.64968153 | D35: =IF(OR('Tabel 4F Sydj'!D35<5,'Tabel 4 Sydj'!D35<0.5),"-",IFERROR('Tabel 4 Sydj'!D35/'Tabel 4F Sydj'!D35*100,"-")) -> 4.368932039 | E35: =IF(OR('Tabel 4F Sydj'!E35<5,'Tabel 4 Sydj'!E35<0.5),"-",IFERROR('Tabel 4 Sydj'!E35/'Tabel 4F Sydj'!E35*100,"-")) -> 2.362204724 | F35: =IF(OR('Tabel 4F Sydj'!F35<5,'Tabel 4 Sydj'!F35<0.5),"-",IFERROR('Tabel 4 Sydj'!F35/'Tabel 4F Sydj'!F35*100,"-")) -> 2.556818182 | G35: =IF(OR('Tabel 4F Sydj'!G35<5,'Tabel 4 Sydj'!G35<0.5),"-",IFERROR('Tabel 4 Sydj'!G35/'Tabel 4F Sydj'!G35*100,"-")) -> 2.43902439 | I35: =IF(OR('Tabel 4F Sydj'!I35<5,'Tabel 4 Sydj'!I35<0.5),"-",IFERROR('Tabel 4 Sydj'!I35/'Tabel 4F Sydj'!I35*100,"-")) -> 5.10053948
A36: HA | C36: =IF(OR('Tabel 4F Sydj'!C36<5,'Tabel 4 Sydj'!C36<0.5),"-",IFERROR('Tabel 4 Sydj'!C36/'Tabel 4F Sydj'!C36*100,"-")) -> 22.72727273 | D36: =IF(OR('Tabel 4F Sydj'!D36<5,'Tabel 4 Sydj'!D36<0.5),"-",IFERROR('Tabel 4 Sydj'!D36/'Tabel 4F Sydj'!D36*100,"-")) -> 11.76470588 | E36: =IF(OR('Tabel 4F Sydj'!E36<5,'Tabel 4 Sydj'!E36<0.5),"-",IFERROR('Tabel 4 Sydj'!E36/'Tabel 4F Sydj'!E36*100,"-")) -> 1.162790698 | F36: =IF(OR('Tabel 4F Sydj'!F36<5,'Tabel 4 Sydj'!F36<0.5),"-",IFERROR('Tabel 4 Sydj'!F36/'Tabel 4F Sydj'!F36*100,"-")) -> 3.191489362 | G36: =IF(OR('Tabel 4F Sydj'!G36<5,'Tabel 4 Sydj'!G36<0.5),"-",IFERROR('Tabel 4 Sydj'!G36/'Tabel 4F Sydj'!G36*100,"-")) -> 7.317073171 | I36: =IF(OR('Tabel 4F Sydj'!I36<5,'Tabel 4 Sydj'!I36<0.5),"-",IFERROR('Tabel 4 Sydj'!I36/'Tabel 4F Sydj'!I36*100,"-")) -> 5.882352941
A37: HD | C37: =IF(OR('Tabel 4F Sydj'!C37<5,'Tabel 4 Sydj'!C37<0.5),"-",IFERROR('Tabel 4 Sydj'!C37/'Tabel 4F Sydj'!C37*100,"-")) -> 23.07692308 | D37: =IF(OR('Tabel 4F Sydj'!D37<5,'Tabel 4 Sydj'!D37<0.5),"-",IFERROR('Tabel 4 Sydj'!D37/'Tabel 4F Sydj'!D37*100,"-")) -> 6.666666667 | E37: =IF(OR('Tabel 4F Sydj'!E37<5,'Tabel 4 Sydj'!E37<0.5),"-",IFERROR('Tabel 4 Sydj'!E37/'Tabel 4F Sydj'!E37*100,"-")) -> 0.7518796992 | F37: =IF(OR('Tabel 4F Sydj'!F37<5,'Tabel 4 Sydj'!F37<0.5),"-",IFERROR('Tabel 4 Sydj'!F37/'Tabel 4F Sydj'!F37*100,"-")) -> 2.673796791 | G37: =IF(OR('Tabel 4F Sydj'!G37<5,'Tabel 4 Sydj'!G37<0.5),"-",IFERROR('Tabel 4 Sydj'!G37/'Tabel 4F Sydj'!G37*100,"-")) -> - | I37: =IF(OR('Tabel 4F Sydj'!I37<5,'Tabel 4 Sydj'!I37<0.5),"-",IFERROR('Tabel 4 Sydj'!I37/'Tabel 4F Sydj'!I37*100,"-")) -> 3.958333333
A38: Komm. og Sprog | C38: =IF(OR('Tabel 4F Sydj'!C38<5,'Tabel 4 Sydj'!C38<0.5),"-",IFERROR('Tabel 4 Sydj'!C38/'Tabel 4F Sydj'!C38*100,"-")) -> 10.34482759 | D38: =IF(OR('Tabel 4F Sydj'!D38<5,'Tabel 4 Sydj'!D38<0.5),"-",IFERROR('Tabel 4 Sydj'!D38/'Tabel 4F Sydj'!D38*100,"-")) -> 6.25 | E38: =IF(OR('Tabel 4F Sydj'!E38<5,'Tabel 4 Sydj'!E38<0.5),"-",IFERROR('Tabel 4 Sydj'!E38/'Tabel 4F Sydj'!E38*100,"-")) -> 4.511278195 | F38: =IF(OR('Tabel 4F Sydj'!F38<5,'Tabel 4 Sydj'!F38<0.5),"-",IFERROR('Tabel 4 Sydj'!F38/'Tabel 4F Sydj'!F38*100,"-")) -> 5.769230769 | G38: =IF(OR('Tabel 4F Sydj'!G38<5,'Tabel 4 Sydj'!G38<0.5),"-",IFERROR('Tabel 4 Sydj'!G38/'Tabel 4F Sydj'!G38*100,"-")) -> 2.631578947 | I38: =IF(OR('Tabel 4F Sydj'!I38<5,'Tabel 4 Sydj'!I38<0.5),"-",IFERROR('Tabel 4 Sydj'!I38/'Tabel 4F Sydj'!I38*100,"-")) -> 5.274261603
A39: Cand. IT. | C39: =IF(OR('Tabel 4F Sydj'!C39<5,'Tabel 4 Sydj'!C39<0.5),"-",IFERROR('Tabel 4 Sydj'!C39/'Tabel 4F Sydj'!C39*100,"-")) -> 17.54385965 | D39: =IF(OR('Tabel 4F Sydj'!D39<5,'Tabel 4 Sydj'!D39<0.5),"-",IFERROR('Tabel 4 Sydj'!D39/'Tabel 4F Sydj'!D39*100,"-")) -> 5.063291139 | E39: =IF(OR('Tabel 4F Sydj'!E39<5,'Tabel 4 Sydj'!E39<0.5),"-",IFERROR('Tabel 4 Sydj'!E39/'Tabel 4F Sydj'!E39*100,"-")) -> 2.380952381 | F39: =IF(OR('Tabel 4F Sydj'!F39<5,'Tabel 4 Sydj'!F39<0.5),"-",IFERROR('Tabel 4 Sydj'!F39/'Tabel 4F Sydj'!F39*100,"-")) -> - | G39: =IF(OR('Tabel 4F Sydj'!G39<5,'Tabel 4 Sydj'!G39<0.5),"-",IFERROR('Tabel 4 Sydj'!G39/'Tabel 4F Sydj'!G39*100,"-")) -> - | I39: =IF(OR('Tabel 4F Sydj'!I39<5,'Tabel 4 Sydj'!I39<0.5),"-",IFERROR('Tabel 4 Sydj'!I39/'Tabel 4F Sydj'!I39*100,"-")) -> 8.602150538
A40: Bac. Samf. | C40: =IF(OR('Tabel 4F Sydj'!C40<5,'Tabel 4 Sydj'!C40<0.5),"-",IFERROR('Tabel 4 Sydj'!C40/'Tabel 4F Sydj'!C40*100,"-")) -> 26.31578947 | D40: =IF(OR('Tabel 4F Sydj'!D40<5,'Tabel 4 Sydj'!D40<0.5),"-",IFERROR('Tabel 4 Sydj'!D40/'Tabel 4F Sydj'!D40*100,"-")) -> 4.761904762 | E40: =IF(OR('Tabel 4F Sydj'!E40<5,'Tabel 4 Sydj'!E40<0.5),"-",IFERROR('Tabel 4 Sydj'!E40/'Tabel 4F Sydj'!E40*100,"-")) -> - | F40: =IF(OR('Tabel 4F Sydj'!F40<5,'Tabel 4 Sydj'!F40<0.5),"-",IFERROR('Tabel 4 Sydj'!F40/'Tabel 4F Sydj'!F40*100,"-")) -> 14.28571429 | G40: =IF(OR('Tabel 4F Sydj'!G40<5,'Tabel 4 Sydj'!G40<0.5),"-",IFERROR('Tabel 4 Sydj'!G40/'Tabel 4F Sydj'!G40*100,"-")) -> - | I40: =IF(OR('Tabel 4F Sydj'!I40<5,'Tabel 4 Sydj'!I40<0.5),"-",IFERROR('Tabel 4 Sydj'!I40/'Tabel 4F Sydj'!I40*100,"-")) -> 10
A41: Bac. Hum. | C41: =IF(OR('Tabel 4F Sydj'!C41<5,'Tabel 4 Sydj'!C41<0.5),"-",IFERROR('Tabel 4 Sydj'!C41/'Tabel 4F Sydj'!C41*100,"-")) -> 24.44444444 | D41: =IF(OR('Tabel 4F Sydj'!D41<5,'Tabel 4 Sydj'!D41<0.5),"-",IFERROR('Tabel 4 Sydj'!D41/'Tabel 4F Sydj'!D41*100,"-")) -> 16.32653061 | E41: =IF(OR('Tabel 4F Sydj'!E41<5,'Tabel 4 Sydj'!E41<0.5),"-",IFERROR('Tabel 4 Sydj'!E41/'Tabel 4F Sydj'!E41*100,"-")) -> 7.142857143 | F41: =IF(OR('Tabel 4F Sydj'!F41<5,'Tabel 4 Sydj'!F41<0.5),"-",IFERROR('Tabel 4 Sydj'!F41/'Tabel 4F Sydj'!F41*100,"-")) -> 5.555555556 | G41: =IF(OR('Tabel 4F Sydj'!G41<5,'Tabel 4 Sydj'!G41<0.5),"-",IFERROR('Tabel 4 Sydj'!G41/'Tabel 4F Sydj'!G41*100,"-")) -> 11.11111111 | I41: =IF(OR('Tabel 4F Sydj'!I41<5,'Tabel 4 Sydj'!I41<0.5),"-",IFERROR('Tabel 4 Sydj'!I41/'Tabel 4F Sydj'!I41*100,"-")) -> 14.72392638
A42: Bac. Nat. | C42: =IF(OR('Tabel 4F Sydj'!C42<5,'Tabel 4 Sydj'!C42<0.5),"-",IFERROR('Tabel 4 Sydj'!C42/'Tabel 4F Sydj'!C42*100,"-")) -> 17.0212766 | D42: =IF(OR('Tabel 4F Sydj'!D42<5,'Tabel 4 Sydj'!D42<0.5),"-",IFERROR('Tabel 4 Sydj'!D42/'Tabel 4F Sydj'!D42*100,"-")) -> 3.448275862 | E42: =IF(OR('Tabel 4F Sydj'!E42<5,'Tabel 4 Sydj'!E42<0.5),"-",IFERROR('Tabel 4 Sydj'!E42/'Tabel 4F Sydj'!E42*100,"-")) -> - | F42: =IF(OR('Tabel 4F Sydj'!F42<5,'Tabel 4 Sydj'!F42<0.5),"-",IFERROR('Tabel 4 Sydj'!F42/'Tabel 4F Sydj'!F42*100,"-")) -> - | G42: =IF(OR('Tabel 4F Sydj'!G42<5,'Tabel 4 Sydj'!G42<0.5),"-",IFERROR('Tabel 4 Sydj'!G42/'Tabel 4F Sydj'!G42*100,"-")) -> - | I42: =IF(OR('Tabel 4F Sydj'!I42<5,'Tabel 4 Sydj'!I42<0.5),"-",IFERROR('Tabel 4 Sydj'!I42/'Tabel 4F Sydj'!I42*100,"-")) -> 6.172839506
A43: Andre | C43: =IF(OR('Tabel 4F Sydj'!C43<5,'Tabel 4 Sydj'!C43<0.5),"-",IFERROR('Tabel 4 Sydj'!C43/'Tabel 4F Sydj'!C43*100,"-")) -> 13.5483871 | D43: =IF(OR('Tabel 4F Sydj'!D43<5,'Tabel 4 Sydj'!D43<0.5),"-",IFERROR('Tabel 4 Sydj'!D43/'Tabel 4F Sydj'!D43*100,"-")) -> 3.317535545 | E43: =IF(OR('Tabel 4F Sydj'!E43<5,'Tabel 4 Sydj'!E43<0.5),"-",IFERROR('Tabel 4 Sydj'!E43/'Tabel 4F Sydj'!E43*100,"-")) -> 2.950819672 | F43: =IF(OR('Tabel 4F Sydj'!F43<5,'Tabel 4 Sydj'!F43<0.5),"-",IFERROR('Tabel 4 Sydj'!F43/'Tabel 4F Sydj'!F43*100,"-")) -> 3.95256917 | G43: =IF(OR('Tabel 4F Sydj'!G43<5,'Tabel 4 Sydj'!G43<0.5),"-",IFERROR('Tabel 4 Sydj'!G43/'Tabel 4F Sydj'!G43*100,"-")) -> 6.976744186 | I43: =IF(OR('Tabel 4F Sydj'!I43<5,'Tabel 4 Sydj'!I43<0.5),"-",IFERROR('Tabel 4 Sydj'!I43/'Tabel 4F Sydj'!I43*100,"-")) -> 4.984177215
A45: Total | C45: =IF(OR('Tabel 4F Sydj'!C45<5,'Tabel 4 Sydj'!C45<0.5),"-",IFERROR('Tabel 4 Sydj'!C45/'Tabel 4F Sydj'!C45*100,"-")) -> 15.09287926 | D45: =IF(OR('Tabel 4F Sydj'!D45<5,'Tabel 4 Sydj'!D45<0.5),"-",IFERROR('Tabel 4 Sydj'!D45/'Tabel 4F Sydj'!D45*100,"-")) -> 4.17905517 | E45: =IF(OR('Tabel 4F Sydj'!E45<5,'Tabel 4 Sydj'!E45<0.5),"-",IFERROR('Tabel 4 Sydj'!E45/'Tabel 4F Sydj'!E45*100,"-")) -> 1.983723296 | F45: =IF(OR('Tabel 4F Sydj'!F45<5,'Tabel 4 Sydj'!F45<0.5),"-",IFERROR('Tabel 4 Sydj'!F45/'Tabel 4F Sydj'!F45*100,"-")) -> 2.368051375 | G45: =IF(OR('Tabel 4F Sydj'!G45<5,'Tabel 4 Sydj'!G45<0.5),"-",IFERROR('Tabel 4 Sydj'!G45/'Tabel 4F Sydj'!G45*100,"-")) -> 3.337531486 | I45: =IF(OR('Tabel 4F Sydj'!I45<5,'Tabel 4 Sydj'!I45<0.5),"-",IFERROR('Tabel 4 Sydj'!I45/'Tabel 4F Sydj'!I45*100,"-")) -> 4.410858957
A47: Ingeniører i alt | C47: =IF(OR('Tabel 4F Sydj'!C47<5,'Tabel 4 Sydj'!C47<0.5),"-",IFERROR('Tabel 4 Sydj'!C47/'Tabel 4F Sydj'!C47*100,"-")) -> 12.24105461 | D47: =IF(OR('Tabel 4F Sydj'!D47<5,'Tabel 4 Sydj'!D47<0.5),"-",IFERROR('Tabel 4 Sydj'!D47/'Tabel 4F Sydj'!D47*100,"-")) -> 1.638176638 | E47: =IF(OR('Tabel 4F Sydj'!E47<5,'Tabel 4 Sydj'!E47<0.5),"-",IFERROR('Tabel 4 Sydj'!E47/'Tabel 4F Sydj'!E47*100,"-")) -> 1.029748284 | F47: =IF(OR('Tabel 4F Sydj'!F47<5,'Tabel 4 Sydj'!F47<0.5),"-",IFERROR('Tabel 4 Sydj'!F47/'Tabel 4F Sydj'!F47*100,"-")) -> 1.70015456 | G47: =IF(OR('Tabel 4F Sydj'!G47<5,'Tabel 4 Sydj'!G47<0.5),"-",IFERROR('Tabel 4 Sydj'!G47/'Tabel 4F Sydj'!G47*100,"-")) -> 3.490759754 | I47: =IF(OR('Tabel 4F Sydj'!I47<5,'Tabel 4 Sydj'!I47<0.5),"-",IFERROR('Tabel 4 Sydj'!I47/'Tabel 4F Sydj'!I47*100,"-")) -> 2.552773687
A48: Magistre i alt | C48: =IF(OR('Tabel 4F Sydj'!C48<5,'Tabel 4 Sydj'!C48<0.5),"-",IFERROR('Tabel 4 Sydj'!C48/'Tabel 4F Sydj'!C48*100,"-")) -> 25 | D48: =IF(OR('Tabel 4F Sydj'!D48<5,'Tabel 4 Sydj'!D48<0.5),"-",IFERROR('Tabel 4 Sydj'!D48/'Tabel 4F Sydj'!D48*100,"-")) -> 8.066184074 | E48: =IF(OR('Tabel 4F Sydj'!E48<5,'Tabel 4 Sydj'!E48<0.5),"-",IFERROR('Tabel 4 Sydj'!E48/'Tabel 4F Sydj'!E48*100,"-")) -> 3.092783505 | F48: =IF(OR('Tabel 4F Sydj'!F48<5,'Tabel 4 Sydj'!F48<0.5),"-",IFERROR('Tabel 4 Sydj'!F48/'Tabel 4F Sydj'!F48*100,"-")) -> 4.026845638 | G48: =IF(OR('Tabel 4F Sydj'!G48<5,'Tabel 4 Sydj'!G48<0.5),"-",IFERROR('Tabel 4 Sydj'!G48/'Tabel 4F Sydj'!G48*100,"-")) -> 3.726708075 | I48: =IF(OR('Tabel 4F Sydj'!I48<5,'Tabel 4 Sydj'!I48<0.5),"-",IFERROR('Tabel 4 Sydj'!I48/'Tabel 4F Sydj'!I48*100,"-")) -> 7.061236449
A49: DJØF'ere i alt | C49: =IF(OR('Tabel 4F Sydj'!C49<5,'Tabel 4 Sydj'!C49<0.5),"-",IFERROR('Tabel 4 Sydj'!C49/'Tabel 4F Sydj'!C49*100,"-")) -> 14.0969163 | D49: =IF(OR('Tabel 4F Sydj'!D49<5,'Tabel 4 Sydj'!D49<0.5),"-",IFERROR('Tabel 4 Sydj'!D49/'Tabel 4F Sydj'!D49*100,"-")) -> 4.770642202 | E49: =IF(OR('Tabel 4F Sydj'!E49<5,'Tabel 4 Sydj'!E49<0.5),"-",IFERROR('Tabel 4 Sydj'!E49/'Tabel 4F Sydj'!E49*100,"-")) -> 2.130898021 | F49: =IF(OR('Tabel 4F Sydj'!F49<5,'Tabel 4 Sydj'!F49<0.5),"-",IFERROR('Tabel 4 Sydj'!F49/'Tabel 4F Sydj'!F49*100,"-")) -> 2.111324376 | G49: =IF(OR('Tabel 4F Sydj'!G49<5,'Tabel 4 Sydj'!G49<0.5),"-",IFERROR('Tabel 4 Sydj'!G49/'Tabel 4F Sydj'!G49*100,"-")) -> 2.409638554 | I49: =IF(OR('Tabel 4F Sydj'!I49<5,'Tabel 4 Sydj'!I49<0.5),"-",IFERROR('Tabel 4 Sydj'!I49/'Tabel 4F Sydj'!I49*100,"-")) -> 4.712691195
A56: Haderslev
C58: Under 30 år | D58: 30 - 39 år | E58: 40 - 49 år | F58: 50 - 59 år | G58: Over 60 år | I58: I alt
A60: Civ. ing. | C60: =IF(OR('Tabel 4F Sydj'!C60<5,'Tabel 4 Sydj'!C60<0.5),"-",IFERROR('Tabel 4 Sydj'!C60/'Tabel 4F Sydj'!C60*100,"-")) -> - | D60: =IF(OR('Tabel 4F Sydj'!D60<5,'Tabel 4 Sydj'!D60<0.5),"-",IFERROR('Tabel 4 Sydj'!D60/'Tabel 4F Sydj'!D60*100,"-")) -> - | E60: =IF(OR('Tabel 4F Sydj'!E60<5,'Tabel 4 Sydj'!E60<0.5),"-",IFERROR('Tabel 4 Sydj'!E60/'Tabel 4F Sydj'!E60*100,"-")) -> - | F60: =IF(OR('Tabel 4F Sydj'!F60<5,'Tabel 4 Sydj'!F60<0.5),"-",IFERROR('Tabel 4 Sydj'!F60/'Tabel 4F Sydj'!F60*100,"-")) -> - | G60: =IF(OR('Tabel 4F Sydj'!G60<5,'Tabel 4 Sydj'!G60<0.5),"-",IFERROR('Tabel 4 Sydj'!G60/'Tabel 4F Sydj'!G60*100,"-")) -> - | I60: =IF(OR('Tabel 4F Sydj'!I60<5,'Tabel 4 Sydj'!I60<0.5),"-",IFERROR('Tabel 4 Sydj'!I60/'Tabel 4F Sydj'!I60*100,"-")) -> 2
A61: Diplom ing. | C61: =IF(OR('Tabel 4F Sydj'!C61<5,'Tabel 4 Sydj'!C61<0.5),"-",IFERROR('Tabel 4 Sydj'!C61/'Tabel 4F Sydj'!C61*100,"-")) -> 20 | D61: =IF(OR('Tabel 4F Sydj'!D61<5,'Tabel 4 Sydj'!D61<0.5),"-",IFERROR('Tabel 4 Sydj'!D61/'Tabel 4F Sydj'!D61*100,"-")) -> - | E61: =IF(OR('Tabel 4F Sydj'!E61<5,'Tabel 4 Sydj'!E61<0.5),"-",IFERROR('Tabel 4 Sydj'!E61/'Tabel 4F Sydj'!E61*100,"-")) -> - | F61: =IF(OR('Tabel 4F Sydj'!F61<5,'Tabel 4 Sydj'!F61<0.5),"-",IFERROR('Tabel 4 Sydj'!F61/'Tabel 4F Sydj'!F61*100,"-")) -> 2.985074627 | G61: =IF(OR('Tabel 4F Sydj'!G61<5,'Tabel 4 Sydj'!G61<0.5),"-",IFERROR('Tabel 4 Sydj'!G61/'Tabel 4F Sydj'!G61*100,"-")) -> 6.666666667 | I61: =IF(OR('Tabel 4F Sydj'!I61<5,'Tabel 4 Sydj'!I61<0.5),"-",IFERROR('Tabel 4 Sydj'!I61/'Tabel 4F Sydj'!I61*100,"-")) -> 3.012048193
A62: Cand. Scient. Tek | C62: =IF(OR('Tabel 4F Sydj'!C62<5,'Tabel 4 Sydj'!C62<0.5),"-",IFERROR('Tabel 4 Sydj'!C62/'Tabel 4F Sydj'!C62*100,"-")) -> 42.85714286 | D62: =IF(OR('Tabel 4F Sydj'!D62<5,'Tabel 4 Sydj'!D62<0.5),"-",IFERROR('Tabel 4 Sydj'!D62/'Tabel 4F Sydj'!D62*100,"-")) -> - | E62: =IF(OR('Tabel 4F Sydj'!E62<5,'Tabel 4 Sydj'!E62<0.5),"-",IFERROR('Tabel 4 Sydj'!E62/'Tabel 4F Sydj'!E62*100,"-")) -> - | F62: =IF(OR('Tabel 4F Sydj'!F62<5,'Tabel 4 Sydj'!F62<0.5),"-",IFERROR('Tabel 4 Sydj'!F62/'Tabel 4F Sydj'!F62*100,"-")) -> - | G62: =IF(OR('Tabel 4F Sydj'!G62<5,'Tabel 4 Sydj'!G62<0.5),"-",IFERROR('Tabel 4 Sydj'!G62/'Tabel 4F Sydj'!G62*100,"-")) -> - | I62: =IF(OR('Tabel 4F Sydj'!I62<5,'Tabel 4 Sydj'!I62<0.5),"-",IFERROR('Tabel 4 Sydj'!I62/'Tabel 4F Sydj'!I62*100,"-")) -> 13.63636364
A63: MA. Hum. | C63: =IF(OR('Tabel 4F Sydj'!C63<5,'Tabel 4 Sydj'!C63<0.5),"-",IFERROR('Tabel 4 Sydj'!C63/'Tabel 4F Sydj'!C63*100,"-")) -> 33.33333333 | D63: =IF(OR('Tabel 4F Sydj'!D63<5,'Tabel 4 Sydj'!D63<0.5),"-",IFERROR('Tabel 4 Sydj'!D63/'Tabel 4F Sydj'!D63*100,"-")) -> 5.555555556 | E63: =IF(OR('Tabel 4F Sydj'!E63<5,'Tabel 4 Sydj'!E63<0.5),"-",IFERROR('Tabel 4 Sydj'!E63/'Tabel 4F Sydj'!E63*100,"-")) -> 3.846153846 | F63: =IF(OR('Tabel 4F Sydj'!F63<5,'Tabel 4 Sydj'!F63<0.5),"-",IFERROR('Tabel 4 Sydj'!F63/'Tabel 4F Sydj'!F63*100,"-")) -> - | G63: =IF(OR('Tabel 4F Sydj'!G63<5,'Tabel 4 Sydj'!G63<0.5),"-",IFERROR('Tabel 4 Sydj'!G63/'Tabel 4F Sydj'!G63*100,"-")) -> 23.52941176 | I63: =IF(OR('Tabel 4F Sydj'!I63<5,'Tabel 4 Sydj'!I63<0.5),"-",IFERROR('Tabel 4 Sydj'!I63/'Tabel 4F Sydj'!I63*100,"-")) -> 8.888888889
A64: MA. Nat. | C64: =IF(OR('Tabel 4F Sydj'!C64<5,'Tabel 4 Sydj'!C64<0.5),"-",IFERROR('Tabel 4 Sydj'!C64/'Tabel 4F Sydj'!C64*100,"-")) -> - | D64: =IF(OR('Tabel 4F Sydj'!D64<5,'Tabel 4 Sydj'!D64<0.5),"-",IFERROR('Tabel 4 Sydj'!D64/'Tabel 4F Sydj'!D64*100,"-")) -> - | E64: =IF(OR('Tabel 4F Sydj'!E64<5,'Tabel 4 Sydj'!E64<0.5),"-",IFERROR('Tabel 4 Sydj'!E64/'Tabel 4F Sydj'!E64*100,"-")) -> - | F64: =IF(OR('Tabel 4F Sydj'!F64<5,'Tabel 4 Sydj'!F64<0.5),"-",IFERROR('Tabel 4 Sydj'!F64/'Tabel 4F Sydj'!F64*100,"-")) -> - | G64: =IF(OR('Tabel 4F Sydj'!G64<5,'Tabel 4 Sydj'!G64<0.5),"-",IFERROR('Tabel 4 Sydj'!G64/'Tabel 4F Sydj'!G64*100,"-")) -> - | I64: =IF(OR('Tabel 4F Sydj'!I64<5,'Tabel 4 Sydj'!I64<0.5),"-",IFERROR('Tabel 4 Sydj'!I64/'Tabel 4F Sydj'!I64*100,"-")) -> -
A65: MA. Ph.d. | C65: =IF(OR('Tabel 4F Sydj'!C65<5,'Tabel 4 Sydj'!C65<0.5),"-",IFERROR('Tabel 4 Sydj'!C65/'Tabel 4F Sydj'!C65*100,"-")) -> - | D65: =IF(OR('Tabel 4F Sydj'!D65<5,'Tabel 4 Sydj'!D65<0.5),"-",IFERROR('Tabel 4 Sydj'!D65/'Tabel 4F Sydj'!D65*100,"-")) -> - | E65: =IF(OR('Tabel 4F Sydj'!E65<5,'Tabel 4 Sydj'!E65<0.5),"-",IFERROR('Tabel 4 Sydj'!E65/'Tabel 4F Sydj'!E65*100,"-")) -> - | F65: =IF(OR('Tabel 4F Sydj'!F65<5,'Tabel 4 Sydj'!F65<0.5),"-",IFERROR('Tabel 4 Sydj'!F65/'Tabel 4F Sydj'!F65*100,"-")) -> - | G65: =IF(OR('Tabel 4F Sydj'!G65<5,'Tabel 4 Sydj'!G65<0.5),"-",IFERROR('Tabel 4 Sydj'!G65/'Tabel 4F Sydj'!G65*100,"-")) -> - | I65: =IF(OR('Tabel 4F Sydj'!I65<5,'Tabel 4 Sydj'!I65<0.5),"-",IFERROR('Tabel 4 Sydj'!I65/'Tabel 4F Sydj'!I65*100,"-")) -> -
A66: MA. Samf. | C66: =IF(OR('Tabel 4F Sydj'!C66<5,'Tabel 4 Sydj'!C66<0.5),"-",IFERROR('Tabel 4 Sydj'!C66/'Tabel 4F Sydj'!C66*100,"-")) -> - | D66: =IF(OR('Tabel 4F Sydj'!D66<5,'Tabel 4 Sydj'!D66<0.5),"-",IFERROR('Tabel 4 Sydj'!D66/'Tabel 4F Sydj'!D66*100,"-")) -> - | E66: =IF(OR('Tabel 4F Sydj'!E66<5,'Tabel 4 Sydj'!E66<0.5),"-",IFERROR('Tabel 4 Sydj'!E66/'Tabel 4F Sydj'!E66*100,"-")) -> - | F66: =IF(OR('Tabel 4F Sydj'!F66<5,'Tabel 4 Sydj'!F66<0.5),"-",IFERROR('Tabel 4 Sydj'!F66/'Tabel 4F Sydj'!F66*100,"-")) -> - | G66: =IF(OR('Tabel 4F Sydj'!G66<5,'Tabel 4 Sydj'!G66<0.5),"-",IFERROR('Tabel 4 Sydj'!G66/'Tabel 4F Sydj'!G66*100,"-")) -> - | I66: =IF(OR('Tabel 4F Sydj'!I66<5,'Tabel 4 Sydj'!I66<0.5),"-",IFERROR('Tabel 4 Sydj'!I66/'Tabel 4F Sydj'!I66*100,"-")) -> 42.85714286
A67: Øvrige Mag. | C67: =IF(OR('Tabel 4F Sydj'!C67<5,'Tabel 4 Sydj'!C67<0.5),"-",IFERROR('Tabel 4 Sydj'!C67/'Tabel 4F Sydj'!C67*100,"-")) -> - | D67: =IF(OR('Tabel 4F Sydj'!D67<5,'Tabel 4 Sydj'!D67<0.5),"-",IFERROR('Tabel 4 Sydj'!D67/'Tabel 4F Sydj'!D67*100,"-")) -> - | E67: =IF(OR('Tabel 4F Sydj'!E67<5,'Tabel 4 Sydj'!E67<0.5),"-",IFERROR('Tabel 4 Sydj'!E67/'Tabel 4F Sydj'!E67*100,"-")) -> 20 | F67: =IF(OR('Tabel 4F Sydj'!F67<5,'Tabel 4 Sydj'!F67<0.5),"-",IFERROR('Tabel 4 Sydj'!F67/'Tabel 4F Sydj'!F67*100,"-")) -> - | G67: =IF(OR('Tabel 4F Sydj'!G67<5,'Tabel 4 Sydj'!G67<0.5),"-",IFERROR('Tabel 4 Sydj'!G67/'Tabel 4F Sydj'!G67*100,"-")) -> - | I67: =IF(OR('Tabel 4F Sydj'!I67<5,'Tabel 4 Sydj'!I67<0.5),"-",IFERROR('Tabel 4 Sydj'!I67/'Tabel 4F Sydj'!I67*100,"-")) -> 11.11111111
A68: Agronom | C68: =IF(OR('Tabel 4F Sydj'!C68<5,'Tabel 4 Sydj'!C68<0.5),"-",IFERROR('Tabel 4 Sydj'!C68/'Tabel 4F Sydj'!C68*100,"-")) -> - | D68: =IF(OR('Tabel 4F Sydj'!D68<5,'Tabel 4 Sydj'!D68<0.5),"-",IFERROR('Tabel 4 Sydj'!D68/'Tabel 4F Sydj'!D68*100,"-")) -> - | E68: =IF(OR('Tabel 4F Sydj'!E68<5,'Tabel 4 Sydj'!E68<0.5),"-",IFERROR('Tabel 4 Sydj'!E68/'Tabel 4F Sydj'!E68*100,"-")) -> - | F68: =IF(OR('Tabel 4F Sydj'!F68<5,'Tabel 4 Sydj'!F68<0.5),"-",IFERROR('Tabel 4 Sydj'!F68/'Tabel 4F Sydj'!F68*100,"-")) -> - | G68: =IF(OR('Tabel 4F Sydj'!G68<5,'Tabel 4 Sydj'!G68<0.5),"-",IFERROR('Tabel 4 Sydj'!G68/'Tabel 4F Sydj'!G68*100,"-")) -> - | I68: =IF(OR('Tabel 4F Sydj'!I68<5,'Tabel 4 Sydj'!I68<0.5),"-",IFERROR('Tabel 4 Sydj'!I68/'Tabel 4F Sydj'!I68*100,"-")) -> -
A69: Landsk. Arkt. | C69: =IF(OR('Tabel 4F Sydj'!C69<5,'Tabel 4 Sydj'!C69<0.5),"-",IFERROR('Tabel 4 Sydj'!C69/'Tabel 4F Sydj'!C69*100,"-")) -> - | D69: =IF(OR('Tabel 4F Sydj'!D69<5,'Tabel 4 Sydj'!D69<0.5),"-",IFERROR('Tabel 4 Sydj'!D69/'Tabel 4F Sydj'!D69*100,"-")) -> - | E69: =IF(OR('Tabel 4F Sydj'!E69<5,'Tabel 4 Sydj'!E69<0.5),"-",IFERROR('Tabel 4 Sydj'!E69/'Tabel 4F Sydj'!E69*100,"-")) -> - | F69: =IF(OR('Tabel 4F Sydj'!F69<5,'Tabel 4 Sydj'!F69<0.5),"-",IFERROR('Tabel 4 Sydj'!F69/'Tabel 4F Sydj'!F69*100,"-")) -> - | G69: =IF(OR('Tabel 4F Sydj'!G69<5,'Tabel 4 Sydj'!G69<0.5),"-",IFERROR('Tabel 4 Sydj'!G69/'Tabel 4F Sydj'!G69*100,"-")) -> - | I69: =IF(OR('Tabel 4F Sydj'!I69<5,'Tabel 4 Sydj'!I69<0.5),"-",IFERROR('Tabel 4 Sydj'!I69/'Tabel 4F Sydj'!I69*100,"-")) -> -
A70: Hortonom | C70: =IF(OR('Tabel 4F Sydj'!C70<5,'Tabel 4 Sydj'!C70<0.5),"-",IFERROR('Tabel 4 Sydj'!C70/'Tabel 4F Sydj'!C70*100,"-")) -> - | D70: =IF(OR('Tabel 4F Sydj'!D70<5,'Tabel 4 Sydj'!D70<0.5),"-",IFERROR('Tabel 4 Sydj'!D70/'Tabel 4F Sydj'!D70*100,"-")) -> - | E70: =IF(OR('Tabel 4F Sydj'!E70<5,'Tabel 4 Sydj'!E70<0.5),"-",IFERROR('Tabel 4 Sydj'!E70/'Tabel 4F Sydj'!E70*100,"-")) -> - | F70: =IF(OR('Tabel 4F Sydj'!F70<5,'Tabel 4 Sydj'!F70<0.5),"-",IFERROR('Tabel 4 Sydj'!F70/'Tabel 4F Sydj'!F70*100,"-")) -> - | G70: =IF(OR('Tabel 4F Sydj'!G70<5,'Tabel 4 Sydj'!G70<0.5),"-",IFERROR('Tabel 4 Sydj'!G70/'Tabel 4F Sydj'!G70*100,"-")) -> - | I70: =IF(OR('Tabel 4F Sydj'!I70<5,'Tabel 4 Sydj'!I70<0.5),"-",IFERROR('Tabel 4 Sydj'!I70/'Tabel 4F Sydj'!I70*100,"-")) -> -
A71: Forstkand. | C71: =IF(OR('Tabel 4F Sydj'!C71<5,'Tabel 4 Sydj'!C71<0.5),"-",IFERROR('Tabel 4 Sydj'!C71/'Tabel 4F Sydj'!C71*100,"-")) -> - | D71: =IF(OR('Tabel 4F Sydj'!D71<5,'Tabel 4 Sydj'!D71<0.5),"-",IFERROR('Tabel 4 Sydj'!D71/'Tabel 4F Sydj'!D71*100,"-")) -> - | E71: =IF(OR('Tabel 4F Sydj'!E71<5,'Tabel 4 Sydj'!E71<0.5),"-",IFERROR('Tabel 4 Sydj'!E71/'Tabel 4F Sydj'!E71*100,"-")) -> - | F71: =IF(OR('Tabel 4F Sydj'!F71<5,'Tabel 4 Sydj'!F71<0.5),"-",IFERROR('Tabel 4 Sydj'!F71/'Tabel 4F Sydj'!F71*100,"-")) -> - | G71: =IF(OR('Tabel 4F Sydj'!G71<5,'Tabel 4 Sydj'!G71<0.5),"-",IFERROR('Tabel 4 Sydj'!G71/'Tabel 4F Sydj'!G71*100,"-")) -> - | I71: =IF(OR('Tabel 4F Sydj'!I71<5,'Tabel 4 Sydj'!I71<0.5),"-",IFERROR('Tabel 4 Sydj'!I71/'Tabel 4F Sydj'!I71*100,"-")) -> -
A72: Jordbrugsakad. | C72: =IF(OR('Tabel 4F Sydj'!C72<5,'Tabel 4 Sydj'!C72<0.5),"-",IFERROR('Tabel 4 Sydj'!C72/'Tabel 4F Sydj'!C72*100,"-")) -> - | D72: =IF(OR('Tabel 4F Sydj'!D72<5,'Tabel 4 Sydj'!D72<0.5),"-",IFERROR('Tabel 4 Sydj'!D72/'Tabel 4F Sydj'!D72*100,"-")) -> - | E72: =IF(OR('Tabel 4F Sydj'!E72<5,'Tabel 4 Sydj'!E72<0.5),"-",IFERROR('Tabel 4 Sydj'!E72/'Tabel 4F Sydj'!E72*100,"-")) -> - | F72: =IF(OR('Tabel 4F Sydj'!F72<5,'Tabel 4 Sydj'!F72<0.5),"-",IFERROR('Tabel 4 Sydj'!F72/'Tabel 4F Sydj'!F72*100,"-")) -> - | G72: =IF(OR('Tabel 4F Sydj'!G72<5,'Tabel 4 Sydj'!G72<0.5),"-",IFERROR('Tabel 4 Sydj'!G72/'Tabel 4F Sydj'!G72*100,"-")) -> - | I72: =IF(OR('Tabel 4F Sydj'!I72<5,'Tabel 4 Sydj'!I72<0.5),"-",IFERROR('Tabel 4 Sydj'!I72/'Tabel 4F Sydj'!I72*100,"-")) -> -
A73: Mejeriing. | C73: =IF(OR('Tabel 4F Sydj'!C73<5,'Tabel 4 Sydj'!C73<0.5),"-",IFERROR('Tabel 4 Sydj'!C73/'Tabel 4F Sydj'!C73*100,"-")) -> - | D73: =IF(OR('Tabel 4F Sydj'!D73<5,'Tabel 4 Sydj'!D73<0.5),"-",IFERROR('Tabel 4 Sydj'!D73/'Tabel 4F Sydj'!D73*100,"-")) -> - | E73: =IF(OR('Tabel 4F Sydj'!E73<5,'Tabel 4 Sydj'!E73<0.5),"-",IFERROR('Tabel 4 Sydj'!E73/'Tabel 4F Sydj'!E73*100,"-")) -> - | F73: =IF(OR('Tabel 4F Sydj'!F73<5,'Tabel 4 Sydj'!F73<0.5),"-",IFERROR('Tabel 4 Sydj'!F73/'Tabel 4F Sydj'!F73*100,"-")) -> - | G73: =IF(OR('Tabel 4F Sydj'!G73<5,'Tabel 4 Sydj'!G73<0.5),"-",IFERROR('Tabel 4 Sydj'!G73/'Tabel 4F Sydj'!G73*100,"-")) -> - | I73: =IF(OR('Tabel 4F Sydj'!I73<5,'Tabel 4 Sydj'!I73<0.5),"-",IFERROR('Tabel 4 Sydj'!I73/'Tabel 4F Sydj'!I73*100,"-")) -> -
A74: Levn.m.kand. | C74: =IF(OR('Tabel 4F Sydj'!C74<5,'Tabel 4 Sydj'!C74<0.5),"-",IFERROR('Tabel 4 Sydj'!C74/'Tabel 4F Sydj'!C74*100,"-")) -> - | D74: =IF(OR('Tabel 4F Sydj'!D74<5,'Tabel 4 Sydj'!D74<0.5),"-",IFERROR('Tabel 4 Sydj'!D74/'Tabel 4F Sydj'!D74*100,"-")) -> - | E74: =IF(OR('Tabel 4F Sydj'!E74<5,'Tabel 4 Sydj'!E74<0.5),"-",IFERROR('Tabel 4 Sydj'!E74/'Tabel 4F Sydj'!E74*100,"-")) -> - | F74: =IF(OR('Tabel 4F Sydj'!F74<5,'Tabel 4 Sydj'!F74<0.5),"-",IFERROR('Tabel 4 Sydj'!F74/'Tabel 4F Sydj'!F74*100,"-")) -> - | G74: =IF(OR('Tabel 4F Sydj'!G74<5,'Tabel 4 Sydj'!G74<0.5),"-",IFERROR('Tabel 4 Sydj'!G74/'Tabel 4F Sydj'!G74*100,"-")) -> - | I74: =IF(OR('Tabel 4F Sydj'!I74<5,'Tabel 4 Sydj'!I74<0.5),"-",IFERROR('Tabel 4 Sydj'!I74/'Tabel 4F Sydj'!I74*100,"-")) -> -
A75: Dyrlæge | C75: =IF(OR('Tabel 4F Sydj'!C75<5,'Tabel 4 Sydj'!C75<0.5),"-",IFERROR('Tabel 4 Sydj'!C75/'Tabel 4F Sydj'!C75*100,"-")) -> - | D75: =IF(OR('Tabel 4F Sydj'!D75<5,'Tabel 4 Sydj'!D75<0.5),"-",IFERROR('Tabel 4 Sydj'!D75/'Tabel 4F Sydj'!D75*100,"-")) -> - | E75: =IF(OR('Tabel 4F Sydj'!E75<5,'Tabel 4 Sydj'!E75<0.5),"-",IFERROR('Tabel 4 Sydj'!E75/'Tabel 4F Sydj'!E75*100,"-")) -> - | F75: =IF(OR('Tabel 4F Sydj'!F75<5,'Tabel 4 Sydj'!F75<0.5),"-",IFERROR('Tabel 4 Sydj'!F75/'Tabel 4F Sydj'!F75*100,"-")) -> - | G75: =IF(OR('Tabel 4F Sydj'!G75<5,'Tabel 4 Sydj'!G75<0.5),"-",IFERROR('Tabel 4 Sydj'!G75/'Tabel 4F Sydj'!G75*100,"-")) -> - | I75: =IF(OR('Tabel 4F Sydj'!I75<5,'Tabel 4 Sydj'!I75<0.5),"-",IFERROR('Tabel 4 Sydj'!I75/'Tabel 4F Sydj'!I75*100,"-")) -> -
A76: Farmaceut | C76: =IF(OR('Tabel 4F Sydj'!C76<5,'Tabel 4 Sydj'!C76<0.5),"-",IFERROR('Tabel 4 Sydj'!C76/'Tabel 4F Sydj'!C76*100,"-")) -> - | D76: =IF(OR('Tabel 4F Sydj'!D76<5,'Tabel 4 Sydj'!D76<0.5),"-",IFERROR('Tabel 4 Sydj'!D76/'Tabel 4F Sydj'!D76*100,"-")) -> - | E76: =IF(OR('Tabel 4F Sydj'!E76<5,'Tabel 4 Sydj'!E76<0.5),"-",IFERROR('Tabel 4 Sydj'!E76/'Tabel 4F Sydj'!E76*100,"-")) -> - | F76: =IF(OR('Tabel 4F Sydj'!F76<5,'Tabel 4 Sydj'!F76<0.5),"-",IFERROR('Tabel 4 Sydj'!F76/'Tabel 4F Sydj'!F76*100,"-")) -> - | G76: =IF(OR('Tabel 4F Sydj'!G76<5,'Tabel 4 Sydj'!G76<0.5),"-",IFERROR('Tabel 4 Sydj'!G76/'Tabel 4F Sydj'!G76*100,"-")) -> - | I76: =IF(OR('Tabel 4F Sydj'!I76<5,'Tabel 4 Sydj'!I76<0.5),"-",IFERROR('Tabel 4 Sydj'!I76/'Tabel 4F Sydj'!I76*100,"-")) -> -
A77: Læge | C77: =IF(OR('Tabel 4F Sydj'!C77<5,'Tabel 4 Sydj'!C77<0.5),"-",IFERROR('Tabel 4 Sydj'!C77/'Tabel 4F Sydj'!C77*100,"-")) -> - | D77: =IF(OR('Tabel 4F Sydj'!D77<5,'Tabel 4 Sydj'!D77<0.5),"-",IFERROR('Tabel 4 Sydj'!D77/'Tabel 4F Sydj'!D77*100,"-")) -> - | E77: =IF(OR('Tabel 4F Sydj'!E77<5,'Tabel 4 Sydj'!E77<0.5),"-",IFERROR('Tabel 4 Sydj'!E77/'Tabel 4F Sydj'!E77*100,"-")) -> - | F77: =IF(OR('Tabel 4F Sydj'!F77<5,'Tabel 4 Sydj'!F77<0.5),"-",IFERROR('Tabel 4 Sydj'!F77/'Tabel 4F Sydj'!F77*100,"-")) -> - | G77: =IF(OR('Tabel 4F Sydj'!G77<5,'Tabel 4 Sydj'!G77<0.5),"-",IFERROR('Tabel 4 Sydj'!G77/'Tabel 4F Sydj'!G77*100,"-")) -> - | I77: =IF(OR('Tabel 4F Sydj'!I77<5,'Tabel 4 Sydj'!I77<0.5),"-",IFERROR('Tabel 4 Sydj'!I77/'Tabel 4F Sydj'!I77*100,"-")) -> -
A78: Tandlæge | C78: =IF(OR('Tabel 4F Sydj'!C78<5,'Tabel 4 Sydj'!C78<0.5),"-",IFERROR('Tabel 4 Sydj'!C78/'Tabel 4F Sydj'!C78*100,"-")) -> - | D78: =IF(OR('Tabel 4F Sydj'!D78<5,'Tabel 4 Sydj'!D78<0.5),"-",IFERROR('Tabel 4 Sydj'!D78/'Tabel 4F Sydj'!D78*100,"-")) -> - | E78: =IF(OR('Tabel 4F Sydj'!E78<5,'Tabel 4 Sydj'!E78<0.5),"-",IFERROR('Tabel 4 Sydj'!E78/'Tabel 4F Sydj'!E78*100,"-")) -> - | F78: =IF(OR('Tabel 4F Sydj'!F78<5,'Tabel 4 Sydj'!F78<0.5),"-",IFERROR('Tabel 4 Sydj'!F78/'Tabel 4F Sydj'!F78*100,"-")) -> - | G78: =IF(OR('Tabel 4F Sydj'!G78<5,'Tabel 4 Sydj'!G78<0.5),"-",IFERROR('Tabel 4 Sydj'!G78/'Tabel 4F Sydj'!G78*100,"-")) -> - | I78: =IF(OR('Tabel 4F Sydj'!I78<5,'Tabel 4 Sydj'!I78<0.5),"-",IFERROR('Tabel 4 Sydj'!I78/'Tabel 4F Sydj'!I78*100,"-")) -> -
A79: Arkitekt | C79: =IF(OR('Tabel 4F Sydj'!C79<5,'Tabel 4 Sydj'!C79<0.5),"-",IFERROR('Tabel 4 Sydj'!C79/'Tabel 4F Sydj'!C79*100,"-")) -> - | D79: =IF(OR('Tabel 4F Sydj'!D79<5,'Tabel 4 Sydj'!D79<0.5),"-",IFERROR('Tabel 4 Sydj'!D79/'Tabel 4F Sydj'!D79*100,"-")) -> - | E79: =IF(OR('Tabel 4F Sydj'!E79<5,'Tabel 4 Sydj'!E79<0.5),"-",IFERROR('Tabel 4 Sydj'!E79/'Tabel 4F Sydj'!E79*100,"-")) -> - | F79: =IF(OR('Tabel 4F Sydj'!F79<5,'Tabel 4 Sydj'!F79<0.5),"-",IFERROR('Tabel 4 Sydj'!F79/'Tabel 4F Sydj'!F79*100,"-")) -> - | G79: =IF(OR('Tabel 4F Sydj'!G79<5,'Tabel 4 Sydj'!G79<0.5),"-",IFERROR('Tabel 4 Sydj'!G79/'Tabel 4F Sydj'!G79*100,"-")) -> - | I79: =IF(OR('Tabel 4F Sydj'!I79<5,'Tabel 4 Sydj'!I79<0.5),"-",IFERROR('Tabel 4 Sydj'!I79/'Tabel 4F Sydj'!I79*100,"-")) -> -
A80: Landinspek. | C80: =IF(OR('Tabel 4F Sydj'!C80<5,'Tabel 4 Sydj'!C80<0.5),"-",IFERROR('Tabel 4 Sydj'!C80/'Tabel 4F Sydj'!C80*100,"-")) -> - | D80: =IF(OR('Tabel 4F Sydj'!D80<5,'Tabel 4 Sydj'!D80<0.5),"-",IFERROR('Tabel 4 Sydj'!D80/'Tabel 4F Sydj'!D80*100,"-")) -> - | E80: =IF(OR('Tabel 4F Sydj'!E80<5,'Tabel 4 Sydj'!E80<0.5),"-",IFERROR('Tabel 4 Sydj'!E80/'Tabel 4F Sydj'!E80*100,"-")) -> - | F80: =IF(OR('Tabel 4F Sydj'!F80<5,'Tabel 4 Sydj'!F80<0.5),"-",IFERROR('Tabel 4 Sydj'!F80/'Tabel 4F Sydj'!F80*100,"-")) -> - | G80: =IF(OR('Tabel 4F Sydj'!G80<5,'Tabel 4 Sydj'!G80<0.5),"-",IFERROR('Tabel 4 Sydj'!G80/'Tabel 4F Sydj'!G80*100,"-")) -> - | I80: =IF(OR('Tabel 4F Sydj'!I80<5,'Tabel 4 Sydj'!I80<0.5),"-",IFERROR('Tabel 4 Sydj'!I80/'Tabel 4F Sydj'!I80*100,"-")) -> -
A81: Bibliotekar | C81: =IF(OR('Tabel 4F Sydj'!C81<5,'Tabel 4 Sydj'!C81<0.5),"-",IFERROR('Tabel 4 Sydj'!C81/'Tabel 4F Sydj'!C81*100,"-")) -> - | D81: =IF(OR('Tabel 4F Sydj'!D81<5,'Tabel 4 Sydj'!D81<0.5),"-",IFERROR('Tabel 4 Sydj'!D81/'Tabel 4F Sydj'!D81*100,"-")) -> - | E81: =IF(OR('Tabel 4F Sydj'!E81<5,'Tabel 4 Sydj'!E81<0.5),"-",IFERROR('Tabel 4 Sydj'!E81/'Tabel 4F Sydj'!E81*100,"-")) -> - | F81: =IF(OR('Tabel 4F Sydj'!F81<5,'Tabel 4 Sydj'!F81<0.5),"-",IFERROR('Tabel 4 Sydj'!F81/'Tabel 4F Sydj'!F81*100,"-")) -> 20 | G81: =IF(OR('Tabel 4F Sydj'!G81<5,'Tabel 4 Sydj'!G81<0.5),"-",IFERROR('Tabel 4 Sydj'!G81/'Tabel 4F Sydj'!G81*100,"-")) -> - | I81: =IF(OR('Tabel 4F Sydj'!I81<5,'Tabel 4 Sydj'!I81<0.5),"-",IFERROR('Tabel 4 Sydj'!I81/'Tabel 4F Sydj'!I81*100,"-")) -> 9.090909091
A82: Musikudd. | C82: =IF(OR('Tabel 4F Sydj'!C82<5,'Tabel 4 Sydj'!C82<0.5),"-",IFERROR('Tabel 4 Sydj'!C82/'Tabel 4F Sydj'!C82*100,"-")) -> - | D82: =IF(OR('Tabel 4F Sydj'!D82<5,'Tabel 4 Sydj'!D82<0.5),"-",IFERROR('Tabel 4 Sydj'!D82/'Tabel 4F Sydj'!D82*100,"-")) -> - | E82: =IF(OR('Tabel 4F Sydj'!E82<5,'Tabel 4 Sydj'!E82<0.5),"-",IFERROR('Tabel 4 Sydj'!E82/'Tabel 4F Sydj'!E82*100,"-")) -> - | F82: =IF(OR('Tabel 4F Sydj'!F82<5,'Tabel 4 Sydj'!F82<0.5),"-",IFERROR('Tabel 4 Sydj'!F82/'Tabel 4F Sydj'!F82*100,"-")) -> - | G82: =IF(OR('Tabel 4F Sydj'!G82<5,'Tabel 4 Sydj'!G82<0.5),"-",IFERROR('Tabel 4 Sydj'!G82/'Tabel 4F Sydj'!G82*100,"-")) -> - | I82: =IF(OR('Tabel 4F Sydj'!I82<5,'Tabel 4 Sydj'!I82<0.5),"-",IFERROR('Tabel 4 Sydj'!I82/'Tabel 4F Sydj'!I82*100,"-")) -> -
A83: Teolog | C83: =IF(OR('Tabel 4F Sydj'!C83<5,'Tabel 4 Sydj'!C83<0.5),"-",IFERROR('Tabel 4 Sydj'!C83/'Tabel 4F Sydj'!C83*100,"-")) -> - | D83: =IF(OR('Tabel 4F Sydj'!D83<5,'Tabel 4 Sydj'!D83<0.5),"-",IFERROR('Tabel 4 Sydj'!D83/'Tabel 4F Sydj'!D83*100,"-")) -> - | E83: =IF(OR('Tabel 4F Sydj'!E83<5,'Tabel 4 Sydj'!E83<0.5),"-",IFERROR('Tabel 4 Sydj'!E83/'Tabel 4F Sydj'!E83*100,"-")) -> - | F83: =IF(OR('Tabel 4F Sydj'!F83<5,'Tabel 4 Sydj'!F83<0.5),"-",IFERROR('Tabel 4 Sydj'!F83/'Tabel 4F Sydj'!F83*100,"-")) -> - | G83: =IF(OR('Tabel 4F Sydj'!G83<5,'Tabel 4 Sydj'!G83<0.5),"-",IFERROR('Tabel 4 Sydj'!G83/'Tabel 4F Sydj'!G83*100,"-")) -> - | I83: =IF(OR('Tabel 4F Sydj'!I83<5,'Tabel 4 Sydj'!I83<0.5),"-",IFERROR('Tabel 4 Sydj'!I83/'Tabel 4F Sydj'!I83*100,"-")) -> -
A84: Psykolog | C84: =IF(OR('Tabel 4F Sydj'!C84<5,'Tabel 4 Sydj'!C84<0.5),"-",IFERROR('Tabel 4 Sydj'!C84/'Tabel 4F Sydj'!C84*100,"-")) -> - | D84: =IF(OR('Tabel 4F Sydj'!D84<5,'Tabel 4 Sydj'!D84<0.5),"-",IFERROR('Tabel 4 Sydj'!D84/'Tabel 4F Sydj'!D84*100,"-")) -> - | E84: =IF(OR('Tabel 4F Sydj'!E84<5,'Tabel 4 Sydj'!E84<0.5),"-",IFERROR('Tabel 4 Sydj'!E84/'Tabel 4F Sydj'!E84*100,"-")) -> - | F84: =IF(OR('Tabel 4F Sydj'!F84<5,'Tabel 4 Sydj'!F84<0.5),"-",IFERROR('Tabel 4 Sydj'!F84/'Tabel 4F Sydj'!F84*100,"-")) -> - | G84: =IF(OR('Tabel 4F Sydj'!G84<5,'Tabel 4 Sydj'!G84<0.5),"-",IFERROR('Tabel 4 Sydj'!G84/'Tabel 4F Sydj'!G84*100,"-")) -> - | I84: =IF(OR('Tabel 4F Sydj'!I84<5,'Tabel 4 Sydj'!I84<0.5),"-",IFERROR('Tabel 4 Sydj'!I84/'Tabel 4F Sydj'!I84*100,"-")) -> -
A85: Jurist | C85: =IF(OR('Tabel 4F Sydj'!C85<5,'Tabel 4 Sydj'!C85<0.5),"-",IFERROR('Tabel 4 Sydj'!C85/'Tabel 4F Sydj'!C85*100,"-")) -> - | D85: =IF(OR('Tabel 4F Sydj'!D85<5,'Tabel 4 Sydj'!D85<0.5),"-",IFERROR('Tabel 4 Sydj'!D85/'Tabel 4F Sydj'!D85*100,"-")) -> - | E85: =IF(OR('Tabel 4F Sydj'!E85<5,'Tabel 4 Sydj'!E85<0.5),"-",IFERROR('Tabel 4 Sydj'!E85/'Tabel 4F Sydj'!E85*100,"-")) -> 10 | F85: =IF(OR('Tabel 4F Sydj'!F85<5,'Tabel 4 Sydj'!F85<0.5),"-",IFERROR('Tabel 4 Sydj'!F85/'Tabel 4F Sydj'!F85*100,"-")) -> - | G85: =IF(OR('Tabel 4F Sydj'!G85<5,'Tabel 4 Sydj'!G85<0.5),"-",IFERROR('Tabel 4 Sydj'!G85/'Tabel 4F Sydj'!G85*100,"-")) -> - | I85: =IF(OR('Tabel 4F Sydj'!I85<5,'Tabel 4 Sydj'!I85<0.5),"-",IFERROR('Tabel 4 Sydj'!I85/'Tabel 4F Sydj'!I85*100,"-")) -> 2.325581395
A86: Økonom | C86: =IF(OR('Tabel 4F Sydj'!C86<5,'Tabel 4 Sydj'!C86<0.5),"-",IFERROR('Tabel 4 Sydj'!C86/'Tabel 4F Sydj'!C86*100,"-")) -> - | D86: =IF(OR('Tabel 4F Sydj'!D86<5,'Tabel 4 Sydj'!D86<0.5),"-",IFERROR('Tabel 4 Sydj'!D86/'Tabel 4F Sydj'!D86*100,"-")) -> - | E86: =IF(OR('Tabel 4F Sydj'!E86<5,'Tabel 4 Sydj'!E86<0.5),"-",IFERROR('Tabel 4 Sydj'!E86/'Tabel 4F Sydj'!E86*100,"-")) -> - | F86: =IF(OR('Tabel 4F Sydj'!F86<5,'Tabel 4 Sydj'!F86<0.5),"-",IFERROR('Tabel 4 Sydj'!F86/'Tabel 4F Sydj'!F86*100,"-")) -> - | G86: =IF(OR('Tabel 4F Sydj'!G86<5,'Tabel 4 Sydj'!G86<0.5),"-",IFERROR('Tabel 4 Sydj'!G86/'Tabel 4F Sydj'!G86*100,"-")) -> - | I86: =IF(OR('Tabel 4F Sydj'!I86<5,'Tabel 4 Sydj'!I86<0.5),"-",IFERROR('Tabel 4 Sydj'!I86/'Tabel 4F Sydj'!I86*100,"-")) -> -
A87: Samf. Adm. | C87: =IF(OR('Tabel 4F Sydj'!C87<5,'Tabel 4 Sydj'!C87<0.5),"-",IFERROR('Tabel 4 Sydj'!C87/'Tabel 4F Sydj'!C87*100,"-")) -> 20 | D87: =IF(OR('Tabel 4F Sydj'!D87<5,'Tabel 4 Sydj'!D87<0.5),"-",IFERROR('Tabel 4 Sydj'!D87/'Tabel 4F Sydj'!D87*100,"-")) -> - | E87: =IF(OR('Tabel 4F Sydj'!E87<5,'Tabel 4 Sydj'!E87<0.5),"-",IFERROR('Tabel 4 Sydj'!E87/'Tabel 4F Sydj'!E87*100,"-")) -> - | F87: =IF(OR('Tabel 4F Sydj'!F87<5,'Tabel 4 Sydj'!F87<0.5),"-",IFERROR('Tabel 4 Sydj'!F87/'Tabel 4F Sydj'!F87*100,"-")) -> 8.333333333 | G87: =IF(OR('Tabel 4F Sydj'!G87<5,'Tabel 4 Sydj'!G87<0.5),"-",IFERROR('Tabel 4 Sydj'!G87/'Tabel 4F Sydj'!G87*100,"-")) -> - | I87: =IF(OR('Tabel 4F Sydj'!I87<5,'Tabel 4 Sydj'!I87<0.5),"-",IFERROR('Tabel 4 Sydj'!I87/'Tabel 4F Sydj'!I87*100,"-")) -> 4.761904762
A88: Cand. Merc. | C88: =IF(OR('Tabel 4F Sydj'!C88<5,'Tabel 4 Sydj'!C88<0.5),"-",IFERROR('Tabel 4 Sydj'!C88/'Tabel 4F Sydj'!C88*100,"-")) -> 11.76470588 | D88: =IF(OR('Tabel 4F Sydj'!D88<5,'Tabel 4 Sydj'!D88<0.5),"-",IFERROR('Tabel 4 Sydj'!D88/'Tabel 4F Sydj'!D88*100,"-")) -> - | E88: =IF(OR('Tabel 4F Sydj'!E88<5,'Tabel 4 Sydj'!E88<0.5),"-",IFERROR('Tabel 4 Sydj'!E88/'Tabel 4F Sydj'!E88*100,"-")) -> 4.545454545 | F88: =IF(OR('Tabel 4F Sydj'!F88<5,'Tabel 4 Sydj'!F88<0.5),"-",IFERROR('Tabel 4 Sydj'!F88/'Tabel 4F Sydj'!F88*100,"-")) -> 4.761904762 | G88: =IF(OR('Tabel 4F Sydj'!G88<5,'Tabel 4 Sydj'!G88<0.5),"-",IFERROR('Tabel 4 Sydj'!G88/'Tabel 4F Sydj'!G88*100,"-")) -> - | I88: =IF(OR('Tabel 4F Sydj'!I88<5,'Tabel 4 Sydj'!I88<0.5),"-",IFERROR('Tabel 4 Sydj'!I88/'Tabel 4F Sydj'!I88*100,"-")) -> 4
A89: HA | C89: =IF(OR('Tabel 4F Sydj'!C89<5,'Tabel 4 Sydj'!C89<0.5),"-",IFERROR('Tabel 4 Sydj'!C89/'Tabel 4F Sydj'!C89*100,"-")) -> 16.66666667 | D89: =IF(OR('Tabel 4F Sydj'!D89<5,'Tabel 4 Sydj'!D89<0.5),"-",IFERROR('Tabel 4 Sydj'!D89/'Tabel 4F Sydj'!D89*100,"-")) -> 20 | E89: =IF(OR('Tabel 4F Sydj'!E89<5,'Tabel 4 Sydj'!E89<0.5),"-",IFERROR('Tabel 4 Sydj'!E89/'Tabel 4F Sydj'!E89*100,"-")) -> 16.66666667 | F89: =IF(OR('Tabel 4F Sydj'!F89<5,'Tabel 4 Sydj'!F89<0.5),"-",IFERROR('Tabel 4 Sydj'!F89/'Tabel 4F Sydj'!F89*100,"-")) -> - | G89: =IF(OR('Tabel 4F Sydj'!G89<5,'Tabel 4 Sydj'!G89<0.5),"-",IFERROR('Tabel 4 Sydj'!G89/'Tabel 4F Sydj'!G89*100,"-")) -> - | I89: =IF(OR('Tabel 4F Sydj'!I89<5,'Tabel 4 Sydj'!I89<0.5),"-",IFERROR('Tabel 4 Sydj'!I89/'Tabel 4F Sydj'!I89*100,"-")) -> 9.090909091
A90: HD | C90: =IF(OR('Tabel 4F Sydj'!C90<5,'Tabel 4 Sydj'!C90<0.5),"-",IFERROR('Tabel 4 Sydj'!C90/'Tabel 4F Sydj'!C90*100,"-")) -> - | D90: =IF(OR('Tabel 4F Sydj'!D90<5,'Tabel 4 Sydj'!D90<0.5),"-",IFERROR('Tabel 4 Sydj'!D90/'Tabel 4F Sydj'!D90*100,"-")) -> - | E90: =IF(OR('Tabel 4F Sydj'!E90<5,'Tabel 4 Sydj'!E90<0.5),"-",IFERROR('Tabel 4 Sydj'!E90/'Tabel 4F Sydj'!E90*100,"-")) -> - | F90: =IF(OR('Tabel 4F Sydj'!F90<5,'Tabel 4 Sydj'!F90<0.5),"-",IFERROR('Tabel 4 Sydj'!F90/'Tabel 4F Sydj'!F90*100,"-")) -> - | G90: =IF(OR('Tabel 4F Sydj'!G90<5,'Tabel 4 Sydj'!G90<0.5),"-",IFERROR('Tabel 4 Sydj'!G90/'Tabel 4F Sydj'!G90*100,"-")) -> - | I90: =IF(OR('Tabel 4F Sydj'!I90<5,'Tabel 4 Sydj'!I90<0.5),"-",IFERROR('Tabel 4 Sydj'!I90/'Tabel 4F Sydj'!I90*100,"-")) -> -
A91: Komm. og Sprog | C91: =IF(OR('Tabel 4F Sydj'!C91<5,'Tabel 4 Sydj'!C91<0.5),"-",IFERROR('Tabel 4 Sydj'!C91/'Tabel 4F Sydj'!C91*100,"-")) -> - | D91: =IF(OR('Tabel 4F Sydj'!D91<5,'Tabel 4 Sydj'!D91<0.5),"-",IFERROR('Tabel 4 Sydj'!D91/'Tabel 4F Sydj'!D91*100,"-")) -> 14.28571429 | E91: =IF(OR('Tabel 4F Sydj'!E91<5,'Tabel 4 Sydj'!E91<0.5),"-",IFERROR('Tabel 4 Sydj'!E91/'Tabel 4F Sydj'!E91*100,"-")) -> 16.66666667 | F91: =IF(OR('Tabel 4F Sydj'!F91<5,'Tabel 4 Sydj'!F91<0.5),"-",IFERROR('Tabel 4 Sydj'!F91/'Tabel 4F Sydj'!F91*100,"-")) -> 11.11111111 | G91: =IF(OR('Tabel 4F Sydj'!G91<5,'Tabel 4 Sydj'!G91<0.5),"-",IFERROR('Tabel 4 Sydj'!G91/'Tabel 4F Sydj'!G91*100,"-")) -> - | I91: =IF(OR('Tabel 4F Sydj'!I91<5,'Tabel 4 Sydj'!I91<0.5),"-",IFERROR('Tabel 4 Sydj'!I91/'Tabel 4F Sydj'!I91*100,"-")) -> 12
A92: Cand. IT. | C92: =IF(OR('Tabel 4F Sydj'!C92<5,'Tabel 4 Sydj'!C92<0.5),"-",IFERROR('Tabel 4 Sydj'!C92/'Tabel 4F Sydj'!C92*100,"-")) -> 20 | D92: =IF(OR('Tabel 4F Sydj'!D92<5,'Tabel 4 Sydj'!D92<0.5),"-",IFERROR('Tabel 4 Sydj'!D92/'Tabel 4F Sydj'!D92*100,"-")) -> - | E92: =IF(OR('Tabel 4F Sydj'!E92<5,'Tabel 4 Sydj'!E92<0.5),"-",IFERROR('Tabel 4 Sydj'!E92/'Tabel 4F Sydj'!E92*100,"-")) -> - | F92: =IF(OR('Tabel 4F Sydj'!F92<5,'Tabel 4 Sydj'!F92<0.5),"-",IFERROR('Tabel 4 Sydj'!F92/'Tabel 4F Sydj'!F92*100,"-")) -> - | G92: =IF(OR('Tabel 4F Sydj'!G92<5,'Tabel 4 Sydj'!G92<0.5),"-",IFERROR('Tabel 4 Sydj'!G92/'Tabel 4F Sydj'!G92*100,"-")) -> - | I92: =IF(OR('Tabel 4F Sydj'!I92<5,'Tabel 4 Sydj'!I92<0.5),"-",IFERROR('Tabel 4 Sydj'!I92/'Tabel 4F Sydj'!I92*100,"-")) -> 18.18181818
A93: Bac. Samf. | C93: =IF(OR('Tabel 4F Sydj'!C93<5,'Tabel 4 Sydj'!C93<0.5),"-",IFERROR('Tabel 4 Sydj'!C93/'Tabel 4F Sydj'!C93*100,"-")) -> - | D93: =IF(OR('Tabel 4F Sydj'!D93<5,'Tabel 4 Sydj'!D93<0.5),"-",IFERROR('Tabel 4 Sydj'!D93/'Tabel 4F Sydj'!D93*100,"-")) -> - | E93: =IF(OR('Tabel 4F Sydj'!E93<5,'Tabel 4 Sydj'!E93<0.5),"-",IFERROR('Tabel 4 Sydj'!E93/'Tabel 4F Sydj'!E93*100,"-")) -> - | F93: =IF(OR('Tabel 4F Sydj'!F93<5,'Tabel 4 Sydj'!F93<0.5),"-",IFERROR('Tabel 4 Sydj'!F93/'Tabel 4F Sydj'!F93*100,"-")) -> - | G93: =IF(OR('Tabel 4F Sydj'!G93<5,'Tabel 4 Sydj'!G93<0.5),"-",IFERROR('Tabel 4 Sydj'!G93/'Tabel 4F Sydj'!G93*100,"-")) -> - | I93: =IF(OR('Tabel 4F Sydj'!I93<5,'Tabel 4 Sydj'!I93<0.5),"-",IFERROR('Tabel 4 Sydj'!I93/'Tabel 4F Sydj'!I93*100,"-")) -> -
A94: Bac. Hum. | C94: =IF(OR('Tabel 4F Sydj'!C94<5,'Tabel 4 Sydj'!C94<0.5),"-",IFERROR('Tabel 4 Sydj'!C94/'Tabel 4F Sydj'!C94*100,"-")) -> - | D94: =IF(OR('Tabel 4F Sydj'!D94<5,'Tabel 4 Sydj'!D94<0.5),"-",IFERROR('Tabel 4 Sydj'!D94/'Tabel 4F Sydj'!D94*100,"-")) -> - | E94: =IF(OR('Tabel 4F Sydj'!E94<5,'Tabel 4 Sydj'!E94<0.5),"-",IFERROR('Tabel 4 Sydj'!E94/'Tabel 4F Sydj'!E94*100,"-")) -> - | F94: =IF(OR('Tabel 4F Sydj'!F94<5,'Tabel 4 Sydj'!F94<0.5),"-",IFERROR('Tabel 4 Sydj'!F94/'Tabel 4F Sydj'!F94*100,"-")) -> - | G94: =IF(OR('Tabel 4F Sydj'!G94<5,'Tabel 4 Sydj'!G94<0.5),"-",IFERROR('Tabel 4 Sydj'!G94/'Tabel 4F Sydj'!G94*100,"-")) -> - | I94: =IF(OR('Tabel 4F Sydj'!I94<5,'Tabel 4 Sydj'!I94<0.5),"-",IFERROR('Tabel 4 Sydj'!I94/'Tabel 4F Sydj'!I94*100,"-")) -> 20
A95: Bac. Nat. | C95: =IF(OR('Tabel 4F Sydj'!C95<5,'Tabel 4 Sydj'!C95<0.5),"-",IFERROR('Tabel 4 Sydj'!C95/'Tabel 4F Sydj'!C95*100,"-")) -> - | D95: =IF(OR('Tabel 4F Sydj'!D95<5,'Tabel 4 Sydj'!D95<0.5),"-",IFERROR('Tabel 4 Sydj'!D95/'Tabel 4F Sydj'!D95*100,"-")) -> - | E95: =IF(OR('Tabel 4F Sydj'!E95<5,'Tabel 4 Sydj'!E95<0.5),"-",IFERROR('Tabel 4 Sydj'!E95/'Tabel 4F Sydj'!E95*100,"-")) -> - | F95: =IF(OR('Tabel 4F Sydj'!F95<5,'Tabel 4 Sydj'!F95<0.5),"-",IFERROR('Tabel 4 Sydj'!F95/'Tabel 4F Sydj'!F95*100,"-")) -> - | G95: =IF(OR('Tabel 4F Sydj'!G95<5,'Tabel 4 Sydj'!G95<0.5),"-",IFERROR('Tabel 4 Sydj'!G95/'Tabel 4F Sydj'!G95*100,"-")) -> - | I95: =IF(OR('Tabel 4F Sydj'!I95<5,'Tabel 4 Sydj'!I95<0.5),"-",IFERROR('Tabel 4 Sydj'!I95/'Tabel 4F Sydj'!I95*100,"-")) -> 9.090909091
A96: Andre | C96: =IF(OR('Tabel 4F Sydj'!C96<5,'Tabel 4 Sydj'!C96<0.5),"-",IFERROR('Tabel 4 Sydj'!C96/'Tabel 4F Sydj'!C96*100,"-")) -> - | D96: =IF(OR('Tabel 4F Sydj'!D96<5,'Tabel 4 Sydj'!D96<0.5),"-",IFERROR('Tabel 4 Sydj'!D96/'Tabel 4F Sydj'!D96*100,"-")) -> - | E96: =IF(OR('Tabel 4F Sydj'!E96<5,'Tabel 4 Sydj'!E96<0.5),"-",IFERROR('Tabel 4 Sydj'!E96/'Tabel 4F Sydj'!E96*100,"-")) -> - | F96: =IF(OR('Tabel 4F Sydj'!F96<5,'Tabel 4 Sydj'!F96<0.5),"-",IFERROR('Tabel 4 Sydj'!F96/'Tabel 4F Sydj'!F96*100,"-")) -> - | G96: =IF(OR('Tabel 4F Sydj'!G96<5,'Tabel 4 Sydj'!G96<0.5),"-",IFERROR('Tabel 4 Sydj'!G96/'Tabel 4F Sydj'!G96*100,"-")) -> 7.692307692 | I96: =IF(OR('Tabel 4F Sydj'!I96<5,'Tabel 4 Sydj'!I96<0.5),"-",IFERROR('Tabel 4 Sydj'!I96/'Tabel 4F Sydj'!I96*100,"-")) -> 1.818181818
A98: Total | C98: =IF(OR('Tabel 4F Sydj'!C98<5,'Tabel 4 Sydj'!C98<0.5),"-",IFERROR('Tabel 4 Sydj'!C98/'Tabel 4F Sydj'!C98*100,"-")) -> 20.37037037 | D98: =IF(OR('Tabel 4F Sydj'!D98<5,'Tabel 4 Sydj'!D98<0.5),"-",IFERROR('Tabel 4 Sydj'!D98/'Tabel 4F Sydj'!D98*100,"-")) -> 1.785714286 | E98: =IF(OR('Tabel 4F Sydj'!E98<5,'Tabel 4 Sydj'!E98<0.5),"-",IFERROR('Tabel 4 Sydj'!E98/'Tabel 4F Sydj'!E98*100,"-")) -> 2.641509434 | F98: =IF(OR('Tabel 4F Sydj'!F98<5,'Tabel 4 Sydj'!F98<0.5),"-",IFERROR('Tabel 4 Sydj'!F98/'Tabel 4F Sydj'!F98*100,"-")) -> 2.272727273 | G98: =IF(OR('Tabel 4F Sydj'!G98<5,'Tabel 4 Sydj'!G98<0.5),"-",IFERROR('Tabel 4 Sydj'!G98/'Tabel 4F Sydj'!G98*100,"-")) -> 8.653846154 | I98: =IF(OR('Tabel 4F Sydj'!I98<5,'Tabel 4 Sydj'!I98<0.5),"-",IFERROR('Tabel 4 Sydj'!I98/'Tabel 4F Sydj'!I98*100,"-")) -> 4.694835681
A100: Ingeniører i alt | C100: =IF(OR('Tabel 4F Sydj'!C100<5,'Tabel 4 Sydj'!C100<0.5),"-",IFERROR('Tabel 4 Sydj'!C100/'Tabel 4F Sydj'!C100*100,"-")) -> 16.66666667 | D100: =IF(OR('Tabel 4F Sydj'!D100<5,'Tabel 4 Sydj'!D100<0.5),"-",IFERROR('Tabel 4 Sydj'!D100/'Tabel 4F Sydj'!D100*100,"-")) -> - | E100: =IF(OR('Tabel 4F Sydj'!E100<5,'Tabel 4 Sydj'!E100<0.5),"-",IFERROR('Tabel 4 Sydj'!E100/'Tabel 4F Sydj'!E100*100,"-")) -> - | F100: =IF(OR('Tabel 4F Sydj'!F100<5,'Tabel 4 Sydj'!F100<0.5),"-",IFERROR('Tabel 4 Sydj'!F100/'Tabel 4F Sydj'!F100*100,"-")) -> 2.53164557 | G100: =IF(OR('Tabel 4F Sydj'!G100<5,'Tabel 4 Sydj'!G100<0.5),"-",IFERROR('Tabel 4 Sydj'!G100/'Tabel 4F Sydj'!G100*100,"-")) -> 11.11111111 | I100: =IF(OR('Tabel 4F Sydj'!I100<5,'Tabel 4 Sydj'!I100<0.5),"-",IFERROR('Tabel 4 Sydj'!I100/'Tabel 4F Sydj'!I100*100,"-")) -> 2.777777778
A101: Magistre i alt | C101: =IF(OR('Tabel 4F Sydj'!C101<5,'Tabel 4 Sydj'!C101<0.5),"-",IFERROR('Tabel 4 Sydj'!C101/'Tabel 4F Sydj'!C101*100,"-")) -> 40 | D101: =IF(OR('Tabel 4F Sydj'!D101<5,'Tabel 4 Sydj'!D101<0.5),"-",IFERROR('Tabel 4 Sydj'!D101/'Tabel 4F Sydj'!D101*100,"-")) -> 4.47761194 | E101: =IF(OR('Tabel 4F Sydj'!E101<5,'Tabel 4 Sydj'!E101<0.5),"-",IFERROR('Tabel 4 Sydj'!E101/'Tabel 4F Sydj'!E101*100,"-")) -> 4 | F101: =IF(OR('Tabel 4F Sydj'!F101<5,'Tabel 4 Sydj'!F101<0.5),"-",IFERROR('Tabel 4 Sydj'!F101/'Tabel 4F Sydj'!F101*100,"-")) -> 1.785714286 | G101: =IF(OR('Tabel 4F Sydj'!G101<5,'Tabel 4 Sydj'!G101<0.5),"-",IFERROR('Tabel 4 Sydj'!G101/'Tabel 4F Sydj'!G101*100,"-")) -> 16 | I101: =IF(OR('Tabel 4F Sydj'!I101<5,'Tabel 4 Sydj'!I101<0.5),"-",IFERROR('Tabel 4 Sydj'!I101/'Tabel 4F Sydj'!I101*100,"-")) -> 8.467741935
A102: DJØF'ere i alt | C102: =IF(OR('Tabel 4F Sydj'!C102<5,'Tabel 4 Sydj'!C102<0.5),"-",IFERROR('Tabel 4 Sydj'!C102/'Tabel 4F Sydj'!C102*100,"-")) -> 10.52631579 | D102: =IF(OR('Tabel 4F Sydj'!D102<5,'Tabel 4 Sydj'!D102<0.5),"-",IFERROR('Tabel 4 Sydj'!D102/'Tabel 4F Sydj'!D102*100,"-")) -> 1.298701299 | E102: =IF(OR('Tabel 4F Sydj'!E102<5,'Tabel 4 Sydj'!E102<0.5),"-",IFERROR('Tabel 4 Sydj'!E102/'Tabel 4F Sydj'!E102*100,"-")) -> 6 | F102: =IF(OR('Tabel 4F Sydj'!F102<5,'Tabel 4 Sydj'!F102<0.5),"-",IFERROR('Tabel 4 Sydj'!F102/'Tabel 4F Sydj'!F102*100,"-")) -> 3.278688525 | G102: =IF(OR('Tabel 4F Sydj'!G102<5,'Tabel 4 Sydj'!G102<0.5),"-",IFERROR('Tabel 4 Sydj'!G102/'Tabel 4F Sydj'!G102*100,"-")) -> - | I102: =IF(OR('Tabel 4F Sydj'!I102<5,'Tabel 4 Sydj'!I102<0.5),"-",IFERROR('Tabel 4 Sydj'!I102/'Tabel 4F Sydj'!I102*100,"-")) -> 4.166666667
A109: Billund
C111: Under 30 år | D111: 30 - 39 år | E111: 40 - 49 år | F111: 50 - 59 år | G111: Over 60 år | I111: I alt
A113: Civ. ing. | C113: =IF(OR('Tabel 4F Sydj'!C113<5,'Tabel 4 Sydj'!C113<0.5),"-",IFERROR('Tabel 4 Sydj'!C113/'Tabel 4F Sydj'!C113*100,"-")) -> 28.57142857 | D113: =IF(OR('Tabel 4F Sydj'!D113<5,'Tabel 4 Sydj'!D113<0.5),"-",IFERROR('Tabel 4 Sydj'!D113/'Tabel 4F Sydj'!D113*100,"-")) -> - | E113: =IF(OR('Tabel 4F Sydj'!E113<5,'Tabel 4 Sydj'!E113<0.5),"-",IFERROR('Tabel 4 Sydj'!E113/'Tabel 4F Sydj'!E113*100,"-")) -> - | F113: =IF(OR('Tabel 4F Sydj'!F113<5,'Tabel 4 Sydj'!F113<0.5),"-",IFERROR('Tabel 4 Sydj'!F113/'Tabel 4F Sydj'!F113*100,"-")) -> - | G113: =IF(OR('Tabel 4F Sydj'!G113<5,'Tabel 4 Sydj'!G113<0.5),"-",IFERROR('Tabel 4 Sydj'!G113/'Tabel 4F Sydj'!G113*100,"-")) -> - | I113: =IF(OR('Tabel 4F Sydj'!I113<5,'Tabel 4 Sydj'!I113<0.5),"-",IFERROR('Tabel 4 Sydj'!I113/'Tabel 4F Sydj'!I113*100,"-")) -> 4.651162791
A114: Diplom ing. | C114: =IF(OR('Tabel 4F Sydj'!C114<5,'Tabel 4 Sydj'!C114<0.5),"-",IFERROR('Tabel 4 Sydj'!C114/'Tabel 4F Sydj'!C114*100,"-")) -> - | D114: =IF(OR('Tabel 4F Sydj'!D114<5,'Tabel 4 Sydj'!D114<0.5),"-",IFERROR('Tabel 4 Sydj'!D114/'Tabel 4F Sydj'!D114*100,"-")) -> - | E114: =IF(OR('Tabel 4F Sydj'!E114<5,'Tabel 4 Sydj'!E114<0.5),"-",IFERROR('Tabel 4 Sydj'!E114/'Tabel 4F Sydj'!E114*100,"-")) -> - | F114: =IF(OR('Tabel 4F Sydj'!F114<5,'Tabel 4 Sydj'!F114<0.5),"-",IFERROR('Tabel 4 Sydj'!F114/'Tabel 4F Sydj'!F114*100,"-")) -> - | G114: =IF(OR('Tabel 4F Sydj'!G114<5,'Tabel 4 Sydj'!G114<0.5),"-",IFERROR('Tabel 4 Sydj'!G114/'Tabel 4F Sydj'!G114*100,"-")) -> - | I114: =IF(OR('Tabel 4F Sydj'!I114<5,'Tabel 4 Sydj'!I114<0.5),"-",IFERROR('Tabel 4 Sydj'!I114/'Tabel 4F Sydj'!I114*100,"-")) -> -
A115: Cand. Scient. Tek | C115: =IF(OR('Tabel 4F Sydj'!C115<5,'Tabel 4 Sydj'!C115<0.5),"-",IFERROR('Tabel 4 Sydj'!C115/'Tabel 4F Sydj'!C115*100,"-")) -> 16.66666667 | D115: =IF(OR('Tabel 4F Sydj'!D115<5,'Tabel 4 Sydj'!D115<0.5),"-",IFERROR('Tabel 4 Sydj'!D115/'Tabel 4F Sydj'!D115*100,"-")) -> - | E115: =IF(OR('Tabel 4F Sydj'!E115<5,'Tabel 4 Sydj'!E115<0.5),"-",IFERROR('Tabel 4 Sydj'!E115/'Tabel 4F Sydj'!E115*100,"-")) -> - | F115: =IF(OR('Tabel 4F Sydj'!F115<5,'Tabel 4 Sydj'!F115<0.5),"-",IFERROR('Tabel 4 Sydj'!F115/'Tabel 4F Sydj'!F115*100,"-")) -> - | G115: =IF(OR('Tabel 4F Sydj'!G115<5,'Tabel 4 Sydj'!G115<0.5),"-",IFERROR('Tabel 4 Sydj'!G115/'Tabel 4F Sydj'!G115*100,"-")) -> - | I115: =IF(OR('Tabel 4F Sydj'!I115<5,'Tabel 4 Sydj'!I115<0.5),"-",IFERROR('Tabel 4 Sydj'!I115/'Tabel 4F Sydj'!I115*100,"-")) -> 4.545454545
A116: MA. Hum. | C116: =IF(OR('Tabel 4F Sydj'!C116<5,'Tabel 4 Sydj'!C116<0.5),"-",IFERROR('Tabel 4 Sydj'!C116/'Tabel 4F Sydj'!C116*100,"-")) -> 33.33333333 | D116: =IF(OR('Tabel 4F Sydj'!D116<5,'Tabel 4 Sydj'!D116<0.5),"-",IFERROR('Tabel 4 Sydj'!D116/'Tabel 4F Sydj'!D116*100,"-")) -> 25 | E116: =IF(OR('Tabel 4F Sydj'!E116<5,'Tabel 4 Sydj'!E116<0.5),"-",IFERROR('Tabel 4 Sydj'!E116/'Tabel 4F Sydj'!E116*100,"-")) -> 6.666666667 | F116: =IF(OR('Tabel 4F Sydj'!F116<5,'Tabel 4 Sydj'!F116<0.5),"-",IFERROR('Tabel 4 Sydj'!F116/'Tabel 4F Sydj'!F116*100,"-")) -> 16.66666667 | G116: =IF(OR('Tabel 4F Sydj'!G116<5,'Tabel 4 Sydj'!G116<0.5),"-",IFERROR('Tabel 4 Sydj'!G116/'Tabel 4F Sydj'!G116*100,"-")) -> - | I116: =IF(OR('Tabel 4F Sydj'!I116<5,'Tabel 4 Sydj'!I116<0.5),"-",IFERROR('Tabel 4 Sydj'!I116/'Tabel 4F Sydj'!I116*100,"-")) -> 16.27906977
A117: MA. Nat. | C117: =IF(OR('Tabel 4F Sydj'!C117<5,'Tabel 4 Sydj'!C117<0.5),"-",IFERROR('Tabel 4 Sydj'!C117/'Tabel 4F Sydj'!C117*100,"-")) -> - | D117: =IF(OR('Tabel 4F Sydj'!D117<5,'Tabel 4 Sydj'!D117<0.5),"-",IFERROR('Tabel 4 Sydj'!D117/'Tabel 4F Sydj'!D117*100,"-")) -> - | E117: =IF(OR('Tabel 4F Sydj'!E117<5,'Tabel 4 Sydj'!E117<0.5),"-",IFERROR('Tabel 4 Sydj'!E117/'Tabel 4F Sydj'!E117*100,"-")) -> - | F117: =IF(OR('Tabel 4F Sydj'!F117<5,'Tabel 4 Sydj'!F117<0.5),"-",IFERROR('Tabel 4 Sydj'!F117/'Tabel 4F Sydj'!F117*100,"-")) -> 16.66666667 | G117: =IF(OR('Tabel 4F Sydj'!G117<5,'Tabel 4 Sydj'!G117<0.5),"-",IFERROR('Tabel 4 Sydj'!G117/'Tabel 4F Sydj'!G117*100,"-")) -> - | I117: =IF(OR('Tabel 4F Sydj'!I117<5,'Tabel 4 Sydj'!I117<0.5),"-",IFERROR('Tabel 4 Sydj'!I117/'Tabel 4F Sydj'!I117*100,"-")) -> 5.555555556
A118: MA. Ph.d. | C118: =IF(OR('Tabel 4F Sydj'!C118<5,'Tabel 4 Sydj'!C118<0.5),"-",IFERROR('Tabel 4 Sydj'!C118/'Tabel 4F Sydj'!C118*100,"-")) -> - | D118: =IF(OR('Tabel 4F Sydj'!D118<5,'Tabel 4 Sydj'!D118<0.5),"-",IFERROR('Tabel 4 Sydj'!D118/'Tabel 4F Sydj'!D118*100,"-")) -> - | E118: =IF(OR('Tabel 4F Sydj'!E118<5,'Tabel 4 Sydj'!E118<0.5),"-",IFERROR('Tabel 4 Sydj'!E118/'Tabel 4F Sydj'!E118*100,"-")) -> - | F118: =IF(OR('Tabel 4F Sydj'!F118<5,'Tabel 4 Sydj'!F118<0.5),"-",IFERROR('Tabel 4 Sydj'!F118/'Tabel 4F Sydj'!F118*100,"-")) -> - | G118: =IF(OR('Tabel 4F Sydj'!G118<5,'Tabel 4 Sydj'!G118<0.5),"-",IFERROR('Tabel 4 Sydj'!G118/'Tabel 4F Sydj'!G118*100,"-")) -> - | I118: =IF(OR('Tabel 4F Sydj'!I118<5,'Tabel 4 Sydj'!I118<0.5),"-",IFERROR('Tabel 4 Sydj'!I118/'Tabel 4F Sydj'!I118*100,"-")) -> -
A119: MA. Samf. | C119: =IF(OR('Tabel 4F Sydj'!C119<5,'Tabel 4 Sydj'!C119<0.5),"-",IFERROR('Tabel 4 Sydj'!C119/'Tabel 4F Sydj'!C119*100,"-")) -> - | D119: =IF(OR('Tabel 4F Sydj'!D119<5,'Tabel 4 Sydj'!D119<0.5),"-",IFERROR('Tabel 4 Sydj'!D119/'Tabel 4F Sydj'!D119*100,"-")) -> - | E119: =IF(OR('Tabel 4F Sydj'!E119<5,'Tabel 4 Sydj'!E119<0.5),"-",IFERROR('Tabel 4 Sydj'!E119/'Tabel 4F Sydj'!E119*100,"-")) -> - | F119: =IF(OR('Tabel 4F Sydj'!F119<5,'Tabel 4 Sydj'!F119<0.5),"-",IFERROR('Tabel 4 Sydj'!F119/'Tabel 4F Sydj'!F119*100,"-")) -> - | G119: =IF(OR('Tabel 4F Sydj'!G119<5,'Tabel 4 Sydj'!G119<0.5),"-",IFERROR('Tabel 4 Sydj'!G119/'Tabel 4F Sydj'!G119*100,"-")) -> - | I119: =IF(OR('Tabel 4F Sydj'!I119<5,'Tabel 4 Sydj'!I119<0.5),"-",IFERROR('Tabel 4 Sydj'!I119/'Tabel 4F Sydj'!I119*100,"-")) -> -
A120: Øvrige Mag. | C120: =IF(OR('Tabel 4F Sydj'!C120<5,'Tabel 4 Sydj'!C120<0.5),"-",IFERROR('Tabel 4 Sydj'!C120/'Tabel 4F Sydj'!C120*100,"-")) -> - | D120: =IF(OR('Tabel 4F Sydj'!D120<5,'Tabel 4 Sydj'!D120<0.5),"-",IFERROR('Tabel 4 Sydj'!D120/'Tabel 4F Sydj'!D120*100,"-")) -> - | E120: =IF(OR('Tabel 4F Sydj'!E120<5,'Tabel 4 Sydj'!E120<0.5),"-",IFERROR('Tabel 4 Sydj'!E120/'Tabel 4F Sydj'!E120*100,"-")) -> - | F120: =IF(OR('Tabel 4F Sydj'!F120<5,'Tabel 4 Sydj'!F120<0.5),"-",IFERROR('Tabel 4 Sydj'!F120/'Tabel 4F Sydj'!F120*100,"-")) -> - | G120: =IF(OR('Tabel 4F Sydj'!G120<5,'Tabel 4 Sydj'!G120<0.5),"-",IFERROR('Tabel 4 Sydj'!G120/'Tabel 4F Sydj'!G120*100,"-")) -> - | I120: =IF(OR('Tabel 4F Sydj'!I120<5,'Tabel 4 Sydj'!I120<0.5),"-",IFERROR('Tabel 4 Sydj'!I120/'Tabel 4F Sydj'!I120*100,"-")) -> -
A121: Agronom | C121: =IF(OR('Tabel 4F Sydj'!C121<5,'Tabel 4 Sydj'!C121<0.5),"-",IFERROR('Tabel 4 Sydj'!C121/'Tabel 4F Sydj'!C121*100,"-")) -> - | D121: =IF(OR('Tabel 4F Sydj'!D121<5,'Tabel 4 Sydj'!D121<0.5),"-",IFERROR('Tabel 4 Sydj'!D121/'Tabel 4F Sydj'!D121*100,"-")) -> - | E121: =IF(OR('Tabel 4F Sydj'!E121<5,'Tabel 4 Sydj'!E121<0.5),"-",IFERROR('Tabel 4 Sydj'!E121/'Tabel 4F Sydj'!E121*100,"-")) -> - | F121: =IF(OR('Tabel 4F Sydj'!F121<5,'Tabel 4 Sydj'!F121<0.5),"-",IFERROR('Tabel 4 Sydj'!F121/'Tabel 4F Sydj'!F121*100,"-")) -> - | G121: =IF(OR('Tabel 4F Sydj'!G121<5,'Tabel 4 Sydj'!G121<0.5),"-",IFERROR('Tabel 4 Sydj'!G121/'Tabel 4F Sydj'!G121*100,"-")) -> - | I121: =IF(OR('Tabel 4F Sydj'!I121<5,'Tabel 4 Sydj'!I121<0.5),"-",IFERROR('Tabel 4 Sydj'!I121/'Tabel 4F Sydj'!I121*100,"-")) -> -
A122: Landsk. Arkt. | C122: =IF(OR('Tabel 4F Sydj'!C122<5,'Tabel 4 Sydj'!C122<0.5),"-",IFERROR('Tabel 4 Sydj'!C122/'Tabel 4F Sydj'!C122*100,"-")) -> - | D122: =IF(OR('Tabel 4F Sydj'!D122<5,'Tabel 4 Sydj'!D122<0.5),"-",IFERROR('Tabel 4 Sydj'!D122/'Tabel 4F Sydj'!D122*100,"-")) -> - | E122: =IF(OR('Tabel 4F Sydj'!E122<5,'Tabel 4 Sydj'!E122<0.5),"-",IFERROR('Tabel 4 Sydj'!E122/'Tabel 4F Sydj'!E122*100,"-")) -> - | F122: =IF(OR('Tabel 4F Sydj'!F122<5,'Tabel 4 Sydj'!F122<0.5),"-",IFERROR('Tabel 4 Sydj'!F122/'Tabel 4F Sydj'!F122*100,"-")) -> - | G122: =IF(OR('Tabel 4F Sydj'!G122<5,'Tabel 4 Sydj'!G122<0.5),"-",IFERROR('Tabel 4 Sydj'!G122/'Tabel 4F Sydj'!G122*100,"-")) -> - | I122: =IF(OR('Tabel 4F Sydj'!I122<5,'Tabel 4 Sydj'!I122<0.5),"-",IFERROR('Tabel 4 Sydj'!I122/'Tabel 4F Sydj'!I122*100,"-")) -> -
A123: Hortonom | C123: =IF(OR('Tabel 4F Sydj'!C123<5,'Tabel 4 Sydj'!C123<0.5),"-",IFERROR('Tabel 4 Sydj'!C123/'Tabel 4F Sydj'!C123*100,"-")) -> - | D123: =IF(OR('Tabel 4F Sydj'!D123<5,'Tabel 4 Sydj'!D123<0.5),"-",IFERROR('Tabel 4 Sydj'!D123/'Tabel 4F Sydj'!D123*100,"-")) -> - | E123: =IF(OR('Tabel 4F Sydj'!E123<5,'Tabel 4 Sydj'!E123<0.5),"-",IFERROR('Tabel 4 Sydj'!E123/'Tabel 4F Sydj'!E123*100,"-")) -> - | F123: =IF(OR('Tabel 4F Sydj'!F123<5,'Tabel 4 Sydj'!F123<0.5),"-",IFERROR('Tabel 4 Sydj'!F123/'Tabel 4F Sydj'!F123*100,"-")) -> - | G123: =IF(OR('Tabel 4F Sydj'!G123<5,'Tabel 4 Sydj'!G123<0.5),"-",IFERROR('Tabel 4 Sydj'!G123/'Tabel 4F Sydj'!G123*100,"-")) -> - | I123: =IF(OR('Tabel 4F Sydj'!I123<5,'Tabel 4 Sydj'!I123<0.5),"-",IFERROR('Tabel 4 Sydj'!I123/'Tabel 4F Sydj'!I123*100,"-")) -> -
A124: Forstkand. | C124: =IF(OR('Tabel 4F Sydj'!C124<5,'Tabel 4 Sydj'!C124<0.5),"-",IFERROR('Tabel 4 Sydj'!C124/'Tabel 4F Sydj'!C124*100,"-")) -> - | D124: =IF(OR('Tabel 4F Sydj'!D124<5,'Tabel 4 Sydj'!D124<0.5),"-",IFERROR('Tabel 4 Sydj'!D124/'Tabel 4F Sydj'!D124*100,"-")) -> - | E124: =IF(OR('Tabel 4F Sydj'!E124<5,'Tabel 4 Sydj'!E124<0.5),"-",IFERROR('Tabel 4 Sydj'!E124/'Tabel 4F Sydj'!E124*100,"-")) -> - | F124: =IF(OR('Tabel 4F Sydj'!F124<5,'Tabel 4 Sydj'!F124<0.5),"-",IFERROR('Tabel 4 Sydj'!F124/'Tabel 4F Sydj'!F124*100,"-")) -> - | G124: =IF(OR('Tabel 4F Sydj'!G124<5,'Tabel 4 Sydj'!G124<0.5),"-",IFERROR('Tabel 4 Sydj'!G124/'Tabel 4F Sydj'!G124*100,"-")) -> - | I124: =IF(OR('Tabel 4F Sydj'!I124<5,'Tabel 4 Sydj'!I124<0.5),"-",IFERROR('Tabel 4 Sydj'!I124/'Tabel 4F Sydj'!I124*100,"-")) -> -
